Workbook

Sheet 2025
A1: No. 2 TOM RENICK COUNTY PARK SPREADSHEET
D3: 3078 | E3: 3079 | F3: 3080 | G3: 3081 | H3: 3082 | I3: 3083 | J3: 3084 | K3: 3085 | L3: 3086 | M3: 3087 | N3: 3088 | O3: 3089 | P3: 3090 | Q3: 3091 | R3: 3092 | S3: 3093 | T3: 3094 | U3: 3095 | V3: 3096 | W3: 3097 | X3: 3098 | Y3: 3099 | Z3: 3100 | AA3: 3101 | AB3: 3102 | AC3: 3103 | AD3: 3104 | AE3: 3105 | AF3: 3106 | AG3: 3107 | AH3: 3108 | AI3: 3109 | AJ3: 3110 | AK3: 3111 | AL3: 3112 | AM3: 3113 | AN3: 3114 | AO3: 3115 | AP3: 3116 | AQ3: 3117 | AR3: 3118 | AS3: 3119 | AT3: 3120 | AU3: 3121 | AV3: 3122 | AW3: 3123 | AX3: 3124 | AY3: 3125 | AZ3: 3126 | BA3: 3127 | BB3: 3128 | BC3: 3129 | BD3: 3130 | BE3: 3131 | BF3: 3132 | BG3: 3133 | BH3: 3134 | BI3: 3135 | BJ3: 3136 | BK3: 3137 | BL3: 3138 | BM3: 3139 | BN3: 3140 | BO3: 3141 | BP3: 3142 | BQ3: 3143 | BR3: 3144 | BS3: 3145 | BT3: 3146 | BU3: 3147 | BV3: 3148 | BW3: 3149 | BX3: 3150 | BY3: 3151 | BZ3: 3152 | CA3: 3153 | CB3: 3154 | CC3: 3155 | CD3: 3156 | CE3: 3157 | CF3: 3158 | CG3: 3159 | CH3: 3160 | CI3: 3161 | CJ3: 3162 | CK3: 3163 | CL3: 3164 | CM3: 3165 | CN3: 3166 | CO3: 3167 | CP3: 3168 | CQ3: 3169 | CR3: 3170 | CS3: 3171 | CT3: 3172 | CU3: 3173 | CV3: 3174 | CW3: 3175 | CX3: 3176 | CY3: 3177 | CZ3: 3178 | DA3: 3179 | DB3: 3180 | DC3: 3181 | DD3: 3182 | DE3: 3183 | DF3: 3184 | DG3: 3185 | DH3: 3186 | DI3: 3187 | DJ3: 3188 | DK3: 3189 | DL3: 3190 | DM3: 3191 | DN3: 3192 | DO3: 3193 | DP3: 3194 | DQ3: 3195 | DR3: 3196 | DS3: 3197 | DT3: 3198 | DU3: 3199 | DV3: 3200 | DW3: 3201 | DX3: 3202 | DY3: 3203 | DZ3: 3204 | EA3: 3205 | EB3: 3206 | EC3: 3207 | ED3: 3208 | EE3: 3209 | EF3: 3210 | EG3: 3211 | EH3: 3212 | EI3: 3213 | EJ3: 3214 | EK3: 3215 | EL3: 3216 | EM3: 3217 | EN3: 3218 | EO3: 3219 | EP3: 3220 | EQ3: 3221 | ER3: 3222 | ES3: 3223 | ET3: 3224 | EU3: 3225 | EV3: 3226 | EW3: 3227 | EX3: 3228 | EY3: 3229 | EZ3: 3230 | FA3: 3231 | FB3: 3232 | FC3: 3233 | FD3: 3234 | FE3: 3235 | FF3: 3236 | FG3: 3237 | FH3: 3238 | FI3: 3239 | FJ3: 3240 | FK3: 3241 | FL3: 3242 | FM3: 3243 | FN3: 3244 | FO3: 3245 | FP3: 3246 | FQ3: 3247 | FR3: 3248 | FS3: 3249 | FT3: 3250 | FU3: 3251 | FV3: 3252 | FW3: 3253 | FX3: 3254 | FY3: 3255 | FZ3: 3256 | GA3: 3257 | GB3: 3258 | GC3: 3259 | GD3: 3260 | GE3: 3261 | GF3: 3262 | GG3: 3263 | GH3: 3264 | GI3: 3265 | GJ3: 3266 | GK3: 3267 | GL3: 3268 | GM3: 3269 | GN3: 3270 | GO3: 3271 | GP3: 3272 | GQ3: 3273 | GR3: 3274 | GS3: 3275 | GT3: 3276 | GU3: 3277 | GV3: 3278 | GW3: 3279 | GX3: 3280 | GY3: 3281 | GZ3: 3282 | HA3: 3283 | HB3: 3284 | HC3: 3285 | HD3: 3286 | HE3: 3287 | HF3: 3288 | HG3: 3289 | HH3: 3290 | HI3: 3291 | HJ3: 3292 | HK3: 3293 | HL3: 3294 | HM3: 3295 | HN3: 3296 | HO3: 3297 | HP3: 3298 | HQ3: 3299 | HR3: 3300 | HS3: 3301 | HT3: 3302 | HU3: 3303 | HV3: 3304 | HW3: 3305 | HX3: 3306 | HY3: 3307 | HZ3: 3308 | IA3: 3309 | IB3: 3310 | IC3: 3311 | ID3: 3312 | IE3: 3313 | IF3: 3314 | IG3: 3315 | IH3: 3316 | II3: 3317 | IJ3: 3318 | IK3: 3319 | IL3: 3320 | IM3: 3321 | IN3: 3322 | IO3: 3323 | IP3: 3324 | IQ3: 3325 | IR3: 3326 | IS3: 3327 | IT3: 3328 | IU3: 3329 | IV3: 3330 | IW3: 3331 | IX3: 3332 | IY3: 3333 | IZ3: 3334 | JA3: 3335 | JB3: 3336 | JC3: 3337 | JD3: 3338 | JE3: 3339 | JF3: 3340 | JG3: 3341 | JH3: 3342 | JI3: 3343 | JJ3: 3344 | JK3: 3345 | JL3: 3346 | JM3: 3347 | JN3: 3348 | JO3: 3349 | JP3: 3350 | JQ3: 3351 | JR3: 3352 | JS3: 3353 | JT3: 3354 | JU3: 3355 | JV3: 3356 | JW3: 3357 | JX3: 3358 | JY3: 3359 | JZ3: 3360 | KA3: 3361 | KB3: 3362 | KC3: 3363 | KD3: 3364 | KE3: 3365 | KF3: 3366 | KG3: 3367 | KH3: 3368 | KI3: 3369 | KJ3: 3370 | KK3: 3371 | KL3: 3372 | KM3: 3373 | KN3: 3374 | KO3: 3375 | KP3: 3376 | KQ3: 3377 | KR3: 3378 | KS3: 3379 | KT3: 3380 | KU3: 3381 | KV3: 3382 | KW3: 3383 | KX3: 3384 | KY3: 3385 | KZ3: 3386 | LA3: 3387 | LB3: 3388 | LC3: 3389 | LD3: 3390 | LE3: 3391 | LF3: 3392 | LG3: 3393 | LH3: 3394 | LI3: 3395 | LJ3: 3396 | LK3: 3397 | LL3: 3398 | LM3: 3399 | LN3: 3400 | LO3: 3401 | LP3: 3402 | LQ3: 3403 | LR3: 3404 | LS3: 3405 | LT3: 3406 | LU3: 3407 | LV3: 3408 | LW3: 3409 | LX3: 3410 | LY3: 3411 | LZ3: 3412 | MA3: 3413 | MB3: 3414 | MC3: 3415 | MD3: 3416 | ME3: 3417 | MF3: 3418 | MG3: 3419 | MH3: 3420 | MI3: 3421 | MJ3: 3422 | MK3: 3423 | ML3: 3424 | MM3: 3425 | MN3: 3426 | MO3: 3427 | MP3: 3428 | MQ3: 3429 | MR3: 3430 | MS3: 3431 | MT3: 3432 | MU3: 3433 | MV3: 3434 | MW3: 3435 | MX3: 3436 | MY3: 3437 | MZ3: 3438 | NA3: 3439 | NB3: 3440 | NC3: 3441 | ND3: 3442 | NE3: 3078 | NF3: 3079 | NG3: 3080 | NH3: 3081 | NI3: 3082 | NJ3: 3083 | NK3: 3084 | NL3: 3085 | NM3: 3086 | NN3: 3087 | NO3: 3088 | NP3: 3089 | NQ3: 3090 | NR3: 3091 | NS3: 3092 | NT3: 3093 | NU3: 3094 | NV3: 3095 | NW3: 3096 | NX3: 3097 | NY3: 3098 | NZ3: 3099 | OA3: 3100 | OB3: 3101 | OC3: 3102 | OD3: 3103 | OE3: 3104 | OF3: 3105 | OG3: 3106 | OH3: 3107 | OI3: 3108 | OJ3: 3109 | OK3: 3110 | OL3: 3111 | OM3: 3112 | ON3: 3113 | OO3: 3114 | OP3: 3115 | OQ3: 3116 | OR3: 3117 | OS3: 3118 | OT3: 3119 | OU3: 3120 | OV3: 3121 | OW3: 3122 | OX3: 3123 | OY3: 3124 | OZ3: 3125 | PA3: 3126 | PB3: 3127 | PC3: 3128 | PD3: 3129 | PE3: 3130 | PF3: 3131 | PG3: 3132 | PH3: 3133 | PI3: 3134 | PJ3: 3135 | PK3: 3136 | PL3: 3137 | PM3: 3138 | PN3: 3139 | PO3: 3140 | PP3: 3141 | PQ3: 3142 | PR3: 3143 | PS3: 3144 | PT3: 3145 | PU3: 3146 | PV3: 3147 | PW3: 3148 | PX3: 3149 | PY3: 3150 | PZ3: 3151 | QA3: 3152 | QB3: 3153 | QC3: 3154 | QD3: 3155 | QE3: 3156 | QF3: 3157 | QG3: 3158 | QH3: 3159 | QI3: 3160 | QJ3: 3161 | QK3: 3162 | QL3: 3163 | QM3: 3164 | QN3: 3165 | QO3: 3166 | QP3: 3167 | QQ3: 3168 | QR3: 3169 | QS3: 3170 | QT3: 3171 | QU3: 3172 | QV3: 3173 | QW3: 3174 | QX3: 3175 | QY3: 3176 | QZ3: 3177 | RA3: 3178 | RB3: 3179 | RC3: 3180 | RD3: 3181 | RE3: 3182 | RF3: 3183 | RG3: 3184 | RH3: 3185 | RI3: 3186 | RJ3: 3187 | RK3: 3188 | RL3: 3189 | RM3: 3190 | RN3: 3191 | RO3: 3192 | RP3: 3193 | RQ3: 3194 | RR3: 3195 | RS3: 3196 | RT3: 3197 | RU3: 3198 | RV3: 3199 | RW3: 3200 | RX3: 3201 | RY3: 3202 | RZ3: 3203 | SA3: 3204 | SB3: 3205 | SC3: 3206 | SD3: 3207 | SE3: 3208 | SF3: 3209 | SG3: 3210 | SH3: 3211 | SI3: 3212 | SJ3: 3213 | SK3: 3214 | SL3: 3215 | SM3: 3216 | SN3: 3217 | SO3: 3218 | SP3: 3219 | SQ3: 3220 | SR3: 3221 | SS3: 3222 | ST3: 3223 | SU3: 3224 | SV3: 3225 | SW3: 3226 | SX3: 3227 | SY3: 3228 | SZ3: 3229 | TA3: 3230 | TB3: 3231 | TC3: 3232 | TD3: 3233 | TE3: 3234 | TF3: 3235 | TG3: 3236 | TH3: 3237 | TI3: 3238 | TJ3: 3239 | TK3: 3240 | TL3: 3241 | TM3: 3242 | TN3: 3243 | TO3: 3244 | TP3: 3245 | TQ3: 3246 | TR3: 3247 | TS3: 3248 | TT3: 3249 | TU3: 3250 | TV3: 3251 | TW3: 3252 | TX3: 3253 | TY3: 3254 | TZ3: 3255 | UA3: 3256 | UB3: 3257 | UC3: 3258 | UD3: 3259 | UE3: 3260 | UF3: 3261 | UG3: 3262 | UH3: 3263 | UI3: 3264 | UJ3: 3265 | UK3: 3266 | UL3: 3267 | UM3: 3268 | UN3: 3269 | UO3: 3270 | UP3: 3271 | UQ3: 3272 | UR3: 3273 | US3: 3274 | UT3: 3275 | UU3: 3276 | UV3: 3277 | UW3: 3278 | UX3: 3279 | UY3: 3280 | UZ3: 3281 | VA3: 3282 | VB3: 3283 | VC3: 3284 | VD3: 3285 | VE3: 3286 | VF3: 3287 | VG3: 3288 | VH3: 3289 | VI3: 3290 | VJ3: 3291 | VK3: 3292 | VL3: 3293 | VM3: 3294 | VN3: 3295 | VO3: 3296 | VP3: 3297 | VQ3: 3298 | VR3: 3299 | VS3: 3300 | VT3: 3301 | VU3: 3302 | VV3: 3303 | VW3: 3304 | VX3: 3305 | VY3: 3306 | VZ3: 3307 | WA3: 3308 | WB3: 3309 | WC3: 3310 | WD3: 3311 | WE3: 3312 | WF3: 3313 | WG3: 3314 | WH3: 3315 | WI3: 3316 | WJ3: 3317 | WK3: 3318 | WL3: 3319 | WM3: 3320 | WN3: 3321 | WO3: 3322 | WP3: 3323 | WQ3: 3324 | WR3: 3325 | WS3: 3326 | WT3: 3327 | WU3: 3328 | WV3: 3329 | WW3: 3330 | WX3: 3331 | WY3: 3332 | WZ3: 3333 | XA3: 3334 | XB3: 3335 | XC3: 3336 | XD3: 3337 | XE3: 3338 | XF3: 3339 | XG3: 3340 | XH3: 3341 | XI3: 3342 | XJ3: 3343 | XK3: 3344 | XL3: 3345 | XM3: 3346 | XN3: 3347 | XO3: 3348 | XP3: 3349 | XQ3: 3350 | XR3: 3351 | XS3: 3352 | XT3: 3353 | XU3: 3354 | XV3: 3355 | XW3: 3356 | XX3: 3357 | XY3: 3358 | XZ3: 3359 | YA3: 3360 | YB3: 3361 | YC3: 3362 | YD3: 3363 | YE3: 3364 | YF3: 3365 | YG3: 3366 | YH3: 3367 | YI3: 3368 | YJ3: 3369 | YK3: 3370 | YL3: 3371 | YM3: 3372 | YN3: 3373 | YO3: 3374 | YP3: 3375 | YQ3: 3376 | YR3: 3377 | YS3: 3378 | YT3: 3379 | YU3: 3380 | YV3: 3381 | YW3: 3382 | YX3: 3383 | YY3: 3384 | YZ3: 3385 | ZA3: 3386 | ZB3: 3387 | ZC3: 3388 | ZD3: 3389 | ZE3: 3390 | ZF3: 3391 | ZG3: 3392 | ZH3: 3393 | ZI3: 3394 | ZJ3: 3395 | ZK3: 3396 | ZL3: 3397 | ZM3: 3398 | ZN3: 3399 | ZO3: 3400 | ZP3: 3401 | ZQ3: 3402 | ZR3: 3403 | ZS3: 3404 | ZT3: 3405 | ZU3: 3406 | ZV3: 3407 | ZW3: 3408 | ZX3: 3409 | ZY3: 3410 | ZZ3: 3411 | AAA3: 3412 | AAB3: 3413 | AAC3: 3414 | AAD3: 3415 | AAE3: 3416 | AAF3: 3417 | AAG3: 3418 | AAH3: 3419 | AAI3: 3420 | AAJ3: 3421 | AAK3: 3422 | AAL3: 3423 | AAM3: 3424 | AAN3: 3425 | AAO3: 3426 | AAP3: 3427 | AAQ3: 3428 | AAR3: 3429 | AAS3: 3430 | AAT3: 3431 | AAU3: 3432 | AAV3: 3433 | AAW3: 3434 | AAX3: 3435 | AAY3: 3436 | AAZ3: 3437 | ABA3: 3438 | ABB3: 3439 | ABC3: 3440 | ABD3: 3441 | ABE3: 3442 | ABF3: 3443 | ABG3: 3444 | ABH3: 3445 | ABI3: 3446 | ABJ3: 3447 | ABK3: 3448 | ABL3: 3449 | ABM3: 3450 | ABN3: 3451 | ABO3: 3452 | ABP3: 3453 | ABQ3: 3454 | ABR3: 3455 | ABS3: 3456 | ABT3: 3457 | ABU3: 3458 | ABV3: 3459 | ABW3: 3460 | ABX3: 3461 | ABY3: 3462 | ABZ3: 3463 | ACA3: 3464 | ACB3: 3465 | ACC3: 3466 | ACD3: 3467 | ACE3: 3468 | ACF3: 3469 | ACG3: 3470 | ACH3: 3471 | ACI3: 3472 | ACJ3: 3473 | ACK3: 3474 | ACL3: 3475 | ACM3: 3476 | ACN3: 3477 | ACO3: 3478 | ACP3: 3479 | ACQ3: 3480 | ACR3: 3481 | ACS3: 3482 | ACT3: 3483 | ACU3: 3484 | ACV3: 3485 | ACW3: 3486 | ACX3: 3487 | ACY3: 3488 | ACZ3: 3489 | ADA3: 3490 | ADB3: 3491 | ADC3: 3492 | ADD3: 3493 | ADE3: 3494 | ADF3: 3495 | ADG3: 3496 | ADH3: 3497 | ADI3: 3498 | ADJ3: 3499 | ADK3: 3500 | ADL3: 3501 | ADM3: 3502 | ADN3: 3503 | ADO3: 3504 | ADP3: 3505 | ADQ3: 3506 | ADR3: 3507 | ADS3: 3508 | ADT3: 3509 | ADU3: 3510 | ADV3: 3511 | ADW3: 3512 | ADX3: 3513 | ADY3: 3514 | ADZ3: 3515 | AEA3: 3516 | AEB3: 3517 | AEC3: 3518 | AED3: 3519 | AEE3: 3520 | AEF3: 3521 | AEG3: 3522 | AEH3: 3523 | AEI3: 3524 | AEJ3: 3525 | AEK3: 3526 | AEL3: 3527 | AEM3: 3528 | AEN3: 3529 | AEO3: 3530 | AEP3: 3531 | AEQ3: 3532 | AER3: 3533 | AES3: 3534 | AET3: 3535 | AEU3: 3536 | AEV3: 3537 | AEW3: 3538 | AEX3: 3539 | AEY3: 3540 | AEZ3: 3541 | AFA3: 3542 | AFB3: 3543 | AFC3: 3544 | AFD3: 3545 | AFE3: 3546 | AFF3: 3547 | AFG3: 3548 | AFH3: 3549 | AFI3: 3550 | AFJ3: 3551 | AFK3: 3552 | AFL3: 3553 | AFM3: 3554 | AFN3: 3555 | AFO3: 3556 | AFP3: 3557 | AFQ3: 3558 | AFR3: 3559 | AFS3: 3560 | AFT3: 3561 | AFU3: 3562 | AFV3: 3563 | AFW3: 3564 | AFX3: 3565 | AFY3: 3566 | AFZ3: 3567 | AGA3: 3568 | AGB3: 3569 | AGC3: 3570 | AGD3: 3571 | AGE3: 3572 | AGF3: 3573 | AGG3: 3574 | AGH3: 3575 | AGI3: 3576 | AGJ3: 3577 | AGK3: 3578 | AGL3: 3579 | AGM3: 3580 | AGN3: 3581 | AGO3: 3582 | AGP3: 3583 | AGQ3: 3584 | AGR3: 3585 | AGS3: 3586 | AGT3: 3587 | AGU3: 3588 | AGV3: 3589 | AGW3: 3590 | AGX3: 3591 | AGY3: 3592 | AGZ3: 3593 | AHA3: 3594 | AHB3: 3595 | AHC3: 3596 | AHD3: 3597 | AHE3: 3598 | AHF3: 3599 | AHG3: 3600 | AHH3: 3601 | AHI3: 3602 | AHJ3: 3603 | AHK3: 3604 | AHL3: 3605 | AHM3: 3606 | AHN3: 3607 | AHO3: 3608 | AHP3: 3609 | AHQ3: 3610 | AHR3: 3611 | AHS3: 3612 | AHT3: 3613 | AHU3: 3614 | AHV3: 3615 | AHW3: 3616 | AHX3: 3617 | AHY3: 3618 | AHZ3: 3619 | AIA3: 3620 | AIB3: 3621 | AIC3: 3622 | AID3: 3623 | AIE3: 3624 | AIF3: 3625 | AIG3: 3626 | AIH3: 3627 | AII3: 3628 | AIJ3: 3629 | AIK3: 3630 | AIL3: 3631 | AIM3: 3632 | AIN3: 3633 | AIO3: 3634 | AIP3: 3635 | AIQ3: 3636 | AIR3: 3637 | AIS3: 3638 | AIT3: 3639 | AIU3: 3640 | AIV3: 3641 | AIW3: 3642 | AIX3: 3643 | AIY3: 3644 | AIZ3: 3645 | AJA3: 3646 | AJB3: 3647 | AJC3: 3648 | AJD3: 3649 | AJE3: 3650 | AJF3: 3651 | AJG3: 3652 | AJH3: 3653 | AJI3: 3654 | AJJ3: 3655 | AJK3: 3656 | AJL3: 3657 | AJM3: 3658 | AJN3: 3659 | AJO3: 3660 | AJP3: 3661 | AJQ3: 3662 | AJR3: 3663 | AJS3: 3664 | AJT3: 3665 | AJU3: 3666 | AJV3: 3667 | AJW3: 3668 | AJX3: 3669 | AJY3: 3670 | AJZ3: 3671 | AKA3: 3672 | AKB3: 3673 | AKC3: 3674 | AKD3: 3675 | AKE3: 3676 | AKF3: 3677 | AKG3: 3678 | AKH3: 3679 | AKI3: 3680 | AKJ3: 3681 | AKK3: 3682 | AKL3: 3683 | AKM3: 3684 | AKN3: 3685 | AKO3: 3686 | AKP3: 3687 | AKQ3: 3688 | AKR3: 3689 | AKS3: 3690 | AKT3: 3691 | AKU3: 3692 | AKV3: 3693 | AKW3: 3694 | AKX3: 3695 | AKY3: 3696 | AKZ3: 3697 | ALA3: 3698 | ALB3: 3699 | ALC3: 3700 | ALD3: 3701 | ALE3: 3702 | ALF3: 3703 | ALG3: 3704 | ALH3: 3705 | ALI3: 3706 | ALJ3: 3707 | ALK3: 3708 | ALL3: 3709 | ALM3: 3710 | ALN3: 3711 | ALO3: 3712 | ALP3: 3713 | ALQ3: 3714 | ALR3: 3715 | ALS3: 3716 | ALT3: 3717 | ALU3: 3718 | ALV3: 3719 | ALW3: 3720 | ALX3: 3721 | ALY3: 3722 | ALZ3: 3723 | AMA3: 3724 | AMB3: 3725 | AMC3: 3726 | AMD3: 3727 | AME3: 3728 | AMF3: 3729 | AMG3: 3730 | AMH3: 3731 | AMI3: 3732 | AMJ3: 3733 | AMK3: 3734 | AML3: 3735 | AMM3: 3736 | AMN3: 3737 | AMO3: 3738 | AMP3: 3739 | AMQ3: 3740 | AMR3: 3741 | AMS3: 3742 | AMT3: 3743 | AMU3: 3744 | AMV3: 3745 | AMW3: 3746 | AMX3: 3747 | AMY3: 3748 | AMZ3: 3749 | ANA3: 3750 | ANB3: 3751 | ANC3: 3752 | AND3: 3753 | ANE3: 3754 | ANF3: 3755 | ANG3: 3756 | ANH3: 3757 | ANI3: 3758 | ANJ3: 3759 | ANK3: 3760 | ANL3: 3761 | ANM3: 3762 | ANN3: 3763 | ANO3: 3764 | ANP3: 3765 | ANQ3: 3766 | ANR3: 3767 | ANS3: 3768 | ANT3: 3769 | ANU3: 3770 | ANV3: 3771 | ANW3: 3772 | ANX3: 3773 | ANY3: 3774 | ANZ3: 3775 | AOA3: 3776 | AOB3: 3777 | AOC3: 3778 | AOD3: 3779 | AOE3: 3780 | AOF3: 3781 | AOG3: 3782 | AOH3: 3783 | AOI3: 3784 | AOJ3: 3785 | AOK3: 3786 | AOL3: 3787 | AOM3: 3788 | AON3: 3789 | AOO3: 3790 | AOP3: 3791 | AOQ3: 3792 | AOR3: 3793 | AOS3: 3794 | AOT3: 3795 | AOU3: 3796 | AOV3: 3797 | AOW3: 3798 | AOX3: 3799 | AOY3: 3800 | AOZ3: 3801 | APA3: 3802 | APB3: 3803 | APC3: 3804 | APD3: 3805 | APE3: 3806 | APF3: 3807 | APG3: 3808 | APH3: 3809 | API3: 3810 | APJ3: 3811 | APK3: 3812 | APL3: 3813 | APM3: 3814 | APN3: 3815 | APO3: 3816 | APP3: 3817 | APQ3: 3818 | APR3: 3819 | APS3: 3820 | APT3: 3821 | APU3: 3822 | APV3: 3823 | APW3: 3824 | APX3: 3825 | APY3: 3826 | APZ3: 3827 | AQA3: 3828 | AQB3: 3829 | AQC3: 3830 | AQD3: 3831 | AQE3: 3832 | AQF3: 3833 | AQG3: 3834 | AQH3: 3835 | AQI3: 3836 | AQJ3: 3837 | AQK3: 3838 | AQL3: 3839 | AQM3: 3840 | AQN3: 3841 | AQO3: 3842 | AQP3: 3843 | AQQ3: 3844 | AQR3: 3845 | AQS3: 3846 | AQT3: 3847 | AQU3: 3848 | AQV3: 3849 | AQW3: 3850 | AQX3: 3851 | AQY3: 3852 | AQZ3: 3853 | ARA3: 3854 | ARB3: 3855 | ARC3: 3856 | ARD3: 3857 | ARE3: 3858 | ARF3: 3859 | ARG3: 3860 | ARH3: 3861 | ARI3: 3862 | ARJ3: 3863 | ARK3: 3864 | ARL3: 3865 | ARM3: 3866 | ARN3: 3867 | ARO3: 3868 | ARP3: 3869 | ARQ3: 3870 | ARR3: 3871 | ARS3: 3872 | ART3: 3873 | ARU3: 3874 | ARV3: 3875 | ARW3: 3876 | ARX3: 3877 | ARY3: 3878 | ARZ3: 3879 | ASA3: 3880 | ASB3: 3881 | ASC3: 3882 | ASD3: 3883 | ASE3: 3884 | ASF3: 3885 | ASG3: 3886 | ASH3: 3887 | ASI3: 3888 | ASJ3: 3889 | ASK3: 3890 | ASL3: 3891 | ASM3: 3892 | ASN3: 3893 | ASO3: 3894 | ASP3: 3895 | ASQ3: 3896 | ASR3: 3897 | ASS3: 3898 | AST3: 3899 | ASU3: 3900 | ASV3: 3901 | ASW3: 3902 | ASX3: 3903 | ASY3: 3904 | ASZ3: 3905 | ATA3: 3906 | ATB3: 3907 | ATC3: 3908 | ATD3: 3909 | ATE3: 3910 | ATF3: 3911 | ATG3: 3912 | ATH3: 3913 | ATI3: 3914 | ATJ3: 3915 | ATK3: 3916 | ATL3: 3917 | ATM3: 3918 | ATN3: 3919 | ATO3: 3920 | ATP3: 3921 | ATQ3: 3922 | ATR3: 3923 | ATS3: 3924 | ATT3: 3925 | ATU3: 3926 | ATV3: 3927 | ATW3: 3928 | ATX3: 3929 | ATY3: 3930 | ATZ3: 3931 | AUA3: 3932 | AUB3: 3933 | AUC3: 3934 | AUD3: 3935 | AUE3: 3936 | AUF3: 3937 | AUG3: 3938 | AUH3: 3939 | AUI3: 3940 | AUJ3: 3941 | AUK3: 3942 | AUL3: 3943 | AUM3: 3944 | AUN3: 3945 | AUO3: 3946 | AUP3: 3947 | AUQ3: 3948 | AUR3: 3949 | AUS3: 3950 | AUT3: 3951 | AUU3: 3952 | AUV3: 3953 | AUW3: 3954 | AUX3: 3955 | AUY3: 3956 | AUZ3: 3957 | AVA3: 3958 | AVB3: 3959 | AVC3: 3960 | AVD3: 3961 | AVE3: 3962 | AVF3: 3963 | AVG3: 3964 | AVH3: 3965 | AVI3: 3966 | AVJ3: 3967 | AVK3: 3968 | AVL3: 3969 | AVM3: 3970 | AVN3: 3971 | AVO3: 3972 | AVP3: 3973 | AVQ3: 3974 | AVR3: 3975 | AVS3: 3976 | AVT3: 3977 | AVU3: 3978 | AVV3: 3979 | AVW3: 3980 | AVX3: 3981 | AVY3: 3982 | AVZ3: 3983 | AWA3: 3984 | AWB3: 3985 | AWC3: 3986 | AWD3: 3987 | AWE3: 3988 | AWF3: 3989 | AWG3: 3990 | AWH3: 3991 | AWI3: 3992 | AWJ3: 3993 | AWK3: 3994 | AWL3: 3995 | AWM3: 3996 | AWN3: 3997 | AWO3: 3998 | AWP3: 3999 | AWQ3: 4000 | AWR3: 4001 | AWS3: 4002 | AWT3: 4003 | AWU3: 4004 | AWV3: 4005 | AWW3: 4006 | AWX3: 4007 | AWY3: 4008 | AWZ3: 4009 | AXA3: 4010 | AXB3: 4011 | AXC3: 4012 | AXD3: 4013 | AXE3: 4014 | AXF3: 4015 | AXG3: 4016 | AXH3: 4017 | AXI3: 4018 | AXJ3: 4019 | AXK3: 4020 | AXL3: 4021 | AXM3: 4022 | AXN3: 4023 | AXO3: 4024 | AXP3: 4025 | AXQ3: 4026 | AXR3: 4027 | AXS3: 4028 | AXT3: 4029 | AXU3: 4030 | AXV3: 4031 | AXW3: 4032 | AXX3: 4033 | AXY3: 4034 | AXZ3: 4035 | AYA3: 4036 | AYB3: 4037 | AYC3: 4038 | AYD3: 4039 | AYE3: 4040 | AYF3: 4041 | AYG3: 4042 | AYH3: 4043 | AYI3: 4044 | AYJ3: 4045 | AYK3: 4046 | AYL3: 4047 | AYM3: 4048 | AYN3: 4049 | AYO3: 4050 | AYP3: 4051 | AYQ3: 4052 | AYR3: 4053 | AYS3: 4054 | AYT3: 4055 | AYU3: 4056 | AYV3: 4057 | AYW3: 4058 | AYX3: 4059 | AYY3: 4060 | AYZ3: 4061 | AZA3: 4062 | AZB3: 4063 | AZC3: 4064 | AZD3: 4065 | AZE3: 4066 | AZF3: 4067 | AZG3: 4068 | AZH3: 4069 | AZI3: 4070 | AZJ3: 4071 | AZK3: 4072 | AZL3: 4073 | AZM3: 4074 | AZN3: 4075 | AZO3: 4076 | AZP3: 4077 | AZQ3: 4078 | AZR3: 4079 | AZS3: 4080 | AZT3: 4081 | AZU3: 4082 | AZV3: 4083 | AZW3: 4084 | AZX3: 4085 | AZY3: 4086 | AZZ3: 4087 | BAA3: 4088 | BAB3: 4089 | BAC3: 4090 | BAD3: 4091 | BAE3: 4092 | BAF3: 4093 | BAG3: 4094 | BAH3: 4095 | BAI3: 4096 | BAJ3: 4097 | BAK3: 4098 | BAL3: 4099 | BAM3: 4100 | BAN3: 4101 | BAO3: 4102 | BAP3: 4103 | BAQ3: 4104 | BAR3: 4105 | BAS3: 4106 | BAT3: 4107 | BAU3: 4108 | BAV3: 4109
A4: Species
D5: 1.1.25 | E5: 1.2.25 | F5: 1.3.25 | G5: 1.4.25 | H5: 1.5.25 | I5: 1.6.25 | J5: 1.7.25 | K5: 1.8.25 | L5: 1.9.25 | M5: 1.10.25 | N5: 1.11.25 | O5: 1.12.25 | P5: 1.13.25 | Q5: 1.14.25 | R5: 1.15.25 | S5: 1.16.25 | T5: 1.17.25 | U5: 1.18.25 | V5: 1.19.25 | W5: 1.20.25 | X5: 1.21.25 | Y5: 1.22.25 | Z5: 1.23.25 | AA5: 1.25.25 | AB5: 1,25.25 | AC5: 1.26.25 | AD5: 1.27.25 | AE5: 1.28.25 | AF5: 1.29.25 | AG5: 1.30.25 | AH5: 1.31.25 | AI5: 2.1.25 | AJ5: 2.2.25 | AK5: 2.3.25 | AL5: 2.4.25 | AM5: 2.5.25 | AN5: 2.6.25 | AO5: 2.7.25 | AP5: 2.8.25 | AQ5: 2.9.25 | AR5: 2.10.25 | AS5: 2.11.25 | AT5: 2.12.25 | AU5: 2.13.25 | AV5: 2.14.25 | AW5: 2.15.25 | AX5: 2.16.25 | AY5: 2.17.25 | AZ5: 2.18.25 | BA5: 2.19.25 | BB5: 2.20.25 | BC5: 2.21.25 | BD5: 2.22.25 | BE5: 2.23.25 | BF5: 2.24.25 | BG5: 2.25.25 | BH5: 2.26.25 | BI5: 2.27.25 | BJ5: 2.28.25 | BK5: 3.1.25 | BL5: 3.2.25 | BM5: 3.3.25 | BN5: 3.4.25 | BO5: 3.5.25 | BP5: 3.6.25 | BQ5: 3.7.25 | BR5: 3.8.25 | BS5: 3.9.25 | BT5: 3.10.25 | BU5: 3.11.25 | BV5: 3.12.14 | BW5: 3.13.25 | BX5: 3.14.25 | BY5: 3.15.25 | BZ5: 3.16.25 | CA5: 3.17.25 | CB5: 3.18.25 | CC5: 3.19.25 | CD5: 3.20.25 | CE5: 3.21.25 | CF5: 3.22.25 | CG5: 3.23.25 | CH5: 3.24.25 | CI5: 3.25.25 | CJ5: 3.26.25 | CK5: 3.27.25 | CL5: 3.28.25 | CM5: 3.29.25 | CN5: 3.30.25 | CO5: 3.31.25 | CP5: 4.1.25 | CQ5: 4.2.25 | CR5: 4.3.25 | CS5: 4.4.25 | CT5: 4.5.25 | CU5: 4.6.25 | CV5: 4.7.25 | CW5: 4.8.25 | CX5: 4.9.25 | CY5: 4.10.25 | CZ5: 4.11.25 | DA5: 4.12.25 | DB5: 4.13.25 | DC5: 4.14.25 | DD5: 4.15.25 | DE5: 4.16.25 | DF5: 4.17.25 | DG5: 4.18.25 | DH5: 4.19.25 | DI5: 4.20.25 | DJ5: 4.21.25 | DK5: 4.22.25 | DL5: 4.23.25 | DM5: 4.24.25 | DN5: 4.25.25 | DO5: 4.26.25 | DP5: 4.27.25 | DQ5: 4.28.25 | DR5: 4.29.25 | DS5: 4.30.25 | DT5: 5.1.25 | DU5: 5.2.25 | DV5: 5.3.25 | DW5: 5.4.25 | DX5: 5.5.25 | DY5: 5.6.25 | DZ5: 5.7.25 | EA5: 5.8.25 | EB5: 5.9.25 | EC5: 5.10.25 | ED5: 5.11.25 | EE5: 5.12.25 | EF5: 5.13.25 | EG5: 5.14.25 | EH5: 5.15.25 | EI5: 5.16.25 | EJ5: 5.17.25 | EK5: 5.18.25 | EL5: 5.19.25 | EM5: 5.20.25 | EN5: 5.21.25 | EO5: 5.22.25 | EP5: 5.23.25 | EQ5: 5.24.25 | ER5: 5.25.25 | ES5: 5.26.25 | ET5: 5.27.25 | EU5: 5.28.25 | EV5: 5.29.25 | EW5: 5.30.25 | EX5: 5.31.25 | EY5: 6.1.25 | EZ5: 6.2.25 | FA5: 6.3.25 | FB5: 6.4.25 | FC5: 6.5.25 | FD5: 6.6.25 | FE5: 6.7.25 | FF5: 6.8.25 | FG5: 6.9.25 | FH5: 6.10.25 | FI5: 6.11.25 | FJ5: 6.12.25 | FK5: 6.13.25 | FL5: 6.14.25 | FM5: 6.15.25 | FN5: 6.16.25 | FO5: 6.17.25 | FP5: 6.18.25 | FQ5: 6.19.25 | FR5: 6.20.25 | FS5: 6.21.25 | FT5: 6.22.25 | FU5: 6.23.25 | FV5: 6.24.25 | FW5: 6.25.25 | FX5: 6.26.25 | FY5: 6.27.25 | FZ5: 6.28.25 | GA5: 6.29.25 | GB5: 6.30.25 | GC5: 7.1.25 | GD5: 7.2.25 | GE5: 7.3.25 | GF5: 7.4.25 | GG5: 7.5.25 | GH5: 7.6.25 | GI5: 7.7.25 | GJ5: 7.8.25 | GK5: 7.9.25 | GL5: 7.10.25 | GM5: 7.11.25 | GN5: 7.12.25 | GO5: 7.13.25 | GP5: 7.14.25 | GQ5: 7.15.25 | GR5: 7.16.25 | GS5: 7.17.25 | GT5: 7.18.25 | GU5: 7.19.25 | GV5: 7.20.25 | GW5: 7.21.25 | GX5: 7.22.25 | GY5: 7.23.25 | GZ5: 7.24.25 | HA5: 7.25.25 | HB5: 7.26.25 | HC5: 7.27.25 | HD5: 7.28.25 | HE5: 7.29.25 | HF5: 7.30.25 | HG5: 7.31.25 | HH5: 8.1.25 | HI5: 8.2.25 | HJ5: 8.3.25 | HK5: 8.4.25 | HL5: 8.5.25 | HM5: 8.6.25 | HN5: 8.7.25 | HO5: 8.8.25 | HP5: 8.9.25 | HQ5: 8.10.25 | HR5: 8.11.25 | HS5: 8.12.25 | HT5: 8.13.25 | HU5: 8.14.25 | HV5: 8.15.25 | HW5: 8.16.25 | HX5: 8.17.25 | HY5: 8.18.25 | HZ5: 8.19.25 | IA5: 8.20.25 | IB5: 8.21.25 | IC5: 8.22.25 | ID5: 8.23.25 | IE5: 8.24.25 | IF5: 8.25.25 | IG5: 8.26.25 | IH5: 8.27.25 | II5: 8.28.25 | IJ5: 8.29.25 | IK5: 8.30.25 | IL5: 8.31.25 | IM5: 9.1.25 | IN5: 9.2.25 | IO5: 9.3.25 | IP5: 9.4.25 | IQ5: 9.5.25 | IR5: 9.6.25 | IS5: 9.7.25 | IT5: 9.8.25 | IU5: 9.9.25 | IV5: 9.10.25 | IW5: 9.11.25 | IX5: 9.12.25 | IY5: 9.13.25 | IZ5: 9.14.25 | JA5: 9.15.25 | JB5: 9.16.25 | JC5: 9.17.25 | JD5: 9.18.25 | JE5: 9.19.25 | JF5: 9.20.25 | JG5: 9.21.25 | JH5: 9.22.25 | JI5: 9.23.25 | JJ5: 9.24.25 | JK5: 9.25.25 | JL5: 9.26.25 | JM5: 9.27.25 | JN5: 9.28.25 | JO5: 9.29.25 | JP5: 9.30.25 | JQ5: 10.1.25 | JR5: 10.2.25 | JS5: 10.3.25 | JT5: 10.4.25 | JU5: 10.5.25 | JV5: 10.6.25 | JW5: 10.7.25 | JX5: 10.8.25 | JY5: 10.9.25 | JZ5: 10.10.25 | KA5: 10.11.25 | KB5: 10.12.25 | KC5: 10.13.25 | KD5: 10.14.25 | KE5: 10.15.25 | KF5: 10.16.25 | KG5: 10.17.25 | KH5: 10.18.25 | KI5: 10.19.25 | KJ5: 10.20.25 | KK5: 10.21.25 | KL5: 10.22.25 | KM5: 10.23.25 | KN5: 10.25.25 | KO5: 10.25.25 | KP5: 10.26.25 | KQ5: 10.27.25 | KR5: 10.28.25 | KS5: 10.29.25 | KT5: 10.30.25 | KU5: 10.31.25 | KV5: 11.1.25 | KW5: 11.2.25 | KX5: 11.3.25 | KY5: 11.4.25 | KZ5: 11.5.25 | LA5: 11.6.25 | LB5: 11.7.25 | LC5: 11.8.25 | LD5: 11.9.25 | LE5: 11.10.25 | LF5: 11.11.25 | LG5: 11.12.25 | LH5: 11.13.25 | LI5: 11.14.25 | LJ5: 11.15.25 | LK5: 11.16.25 | LL5: 11.17.25 | LM5: 11.18.25 | LN5: 11.19.25 | LO5: 11.20.25 | LP5: 11.21.25 | LQ5: 11.22.25 | LR5: 11.23.25 | LS5: 11.24.25 | LT5: 11.25.25 | LU5: 11.26.25 | LV5: 11.27.25 | LW5: 11.28.25 | LX5: 11.29.25 | LY5: 11.30.25 | LZ5: 12.1.25 | MA5: 12.2.25 | MB5: 12.3.25 | MC5: 12.4.25 | MD5: 12.5.25 | ME5: 12.6.25 | MF5: 12.7.25 | MG5: 12.8.25 | MH5: 12.9.25 | MI5: 12.10.25 | MJ5: 12.11.25 | MK5: 12.12.25 | ML5: 12.13.25 | MM5: 12.14.25 | MN5: 12.15.25 | MO5: 12.16.25 | MP5: 12.17.25 | MQ5: 12.18,24 | MR5: 12.19.25 | MS5: 12.20.25 | MT5: 12.21.25 | MU5: 12.22.25 | MV5: 12.23.25 | MW5: 12.25.25 | MX5: 12.25.25 | MY5: 12.26.25 | MZ5: 12.27.25 | NA5: 12.28.25 | NB5: 12.29.25 | NC5: 12.30.25 | ND5: 12.31.25
C6: Hours | D6: 6 | E6: 5 | F6: 5 | G6: 5 | H6: 5 | I6: 5 | J6: 5 | K6: 5 | L6: 5 | M6: 5 | N6: 6 | O6: 5 | P6: 6 | Q6: 5 | R6: 5 | S6: 5 | T6: 5 | U6: 6 | V6: 5 | W6: 5 | X6: 5 | Y6: 4 | Z6: 5 | AA6: 5 | AB6: 5 | AC6: 5 | AD6: 6 | AE6: 6 | AF6: 6 | AG6: 5 | AH6: 5 | AI6: 6 | AJ6: 5 | AK6: 5 | AL6: 5 | AM6: 5 | AN6: 6 | AO6: 6 | AP6: 6 | AQ6: 6 | AR6: 6 | AS6: 5 | AT6: 5 | AU6: 5 | AV6: 5 | AW6: 5 | AX6: 5 | AY6: 5 | AZ6: 5 | BA6: 5 | BB6: 5 | BC6: 5 | BD6: 5 | BE6: 6 | BF6: 6 | BG6: 5 | BH6: 5 | BI6: 5 | BJ6: 5 | BK6: 6 | BL6: 6 | BM6: 5 | BN6: 6 | BO6: 5 | BP6: 5 | BQ6: 6 | BR6: 6 | BS6: 6 | BT6: 6 | BU6: 5 | BV6: 6 | BW6: 6 | BX6: 6 | BY6: 6 | BZ6: 5 | CA6: 5 | CB6: 5 | CC6: 6 | CD6: 6 | CE6: 5 | CF6: 5 | CG6: 5 | CH6: 6 | CI6: 6 | CJ6: 6 | CK6: 6 | CL6: 6 | CM6: 6 | CN6: 5 | CO6: 6 | CP6: 6 | CQ6: 6 | CR6: 5 | CS6: 6 | CT6: 5 | CU6: 6 | CV6: 6 | CW6: 5 | CX6: 6 | CY6: 5 | CZ6: 5 | DA6: 6 | DB6: 6 | DC6: 6 | DD6: 6 | DE6: 6 | DF6: 6 | DG6: 6 | DH6: 6 | DI6: 6 | DJ6: 6 | DK6: 5 | DL6: 6 | DM6: 6 | DN6: 6 | DO6: 6 | DP6: 6 | DQ6: 6 | DR6: 6 | DS6: 6 | DT6: 6 | DU6: 6 | DV6: 6 | DW6: 6 | DX6: 6 | DY6: 6 | DZ6: 6 | EA6: 6 | EB6: 6 | EC6: 6 | ED6: 5 | EE6: 5 | EF6: 6 | EG6: 6 | EH6: 6 | EI6: 6 | EJ6: 6 | EK6: 6 | EL6: 6 | EM6: 6 | EN6: 6 | EO6: 6 | EP6: 6 | EQ6: 6 | ER6: 6 | ES6: 6 | ET6: 6 | EU6: 6 | EV6: 6 | EW6: 6 | EX6: 4 | EY6: 6 | EZ6: 6 | FA6: 6 | FB6: 6 | FC6: 6 | FD6: 6 | FE6: 6 | FF6: 6 | FG6: 6 | FH6: 6 | FI6: 2 | FJ6: 4 | FK6: 4 | FL6: 4 | FM6: 4 | FN6: 4 | FO6: 4 | FP6: 4 | FQ6: 4 | FR6: 4 | FS6: 4 | FT6: 4 | FU6: 4 | FV6: 4 | FW6: 4 | FX6: 4 | FY6: 4 | FZ6: 4 | GA6: 4 | GB6: 4 | GC6: 5 | GD6: 4 | GE6: 5 | GF6: 5 | GG6: 4 | GH6: 4 | GI6: 4 | GJ6: 2 | GK6: 4 | GL6: 4 | GM6: 4 | GN6: 4 | GO6: 4 | GP6: 4 | GQ6: 4 | GR6: 4 | GS6: 4 | GT6: 2 | GU6: 4 | GV6: 4 | GW6: 1 | GX6: 4 | GY6: 4 | GZ6: 4 | HA6: 4 | HB6: 4 | HC6: 4 | HD6: 4 | HE6: 0 | HF6: 0 | HG6: 4 | HH6: 4 | HI6: 5 | HJ6: 4 | HK6: 5 | HL6: 5 | HM6: 5 | HN6: 5 | HO6: 4 | HP6: 5 | HQ6: 5 | HR6: 5 | HS6: 4 | HT6: 5 | HU6: 4 | HV6: 4 | HW6: 4 | HX6: 5 | HY6: 4 | HZ6: 4 | IA6: 4 | IB6: 4 | IC6: 3 | ID6: 4 | IE6: 4 | IF6: 4 | IG6: 4 | IH6: 3 | II6: 4 | IJ6: 4 | IK6: 4 | IL6: 4 | IM6: 4 | IN6: 4 | IO6: 4 | IP6: 4 | IQ6: 4 | IR6: 4 | IS6: 4 | IT6: 4 | IU6: 4 | IV6: 4 | IW6: 4 | IX6: 5 | IY6: 4 | IZ6: 4 | JA6: 4 | JB6: 4 | JC6: 5 | JD6: 4 | JE6: 4 | JF6: 5 | JG6: 4 | JH6: 5 | JI6: 4 | JJ6: 2 | JK6: 0 | JL6: 5 | JM6: 4 | JN6: 4 | JO6: 6 | JP6: 4 | JQ6: 5 | JR6: 3 | JS6: 4 | JT6: 4 | JU6: 4 | JV6: 4 | JW6: 5 | JX6: 5 | JY6: 6 | JZ6: 4 | KA6: 4 | KB6: 5 | KC6: 5 | KD6: 5 | KE6: 5 | KF6: 4 | KG6: 4 | KH6: 4 | KI6: 5 | KJ6: 5 | KK6: 4 | KL6: 4 | KM6: 5 | KN6: 4 | KO6: 4 | KP6: 5 | KQ6: 4 | KR6: 4 | KS6: 5 | KT6: 4 | KU6: 4 | KV6: 5 | KW6: 5 | KX6: 4 | KY6: 4 | KZ6: 4 | LA6: 5 | LB6: 4 | LC6: 4 | LD6: 5 | LE6: 4 | LF6: 4 | LG6: 4 | LH6: 4 | LI6: 5 | LJ6: 5 | LK6: 5 | LL6: 4 | LM6: 4 | LN6: 4 | LO6: 4 | LP6: 4 | LQ6: 4 | LR6: 4 | LS6: 4 | LT6: 4 | LU6: 4 | LV6: 4 | LW6: 4 | LX6: 4
C7: Wind | D7: N 8 | E7: N 8 | F7: N 3 | G7: N 8 | H7: calm | I7: S 12 | J7: N 12 | K7: N 8 | L7: N 8 | M7: calm | N7: S 5 | O7: N 5 | P7: N 8 | Q7: N 8 | R7: N 8 | S7: calm | T7: calm | U7: calm | V7: SW 5 | W7: N 10 | X7: N 10 | Y7: N 15 | Z7: N 8 | AA7: N 6 | AB7: N 4 | AC7: N 3 | AD7: calm | AE7: calm | AF7: W 3 | AG7: calm | AH7: calm | AI7: NW 3 | AJ7: NE 4 | AK7: N 3 | AL7: calm | AM7: calm | AN7: SW 3 | AO7: SW 3 | AP7: S 4 | AQ7: calm | AR7: calm | AS7: calm | AT7: S 4 | AU7: S 8 | AV7: N 8 | AW7: SW 5 | AX7: SW 18 | AY7: N 15 | AZ7: NE 8 | BA7: calm | BB7: NW 10 | BC7: N 20 | BD7: N 8 | BE7: N 2 | BF7: calm | BG7: calm | BH7: calm | BI7: calm | BJ7: N 6 | BK7: NW 4 | BL7: NW 5 | BM7: N 8 | BN7: SE 5 | BO7: S 12 | BP7: W 21 | BQ7: calm | BR7: W 3 | BS7: calm | BT7: SW 5 | BU7: W 4 | BV7: calm | BW7: calm | BX7: W 3 | BY7: S 4 | BZ7: S 10 | CA7: W 21 | CB7: N 6 | CC7: calm | CD7: S 3 | CE7: N 5 | CF7: N 3 | CG7: calm | CH7: S 5 | CI7: W 5 | CJ7: calm | CK7: calm | CL7: E 4 | CM7: S 8 | CN7: SE 5 | CO7: SW 5 | CP7: NW 4 | CQ7: S 4 | CR7: S 7 | CS7: S 6 | CT7: calm | CU7: S 6 | CV7: S 10 | CW7: NW 12 | CX7: N 10 | CY7: NE 10 | CZ7: W 4 | DA7: N 6 | DB7: W 3 | DC7: S 3 | DD7: SW 3 | DE7: N 7 | DF7: calm | DG7: SE 4 | DH7: SE 4 | DI7: SE 8 | DJ7: SE 5 | DK7: calm | DL7: calm | DM7: E 4 | DN7: SE 5 | DO7: SE 3 | DP7: SW 4 | DQ7: calm | DR7: E 10 | DS7: SE 5 | DT7: SE 3 | DU7: calm | DV7: calm | DW7: W 3 | DX7: SW 3 | DY7: SW 3 | DZ7: SE 3 | EA7: SE 4 | EB7: S 3 | EC7: SE 8 | ED7: SE 8 | EE7: SE 6 | EF7: calm | EG7: S 3 | EH7: S 3 | EI7: SW 4 | EJ7: SW 4 | EK7: SW 3 | EL7: calm | EM7: SW 3 | EN7: SW 6 | EO7: NW 5 | EP7: calm | EQ7: SW 6 | ER7: SE 5 | ES7: SW 3 | ET7: calm | EU7: SW 3 | EV7: SW 3 | EW7: SW 8 | EX7: N 3 | EY7: N 3 | EZ7: NW 3 | FA7: SW 3 | FB7: SE 6 | FC7: SW 5 | FD7: SW 3 | FE7: W 7 | FF7: SW 8 | FG7: SW 4 | FH7: S 5 | FI7: S 3 | FJ7: S 3 | FK7: S 5 | FL7: S 7 | FM7: S 7 | FN7: S 3 | FO7: SE 6 | FP7: SE 7 | FQ7: SE 5 | FR7: calm | FS7: calm | FT7: calm | FU7: calm | FV7: calm | FW7: calm | FX7: calm | FY7: calm | FZ7: calm | GA7: S 3 | GB7: S 4 | GC7: S 3 | GD7: S 4 | GE7: S 4 | GF7: calm | GG7: N 3 | GH7: calm | GI7: S 3 | GJ7: calm | GK7: S 3 | GL7: calm | GM7: S 2 | GN7: SW 3 | GO7: SW 4 | GP7: SW 3 | GQ7: N W 7 | GR7: S 7 | GS7: S 3 | GT7: S 3 | GU7: S 3 | GV7: SW 4 | GW7: ? | GX7: SW 3 | GY7: SW 3 | GZ7: calm | HA7: SE 4 | HB7: calm | HC7: S 3 | HD7: S 3 | HG7: SW 3 | HH7: SW 3 | HI7: SW 5 | HJ7: calm | HK7: E 3 | HL7: calm | HM7: calm | HN7: NW 3 | HO7: NE 7 | HP7: NE 6 | HQ7: S 4 | HR7: SE 8 | HS7: SE 3 | HT7: S 3 | HU7: S 3 | HV7: calm | HW7: calm | HX7: calm | HY7: calm | HZ7: NE 8 - 10 | IA7: N 7 | IB7: NW 4 | IC7: NW 4 | ID7: SW 3 | IE7: SW 6 | IF7: SW 7 | IG7: SW 7 | IH7: NW 7 | II7: E 5 | IJ7: calm | IK7: calm | IL7: N 4 | IM7: NE 14 | IN7: NE 14 | IO7: NE 12 | IP7: calm | IQ7: calm | IR7: E 3 | IS7: calm | IT7: calm | IU7: N 3 | IV7: NE 5 | IW7: NE 7 | IX7: NNE 12 | IY7: NNE 18 | IZ7: N 10 | JA7: N 3 | JB7: calm | JC7: E 5 | JD7: N 3 | JE7: NE 5 | JF7: N 3 | JG7: NE 5 | JH7: N 2 | JI7: calm | JJ7: calm | JL7: SW 4 | JM7: calm | JN7: calm | JO7: NE 16 | JP7: NW 10 | JQ7: N 7 | JR7: E 16 | JS7: ENE 18 | JT7: ENE 20 | JU7: E 10 | JV7: EDE 10 | JW7: E 7 | JX7: E 5 | JY7: E 7 | JZ7: E 20 | KA7: N 20 | KB7: NW 5 | KC7: NW 2 | KD7: NW 2 | KE7: NE 6 | KF7: NE 10 | KG7: NE 4 | KH7: E 4 | KI7: S 3 | KJ7: NE 4 | KK7: calm | KL7: N 2 | KM7: N 5 | KN7: E 7 | KO7: E 8 | KP7: E 16 | KQ7: calm | KR7: N 6 | KS7: N 3 | KT7: NW 4 | KU7: NW 4 | KV7: NW 3 | KW7: N 3 | KX7: N 6 | KY7: N 5 | KZ7: N 3 | LA7: calm | LB7: NW 3 | LC7: calm | LD7: calm | LE7: NW 15 | LF7: N 17 | LG7: N 2 | LH7: NW 4 | LI7: calm | LJ7: SW 3 | LK7: SW 3 | LL7: NW 4 | LM7: calm | LN7: calm | LO7: calm | LP7: NW 3 | LQ7: SW 3 | LR7: NW 5 | LS7: N 3 | LT7: calm | LU7: S 5 | LV7: N 6 | LW7: N 17 | LX7: NE 18
C8: Weather | E8: 48 deg. | F8: 47 deg. | G8: 45 deg. | H8: 45 deg. | J8: 39 deg. | K8: 40 deg. | L8: 36 deg. | M8: 40 deg. | N8: cloudy | O8: 38 deg. | P8: cloudy | Q8: 47 deg. | R8: 47 deg. | S8: 45 deg. | T8: 44 deg. | U8: cloudy | V8: front @ 9 | W8: 40 deg. | X8: warm front | Y8: 42 to 39 | Z8: 43 deg. | AA8: 40 deg. | AB8: 40 deg. | AC8: 52 deg. | AD8: cloudy | AJ8: cloudy | AK8: cloudy | AL8: fog to 9 | AO8: fog to 9 | AS8: fog to 10 | AW8: poor vis. | AX8: front | BA8: rain early | BC8: 39 deg. | BD8: 56 deg. | BF8: showers | BG8: showers | BK8: cloudy | BO8: cloudy | BQ8: 47 deg. | BT8: rain @ 8 | BU8: 49 deg. | BZ8: cloudy | CE8: 47 deg. | CF8: 48 deg. | CI8: cloudy | CM8: cloudy | CN8: cloudy | CO8: fog to 9 | CW8: cloudy | DA8: 53 deg. | DW8: rain @ 9 | EC8: cloudy | ED8: cloudy | EE8: RAIN | EX8: cloudy | FB8: cloudy | GD8: river only | GG8: river only | GJ8: Cat.surgery | GK8: no sea | GP8: cloudy | GQ8: cloudy | GW8: hosp. | GY8: cloudy | HE8: surgery | HF8: recovery | HX8: cloudy | HZ8: H Erin | IA8: H.Erin | IM8: showers | IU8: showers | JJ8: hosp | JK8: hosp | JO8: TS Imelda | JR8: showers | JT8: shower | JX8: showers | JZ8: rain | KA8: showers | KH8: cloudy | KR8: cloudy | KT8: 55 deg. | KU8: 51 deg. | KV8: 54 deg. | LF8: 36 deg. | LG8: 44 deg. | LV8: cloudy | LW8: 46 deg.
AL9: no seawatch
A11: Red-throated Loon | M11: 1 | W11: 1 | AC11: 1 | AJ11: 2 | AY11: 1 | BS11: 1` | LR11: 1
A12: Pacific Loon | AJ12: 2
A13: Common Loon | D13: 1 | E13: 1 | F13: 1 | N13: 1 | AD13: 2 | AK13: 1 | AN13: 2 | AR13: 1 | AX13: 1 | BA13: 2 | BC13: 1 | CH13: 1 | DB13: 1 | JY13: 1 | KT13: 2 | KV13: 2 | KW13: 3 | KY13: 1 | KZ13: 1 | LC13: 1 | LD13: 10 | LE13: 2 | LF13: 4 | LH13: 3 | LI13: 2 | LJ13: 1 | LK13: 6 | LM13: 2 | LN13: 5 | LO13: 4 | LP13: 2 | LQ13: 2 | LR13: 14 | LS13: 4 | LT13: 4 | LU13: 1 | LV13: 1 | LX13: 1
A14: Pied-billed Grebe | CI14: 1 | KK14: 1
A15: Horned Grebe | D15: 1 | GX15: 1 | LJ15: 1 | LO15: 1
A16: Red-necked Grebe
A17: Eared Grebe | CJ17: 1
A18: Western Grebe | AC18: 1
A19: Yellow-nosed Albatross
A20: SOUTHERN GIANT PETREL
A21: Northern Fulmar
A22: Black-capped Petrel
A23: Cory's Shearwater | HZ23: 1 | IM23: 1 | IY23: 40 | IZ23: 1 | JY23: 3
A24: Scopoli's Shearwater | IM24: 1 | IY24: 3
A25: Great Shearwater | X25: 1 | DR25: 1 | HZ25: 3 | IA25: 1 | IO25: 1 | IY25: 44 | IZ25: 2 | JA25: 1 | JO25: 4 | JS25: 1 | JT25: 1 | JW25: 1
A26: Sooty Shearwater | JO26: 1
A27: Manx Shearwater
A28: Audubon's Shearwater | HZ28: 1 | IY28: 1
A29: Wilson's Storm-Petrel
A30: Leach's Storm-Petrel
A31: Band-rumped Storm-Petrel
A32: Grant's Storm-Petrel
A33: Maderian Storm Petrel
A34: White-tailed Tropicbird
A35: Masked Booby
A36: Brown Booby | BR36: 1 | CR36: 1 | HI36: 1 | LE36: 1
A37: Northern Gannet | D37: 20 | E37: 5 | F37: 9 | G37: 19 | I37: 4 | J37: 3 | K37: 5 | L37: 1 | M37: 2 | N37: 46 | O37: 3 | P37: 16 | Q37: 121 | R37: 19 | S37: 5 | U37: 1 | V37: 4 | W37: 24 | X37: 13 | Z37: 1 | AA37: 21 | AB37: 28 | AC37: 3 | AD37: 20 | AE37: 3 | AF37: 24 | AG37: 2 | AJ37: 18 | AK37: 7 | AM37: 6 | AN37: 10 | AP37: 2 | AQ37: 1 | AR37: 2 | AT37: 20 | AU37: 1 | AV37: 8 | AW37: 7 | AX37: 209 | AY37: 12 | AZ37: 21 | BA37: 10 | BB37: 4 | BC37: 2 | BD37: 2 | BE37: 2 | BG37: 15 | BH37: 1 | BI37: 2 | BJ37: 2 | BN37: 1 | BP37: 3 | BQ37: 1 | BR37: 4 | BT37: 26 | BU37: 4 | BV37: 3 | BX37: 1 | BY37: 1 | BZ37: 2 | CB37: 1 | CL37: 2 | CP37: 1 | CR37: 1 | CS37: 3 | CV37: 1 | CX37: 1 | DJ37: 1 | DM37: 1 | DN37: 1 | EA37: 1 | KO37: 1 | KP37: 20 | KV37: 1 | KW37: 11 | KX37: 1 | KY37: 1 | KZ37: 1 | LB37: 3 | LD37: 1 | LE37: 1 | LI37: 1 | LJ37: 6 | LK37: 4 | LL37: 2 | LM37: 108 | LN37: 15 | LO37: 52 | LP37: 54 | LQ37: 129 | LR37: 51 | LS37: 111 | LT37: 278 | LU37: 26 | LV37: 5 | LW37: 16 | LX37: 32
A38: American White Pelican | G38: 3 | I38: 6 | L38: 7 | M38: 2 | N38: 4 | O38: 2 | AC38: 1 | AL38: 36 | AM38: 15 | AX38: 12 | BH38: 9 | BX38: 4 | CE38: 12 | LA38: 1 | LS38: 6 | LT38: 11 | LW38: 11
A39: Brown Pelican | D39: 19 | E39: 15 | F39: 44 | G39: 15 | H39: 18 | I39: 26 | J39: 4 | K39: 18 | L39: 4 | M39: 14 | N39: 30 | O39: 19 | P39: 8 | Q39: 25 | R39: 11 | S39: 5 | T39: 12 | U39: 17 | V39: 12 | W39: 1 | X39: 5 | Y39: 7 | Z39: 14 | AA39: 59 | AB39: 13 | AC39: 1 | AD39: 6 | AE39: 6 | AG39: 17 | AH39: 8 | AI39: 7 | AJ39: 7 | AK39: 22 | AL39: 1 | AM39: 20 | AN39: 48 | AO39: 4 | AP39: 19 | AQ39: 29 | AR39: 24 | AS39: 2 | AT39: 46 | AU39: 24 | AV39: 8 | AW39: 7 | AX39: 41 | AY39: 22 | AZ39: 4 | BA39: 32 | BB39: 21 | BC39: 2 | BD39: 10 | BE39: 26 | BF39: 88 | BG39: 51 | BH39: 20 | BI39: 22 | BJ39: 6 | BK39: 28 | BL39: 31 | BM39: 1 | BN39: 24 | BO39: 53 | BP39: 23 | BQ39: 28 | BR39: 84 | BS39: 100 | BT39: 181 | BU39: 183 | BV39: 93 | BW39: 24 | BX39: 25 | BY39: 52 | BZ39: 28 | CA39: 58 | CB39: 82 | CC39: 44 | CD39: 68 | CE39: 19 | CF39: 38 | CG39: 131 | CH39: 121 | CI39: 415 | CJ39: 48 | CK39: 153 | CL39: 45 | CM39: 1 | CN39: 50 | CO39: 59 | CP39: 66 | CQ39: 34 | CR39: 21 | CS39: 22 | CT39: 63 | CU39: 128 | CV39: 30 | CW39: 182 | CX39: 91 | CY39: 32 | CZ39: 117 | DA39: 131 | DB39: 25 | DC39: 7 | DD39: 42 | DE39: 61 | DF39: 15 | DG39: 25 | DH39: 4 | DI39: 19 | DJ39: 8 | DK39: 11 | DL39: 16 | DM39: 39 | DN39: 60 | DO39: 27 | DP39: 5 | DQ39: 19 | DR39: 31 | DS39: 17 | DT39: 54 | DU39: 16 | DV39: 30 | DW39: 14 | DX39: 32 | DY39: 47 | DZ39: 33 | EA39: 45 | EB39: 31 | EC39: 21 | ED39: 13 | EE39: 7 | EF39: 14 | EG39: 27 | EH39: 25 | EI39: 16 | EJ39: 22 | EK39: 29 | EL39: 18 | EM39: 18 | EN39: 20 | EO39: 31 | EP39: 17 | EQ39: 14 | ER39: 21 | ES39: 36 | ET39: 31 | EU39: 41 | EV39: 47 | EW39: 60 | EX39: 2 | EY39: 19 | EZ39: 38 | FA39: 17 | FB39: 15 | FC39: 28 | FD39: 59 | FE39: 42 | FF39: 84 | FG39: 71 | FH39: 57 | FI39: 3 | FJ39: 17 | FK39: 25 | FL39: 45 | FM39: 63 | FN39: 75 | FO39: 104 | FP39: 51 | FQ39: 77 | FR39: 97 | FS39: 102 | FT39: 55 | FU39: 64 | FV39: 75 | FW39: 54 | FX39: 113 | FY39: 101 | FZ39: 42 | GA39: 116 | GB39: 73 | GC39: 46 | GD39: 26 | GE39: 30 | GF39: 55 | GG39: 17 | GH39: 177 | GI39: 46 | GJ39: 4 | GK39: 7 | GL39: 62 | GM39: 61 | GN39: 86 | GO39: 112 | GP39: 53 | GQ39: 58 | GR39: 37 | GS39: 139 | GT39: 132 | GU39: 74 | GV39: 99 | GW39: 1 | GX39: 26 | GY39: 65 | GZ39: 66 | HA39: 62 | HB39: 145 | HC39: 121 | HD39: 30 | HG39: 134 | HH39: 92 | HI39: 68 | HJ39: 76 | HK39: 91 | HL39: 178 | HM39: 186 | HN39: 69 | HO39: 95 | HP39: 43 | HQ39: 70 | HR39: 82 | HS39: 108 | HT39: 143 | HU39: 143 | HV39: 118 | HW39: 135 | HX39: 94 | HY39: 143 | HZ39: 289 | IA39: 122 | IB39: 76 | IC39: 28 | ID39: 173 | IE39: 114 | IF39: 117 | IG39: 42 | IH39: 2 | II39: 19 | IJ39: 7 | IK39: 29 | IL39: 20 | IM39: 39 | IN39: 187 | IO39: 153 | IP39: 24 | IQ39: 32 | IR39: 30 | IS39: 15 | IT39: 5 | IU39: 44 | IV39: 69 | IW39: 14 | IX39: 32 | IY39: 297 | IZ39: 345 | JA39: 29 | JB39: 49 | JC39: 23 | JD39: 6 | JE39: 39 | JF39: 47 | JG39: 3 | JH39: 113 | JI39: 4 | JJ39: 6 | JL39: 6 | JM39: 2 | JN39: 16 | JO39: 224 | JP39: 33 | JR39: 3 | JS39: 2 | JT39: 10 | JV39: 1 | JX39: 9 | JY39: 63 | JZ39: 48 | KA39: 1 | KB39: 49 | KC39: 9 | KD39: 3 | KE39: 27 | KF39: 35 | KG39: 56 | KH39: 10 | KI39: 33 | KJ39: 104 | KK39: 45 | KL39: 46 | KM39: 6 | KN39: 6 | KO39: 33 | KP39: 101 | KQ39: 58 | KR39: 26 | KS39: 10 | KT39: 16 | KU39: 22 | KV39: 44 | KW39: 133 | KX39: 47 | KY39: 46 | KZ39: 161 | LA39: 7 | LB39: 72 | LC39: 41 | LD39: 87 | LE39: 44 | LF39: 62 | LG39: 108 | LH39: 19 | LI39: 75 | LJ39: 39 | LK39: 73 | LL39: 151 | LM39: 198 | LN39: 111 | LO39: 59 | LP39: 73 | LQ39: 80 | LR39: 62 | LS39: 126 | LT39: 204 | LU39: 32 | LV39: 66 | LW39: 196 | LX39: 36
A40: Neotropic Cormorant
A41: Double-crested Cormorant | D41: 10 | E41: 14 | F41: 9 | G41: 11 | H41: 13 | I41: 11 | K41: 12 | L41: 17 | M41: 11 | N41: 11 | O41: 31 | P41: 14 | Q41: 7 | R41: 12 | S41: 7 | T41: 16 | U41: 26 | V41: 8 | W41: 2 | X41: 6 | Z41: 3 | AA41: 5 | AB41: 2 | AC41: 4 | AD41: 10 | AE41: 18 | AF41: 10 | AG41: 10 | AH41: 15 | AI41: 19 | AJ41: 21 | AK41: 15 | AL41: 28 | AM41: 30 | AN41: 30 | AO41: 26 | AP41: 10 | AQ41: 27 | AR41: 11 | AS41: 18 | AT41: 21 | AU41: 7 | AV41: 5 | AW41: 8 | AX41: 13 | AY41: 7 | AZ41: 6 | BA41: 8 | BB41: 2 | BC41: 4 | BD41: 5 | BE41: 7 | BF41: 5 | BG41: 4 | BH41: 4 | BI41: 5 | BJ41: 1 | BK41: 9 | BL41: 5 | BM41: 4 | BN41: 6 | BO41: 6 | BP41: 20 | BQ41: 9 | BR41: 10 | BS41: 41 | BT41: 57 | BU41: 52 | BV41: 10 | BW41: 9 | BX41: 7 | BY41: 28 | BZ41: 6 | CA41: 6 | CB41: 16 | CC41: 4 | CD41: 9 | CE41: 13 | CF41: 10 | CG41: 11 | CH41: 33 | CI41: 51 | CJ41: 25 | CK41: 9 | CL41: 24 | CM41: 90 | CN41: 18 | CO41: 5 | CP41: 18 | CQ41: 5 | CR41: 35 | CS41: 6 | CT41: 12 | CU41: 23 | CW41: 4 | CX41: 6 | CY41: 76 | CZ41: 10 | DA41: 4 | DB41: 13 | DC41: 14 | DD41: 8 | DE41: 34 | DF41: 5 | DG41: 1 | DH41: 2 | DI41: 1 | DJ41: 2 | DK41: 2 | DL41: 10 | DM41: 9 | DN41: 25 | DO41: 1 | DP41: 25 | DR41: 27 | DT41: 1 | DU41: 3 | DV41: 1 | DW41: 1 | DX41: 3 | DY41: 2 | DZ41: 3 | EA41: 2 | EB41: 1 | EC41: 2 | ED41: 2 | EE41: 2 | EF41: 1 | EH41: 3 | EI41: 3 | EJ41: 2 | EK41: 1 | EL41: 1 | EM41: 2 | EN41: 1 | EO41: 1 | EP41: 1 | EQ41: 1 | ER41: 1 | ES41: 1 | ET41: 3 | EU41: 2 | EV41: 1 | EW41: 2 | EX41: 2 | EY41: 3 | EZ41: 3 | FA41: 3 | FB41: 1 | FC41: 4 | FD41: 1 | FE41: 2 | FF41: 1 | FG41: 1 | FK41: 1 | FL41: 1 | FM41: 2 | FP41: 2 | FR41: 1 | FS41: 1 | FV41: 1 | GB41: 1 | GD41: 1 | GF41: 1 | GH41: 1 | GI41: 1 | GK41: 1 | GT41: 1 | GV41: 1 | GZ41: 1 | HB41: 2 | HJ41: 1 | HP41: 2 | HV41: 1 | HW41: 2 | HX41: 1 | HY41: 1 | IB41: 1 | IF41: 2 | IG41: 1 | IN41: 1 | IP41: 1 | IQ41: 1 | IR41: 1 | IS41: 1 | IT41: 1 | IU41: 1 | IV41: 1 | IW41: 3 | JA41: 3 | JC41: 3 | JH41: 11 | JI41: 1 | JM41: 1 | JN41: 15 | JO41: 1 | JS41: 2 | JT41: 1 | JU41: 1 | JV41: 2 | JX41: 3 | JY41: 1 | KB41: 12 | KD41: 3 | KF41: 1 | KG41: 3 | KH41: 1 | KL41: 1 | KN41: 4 | KO41: 1 | KP41: 7 | KQ41: 8 | KR41: 2 | KS41: 10 | KT41: 12 | KU41: 1 | KV41: 13 | KW41: 38 | KX41: 16 | KY41: 3 | KZ41: 1 | LA41: 2 | LB41: 11 | LC41: 65 | LD41: 24 | LF41: 1 | LG41: 14 | LH41: 5 | LI41: 43 | LJ41: 170 | LK41: 73 | LL41: 8 | LM41: 6 | LN41: 83 | LO41: 16 | LP41: 130 | LQ41: 6 | LR41: 6 | LS41: 101 | LT41: 196 | LU41: 12 | LV41: 9 | LW41: 2 | LX41: 6
A42: Great Cormorant | AJ42: 1
A43: Anhinga | F43: 1 | H43: 1 | K43: 1 | O43: 1 | Q43: 1 | T43: 1 | X43: 1 | AA43: 2 | AC43: 2 | AL43: 1 | AM43: 1 | AO43: 1 | AX43: 2 | AY43: 1 | BD43: 1 | BP43: 1 | BU43: 1 | CU43: 1 | CX43: 1 | DP43: 1 | DY43: 2 | EB43: 1 | EF43: 2 | EG43: 3 | EH43: 3 | EJ43: 1 | EK43: 1 | EL43: 1 | EM43: 1 | EN43: 1 | FB43: 1 | FD43: 2 | FF43: 1 | FK43: 1 | FO43: 1 | GR43: 1 | HG43: 12 | HJ43: 1 | HL43: 1 | HQ43: 1 | HU43: 1 | HV43: 19 | HW43: 1 | ID43: 1 | IE43: 2 | IH43: 1 | II43: 2 | IK43: 1 | IL43: 2 | IO43: 2 | IQ43: 8 | IR43: 1 | IT43: 1 | IU43: 1 | IV43: 1 | IW43: 1 | JA43: 1 | JC43: 2 | JD43: 2 | JE43: 2 | JG43: 2 | JH43: 1 | JI43: 1 | JL43: 1 | JM43: 1 | JQ43: 1 | JR43: 1 | JT43: 1 | JU43: 1 | JV43: 1 | JW43: 1 | KB43: 2 | KC43: 2 | KD43: 1 | KE43: 2 | KG43: 1 | KH43: 2 | KI43: 1 | KJ43: 1 | KL43: 1 | KM43: 3 | KN43: 1 | KP43: 1 | KQ43: 1 | KS43: 2 | KT43: 2 | KU43: 6 | KV43: 2 | KW43: 2 | KX43: 1 | KY43: 3 | KZ43: 2 | LA43: 1 | LB43: 2 | LE43: 1 | LG43: 1 | LI43: 1 | LK43: 2 | LL43: 1 | LM43: 3 | LN43: 1 | LO43: 1 | LP43: 1 | LR43: 1 | LS43: 1 | LT43: 1 | LU43: 1 | LW43: 1 | LX43: 1
A44: Magnificent Frigatebird | LB44: 1
A45: American Bittern | BK45: 1 | BQ45: 1 | JL45: 1 | JQ45: 2 | KM45: 1
A46: Least Bittern | CP46: 1 | DS46: 1 | JL46: 1
A47: Great Blue Heron | D47: 3 | E47: 1 | F47: 4 | G47: 1 | I47: 3 | K47: 1 | M47: 3 | N47: 3 | O47: 2 | P47: 2 | Q47: 1 | R47: 3 | S47: 1 | T47: 3 | U47: 5 | Z47: 2 | AC47: 2 | AD47: 4 | AE47: 3 | AF47: 4 | AG47: 2 | AH47: 2 | AI47: 2 | AJ47: 2 | AK47: 3 | AL47: 1 | AM47: 2 | AN47: 1 | AO47: 1 | AP47: 1 | AQ47: 1 | AR47: 1 | AS47: 3 | AT47: 1 | AU47: 1 | AV47: 1 | AW47: 1 | AX47: 1 | AY47: 2 | AZ47: 1 | BA47: 2 | BB47: 1 | BC47: 2 | BD47: 1 | BE47: 4 | BF47: 1 | BG47: 1 | BH47: 2 | BI47: 2 | BJ47: 1 | BK47: 1 | BL47: 3 | BM47: 1 | BO47: 1 | BQ47: 1 | BR47: 2 | BS47: 1 | BT47: 1 | BU47: 1 | BV47: 2 | BW47: 5 | BX47: 1 | BY47: 1 | BZ47: 1 | CA47: 2 | CB47: 1 | CC47: 1 | CE47: 1 | CF47: 3 | CG47: 1 | CH47: 1 | CI47: 1 | CJ47: 2 | CK47: 1 | CL47: 2 | CN47: 2 | CP47: 3 | CQ47: 1 | CS47: 2 | CT47: 1 | CU47: 2 | CV47: 3 | CX47: 1 | CY47: 2 | DA47: 2 | DB47: 2 | DC47: 1 | DD47: 2 | DE47: 2 | DF47: 2 | DG47: 1 | DH47: 1 | DI47: 3 | DL47: 1 | DM47: 2 | DO47: 1 | DQ47: 1 | DS47: 1 | DT47: 1 | DU47: 1 | DV47: 1 | DW47: 2 | DY47: 1 | DZ47: 1 | EA47: 3 | EC47: 1 | ED47: 1 | EF47: 1 | EG47: 2 | EH47: 3 | EI47: 4 | EJ47: 6 | EK47: 1 | EL47: 2 | EM47: 1 | EN47: 2 | EO47: 2 | EP47: 1 | EQ47: 2 | ER47: 1 | ES47: 1 | EU47: 1 | EV47: 2 | EW47: 1 | EX47: 1 | EY47: 3 | EZ47: 4 | FA47: 2 | FB47: 1 | FC47: 3 | FD47: 4 | FE47: 2 | FF47: 4 | FG47: 2 | FH47: 3 | FJ47: 1 | FK47: 1 | FL47: 2 | FM47: 1 | FN47: 1 | FO47: 2 | FP47: 1 | FR47: 2 | FS47: 1 | FT47: 1 | FV47: 1 | FW47: 3 | FX47: 5 | FY47: 3 | FZ47: 1 | GA47: 2 | GB47: 1 | GC47: 2 | GD47: 1 | GE47: 3 | GF47: 1 | GG47: 1 | GH47: 1 | GI47: 3 | GK47: 3 | GM47: 1 | GN47: 5 | GO47: 3 | GP47: 1 | GS47: 1 | GT47: 1 | GU47: 1 | GV47: 1 | GX47: 1 | GY47: 2 | GZ47: 1 | HA47: 1 | HB47: 1 | HC47: 3 | HD47: 2 | HG47: 1 | HH47: 3 | HI47: 1 | HJ47: 3 | HK47: 3 | HL47: 1 | HM47: 3 | HN47: 5 | HO47: 2 | HP47: 1 | HQ47: 3 | HR47: 7 | HS47: 2 | HT47: 4 | HU47: 5 | HV47: 7 | HW47: 5 | HX47: 6 | HY47: 4 | IA47: 3 | IB47: 3 | IC47: 5 | ID47: 3 | IE47: 7 | IF47: 6 | IG47: 4 | IH47: 4 | II47: 3 | IJ47: 1 | IK47: 2 | IL47: 1 | IN47: 1 | IO47: 2 | IP47: 2 | IQ47: 1 | IR47: 1 | IS47: 5 | IT47: 3 | IU47: 26 | IV47: 9 | IW47: 2 | IX47: 2 | IZ47: 5 | JA47: 4 | JB47: 2 | JC47: 2 | JD47: 1 | JE47: 5 | JF47: 6 | JG47: 16 | JH47: 24 | JI47: 5 | JL47: 4 | JM47: 12 | JN47: 10 | JO47: 1 | JQ47: 4 | JS47: 5 | JW47: 1 | JX47: 1 | KB47: 1 | KC47: 4 | KD47: 1 | KE47: 13 | KF47: 9 | KG47: 1 | KH47: 9 | KI47: 4 | KJ47: 2 | KK47: 5 | KL47: 2 | KM47: 2 | KN47: 2 | KO47: 12 | KQ47: 3 | KR47: 20 | KS47: 4 | KT47: 2 | KU47: 3 | KV47: 5 | KW47: 1 | KX47: 1 | KY47: 1 | KZ47: 1 | LA47: 3 | LB47: 2 | LC47: 2 | LD47: 6 | LG47: 2 | LH47: 1 | LI47: 6 | LJ47: 2 | LK47: 5 | LL47: 4 | LM47: 1 | LN47: 3 | LO47: 1 | LP47: 1 | LQ47: 3 | LR47: 3 | LS47: 1 | LT47: 2 | LU47: 2 | LV47: 1 | LW47: 1 | LX47: 2
A48: Great White Heron | GK48: 1 | GM48: 1 | GP48: 1 | HD48: 1 | HT48: 1 | JM48: 1 | JU48: 1 | JV48: 1
A49: Great Egret | D49: 1 | I49: 1 | M49: 1 | N49: 2 | O49: 1 | Q49: 1 | S49: 1 | X49: 1 | AG49: 1 | AI49: 1 | AK49: 1 | AM49: 3 | AN49: 4 | AQ49: 3 | AR49: 2 | AS49: 1 | AT49: 2 | AU49: 1 | BA49: 1 | BB49: 1 | BC49: 1 | BD49: 1 | BE49: 3 | BH49: 3 | BJ49: 23 | BK49: 10 | BL49: 6 | BQ49: 3 | BR49: 2 | BS49: 17 | BV49: 4 | BX49: 1 | BY49: 1 | CA49: 1 | CB49: 2 | CF49: 2 | CG49: 3 | CH49: 3 | CI49: 8 | CJ49: 1 | CN49: 1 | CO49: 1 | CP49: 2 | CQ49: 1 | CR49: 1 | CS49: 2 | CU49: 1 | CV49: 1 | CW49: 1 | CX49: 1 | CY49: 1 | DA49: 2 | DB49: 4 | DC49: 1 | DD49: 2 | DF49: 1 | DL49: 1 | DM49: 1 | DP49: 1 | DQ49: 2 | DR49: 1 | DU49: 1 | DV49: 1 | DW49: 11 | DX49: 2 | DZ49: 1 | EA49: 1 | EC49: 1 | EF49: 1 | EH49: 1 | EJ49: 2 | EK49: 11 | EM49: 1 | EN49: 4 | EP49: 4 | EQ49: 2 | ET49: 11 | EU49: 4 | EV49: 15 | EW49: 1 | EX49: 6 | EY49: 9 | EZ49: 14 | FA49: 8 | FB49: 1 | FC49: 1 | FD49: 15 | FE49: 1 | FF49: 10 | FG49: 3 | FL49: 1 | FO49: 2 | FP49: 1 | FQ49: 1 | FR49: 1 | FS49: 1 | FT49: 1 | FW49: 3 | FX49: 1 | FY49: 2 | GB49: 1 | GD49: 1 | GG49: 3 | GH49: 6 | GJ49: 1 | GK49: 1 | GL49: 2 | GM49: 1 | GN49: 1 | GO49: 6 | GP49: 2 | GQ49: 1 | GS49: 2 | GU49: 1 | GV49: 3 | GX49: 4 | GY49: 1 | HC49: 8 | HD49: 1 | HG49: 1 | HH49: 1 | HJ49: 2 | HK49: 2 | HL49: 1 | HM49: 2 | HN49: 1 | HP49: 1 | HQ49: 2 | HR49: 1 | HV49: 1 | HX49: 1 | HY49: 2 | IA49: 1 | IB49: 3 | IE49: 4 | IF49: 5 | IG49: 4 | II49: 1 | IJ49: 7 | IK49: 3 | IN49: 1 | IP49: 2 | IQ49: 1 | IS49: 3 | IT49: 1 | IU49: 24 | IV49: 1 | JB49: 2 | JC49: 2 | JD49: 5 | JF49: 2 | JG49: 1 | JH49: 1 | JI49: 3 | JL49: 1 | JM49: 2 | JN49: 2 | JT49: 3 | JU49: 1 | JV49: 2 | JX49: 5 | JY49: 1 | KB49: 14 | KC49: 2 | KD49: 1 | KE49: 1 | KF49: 1 | KG49: 1 | KH49: 3 | KI49: 2 | KJ49: 2 | KL49: 5 | KM49: 1 | KN49: 1 | KO49: 2 | KP49: 1 | KQ49: 8 | KR49: 5 | KS49: 7 | KT49: 6 | KU49: 1 | KV49: 4 | KW49: 5 | KX49: 6 | KY49: 6 | KZ49: 2 | LA49: 1 | LB49: 1 | LC49: 2 | LD49: 7 | LH49: 3 | LJ49: 2 | LK49: 3 | LL49: 2 | LM49: 4 | LN49: 8 | LO49: 4 | LP49: 3 | LQ49: 1 | LR49: 1 | LT49: 1 | LU49: 4 | LV49: 2 | LX49: 1
A50: Snowy Egret | E50: 2 | H50: 2 | I50: 2 | K50: 3 | L50: 1 | M50: 2 | N50: 3 | O50: 3 | P50: 2 | Q50: 1 | S50: 2 | V50: 1 | W50: 1 | AA50: 2 | AB50: 1 | AC50: 1 | AD50: 2 | AF50: 2 | AG50: 1 | AH50: 1 | AI50: 3 | AJ50: 1 | AK50: 4 | AL50: 1 | AM50: 3 | AN50: 5 | AO50: 1 | AP50: 1 | AQ50: 2 | AR50: 6 | AS50: 4 | AT50: 3 | AU50: 1 | AV50: 1 | AW50: 1 | AX50: 3 | BA50: 2 | BC50: 2 | BD50: 3 | BE50: 4 | BF50: 2 | BH50: 6 | BI50: 2 | BJ50: 2 | BK50: 4 | BL50: 2 | BM50: 1 | BN50: 1 | BO50: 3 | BP50: 2 | BQ50: 3 | BR50: 4 | BS50: 13 | BT50: 6 | BU50: 3 | BV50: 6 | BW50: 3 | BX50: 25 | BY50: 1 | BZ50: 1 | CA50: 1 | CB50: 5 | CC50: 8 | CD50: 2 | CE50: 5 | CF50: 3 | CG50: 2 | CH50: 4 | CI50: 27 | CJ50: 43 | CK50: 8 | CL50: 2 | CM50: 3 | CN50: 3 | CO50: 2 | CP50: 7 | CQ50: 3 | CT50: 2 | CU50: 3 | CV50: 5 | CW50: 6 | CY50: 3 | CZ50: 5 | DA50: 14 | DB50: 1 | DC50: 2 | DD50: 2 | DE50: 13 | DG50: 2 | DH50: 2 | DI50: 2 | DK50: 2 | DL50: 1 | DM50: 1 | DN50: 2 | DO50: 1 | DP50: 2 | DQ50: 4 | DR50: 1 | DS50: 2 | DT50: 1 | DU50: 7 | DV50: 2 | DW50: 4 | DX50: 3 | DY50: 1 | DZ50: 3 | EA50: 2 | EB50: 2 | EC50: 4 | ED50: 1 | EE50: 2 | EF50: 6 | EG50: 3 | EH50: 3 | EI50: 2 | EJ50: 8 | EK50: 7 | EL50: 5 | EM50: 9 | EN50: 3 | EP50: 3 | EQ50: 4 | ER50: 6 | ES50: 4 | ET50: 4 | EU50: 4 | EV50: 9 | EW50: 3 | EX50: 4 | EY50: 9 | EZ50: 6 | FB50: 1 | FC50: 1 | FD50: 5 | FE50: 13 | FF50: 4 | FG50: 3 | FH50: 1 | FJ50: 2 | FK50: 2 | FL50: 12 | FM50: 4 | FN50: 2 | FO50: 8 | FP50: 2 | FQ50: 2 | FR50: 4 | FS50: 6 | FT50: 4 | FU50: 3 | FV50: 2 | FW50: 2 | FX50: 5 | FY50: 6 | FZ50: 2 | GA50: 2 | GB50: 6 | GC50: 5 | GD50: 6 | GE50: 7 | GF50: 4 | GG50: 11 | GH50: 25 | GI50: 2 | GJ50: 1 | GK50: 1 | GL50: 2 | GM50: 4 | GN50: 6 | GO50: 32 | GP50: 10 | GQ50: 2 | GR50: 4 | GS50: 2 | GT50: 3 | GU50: 4 | GV50: 11 | GW50: 1 | GX50: 1 | GY50: 5 | GZ50: 1 | HA50: 1 | HB50: 2 | HC50: 12 | HD50: 22 | HG50: 6 | HH50: 16 | HI50: 10 | HJ50: 3 | HK50: 7 | HL50: 15 | HM50: 9 | HN50: 7 | HO50: 6 | HP50: 2 | HQ50: 10 | HR50: 5 | HS50: 32 | HT50: 48 | HU50: 18 | HV50: 28 | HW50: 56 | HX50: 21 | HY50: 27 | HZ50: 11 | IA50: 2 | IB50: 17 | IC50: 4 | ID50: 11 | IE50: 1 | IF50: 11 | IG50: 3 | IH50: 4 | II50: 2 | IJ50: 9 | IK50: 2 | IL50: 4 | IO50: 2 | IP50: 1 | IQ50: 4 | IR50: 5 | IS50: 8 | IT50: 41 | IU50: 92 | IV50: 65 | IW50: 1 | IX50: 5 | IZ50: 3 | JA50: 6 | JB50: 6 | JC50: 3 | JD50: 2 | JF50: 3 | JG50: 14 | JH50: 23 | JI50: 1 | JL50: 1 | JM50: 3 | JN50: 6 | JO50: 186 | JP50: 9 | JQ50: 4 | JR50: 9 | JS50: 10 | JT50: 6 | JU50: 2 | JV50: 2 | JW50: 5 | JX50: 4 | JY50: 1 | KB50: 8 | KC50: 4 | KD50: 3 | KE50: 5 | KF50: 1 | KG50: 2 | KH50: 2 | KI50: 6 | KJ50: 2 | KK50: 1 | KL50: 1 | KM50: 1 | KN50: 1 | KO50: 3 | KP50: 8 | KQ50: 15 | KR50: 13 | KS50: 5 | KT50: 8 | KU50: 2 | KV50: 4 | KW50: 10 | KX50: 5 | KY50: 3 | KZ50: 2 | LA50: 2 | LB50: 1 | LC50: 3 | LD50: 1 | LF50: 1 | LG50: 1 | LH50: 1 | LI50: 1 | LJ50: 1 | LK50: 1 | LL50: 14 | LM50: 5 | LN50: 3 | LO50: 2 | LP50: 1 | LQ50: 3 | LR50: 1 | LS50: 2 | LT50: 3 | LU50: 8 | LV50: 1 | LW50: 1 | LX50: 2
A51: Western Reef Heron
A52: Little Blue Heron | D52: 1 | E52: 2 | F52: 1 | H52: 1 | I52: 1 | M52: 1 | P52: 1 | Q52: 1 | AB52: 1 | AD52: 1 | AK52: 1 | AL52: 1 | AM52: 2 | AN52: 1 | AO52: 2 | AP52: 2 | AQ52: 1 | AR52: 1 | AS52: 2 | AT52: 1 | AU52: 1 | AV52: 2 | AW52: 1 | AY52: 2 | BA52: 1 | BB52: 1 | BC52: 1 | BE52: 1 | BF52: 1 | BG52: 1 | BH52: 2 | BI52: 1 | BJ52: 1 | BK52: 6 | BL52: 2 | BQ52: 10 | BR52: 2 | BS52: 3 | BT52: 1 | BU52: 2 | BV52: 5 | BW52: 2 | BX52: 5 | BY52: 1 | BZ52: 1 | CA52: 1 | CB52: 2 | CC52: 5 | CF52: 2 | CG52: 14 | CH52: 1 | CI52: 11 | CJ52: 11 | CK52: 4 | CL52: 1 | CM52: 1 | CN52: 1 | CP52: 1 | CZ52: 1 | DA52: 10 | DD52: 1 | DE52: 16 | DF52: 4 | DI52: 1 | DK52: 1 | DL52: 1 | DM52: 2 | DN52: 1 | DO52: 1 | DP52: 2 | DQ52: 1 | DS52: 1 | DU52: 1 | DV52: 1 | DW52: 1 | DX52: 1 | DY52: 1 | DZ52: 1 | EA52: 2 | EB52: 1 | EC52: 2 | ED52: 3 | EG52: 1 | EH52: 1 | EJ52: 3 | EK52: 2 | EL52: 4 | EM52: 1 | EN52: 1 | EO52: 2 | ES52: 2 | EU52: 2 | EW52: 2 | EX52: 1 | EY52: 2 | FA52: 1 | FC52: 1 | FD52: 1 | FE52: 1 | FF52: 1 | FG52: 2 | FH52: 3 | FK52: 2 | FL52: 1 | FM52: 1 | FN52: 1 | FP52: 1 | FR52: 1 | FS52: 2 | FT52: 2 | FU52: 1 | FV52: 2 | FW52: 2 | FX52: 2 | FY52: 2 | FZ52: 1 | GA52: 2 | GB52: 1 | GC52: 1 | GD52: 2 | GE52: 1 | GF52: 3 | GG52: 4 | GI52: 1 | GK52: 3 | GL52: 1 | GM52: 2 | GN52: 1 | GO52: 1 | GP52: 1 | GQ52: 1 | GV52: 2 | GX52: 2 | GY52: 1 | GZ52: 3 | HA52: 1 | HB52: 1 | HC52: 2 | HD52: 2 | HG52: 6 | HH52: 7 | HI52: 2 | HJ52: 1 | HK52: 3 | HL52: 5 | HM52: 3 | HN52: 1 | HQ52: 3 | HR52: 4 | HS52: 2 | HT52: 1 | HU52: 4 | HV52: 4 | HW52: 6 | HX52: 7 | HY52: 3 | HZ52: 1 | IA52: 1 | IB52: 1 | IC52: 1 | ID52: 1 | IE52: 1 | IF52: 2 | IG52: 1 | IH52: 4 | II52: 4 | IJ52: 5 | IK52: 5 | IL52: 6 | IN52: 1 | IO52: 1 | IP52: 1 | IQ52: 1 | IR52: 2 | IS52: 11 | IT52: 12 | IU52: 3 | IV52: 2 | IW52: 1 | IX52: 7 | JA52: 17 | JB52: 1 | JC52: 5 | JD52: 5 | JE52: 3 | JF52: 2 | JG52: 5 | JH52: 4 | JI52: 1 | JL52: 10 | JM52: 4 | JN52: 5 | JO52: 7 | JP52: 1 | JS52: 1 | JT52: 2 | JU52: 2 | JV52: 3 | JW52: 2 | JX52: 1 | JY52: 4 | KB52: 1 | KC52: 2 | KD52: 1 | KE52: 1 | KF52: 1 | KH52: 2 | KI52: 1 | KJ52: 2 | KK52: 2 | KL52: 1 | KM52: 3 | KN52: 2 | KO52: 2 | KQ52: 4 | KR52: 2 | KS52: 1 | KT52: 1 | KU52: 2 | KV52: 2 | KW52: 1 | KX52: 1 | KY52: 2 | KZ52: 3 | LA52: 2 | LB52: 3 | LC52: 3 | LD52: 2 | LH52: 1 | LI52: 3 | LJ52: 1 | LK52: 1 | LL52: 2 | LM52: 3 | LN52: 3 | LO52: 2 | LP52: 1 | LQ52: 4 | LS52: 2 | LT52: 1 | LU52: 2 | LV52: 4
A53: Tricolored Heron | AR53: 1 | BK53: 5 | BM53: 4 | BP53: 3 | BQ53: 4 | BR53: 3 | BS53: 1 | BX53: 9 | BZ53: 1 | CB53: 4 | CC53: 2 | CE53: 2 | CF53: 1 | CI53: 9 | CJ53: 2 | CK53: 1 | CP53: 7 | CW53: 5 | DA53: 2 | DB53: 1 | DE53: 6 | DG53: 1 | DP53: 2 | DW53: 1 | DX53: 2 | EF53: 1 | EG53: 1 | EK53: 5 | EL53: 1 | EQ53: 1 | EU53: 3 | EV53: 1 | EY53: 3 | FE53: 5 | FJ53: 1 | FL53: 1 | FW53: 1 | GA53: 1 | GB53: 3 | GD53: 5 | GE53: 1 | GF53: 1 | GG53: 2 | GH53: 3 | GI53: 1 | GJ53: 1 | GK53: 4 | GM53: 1 | GN53: 7 | GP53: 3 | GX53: 1 | GY53: 3 | HB53: 2 | HC53: 4 | HD53: 1 | HG53: 1 | HN53: 1 | HO53: 1 | HP53: 1 | HQ53: 1 | HU53: 1 | HV53: 2 | HX53: 2 | HY53: 1 | IF53: 3 | IT53: 3 | IV53: 5 | JB53: 1 | JC53: 1 | JD53: 1 | JH53: 13 | JN53: 2 | JO53: 3 | JQ53: 3 | JS53: 2 | JT53: 1 | KF53: 1 | KH53: 3 | KJ53: 2 | KL53: 2 | KS53: 2 | KU53: 1 | KV53: 1 | KW53: 1 | LL53: 1
A54: Reddish Egret | D54: 1 | I54: 1 | AL54: 1 | CC54: 1 | CH54: 1 | DD54: 1 | EW54: 1 | EY54: 1 | FT54: 1 | FZ54: 1 | GA54: 1 | GJ54: 1 | GK54: 1 | HH54: 1 | HI54: 1 | HJ54: 1 | HS54: 1 | IH54: 1 | IJ54: 1 | JN54: 1 | KF54: 1 | KJ54: 1 | KW54: 1 | LB54: 1
A55: Cattle Egret | E55: 1 | K55: 1 | L55: 2 | M55: 1 | N55: 1 | O55: 1 | P55: 2 | Q55: 1 | R55: 1 | S55: 1 | V55: 2 | AA55: 1 | AC55: 1 | AG55: 1 | AK55: 1 | AL55: 2 | AN55: 8 | AQ55: 1 | AT55: 3 | AZ55: 1 | BA55: 1 | BB55: 1 | BC55: 1 | BD55: 3 | BE55: 2 | BF55: 1 | BH55: 7 | BI55: 42 | BJ55: 2 | BK55: 4 | BL55: 11 | BM55: 1 | BQ55: 1 | BR55: 36 | BS55: 22 | BT55: 13 | BU55: 27 | BV55: 7 | BX55: 2 | BY55: 4 | BZ55: 1 | CB55: 2 | CC55: 1 | CD55: 42 | CF55: 31 | CG55: 2 | CH55: 70 | CI55: 5 | CJ55: 9 | CK55: 4 | CL55: 1 | CM55: 2 | CN55: 3 | CP55: 4 | CQ55: 4 | CS55: 2 | CT55: 3 | CU55: 3 | CW55: 2 | CX55: 11 | CY55: 1 | CZ55: 2 | DA55: 79 | DB55: 12 | DC55: 6 | DD55: 4 | DE55: 43 | DG55: 2 | DH55: 2 | DI55: 1 | DM55: 1 | DN55: 4 | DP55: 1 | DQ55: 3 | DS55: 3 | DU55: 3 | DV55: 1 | DX55: 1 | DY55: 1 | DZ55: 4 | EA55: 1 | EB55: 1 | EC55: 1 | EF55: 4 | EG55: 15 | EH55: 2 | EI55: 16 | EJ55: 5 | EL55: 3 | EM55: 2 | EN55: 1 | EP55: 2 | EQ55: 3 | ER55: 2 | ES55: 3 | ET55: 2 | EU55: 6 | EV55: 2 | EW55: 4 | EY55: 3 | EZ55: 5 | FD55: 3 | FE55: 2 | FF55: 2 | FG55: 14 | FH55: 1 | FK55: 2 | FL55: 3 | FM55: 1 | FO55: 4 | FP55: 1 | FQ55: 2 | FR55: 4 | FS55: 2 | FT55: 1 | FU55: 1 | FV55: 2 | FW55: 3 | FX55: 4 | FY55: 5 | FZ55: 1 | GA55: 1 | GB55: 2 | GC55: 6 | GD55: 1 | GE55: 2 | GF55: 2 | GG55: 4 | GH55: 1 | GI55: 2 | GL55: 1 | GM55: 2 | GN55: 3 | GO55: 2 | GQ55: 1 | GS55: 2 | GU55: 1 | GV55: 6 | GX55: 2 | HB55: 1 | HC55: 3 | HG55: 5 | HH55: 4 | HI55: 3 | HJ55: 1 | HK55: 2 | HL55: 2 | HN55: 1 | HO55: 3 | HQ55: 1 | HT55: 2 | HV55: 2 | HW55: 2 | HX55: 2 | HY55: 2 | IA55: 1 | IB55: 1 | IC55: 1 | IE55: 6 | IF55: 12 | IH55: 8 | II55: 2 | IJ55: 1 | IK55: 1 | IL55: 1 | IP55: 2 | IQ55: 1 | IR55: 3 | IS55: 2 | IT55: 2 | IU55: 3 | IV55: 23 | IW55: 1 | IX55: 2 | JA55: 4 | JB55: 7 | JC55: 1 | JD55: 75 | JE55: 1 | JF55: 1 | JG55: 2 | JH55: 4 | JI55: 7 | JL55: 3 | JM55: 4 | JN55: 3 | JS55: 2 | JV55: 1 | KB55: 1 | KC55: 3 | KF55: 2 | KI55: 8 | KJ55: 1 | KK55: 1 | KL55: 2 | KP55: 2 | KQ55: 3 | KU55: 1 | KV55: 3 | KW55: 11 | KY55: 4 | KZ55: 1 | LC55: 1 | LE55: 1 | LF55: 1 | LH55: 1 | LK55: 6 | LL55: 3 | LM55: 8 | LN55: 9 | LO55: 1 | LQ55: 5 | LR55: 1 | LS55: 1 | LT55: 3 | LU55: 1 | LV55: 1
A56: Green Heron | AM56: 1 | BL56: 1 | CK56: 1 | CZ56: 1 | ED56: 1 | EM56: 1 | EY56: 2 | EZ56: 1 | FB56: 1 | GS56: 1 | HC56: 1 | HI56: 1 | HK56: 1 | HL56: 1 | IC56: 1 | IR56: 1 | IT56: 1 | JB56: 1 | JL56: 1 | JQ56: 1 | KC56: 1
A57: Black-crowned Night-Heron | BI57: 1 | BW57: 1 | BX57: 1 | CI57: 1 | DD57: 1 | DY57: 1 | ED57: 1 | EH57: 1 | EJ57: 1 | EL57: 2 | ES57: 1 | ET57: 1 | EY57: 2 | FL57: 1 | HR57: 1 | IC57: 1 | IF57: 1 | JQ57: 1 | JV57: 1 | KO57: 1
A58: Yellow-crowned Night-Heron | BV58: 1 | BX58: 1 | CI58: 1 | CK58: 1 | CP58: 1 | DP58: 1 | DW58: 1 | DY58: 1 | EH58: 1 | EI58: 2 | EJ58: 2 | EL58: 2 | EM58: 1 | ER58: 1 | ET58: 2 | EY58: 1 | EZ58: 5 | FA58: 1 | FD58: 2 | FE58: 4 | FF58: 2 | FG58: 1 | FH58: 3 | FK58: 1 | FL58: 1 | FP58: 1 | FR58: 1 | FS58: 3 | FU58: 1 | FW58: 2 | FX58: 4 | FY58: 1 | GC58: 2 | GE58: 2 | GF58: 2 | GG58: 1 | GH58: 2 | GI58: 1 | GN58: 1 | GO58: 5 | GQ58: 1 | GX58: 4 | GY58: 4 | GZ58: 1 | HB58: 8 | HC58: 10 | HD58: 1 | HG58: 1 | HH58: 2 | HI58: 2 | HJ58: 2 | HK58: 1 | HL58: 2 | HM58: 7 | HN58: 4 | HO58: 7 | HP58: 3 | HQ58: 2 | HR58: 1 | HU58: 1 | HV58: 1 | HW58: 2 | HX58: 2 | HY58: 1 | IB58: 2 | IC58: 3 | ID58: 2 | IE58: 2 | IF58: 1 | IG58: 1 | II58: 1 | IR58: 1 | IS58: 1 | IT58: 1 | IU58: 1 | IV58: 1 | IX58: 1 | JB58: 3 | JC58: 2 | JD58: 2 | JE58: 1 | JF58: 2 | JH58: 2 | JI58: 2 | JL58: 2 | JM58: 1 | JQ58: 2 | KI58: 1
A59: White Ibis | D59: 32 | E59: 21 | F59: 21 | G59: 4 | H59: 17 | I59: 72 | J59: 2 | K59: 1 | L59: 20 | M59: 7 | N59: 3 | O59: 50 | P59: 55 | Q59: 61 | R59: 40 | S59: 40 | T59: 2 | U59: 17 | V59: 81 | W59: 44 | X59: 110 | Y59: 71 | Z59: 3 | AA59: 74 | AB59: 28 | AC59: 25 | AD59: 14 | AE59: 4 | AF59: 14 | AG59: 10 | AH59: 8 | AI59: 28 | AJ59: 27 | AK59: 18 | AL59: 25 | AM59: 6 | AN59: 25 | AO59: 35 | AP59: 6 | AQ59: 5 | AR59: 11 | AT59: 32 | AU59: 1 | AV59: 6 | AW59: 39 | AY59: 16 | AZ59: 3 | BA59: 32 | BB59: 5 | BC59: 40 | BD59: 18 | BE59: 19 | BF59: 5 | BG59: 10 | BH59: 7 | BI59: 34 | BK59: 11 | BL59: 29 | BM59: 1 | BN59: 3 | BO59: 44 | BP59: 10 | BQ59: 4 | BR59: 2 | BS59: 1 | BT59: 14 | BU59: 24 | BV59: 2 | BW59: 2 | BX59: 1 | BY59: 2 | BZ59: 6 | CA59: 12 | CC59: 14 | CE59: 1 | CF59: 22 | CH59: 67 | CJ59: 5 | CK59: 1 | CP59: 7 | CS59: 40 | CW59: 4 | CX59: 1 | CZ59: 28 | DB59: 3 | DC59: 18 | DD59: 9 | DF59: 3 | DN59: 3 | DO59: 1 | DP59: 11 | DQ59: 2 | DS59: 5 | DU59: 3 | DV59: 3 | DW59: 12 | DY59: 4 | ED59: 2 | EF59: 23 | EH59: 26 | EI59: 4 | EJ59: 7 | EK59: 5 | EL59: 1 | EN59: 1 | EO59: 6 | EP59: 10 | ES59: 1 | ET59: 6 | EU59: 9 | EV59: 1 | EW59: 3 | EX59: 1 | EY59: 16 | EZ59: 9 | FA59: 8 | FB59: 2 | FD59: 9 | FE59: 24 | FF59: 90 | FG59: 10 | FL59: 1 | FM59: 3 | FN59: 22 | FO59: 13 | FQ59: 18 | FS59: 6 | FU59: 2 | FV59: 2 | FW59: 4 | FX59: 7 | GA59: 15 | GB59: 67 | GC59: 1 | GD59: 1 | GF59: 14 | GG59: 17 | GH59: 3 | GI59: 3 | GJ59: 2 | GL59: 12 | GO59: 117 | GP59: 6 | GQ59: 1 | GS59: 130 | GV59: 40 | GX59: 2 | GY59: 2 | GZ59: 5 | HB59: 43 | HC59: 17 | HD59: 36 | HJ59: 37 | HK59: 28 | HL59: 28 | HM59: 26 | HN59: 70 | HO59: 100 | HP59: 100 | HQ59: 8 | HR59: 60 | HS59: 90 | HT59: 186 | HU59: 90 | HV59: 177 | HW59: 290 | HX59: 87 | HY59: 95 | HZ59: 27 | IA59: 8 | IB59: 12 | IC59: 27 | IE59: 2 | IF59: 36 | IH59: 3 | II59: 10 | IJ59: 7 | IK59: 47 | IL59: 17` | IN59: 29 | IO59: 6 | IP59: 4 | IQ59: 5 | IR59: 12 | IS59: 7 | IT59: 15 | IU59: 10 | IV59: 37 | IW59: 27 | IX59: 18 | IZ59: 21 | JA59: 12 | JB59: 28 | JC59: 33 | JD59: 32 | JE59: 14 | JF59: 30 | JG59: 13 | JH59: 42 | JI59: 8 | JJ59: 6 | JL59: 25 | JM59: 20 | JN59: 35 | JO59: 2 | JP59: 23 | JQ59: 35 | JS59: 37 | JT59: 32 | JU59: 36 | JV59: 17 | JW59: 46 | JX59: 33 | JY59: 23 | KB59: 69 | KC59: 25 | KD59: 21 | KE59: 68 | KF59: 3 | KG59: 20 | KH59: 128 | KI59: 53 | KJ59: 21 | KK59: 45 | KL59: 83 | KM59: 26 | KN59: 28 | KO59: 23 | KP59: 30 | KQ59: 48 | KR59: 12 | KS59: 36 | KT59: 44 | KU59: 38 | KV59: 92 | KW59: 22 | KX59: 39 | KY59: 57 | KZ59: 23 | LA59: 34 | LB59: 42 | LC59: 13 | LD59: 47 | LE59: 7 | LG59: 4 | LH59: 7 | LI59: 6 | LJ59: 5 | LK59: 22 | LL59: 9 | LM59: 33 | LN59: 24 | LO59: 18 | LP59: 11 | LQ59: 18 | LR59: 1 | LS59: 23 | LT59: 6 | LU59: 27 | LV59: 23 | LW59: 9 | LX59: 35
A60: Glossy Ibis | AA60: 3 | AR60: 3 | AT60: 8 | AX60: 2 | BV60: 6 | BW60: 1 | CC60: 5 | CD60: 33 | CY60: 4 | DU60: 6 | EI60: 3 | EP60: 3 | ET60: 9 | EW60: 4 | FB60: 1 | FF60: 16 | GF60: 9 | GG60: 10 | GI60: 1 | GO60: 28 | GP60: 5 | GY60: 4 | HB60: 3 | HG60: 10 | HJ60: 46 | HK60: 1 | HL60: 49 | HM60: 12 | HP60: 2 | HT60: 3 | HU60: 3 | HX60: 12 | HY60: 3 | IC60: 8 | JH60: 18 | JI60: 5 | JN60: 18 | KB60: 10 | LA60: 11 | LB60: 8 | LX60: 1
A61: White-faced Ibis | GI61: 1
A62: Roseate Spoonbill | O62: 1 | P62: 2 | AM62: 2 | EF62: 2 | EJ62: 10 | EL62: 2 | EN62: 1 | ET62: 3 | EV62: 5 | EY62: 1 | FA62: 17 | FD62: 17 | FG62: 3 | FK62: 3 | GO62: 4 | HG62: 1 | HN62: 1 | IQ62: 1 | JU62: 1 | KG62: 7 | KN62: 6 | KS62: 14 | KT62: 2 | KX62: 1 | KZ62: 1 | LB62: 1 | LP62: 6 | LX62: 1
A63: Wood Stork | D63: 2 | E63: 5 | F63: 3 | G63: 3 | H63: 9 | I63: 7 | J63: 9 | K63: 2 | L63: 9 | M63: 1 | N63: 7 | O63: 2 | Q63: 2 | R63: 1 | T63: 2 | U63: 1 | W63: 1 | X63: 1 | AA63: 3 | AB63: 8 | AC63: 4 | AD63: 5 | AF63: 5 | AI63: 2 | AJ63: 2 | AK63: 2 | AL63: 14 | AM63: 14 | AN63: 3 | AP63: 1 | AQ63: 37 | AR63: 3 | AS63: 6 | AT63: 11 | AU63: 3 | AV63: 3 | AX63: 1 | AY63: 1 | AZ63: 1 | BB63: 1 | BC63: 3 | BD63: 1 | BE63: 2 | BG63: 1 | BM63: 1 | BO63: 1 | BP63: 6 | BR63: 5 | BS63: 2 | BU63: 5 | CA63: 3 | CB63: 6 | CC63: 1 | CF63: 1 | FX63: 1 | GD63: 1 | GI63: 1 | GN63: 1 | GO63: 2 | JB63: 2 | JS63: 1 | KT63: 1 | KX63: 1 | KY63: 1 | LI63: 5 | LK63: 3 | LL63: 1 | LS63: 2 | LU63: 1 | LW63: 3 | LX63: 7
A64: Black Vulture | D64: 17 | E64: 10 | F64: 25 | G64: 17 | H64: 5 | I64: 22 | J64: 10 | K64: 2 | L64: 5 | M64: 6 | N64: 18 | O64: 5 | P64: 9 | Q64: 22 | R64: 3 | T64: 16 | U64: 3 | W64: 6 | X64: 10 | Z64: 4 | AA64: 4 | AB64: 19 | AC64: 7 | AD64: 21 | AE64: 4 | AF64: 1 | AG64: 19 | AI64: 7 | AJ64: 1 | AL64: 15 | AM64: 6 | AN64: 1 | AO64: 10 | AP64: 2 | AQ64: 10 | AR64: 2 | AS64: 6 | AT64: 7 | AU64: 1 | AV64: 1 | AX64: 8 | AY64: 5 | AZ64: 10 | BB64: 1 | BC64: 26 | BE64: 12 | BH64: 4 | BI64: 2 | BJ64: 2 | BK64: 3 | BL64: 5 | BM64: 23 | BN64: 1 | BO64: 7 | BP64: 8 | BQ64: 2 | BR64: 2 | BS64: 10 | BU64: 8 | BV64: 6 | BW64: 3 | BX64: 2 | CA64: 9 | CB64: 1 | CC64: 4 | CD64: 11 | CE64: 1 | CF64: 1 | CG64: 1 | CH64: 3 | CI64: 2 | CJ64: 2 | CK64: 3 | CL64: 8 | CO64: 1 | CP64: 1 | CQ64: 3 | CR64: 2 | CS64: 4 | CU64: 5 | CV64: 4 | CW64: 9 | CX64: 1 | DA64: 12 | DB64: 5 | DC64: 5 | DE64: 1 | DG64: 1 | DI64: 3 | DR64: 2 | DV64: 1 | DY64: 3 | EA64: 2 | EB64: 1 | EC64: 1 | ED64: 1 | EF64: 7 | EH64: 6 | EJ64: 2 | EM64: 1 | EN64: 10 | EO64: 1 | EQ64: 2 | ES64: 4 | ET64: 4 | EU64: 4 | EV64: 1 | EW64: 1 | EY64: 2 | EZ64: 1 | FA64: 6 | FB64: 2 | FC64: 1 | FD64: 3 | FE64: 2 | FF64: 2 | FG64: 2 | FH64: 1 | FL64: 1 | FM64: 1 | FO64: 2 | FR64: 1 | FT64: 1 | FU64: 8 | FV64: 3 | FW64: 1 | GB64: 1 | GC64: 1 | GD64: 4 | GE64: 1 | GF64: 4 | GG64: 2 | GI64: 3 | GU64: 1 | GZ64: 1 | HH64: 1 | HJ64: 1 | HL64: 2 | HN64: 6 | HO64: 4 | HP64: 5 | HQ64: 4 | HR64: 23 | HS64: 2 | HT64: 1 | HU64: 1 | HW64: 1 | HY64: 6 | HZ64: 12 | IA64: 3 | IB64: 2 | IC64: 13 | IE64: 11 | IF64: 3 | IG64: 2 | II64: 2 | IK64: 1 | IL64: 27 | IN64: 1 | IO64: 4 | IP64: 5 | IQ64: 1 | IS64: 1 | IV64: 12 | IW64: 1 | IZ64: 1 | JA64: 13 | JC64: 2 | JD64: 4 | JE64: 1 | JF64: 7 | JG64: 100 | JL64: 18 | JN64: 15 | JQ64: 41 | JS64: 23 | JV64: 2 | JW64: 6 | JX64: 9 | JY64: 185 | KA64: 56 | KB64: 210 | KC64: 26 | KD64: 7 | KE64: 24 | KF64: 36 | KG64: 3 | KH64: 2 | KI64: 4 | KJ64: 3 | KK64: 1 | KL64: 39 | KM64: 2 | KN64: 1 | KO64: 7 | KP64: 21 | KQ64: 18 | KR64: 1 | KS64: 6 | KT64: 9 | KU64: 6 | KV64: 2 | KW64: 4 | KX64: 28 | KY64: 3 | LA64: 2 | LB64: 3 | LC64: 2 | LE64: 15 | LF64: 14 | LH64: 21 | LI64: 2 | LJ64: 3 | LL64: 1 | LM64: 3 | LN64: 2 | LQ64: 4 | LR64: 1 | LU64: 5 | LW64: 21 | LX64: 7
A65: Turkey Vulture | D65: 119 | E65: 246 | F65: 237 | G65: 167 | H65: 119 | I65: 187 | J65: 97 | K65: 28 | L65: 116 | M65: 37 | N65: 95 | O65: 77 | P65: 140 | Q65: 71 | R65: 54 | S65: 64 | T65: 169 | U65: 104 | W65: 61 | X65: 27 | Y65: 8 | Z65: 33 | AA65: 14 | AB65: 133 | AC65: 23 | AD65: 172 | AE65: 61 | AF65: 33 | AG65: 85 | AH65: 5 | AI65: 28 | AJ65: 13 | AK65: 5 | AL65: 1150 | AM65: 690 | AN65: 29 | AO65: 191 | AP65: 44 | AQ65: 213 | AR65: 100 | AS65: 222 | AT65: 153 | AU65: 23 | AV65: 28 | AW65: 7 | AX65: 85 | AY65: 63 | AZ65: 130 | BA65: 1 | BB65: 99 | BC65: 115 | BD65: 53 | BE65: 89 | BF65: 2 | BG65: 45 | BH65: 23 | BI65: 79 | BJ65: 40 | BK65: 50 | BL65: 110 | BM65: 95 | BN65: 28 | BO65: 48 | BP65: 39 | BQ65: 162 | BR65: 47 | BS65: 500 | BT65: 1 | BU65: 102 | BV65: 99 | BW65: 34 | BX65: 82 | BY65: 20 | BZ65: 14 | CA65: 60 | CB65: 79 | CC65: 48 | CD65: 122 | CE65: 119 | CF65: 71 | CG65: 31 | CH65: 133 | CI65: 45 | CJ65: 22 | CK65: 119 | CL65: 49 | CM65: 12 | CN65: 1 | CO65: 19 | CP65: 12 | CQ65: 4 | CR65: 6 | CS65: 3 | CU65: 5 | CV65: 21 | CW65: 11 | CX65: 6 | CY65: 2 | CZ65: 13 | DA65: 28 | DB65: 15 | DC65: 13 | DD65: 10 | DE65: 4 | DF65: 1 | DG65: 3 | DH65: 4 | DI65: 6 | DJ65: 1 | DK65: 3 | DL65: 3 | DM65: 1 | DN65: 7 | DO65: 7 | DP65: 7 | DQ65: 1 | DR65: 3 | DS65: 2 | DT65: 2 | DV65: 1 | DW65: 1 | DX65: 2 | DY65: 3 | DZ65: 4 | EB65: 3 | EC65: 5 | EF65: 17 | EG65: 6 | EH65: 15 | EI65: 1 | EJ65: 2 | EK65: 1 | EL65: 2 | EM65: 4 | EN65: 7 | EO65: 3 | EP65: 1 | EQ65: 4 | ER65: 3 | ES65: 2 | ET65: 1 | EU65: 11 | EW65: 2 | EY65: 6 | FA65: 2 | FB65: 2 | FD65: 2 | FE65: 2 | FF65: 1 | FG65: 9 | FH65: 3 | FK65: 1 | FL65: 2 | FM65: 7 | FO65: 2 | FP65: 6 | FR65: 2 | FT65: 1 | FU65: 5 | FW65: 3 | FZ65: 1 | GA65: 1 | GB65: 7 | GC65: 1 | GD65: 3 | GE65: 5 | GG65: 1 | GH65: 4 | GI65: 1 | GK65: 3 | GN65: 3 | GR65: 3 | GS65: 9 | GU65: 3 | GV65: 3 | GW65: 3 | HA65: 1 | HB65: 3 | HC65: 2 | HG65: 4 | HH65: 6 | HJ65: 12 | HL65: 19 | HN65: 12 | HO65: 22 | HP65: 11 | HQ65: 14 | HR65: 23 | HS65: 3 | HT65: 5 | HU65: 9 | HV65: 19 | HW65: 17 | HY65: 34 | HZ65: 21 | IA65: 17 | IB65: 48 | IC65: 18 | IE65: 22 | IF65: 57 | IG65: 29 | IH65: 10 | II65: 39 | IJ65: 1 | IK65: 40 | IL65: 80 | IN65: 15 | IO65: 17 | IP65: 56 | IQ65: 9 | IR65: 5 | IS65: 124 | IV65: 21 | IW65: 39 | IX65: 24 | IZ65: 6 | JA65: 100 | JB65: 33 | JD65: 27 | JE65: 73 | JF65: 37 | JG65: 108 | JI65: 62 | JL65: 136 | JM65: 1 | JN65: 118 | JO65: 1 | JQ65: 72 | JR65: 1 | JS65: 19 | JT65: 6 | JU65: 6 | JV65: 10 | JW65: 20 | JX65: 47 | JY65: 12 | KA65: 12 | KB65: 23 | KC65: 10 | KD65: 49 | KE65: 66 | KF65: 19 | KG65: 90 | KI65: 92 | KJ65: 165 | KK65: 105 | KL65: 214 | KM65: 34 | KN65: 19 | KO65: 32 | KP65: 16 | KQ65: 231 | KR65: 16 | KS65: 89 | KT65: 101 | KU65: 118 | KV65: 12 | KW65: 41 | KX65: 83 | KY65: 51 | LA65: 40 | LB65: 31 | LC65: 137 | LE65: 94 | LF65: 50 | LG65: 75 | LH65: 74 | LI65: 195 | LJ65: 292 | LK65: 28 | LL65: 37 | LM65: 266 | LN65: 15 | LO65: 14 | LP65: 13 | LQ65: 75 | LR65: 67 | LS65: 45 | LT65: 2 | LU65: 134 | LV65: 11 | LW65: 158 | LX65: 53
A66: American Flamingo
A67: Black-bellied Whistling-Duck | EJ67: 1 | EP67: 1 | FC67: 4
A68: Fulvous Whistling-Duck
A69: Greater White-fronted Goose
A70: Snow Goose | BB70: 1 | LX70: 1
A71: Canada Goose | LD71: 1
A72: Brant | KV72: 1
A73: Egyptian Goose
A74: Tundra Swan
A75: Mute Swan
A76: Muscovy Duck | CG76: 1 | IT76: 2 | LC76: 5
A77: Wood Duck | AH77: 1 | DU77: 1 | DY77: 1 | ED77: 2 | EV77: 1 | FE77: 3 | FS77: 1 | FV77: 1 | GG77: 2 | KL77: 2 | LE77: 2
A78: Gadwall | KY78: 6 | LB78: 42 | LE78: 5 | LF78: 2 | LI78: 1 | LJ78: 10 | LK78: 3 | LX78: 3
A79: Eurasian Wigeon
A80: American Wigeon | DZ80: 1 | JN80: 1 | LF80: 3 | LX80: 12
A81: American Black Duck | DB81: 1
A82: Mallard | H82: 1 | S82: 1 | T82: 1 | U82: 2 | CJ82: 1 | CK82: 2 | CO82: 1 | CY82: 2 | DN82: 2 | DO82: 2 | EA82: 2 | EB82: 2 | GY82: 1 | HC82: 2 | HJ82: 2 | HQ82: 2 | IE82: 2 | IG82: 2 | II82: 2 | IL82: 2 | IQ82: 2 | JB82: 2 | JC82: 2 | JE82: 2 | JG82: 2 | JL82: 2 | JV82: 2 | KI82: 2 | KJ82: 2 | KK82: 2 | LD82: 2 | LJ82: 2
A83: Mottled Duck | M83: 2 | EM83: 1 | GY83: 2 | LA83: 3
A84: Blue-winged Teal | AQ84: 3 | BM84: 1 | BY84: 3 | CE84: 5 | CG84: 8 | CJ84: 3 | CW84: 2 | CX84: 2 | DA84: 17 | GG84: 8 | HT84: 4 | HV84: 1 | IE84: 4 | IF84: 28 | IG84: 7 | IQ84: 140 | IR84: 15 | IS84: 50 | IU84: 2 | JE84: 45 | JI84: 67 | JJ84: 1 | JL84: 75 | JM84: 8 | JN84: 30 | JO84: 45 | JU84: 17 | JY84: 78 | JZ84: 20 | KE84: 6 | KL84: 32 | KM84: 6 | KW84: 12 | LE84: 25
A85: Northern Shoveler | IQ85: 2 | KZ85: 2
A86: Northern Pintail | KW86: 14 | LI86: 1 | LW86: 3
A87: Green-winged Teal | AI87: 2 | CH87: 20 | CX87: 2 | IR87: 2 | IT87: 15 | JE87: 5 | JI87: 1 | JJ87: 14 | JL87: 10 | JM87: 42 | JN87: 13 | JY87: 14 | KE87: 20 | KJ87: 1 | KK87: 15 | KL87: 15 | KT87: 1 | KW87: 15 | KX87: 10 | KZ87: 8 | LA87: 15 | LB87: 12 | LE87: 5 | LF87: 18 | LI87: 50 | LM87: 20 | LN87: 15 | LW87: 2
A88: Canvasback | L88: 12 | M88: 5 | CX88: 1 | LU88: 6
A89: Redhead | D89: 1 | E89: 3 | I89: 3 | R89: 2 | AK89: 1 | AO89: 3 | BJ89: 2 | KZ89: 8 | LA89: 15 | LD89: 6 | LS89: 17
A90: Ring-necked Duck | E90: 3 | M90: 1 | W90: 1 | AK90: 1 | BB90: 20 | BQ90: 1 | CH90: 2 | CI90: 3 | CQ90: 2 | CW90: 1 | KO90: 1 | KV90: 9 | KW90: 20 | LB90: 21 | LC90: 12 | LF90: 13 | LH90: 6 | LM90: 7 | LN90: 8 | LX90: 20
A91: Greater Scaup | D91: 10 | E91: 25 | F91: 40 | I91: 30 | J91: 8 | K91: 50 | L91: 80 | N91: 9 | Q91: 95 | AC91: 2 | AE91: 4 | AF91: 8 | AM91: 16 | AN91: 10 | AR91: 40 | AX91: 1 | AZ91: 2 | BH91: 2 | BL91: 4 | BM91: 8 | BN91: 4 | BT91: 12 | BW91: 1 | CR91: 1 | LI91: 12 | LM91: 15 | LN91: 10 | LO91: 6 | LS91: 22 | LX91: 30
A92: Lesser Scaup | D92: 250 | E92: 1880 | F92: 50 | G92: 70 | I92: 1790 | K92: 950 | L92: 20 | M92: 60 | O92: 750 | P92: 2660 | Q92: 3300 | R92: 5700 | S92: 4950 | T92: 5200 | U92: 6200 | V92: 850 | Y92: 1 | AB92: 2680 | AC92: 2750 | AD92: 5050 | AE92: 4340 | AF92: 4140 | AG92: 2680 | AH92: 2120 | AI92: 1720 | AJ92: 1850 | AK92: 870 | AL92: 3150 | AM92: 2500 | AN92: 5200 | AO92: 3900 | AP92: 3650 | AQ92: 350 | AR92: 790 | AS92: 1430 | AT92: 1710 | AU92: 1820 | AV92: 620 | AW92: 480 | AX92: 470 | AY92: 1350 | AZ92: 3000 | BA92: 1740 | BB92: 990 | BC92: 620 | BD92: 3500 | BE92: 1310 | BF92: 2130 | BG92: 340 | BH92: 1820 | BI92: 660 | BJ92: 1420 | BK92: 1270 | BL92: 670 | BM92: 1330 | BN92: 920 | BO92: 440 | BP92: 190 | BQ92: 260 | BR92: 150 | BS92: 190 | BT92: 180 | BU92: 175 | BV92: 200 | BW92: 175 | BX92: 230 | BY92: 250 | BZ92: 90 | CA92: 60 | CB92: 82 | CC92: 135 | CD92: 119 | CE92: 146 | CF92: 210 | CG92: 360 | CH92: 280 | CI92: 251 | CJ92: 360 | CK92: 180 | CL92: 310 | CM92: 100 | CN92: 35 | CO92: 98 | CP92: 90 | CQ92: 75 | CR92: 30 | CS92: 31 | CT92: 12 | CV92: 7 | CW92: 8 | CX92: 16 | CY92: 31 | CZ92: 4 | DA92: 4 | DB92: 19 | DC92: 34 | DE92: 1 | DH92: 2 | DI92: 1 | DJ92: 8 | DK92: 5 | DL92: 7 | DM92: 7 | DN92: 3 | DP92: 3 | DQ92: 3 | DS92: 1 | DV92: 1 | DX92: 1 | DY92: 1 | EA92: 1 | EB92: 1 | EC92: 1 | EG92: 1 | JY92: 15 | KE92: 10 | KO92: 30 | KV92: 12 | KW92: 40 | KX92: 25 | KY92: 20 | KZ92: 40 | LA92: 270 | LB92: 48 | LC92: 195 | LD92: 130 | LE92: 30 | LG92: 15 | LH92: 97 | LI92: 124 | LK92: 140 | LL92: 40 | LM92: 20 | LN92: 47 | LO92: 30 | LP92: 3 | LQ92: 6 | LR92: 10 | LS92: 210 | LU92: 40 | LW92: 15 | LX92: 105
A93: Common Eider | CO93: 1
A94: Harlequin Duck | LH94: 1
A95: Surf Scoter | D95: 1 | F95: 4 | K95: 2 | X95: 2 | Y95: 1 | Z95: 16 | AE95: 1 | AN95: 4 | AT95: 1 | BE95: 4 | BR95: 5 | CS95: 4 | KV95: 2 | KZ95: 8 | LF95: 1 | LG95: 25 | LI95: 2 | LL95: 13 | LQ95: 1 | LU95: 6 | LW95: 4
A96: White-winged Scoter | E96: 1 | L96: 4 | AN96: 2 | LG96: 1 | LW96: 6 | LX96: 4
A97: Black Scoter | D97: 6 | E97: 7 | F97: 9 | G97: 18 | J97: 34 | K97: 1 | L97: 9 | N97: 9 | O97: 11 | P97: 1 | Q97: 3 | S97: 1 | X97: 11 | Y97: 16 | Z97: 675 | AA97: 53 | AB97: 6 | AE97: 2 | AI97: 35 | AJ97: 60 | AK97: 3 | AM97: 38 | AN97: 29 | AP97: 50 | AQ97: 35 | AR97: 310 | AT97: 19 | AU97: 20 | AV97: 6 | AW97: 2 | AX97: 40 | AY97: 8 | AZ97: 20 | BA97: 11 | BB97: 3 | BD97: 4 | BF97: 1 | BG97: 1 | BJ97: 1 | BK97: 2 | BL97: 2 | BN97: 1 | BR97: 1 | BS97: 11 | BW97: 2 | BY97: 8 | CA97: 4 | CK97: 3 | CL97: 2 | CS97: 1 | CV97: 4 | DI97: 1 | GM97: 1 | KY97: 2 | LC97: 3 | LF97: 4 | LG97: 1 | LH97: 2 | LI97: 2 | LL97: 7 | LM97: 2 | LN97: 6 | LO97: 1 | LR97: 2 | LS97: 70 | LU97: 6 | LV97: 4 | LW97: 2 | LX97: 4
A98: Long-tailed Duck | L98: 1
A99: Bufflehead | E99: 2 | K99: 1 | AF99: 2 | BB99: 1 | BS99: 2 | LE99: 1 | LU99: 1
A100: Common Goldeneye | Q100: 1 | AB100: 1
A101: Hooded Merganser | U101: 6 | BL101: 1 | LN101: 1 | LS101: 1
A102: Common Merganser
A103: Red-breasted Merganser | D103: 1 | E103: 2 | P103: 2 | R103: 1 | T103: 1 | V103: 1 | AC103: 3 | AI103: 2 | BR103: 1 | CL103: 3 | CP103: 1 | CU103: 1 | DE103: 1 | DL103: 1 | DP103: 1 | DW103: 1 | EA103: 1 | EB103: 1 | LB103: 3 | LF103: 1 | LI103: 19 | LM103: 11 | LS103: 7 | LU103: 1 | LV103: 1 | LW103: 1
A104: Ruddy Duck | D104: 1 | H104: 1 | R104: 3 | AC104: 1 | DB104: 1
A105: Osprey | D105: 2 | E105: 2 | F105: 3 | G105: 3 | H105: 4 | I105: 3 | J105: 1 | K105: 3 | L105: 2 | N105: 2 | O105: 3 | P105: 1 | Q105: 1 | R105: 1 | S105: 2 | T105: 3 | U105: 2 | W105: 1 | X105: 2 | Y105: 1 | AA105: 3 | AB105: 1 | AC105: 4 | AD105: 2 | AF105: 3 | AG105: 2 | AH105: 2 | AI105: 4 | AL105: 1 | AM105: 3 | AN105: 2 | AO105: 3 | AP105: 3 | AQ105: 3 | AR105: 3 | AS105: 2 | AT105: 3 | AU105: 2 | AV105: 1 | AW105: 2 | AX105: 2 | AY105: 3 | AZ105: 3 | BA105: 1 | BB105: 1 | BC105: 2 | BD105: 3 | BE105: 3 | BF105: 4 | BG105: 3 | BH105: 4 | BI105: 2 | BJ105: 3 | BK105: 2 | BL105: 5 | BM105: 3 | BN105: 3 | BO105: 3 | BP105: 4 | BQ105: 4 | BR105: 3 | BS105: 7 | BT105: 1 | BU105: 8 | BV105: 4 | BW105: 5 | BX105: 2 | BY105: 1 | BZ105: 3 | CA105: 6 | CB105: 5 | CC105: 5 | CD105: 2 | CE105: 13 | CF105: 6 | CG105: 2 | CH105: 6 | CI105: 3 | CJ105: 2 | CK105: 2 | CL105: 1 | CM105: 3 | CN105: 3 | CO105: 3 | CP105: 7 | CQ105: 3 | CR105: 2 | CS105: 2 | CT105: 2 | CU105: 4 | CV105: 1 | CW105: 3 | CX105: 3 | CY105: 3 | CZ105: 2 | DA105: 3 | DB105: 3 | DC105: 4 | DD105: 5 | DE105: 5 | DF105: 3 | DG105: 2 | DH105: 2 | DI105: 4 | DJ105: 2 | DK105: 3 | DL105: 4 | DM105: 3 | DN105: 3 | DO105: 4 | DP105: 5 | DQ105: 5 | DR105: 5 | DS105: 5 | DT105: 3 | DU105: 4 | DV105: 4 | DW105: 4 | DX105: 5 | DY105: 4 | DZ105: 4 | EA105: 4 | EB105: 5 | EC105: 4 | ED105: 3 | EE105: 2 | EF105: 4 | EG105: 5 | EH105: 8 | EI105: 5 | EJ105: 5 | EK105: 8 | EL105: 3 | EM105: 5 | EN105: 6 | EO105: 4 | EP105: 5 | EQ105: 4 | ER105: 5 | ES105: 7 | ET105: 5 | EU105: 4 | EV105: 4 | EW105: 6 | EX105: 5 | EY105: 5 | EZ105: 6 | FA105: 9 | FB105: 4 | FC105: 7 | FD105: 6 | FE105: 7 | FF105: 8 | FG105: 6 | FH105: 7 | FI105: 1 | FJ105: 2 | FK105: 3 | FL105: 6 | FM105: 5 | FN105: 5 | FO105: 4 | FP105: 3 | FQ105: 4 | FR105: 4 | FS105: 3 | FT105: 4 | FU105: 2 | FV105: 3 | FW105: 4 | FX105: 1 | FY105: 2 | FZ105: 3 | GA105: 5 | GB105: 6 | GC105: 6 | GD105: 5 | GE105: 4 | GF105: 4 | GG105: 7 | GH105: 5 | GI105: 7 | GJ105: 1 | GK105: 4 | GL105: 3 | GM105: 3 | GN105: 6 | GO105: 5 | GP105: 2 | GQ105: 3 | GR105: 4 | GS105: 3 | GT105: 2 | GU105: 5 | GV105: 5 | GW105: 1 | GX105: 3 | GY105: 4 | GZ105: 6 | HA105: 4 | HB105: 3 | HC105: 4 | HD105: 4 | HG105: 5 | HH105: 2 | HI105: 2 | HJ105: 2 | HK105: 3 | HL105: 6 | HN105: 2 | HO105: 1 | HP105: 2 | HQ105: 2 | HR105: 3 | HS105: 2 | HT105: 2 | HU105: 1 | HV105: 3 | HW105: 3 | HX105: 3 | HY105: 2 | HZ105: 4 | IA105: 4 | IB105: 2 | IC105: 2 | ID105: 2 | IE105: 3 | IF105: 1 | IG105: 4 | IH105: 2 | II105: 2 | IJ105: 2 | IK105: 2 | IL105: 4 | IM105: 1 | IN105: 5 | IO105: 3 | IP105: 3 | IQ105: 3 | IR105: 1 | IS105: 1 | IT105: 2 | IU105: 1 | IV105: 9 | IW105: 5 | IX105: 2 | IZ105: 3 | JA105: 4 | JB105: 3 | JC105: 1 | JD105: 3 | JE105: 3 | JF105: 1 | JG105: 3 | JH105: 2 | JI105: 3 | JL105: 3 | JM105: 1 | JN105: 3 | JO105: 3 | JP105: 1 | JQ105: 2 | JR105: 2 | JS105: 7 | JT105: 3 | JU105: 2 | JV105: 3 | JW105: 4 | JX105: 2 | JY105: 2 | JZ105: 1 | KA105: 2 | KB105: 4 | KC105: 4 | KD105: 1 | KE105: 3 | KF105: 4 | KG105: 3 | KH105: 4 | KI105: 1 | KJ105: 5 | KK105: 3 | KL105: 4 | KM105: 2 | KN105: 4 | KO105: 6 | KP105: 4 | KQ105: 1 | KS105: 2 | KT105: 3 | KU105: 3 | KV105: 4 | KW105: 2 | KX105: 3 | KY105: 3 | KZ105: 1 | LA105: 2 | LB105: 4 | LC105: 2 | LD105: 4 | LE105: 4 | LG105: 3 | LH105: 2 | LI105: 3 | LJ105: 1 | LK105: 3 | LL105: 2 | LM105: 3 | LN105: 3 | LO105: 4 | LP105: 2 | LQ105: 4 | LR105: 3 | LS105: 2 | LT105: 1 | LU105: 2 | LV105: 4 | LW105: 3 | LX105: 4
A106: Swallow-tailed Kite | BJ106: 1 | BS106: 1 | CC106: 2 | CD106: 2 | CP106: 1 | CV106: 1 | CW106: 1 | CY106: 1 | DB106: 1 | DD106: 1 | DF106: 2 | DH106: 2 | DI106: 1 | DP106: 1 | DR106: 2 | DT106: 3 | DZ106: 1 | EA106: 2 | EB106: 3 | EC106: 1 | ED106: 1 | EJ106: 2 | EK106: 1 | EL106: 2 | EN106: 2 | EW106: 2 | EY106: 1 | FD106: 1 | FE106: 4 | FF106: 2 | FG106: 1 | FK106: 1 | FL106: 2 | FM106: 1 | FT106: 1 | FV106: 3 | FW106: 1 | GD106: 1 | GG106: 1 | GH106: 2 | GL106: 1 | GN106: 1 | GV106: 1 | GW106: 1 | HG106: 1 | HH106: 1
A107: Snail Kite
A108: Mississippi Kite | DK108: 1 | DR108: 1 | DZ108: 1 | EN108: 1 | FD108: 2 | FF108: 1 | FL108: 1 | GN108: 1 | HL108: 1 | HR108: 1 | HT108: 1 | HU108: 2 | HZ108: 2 | IB108: 1 | IC108: 3 | IF108: 1 | IL108: 3 | IV108: 1
A109: Bald Eagle | D109: 2 | E109: 4 | F109: 3 | G109: 4 | H109: 1 | I109: 5 | J109: 1 | K109: 2 | L109: 1 | M109: 2 | N109: 4 | O109: 1 | Q109: 1 | R109: 1 | T109: 4 | U109: 3 | V109: 3 | W109: 3 | Z109: 4 | AA109: 5 | AB109: 1 | AC109: 3 | AD109: 3 | AE109: 4 | AF109: 2 | AG109: 4 | AH109: 1 | AI109: 3 | AJ109: 3 | AL109: 1 | AM109: 2 | AN109: 3 | AO109: 3 | AP109: 2 | AQ109: 1 | AR109: 1 | AS109: 1 | AT109: 1 | AU109: 1 | AV109: 2 | AX109: 3 | AY109: 5 | AZ109: 1 | BA109: 2 | BB109: 1 | BC109: 2 | BD109: 1 | BE109: 1 | BF109: 2 | BG109: 1 | BH109: 1 | BI109: 2 | BJ109: 2 | BK109: 2 | BL109: 2 | BM109: 4 | BN109: 1 | BO109: 1 | BP109: 1 | BQ109: 1 | BR109: 1 | BS109: 3 | BU109: 3 | BV109: 2 | BW109: 2 | BX109: 1 | BY109: 2 | BZ109: 1 | CA109: 3 | CC109: 1 | CD109: 4 | CE109: 1 | CF109: 3 | CG109: 2 | CH109: 4 | CI109: 1 | CJ109: 1 | CK109: 2 | CM109: 1 | CN109: 1 | CO109: 3 | CP109: 1 | CQ109: 1 | CR109: 2 | CS109: 4 | CT109: 2 | CU109: 2 | CV109: 1 | CX109: 3 | CY109: 1 | CZ109: 2 | DA109: 2 | DB109: 1 | DC109: 1 | DD109: 1 | DE109: 1 | DF109: 2 | DG109: 1 | DH109: 1 | DI109: 2 | DJ109: 1 | DK109: 1 | DL109: 1 | DM109: 2 | DN109: 2 | DO109: 1 | DP109: 2 | DQ109: 1 | DR109: 1 | EP109: 1 | IN109: 1 | IO109: 2 | IQ109: 2 | IU109: 2 | IW109: 1 | JB109: 1 | JE109: 1 | JP109: 1 | JQ109: 1 | JR109: 1 | JS109: 2 | JT109: 1 | JV109: 1 | JX109: 1 | KA109: 1 | KB109: 2 | KC109: 1 | KE109: 3 | KF109: 1 | KG109: 1 | KH109: 1 | KJ109: 1 | KK109: 1 | KL109: 1 | KM109: 1 | KO109: 1 | KP109: 2 | KQ109: 2 | KR109: 2 | KS109: 1 | KT109: 2 | KU109: 3 | KV109: 2 | KW109: 1 | KX109: 2 | KY109: 3 | LA109: 2 | LB109: 1 | LC109: 1 | LD109: 1 | LE109: 2 | LG109: 2 | LH109: 1 | LI109: 3 | LJ109: 2 | LK109: 2 | LL109: 3 | LM109: 6 | LO109: 2 | LP109: 3 | LQ109: 2 | LR109: 2 | LS109: 1 | LT109: 1 | LU109: 2 | LV109: 1 | LW109: 3 | LX109: 4
A110: Northern Harrier | E110: 1 | F110: 1 | G110: 1 | I110: 3 | P110: 1 | BD110: 1 | BN110: 1 | CF110: 1 | DD110: 1 | JG110: 1 | JT110: 1 | JV110: 1 | KB110: 2 | KD110: 1 | KL110: 1 | KO110: 2 | KS110: 1 | KU110: 2 | KW110: 1 | KX110: 2 | LA110: 1 | LC110: 1 | LE110: 1 | LK110: 1 | LP110: 2 | LX110: 1
A111: Sharp-shinned Hawk | D111: 1 | AO111: 1 | AU111: 2 | BE111: 1 | BM111: 1 | CB111: 1 | DD111: 1 | JB111: 1 | JN111: 1 | JT111: 1 | JV111: 1 | KJ111: 3 | KK111: 1 | KM111: 1 | KN111: 1 | KQ111: 1 | KR111: 1 | KT111: 1 | KX111: 1 | LD111: 1 | LK111: 1
A112: Cooper's Hawk | S112: 1 | AT112: 1 | AV112: 1 | BN112: 1 | DM112: 1 | DX112: 1 | DY112: 1 | EB112: 1 | ED112: 1 | EF112: 1 | EU112: 1 | EW112: 1 | FB112: 1 | FE112: 1 | FM112: 1 | FR112: 1 | FW112: 2 | FX112: 1 | GE112: 1 | HJ112: 1 | JI112: 1 | JN112: 1 | KI112: 1 | KK112: 1 | KV112: 1 | KY112: 1 | LB112: 1 | LH112: 1 | LI112: 1 | LJ112: 1 | LK112: 1
A113: Red-shouldered Hawk | F113: 3 | K113: 1 | L113: 1 | M113: 1 | N113: 1 | T113: 1 | V113: 1 | AI113: 1 | AM113: 1 | AQ113: 1 | AS113: 1 | AT113: 1 | AX113: 1 | AZ113: 3 | BA113: 1 | BD113: 1 | BE113: 2 | BF113: 1 | BI113: 2 | BJ113: 2 | BM113: 1 | BN113: 1 | BS113: 1 | BU113: 1 | BX113: 1 | CF113: 1 | CG113: 1 | CH113: 1 | CK113: 1 | CN113: 1 | CO113: 1 | CP113: 1 | CU113: 1 | CV113: 1 | CW113: 1 | CY113: 1 | CZ113: 1 | DB113: 1 | DD113: 1 | DE113: 1 | DF113: 1 | DI113: 1 | DM113: 1 | DO113: 1 | DP113: 1 | DQ113: 1 | DR113: 1 | DS113: 1 | DU113: 1 | DV113: 1 | DX113: 1 | DZ113: 1 | EA113: 1 | EB113: 1 | ED113: 1 | EF113: 1 | EH113: 1 | EJ113: 2 | EK113: 1 | EM113: 1 | ER113: 1 | ES113: 1 | EW113: 1 | EY113: 1 | EZ113: 1 | FA113: 1 | FC113: 1 | FD113: 2 | FE113: 1 | FF113: 1 | FG113: 1 | FH113: 1 | FJ113: 1 | FK113: 2 | FL113: 1 | FM113: 3 | FN113: 2 | FO113: 1 | FP113: 1 | FQ113: 1 | FR113: 1 | FS113: 1 | FT113: 1 | FU113: 1 | FW113: 1 | FY113: 2 | FZ113: 1 | GA113: 1 | GD113: 1 | GE113: 1 | GF113: 3 | GG113: 1 | GH113: 1 | GI113: 1 | GK113: 1 | GM113: 1 | GN113: 1 | GO113: 1 | GQ113: 1 | GT113: 1 | GU113: 1 | GX113: 1 | GZ113: 2 | HA113: 1 | HC113: 1 | HD113: 1 | HK113: 1 | HL113: 1 | HO113: 1 | HQ113: 1 | HS113: 1 | HT113: 1 | HW113: 1 | IB113: 1 | IC113: 1 | ID113: 1 | IE113: 1 | IH113: 1 | IJ113: 1 | IK113: 1 | IL113: 2 | IU113: 1 | IW113: 2 | IX113: 1 | JC113: 1 | JE113: 1 | JG113: 2 | JH113: 1 | JI113: 1 | JL113: 1 | JN113: 1 | JP113: 1 | JT113: 1 | JV113: 1 | JW113: 1 | JX113: 1 | KB113: 2 | KD113: 1 | KG113: 1 | KH113: 2 | KJ113: 1 | KK113: 1 | KL113: 1 | KM113: 2 | KN113: 1 | KO113: 1 | KQ113: 1 | KS113: 2 | KU113: 1 | KV113: 1 | KW113: 1 | KY113: 3 | KZ113: 3 | LB113: 1 | LD113: 2 | LI113: 1 | LK113: 2 | LL113: 1 | LM113: 3 | LN113: 3 | LO113: 1 | LP113: 6 | LQ113: 2 | LR113: 1 | LS113: 1 | LT113: 1 | LV113: 1 | LW113: 1
A114: Broad-winged Hawk | JL114: 1 | JS114: 1 | JT114: 2
A115: Short-tailed Hawk | DX115: 1 | EB115: 1 | FD115: 1 | FO115: 1 | GH115: 1 | IO115: 2
A116: Swainson's Hawk | KJ116: 1 | KU116: 1 | LE116: 1
A117: Red-tailed Hawk | F117: 1 | G117: 1 | I117: 1 | L117: 2 | N117: 1 | Z117: 1 | AT117: 1 | AV117: 2 | BD117: 1 | BE117: 1 | BI117: 1 | BN117: 1 | CQ117: 1 | CS117: 1 | DD117: 1 | DI117: 1 | EF117: 1 | FK117: 1 | GF117: 1 | GG117: 1 | HA117: 1 | HK117: 1 | HW117: 1 | IP117: 1 | JT117: 1 | JV117: 1 | KB117: 1 | KC117: 1 | KD117: 1 | KH117: 1 | KI117: 1 | KJ117: 1 | KK117: 1 | KN117: 1 | KS117: 1 | KV117: 1 | KW117: 1 | LU117: 1
A118: Golden Eagle | F118: 1 | K118: 1 | O118: 1 | AA118: 1
A119: Crested Caracara
A120: American Kestrel | D120: 1 | E120: 1 | F120: 1 | G120: 2 | H120: 1 | I120: 1 | J120: 1 | K120: 1 | L120: 1 | P120: 1 | R120: 1 | W120: 1 | X120: 1 | Z120: 1 | AA120: 1 | AC120: 1 | AI120: 1 | AJ120: 1 | AN120: 1 | AP120: 1 | AQ120: 1 | AR120: 1 | AT120: 1 | AY120: 1 | BC120: 1 | BE120: 1 | BF120: 1 | BG120: 1 | BI120: 1 | BK120: 1 | BL120: 1 | BM120: 1 | BS120: 2 | BU120: 1 | BV120: 1 | BX120: 1 | BY120: 1 | CB120: 1 | CC120: 1 | CG120: 1 | CI120: 2 | CN120: 1 | CP120: 1 | CQ120: 1 | CU120: 1 | CW120: 1 | CZ120: 1 | DD120: 2 | DU120: 1 | GV120: 1 | JN120: 1 | JQ120: 1 | JT120: 1 | JU120: 1 | JV120: 1 | JW120: 2 | KF120: 1 | KG120: 1 | KI120: 1 | KK120: 2 | KM120: 1 | KN120: 4 | KP120: 2 | KQ120: 3 | KR120: 1 | KS120: 2 | KT120: 1 | KX120: 1 | KY120: 1 | KZ120: 1 | LA120: 1 | LB120: 2 | LC120: 1 | LD120: 1 | LG120: 1 | LH120: 1 | LI120: 2 | LK120: 1 | LL120: 1 | LP120: 1 | LT120: 1 | LV120: 1 | LW120: 1
A121: Merlin | O121: 1 | U121: 1 | AK121: 1 | AN121: 1 | AW121: 1 | BC121: 1 | BU121: 1 | BV121: 1 | BW121: 1 | BZ121: 1 | CF121: 1 | CJ121: 1 | CP121: 2 | CQ121: 1 | CU121: 1 | CW121: 1 | CZ121: 1 | DA121: 1 | DC121: 2 | DE121: 2 | DF121: 2 | DI121: 1 | DP121: 1 | DY121: 1 | IV121: 1 | JG121: 1 | JH121: 3 | JI121: 2 | JN121: 2 | JO121: 3 | JQ121: 2 | JR121: 1 | JS121: 3 | JU121: 1 | JV121: 8 | JW121: 2 | JX121: 1 | JY121: 1 | JZ121: 1 | KA121: 4 | KC121: 1 | KD121: 1 | KE121: 2 | KG121: 2 | KH121: 2 | KI121: 1 | KJ121: 1 | KK121: 3 | KL121: 2 | KM121: 2 | KN121: 1 | KQ121: 2 | KR121: 1 | KS121: 1 | KT121: 1 | KU121: 1 | KV121: 1 | KX121: 1 | KY121: 1 | LK121: 1
A122: Peregrine Falcon | AC122: 1 | AO122: 1 | DI122: 1 | JG122: 1 | JN122: 1 | JR122: 7 | JS122: 35 | JT122: 13 | JU122: 10 | JV122: 14 | JW122: 9 | JX122: 3 | JY122: 3 | JZ122: 4 | KA122: 12 | KB122: 2 | KE122: 1 | KF122: 1 | KH122: 2 | KJ122: 2 | KK122: 1 | KM122: 2 | KN122: 1 | KP122: 2 | KQ122: 1 | LB122: 1
A123: Wild Turkey
A124: Clapper Rail | EB124: 1 | ET124: 1 | LT124: 1
A125: Sora | DG125: 1
A126: Common Gallinule | KC126: 1
A127: American Coot | E127: 2 | LB127: 1 | LM127: 1
A128: Limpkin
A129: Sandhill Crane | I129: 1 | AF129: 1 | AL129: 1 | BK129: 1 | BW129: 1 | DC129: 1 | EF129: 1 | EG129: 1 | EI129: 1 | EJ129: 1 | ET129: 1 | EV129: 1 | FD129: 1 | FE129: 1 | FF129: 1 | GX129: 1 | IB129: 1 | KV129: 1 | LA129: 1
A130: Black-bellied Plover | D130: 12 | E130: 13 | F130: 12 | G130: 10 | H130: 16 | I130: 16 | K130: 6 | L130: 1 | O130: 11 | P130: 9 | Q130: 6 | R130: 8 | S130: 14 | T130: 8 | U130: 9 | V130: 9 | W130: 3 | X130: 6 | Y130: 1 | Z130: 1 | AB130: 3 | AC130: 10 | AD130: 10 | AE130: 12 | AF130: 6 | AG130: 10 | AH130: 8 | AI130: 8 | AJ130: 8 | AK130: 11 | AL130: 7 | AM130: 5 | AN130: 2 | AO130: 4 | AP130: 1 | AQ130: 20 | AR130: 7 | AS130: 6 | AT130: 5 | AU130: 7 | AV130: 16 | AW130: 8 | AX130: 3 | AY130: 7 | AZ130: 8 | BA130: 8 | BB130: 4 | BC130: 8 | BF130: 1 | BJ130: 18 | BK130: 13 | BL130: 12 | BM130: 9 | BN130: 2 | BP130: 8 | BQ130: 13 | BR130: 1 | BS130: 4 | BU130: 2 | BV130: 1 | BW130: 6 | BX130: 17 | BY130: 19 | BZ130: 14 | CA130: 14 | CB130: 30 | CC130: 22 | CD130: 1 | CE130: 5 | CF130: 2 | CG130: 3 | CH130: 2 | CI130: 10 | CJ130: 18 | CK130: 23 | CL130: 26 | CM130: 12 | CN130: 24 | CO130: 7 | CP130: 10 | CQ130: 6 | CR130: 9 | CS130: 12 | CT130: 9 | CU130: 1 | CV130: 1 | CW130: 2 | CX130: 32 | CY130: 1 | CZ130: 1 | DA130: 18 | DB130: 28 | DC130: 24 | DD130: 21 | DE130: 18 | DF130: 21 | DG130: 8 | DH130: 13 | DI130: 4 | DJ130: 1 | DK130: 6 | DL130: 9 | DM130: 1 | DN130: 1 | DO130: 4 | DP130: 18 | DQ130: 19 | DR130: 1 | DS130: 5 | DT130: 21 | DU130: 4 | DV130: 8 | DW130: 4 | DX130: 4 | DY130: 1 | DZ130: 3 | EA130: 4 | EB130: 17 | EC130: 15 | ED130: 20 | EE130: 7 | EF130: 17 | EG130: 24 | EH130: 26 | EI130: 18 | EJ130: 21 | EK130: 13 | EL130: 9 | EN130: 1 | EO130: 1 | EP130: 2 | EQ130: 3 | ES130: 1 | ET130: 5 | EV130: 1 | EX130: 4 | EY130: 2 | EZ130: 1 | FF130: 2 | FG130: 2 | FH130: 1 | FJ130: 2 | FL130: 4 | FM130: 2 | FN130: 1 | FO130: 1 | GA130: 1 | GB130: 6 | GC130: 2 | GO130: 1 | HC130: 3 | HO130: 1 | HQ130: 1 | HT130: 1 | HY130: 4 | HZ130: 4 | IA130: 4 | IB130: 3 | IC130: 6 | ID130: 6 | IE130: 3 | IF130: 5 | IG130: 3 | II130: 8 | IJ130: 7 | IK130: 4 | IL130: 5 | IM130: 3 | IN130: 3 | IO130: 2 | IP130: 4 | IQ130: 3 | IR130: 5 | IS130: 5 | IU130: 3 | IV130: 1 | IZ130: 1 | JA130: 3 | JB130: 2 | JC130: 2 | JE130: 1 | JF130: 2 | JG130: 1 | JH130: 2 | JI130: 3 | JJ130: 3 | JL130: 8 | JM130: 2 | JN130: 4 | JO130: 1 | JP130: 2 | JQ130: 1 | KB130: 19 | KD130: 2 | KE130: 1 | KF130: 1 | KI130: 1 | KJ130: 2 | KK130: 1 | KL130: 2 | KM130: 2 | KN130: 2 | KO130: 1 | KP130: 2 | KQ130: 3 | KR130: 1 | KS130: 3 | KT130: 1 | KU130: 3 | KV130: 3 | KW130: 5 | KX130: 4 | KY130: 3 | KZ130: 1 | LB130: 2 | LC130: 2 | LD130: 9 | LE130: 4 | LG130: 7 | LH130: 8 | LI130: 8 | LJ130: 2 | LK130: 4 | LL130: 15 | LM130: 11 | LN130: 4 | LO130: 10 | LP130: 18 | LQ130: 34 | LR130: 13 | LS130: 33 | LT130: 19 | LU130: 12 | LV130: 10 | LW130: 14 | LX130: 7
A131: American Golden-Plover | BS131: 1 | CB131: 1 | CQ131: 1 | DR131: 1 | IO131: 1 | KM131: 1
A132: Wilson's Plover | DP132: 1 | DZ132: 1 | EK132: 1 | GZ132: 1 | HX132: 2
A133: Semipalmated Plover | U133: 1 | AA133: 5 | BV133: 2 | DE133: 8 | DF133: 1 | DL133: 1 | DO133: 2 | DP133: 10 | DQ133: 4 | DR133: 2 | DS133: 1 | DT133: 1 | DU133: 11 | DY133: 1 | EA133: 7 | EB133: 1 | EC133: 1 | ED133: 2 | EF133: 1 | EG133: 2 | EH133: 6 | EI133: 12 | EJ133: 4 | EK133: 15 | EN133: 1 | EO133: 1 | EQ133: 2 | ES133: 1 | ET133: 1 | EU133: 6 | EX133: 1 | EY133: 2 | GT133: 14 | GY133: 1 | HB133: 2 | HC133: 4 | HD133: 1 | HG133: 5 | HI133: 2 | HK133: 2 | HM133: 2 | HP133: 1 | HS133: 10 | HT133: 2 | HU133: 4 | HV133: 1 | IH133: 1 | IS133: 1 | JL133: 1 | LH133: 1 | LQ133: 1 | LT133: 1
A134: Common Ringed Plover
A135: Piping Plover | DR135: 1 | HS135: 1
A136: Killdeer | V136: 1 | Z136: 1 | AL136: 1 | AP136: 4 | AQ136: 1 | BS136: 1 | CU136: 1 | DI136: 1 | DK136: 1 | DP136: 3 | ED136: 1 | ER136: 1 | EY136: 1 | FD136: 1 | FF136: 1 | FM136: 2 | FT136: 1 | GA136: 2 | GB136: 1 | GO136: 1 | HQ136: 1 | IL136: 1 | JN136: 1 | JU136: 1 | LF136: 1 | LO136: 1
A137: American Oystercatcher | AP137: 1 | AY137: 1 | AZ137: 1 | BK137: 1 | BQ137: 1 | BY137: 1 | CD137: 2 | CG137: 1 | CM137: 1 | FJ137: 1 | FO137: 1 | GE137: 1
A138: Black-necked Stilt | BS138: 17 | EF138: 1 | EI138: 1 | EJ138: 2 | FE138: 6 | FJ138: 6 | FS138: 1 | GC138: 2 | GH138: 1 | GU138: 3 | GZ138: 1 | HA138: 1 | HG138: 2 | HJ138: 37 | HQ138: 1 | HR138: 25 | HU138: 8 | IF138: 9 | LL138: 1
A139: American Avocet | LU139: 3
A140: Greater Yellowlegs | DR140: 2 | EQ140: 2 | FR140: 1 | HS140: 1 | ID140: 1 | JE140: 1
A141: Lesser Yellowlegs | EI141: 1 | HB141: 1 | HR141: 8
A142: Solitary Sandpiper | DU142: 1 | HN142: 1 | IE142: 1 | IR142: 1 | JL142: 1
A143: Willet | D143: 3 | E143: 6 | F143: 3 | G143: 6 | H143: 18 | I143: 2 | J143: 6 | M143: 9 | N143: 7 | O143: 1 | P143: 6 | Q143: 1 | R143: 1 | S143: 2 | T143: 3 | U143: 2 | V143: 6 | W143: 2 | X143: 20 | Y143: 3 | Z143: 4 | AB143: 6 | AC143: 3 | AD143: 4 | AE143: 2 | AF143: 2 | AG143: 7 | AH143: 7 | AI143: 12 | AJ143: 2 | AK143: 1 | AM143: 5 | AN143: 2 | AO143: 2 | AP143: 3 | AQ143: 2 | AR143: 2 | AT143: 11 | AU143: 3 | AV143: 1 | AX143: 2 | AY143: 1 | AZ143: 2 | BA143: 8 | BC143: 1 | BD143: 1 | BE143: 9 | BF143: 15 | BG143: 4 | BH143: 3 | BI143: 6 | BK143: 25 | BL143: 7 | BM143: 1 | BN143: 1 | BO143: 6 | BP143: 4 | BQ143: 1 | BR143: 4 | BS143: 8 | BT143: 2 | BU143: 4 | BV143: 11 | BW143: 3 | BX143: 1 | BY143: 4 | CA143: 4 | CB143: 1 | CC143: 2 | CD143: 5 | CE143: 4 | CG143: 12 | CH143: 1 | CI143: 4 | CJ143: 1 | CK143: 12 | CL143: 10 | CM143: 2 | CN143: 10 | CO143: 2 | CP143: 7 | CQ143: 2 | CR143: 1 | CS143: 1 | CT143: 6 | CU143: 3 | CV143: 1 | CW143: 18 | CX143: 5 | CY143: 43 | CZ143: 3 | DA143: 69 | DB143: 5 | DC143: 5 | DD143: 1 | DE143: 7 | DF143: 1 | DI143: 5 | DJ143: 2 | DK143: 1 | DL143: 2 | DM143: 1 | DN143: 2 | DQ143: 5 | DR143: 7 | EF143: 1 | EP143: 1 | FO143: 1 | FQ143: 1 | GC143: 2 | GH143: 7 | GM143: 2 | GN143: 1 | GO143: 10 | GP143: 1 | GS143: 1 | GV143: 1 | HD143: 1 | HL143: 2 | HM143: 2 | HN143: 2 | HO143: 11 | HP143: 7 | HQ143: 12 | HR143: 1 | HT143: 3 | HW143: 3 | HX143: 17 | HY143: 22 | HZ143: 12 | IA143: 24 | IB143: 18 | IC143: 9 | ID143: 12 | IE143: 15 | IF143: 15 | IG143: 23 | II143: 18 | IJ143: 28 | IK143: 21 | IL143: 10 | IM143: 17 | IN143: 6 | IO143: 9 | IP143: 3 | IQ143: 3 | IS143: 6 | IV143: 1 | JA143: 1 | JI143: 1 | JM143: 1 | JN143: 1 | KI143: 34 | KL143: 20 | KM143: 12 | KP143: 215 | KQ143: 4 | KR143: 4 | KS143: 21 | KT143: 40 | KU143: 6 | KV143: 28 | KW143: 31 | KX143: 27 | KY143: 15 | KZ143: 6 | LA143: 25 | LB143: 60 | LC143: 100 | LD143: 80 | LF143: 2 | LH143: 31 | LI143: 70 | LJ143: 15 | LK143: 21 | LL143: 35 | LM143: 36 | LN143: 45 | LO143: 27 | LP143: 52 | LQ143: 122 | LR143: 108 | LS143: 275 | LT143: 24 | LU143: 45 | LV143: 112 | LW143: 47 | LX143: 10
A144: Spotted Sandpiper | F144: 1 | H144: 1 | T144: 1 | AC144: 1 | AG144: 1 | AZ144: 2 | BQ144: 1 | DD144: 1 | DO144: 1 | DU144: 2 | DW144: 1 | EA144: 1 | ED144: 1 | EF144: 3 | EN144: 1 | EO144: 1 | ET144: 1 | EY144: 1 | GP144: 1 | GV144: 1 | GY144: 3 | GZ144: 1 | HA144: 1 | HB144: 1 | HC144: 2 | HD144: 1 | HG144: 1 | HJ144: 3 | HK144: 1 | HL144: 2 | HO144: 1 | HP144: 4 | HQ144: 3 | HS144: 4 | HT144: 2 | HU144: 1 | HV144: 5 | HW144: 2 | HX144: 3 | HY144: 6 | IA144: 1 | IB144: 1 | IC144: 1 | ID144: 3 | IE144: 2 | IF144: 1 | IG144: 1 | IH144: 2 | II144: 1 | IK144: 2 | IO144: 1 | IU144: 1 | JI144: 2 | JL144: 1 | KB144: 1 | KC144: 1 | KE144: 1 | KI144: 1 | KJ144: 2 | KM144: 2 | KO144: 1 | KQ144: 1 | LB144: 1 | LC144: 1 | LD144: 1 | LG144: 1 | LH144: 2 | LI144: 1 | LJ144: 1 | LL144: 1 | LM144: 1 | LO144: 1 | LP144: 1 | LR144: 1 | LS144: 1 | LT144: 2 | LU144: 1
A145: Upland Sandpiper | CY145: 8
A146: Whimbrel | DA146: 1 | DB146: 1 | DC146: 1 | DE146: 2 | EF146: 1 | EG146: 4 | EH146: 2 | EK146: 3 | ET146: 1 | EY146: 2 | EZ146: 1 | GS146: 1 | HC146: 1
A147: Long-billed Curlew
A148: Hudsonian Godwit
A149: Marbled Godwit | EF149: 1 | KY149: 1
A150: Ruddy Turnstone | D150: 15 | E150: 15 | F150: 16 | G150: 12 | H150: 36 | I150: 19 | J150: 4 | K150: 22 | M150: 9 | N150: 15 | O150: 25 | P150: 35 | Q150: 8 | R150: 12 | S150: 16 | T150: 16 | U150: 4 | V150: 35 | W150: 12 | X150: 12 | Y150: 9 | Z150: 18 | AA150: 8 | AC150: 12 | AD150: 9 | AE150: 13 | AF150: 5 | AG150: 22 | AH150: 10 | AI150: 7 | AJ150: 9 | AK150: 12 | AL150: 10 | AM150: 11 | AN150: 5 | AO150: 13 | AP150: 16 | AQ150: 13 | AR150: 20 | AS150: 10 | AT150: 5 | AU150: 6 | AV150: 8 | AW150: 6 | AX150: 10 | AY150: 12 | AZ150: 23 | BA150: 19 | BB150: 2 | BC150: 24 | BD150: 6 | BE150: 2 | BF150: 7 | BG150: 4 | BH150: 13 | BI150: 1 | BJ150: 3 | BK150: 8 | BL150: 18 | BM150: 2 | BN150: 2 | BO150: 5 | BP150: 1 | BQ150: 12 | BS150: 4 | BT150: 5 | BU150: 2 | BV150: 2 | BW150: 1 | BX150: 23 | BY150: 21 | BZ150: 5 | CA150: 12 | CB150: 25 | CC150: 24 | CE150: 6 | CF150: 1 | CG150: 1 | CH150: 5 | CI150: 7 | CJ150: 7 | CK150: 6 | CL150: 47 | CM150: 15 | CN150: 25 | CO150: 5 | CP150: 14 | CQ150: 6 | CR150: 8 | CS150: 5 | CT150: 8 | CU150: 7 | CV150: 7 | CW150: 23 | CX150: 40 | CZ150: 12 | DA150: 37 | DB150: 11 | DC150: 26 | DD150: 38 | DE150: 32 | DF150: 21 | DG150: 15 | DH150: 4 | DI150: 11 | DJ150: 15 | DK150: 8 | DL150: 4 | DM150: 12 | DN150: 12 | DO150: 2 | DP150: 23 | DQ150: 32 | DR150: 2 | DS150: 6 | DT150: 31 | DU150: 24 | DV150: 32 | DW150: 9 | DX150: 5 | DY150: 5 | DZ150: 5 | EA150: 12 | EB150: 16 | EC150: 12 | ED150: 6 | EE150: 6 | EF150: 34 | EG150: 40 | EH150: 9 | EI150: 25 | EJ150: 8 | EK150: 11 | EL150: 15 | EM150: 5 | EN150: 9 | EO150: 3 | EP150: 2 | EQ150: 5 | EU150: 5 | EW150: 1 | FA150: 5 | FG150: 2 | FJ150: 2 | FM150: 1 | HB150: 4 | HC150: 2 | HG150: 2 | HJ150: 27 | HO150: 8 | HP150: 14 | HQ150: 1 | HR150: 6 | HS150: 4 | HT150: 30 | HU150: 6 | HV150: 12 | HW150: 22 | HY150: 9 | HZ150: 28 | IA150: 26 | IB150: 17 | IC150: 25 | ID150: 20 | IE150: 14 | IF150: 17 | IG150: 22 | II150: 18 | IJ150: 11 | IK150: 22 | IL150: 21 | IM150: 14 | IN150: 12 | IO150: 21 | IP150: 16 | IQ150: 7 | IR150: 6 | IS150: 16 | IT150: 16 | IU150: 5 | IV150: 11 | IW150: 9 | IX150: 15 | IZ150: 4 | JA150: 28 | JB150: 20 | JC150: 19 | JD150: 9 | JE150: 10 | JF150: 20 | JH150: 1 | JI150: 20 | JJ150: 16 | JL150: 25 | JM150: 22 | JN150: 23 | JO150: 9 | JP150: 6 | JQ150: 10 | JU150: 9 | KB150: 30 | KC150: 5 | KD150: 34 | KE150: 25 | KF150: 10 | KG150: 8 | KI150: 19 | KJ150: 10 | KK150: 1 | KL150: 20 | KM150: 2 | KN150: 1 | KO150: 2 | KP150: 2 | KQ150: 5 | KR150: 17 | KS150: 15 | KT150: 10 | KU150: 12 | KV150: 25 | KW150: 12 | KX150: 10 | KY150: 35 | KZ150: 2 | LA150: 12 | LB150: 7 | LC150: 30 | LD150: 22 | LE150: 5 | LG150: 25 | LH150: 25 | LI150: 85 | LJ150: 30 | LK150: 13 | LL150: 46 | LM150: 15 | LN150: 22 | LO150: 26 | LP150: 21 | LQ150: 57 | LR150: 32 | LS150: 34 | LT150: 63 | LU150: 45 | LV150: 50 | LW150: 45 | LX150: 9
A151: Red Knot | D151: 150 | E151: 230 | F151: 20 | G151: 40 | H151: 100 | I151: 140 | K151: 270 | M151: 76 | O151: 305 | P151: 120 | Q151: 280 | R151: 220 | S151: 210 | T151: 280 | U151: 330 | V151: 280 | W151: 90 | X151: 620 | Y151: 15 | Z151: 30 | AB151: 140 | AC151: 230 | AD151: 50 | AE151: 210 | AF151: 130 | AG151: 135 | AH151: 315 | AI151: 180 | AJ151: 240 | AK151: 370 | AL151: 210 | AM151: 120 | AN151: 80 | AO151: 20 | AP151: 5 | AQ151: 160 | AR151: 150 | AS151: 80 | AT151: 200 | AU151: 70 | AV151: 70 | AW151: 80 | AX151: 40 | AY151: 120 | AZ151: 130 | BA151: 120 | BB151: 80 | BC151: 130 | BH151: 15 | BJ151: 30 | BK151: 45 | BL151: 12 | BM151: 2 | BP151: 130 | BQ151: 60 | BS151: 30 | BX151: 1 | BY151: 4 | BZ151: 2 | CA151: 4 | CB151: 2 | CQ151: 1 | CW151: 40 | DB151: 12 | DF151: 2 | EF151: 1 | EG151: 2 | HS151: 2 | KL151: 16 | KN151: 6 | KW151: 5 | KX151: 5 | KY151: 5 | LB151: 2 | LD151: 5 | LG151: 50 | LH151: 60 | LI151: 70 | LJ151: 60 | LK151: 42 | LL151: 40 | LM151: 135 | LO151: 40 | LP151: 40 | LQ151: 70 | LR151: 105 | LS151: 54 | LT151: 55 | LU151: 45 | LV151: 40 | LW151: 140
A152: Sanderling | D152: 4 | E152: 20 | F152: 25 | G152: 8 | H152: 45 | I152: 2 | J152: 2 | K152: 12 | M152: 32 | N152: 40 | O152: 5 | P152: 14 | R152: 12 | S152: 12 | T152: 3 | U152: 1 | V152: 13 | W152: 7 | X152: 4 | Y152: 8 | Z152: 3 | AA152: 3 | AB152: 5 | AC152: 5 | AD152: 8 | AE152: 2 | AG152: 2 | AI152: 5 | AJ152: 3 | AK152: 21 | AM152: 5 | AN152: 6 | AO152: 4 | AP152: 4 | AQ152: 18 | AR152: 3 | AT152: 40 | AU152: 6 | AV152: 25 | AW152: 14 | AX152: 49 | AY152: 2 | AZ152: 16 | BA152: 39 | BB152: 1 | BC152: 8 | BD152: 1 | BE152: 6 | BF152: 15 | BG152: 1 | BH152: 3 | BI152: 5 | BJ152: 20 | BL152: 48 | BN152: 7 | BO152: 2 | BP152: 1 | BS152: 28 | BU152: 7 | BV152: 4 | BW152: 12 | BX152: 10 | BY152: 7 | CB152: 1 | CG152: 4 | CH152: 6 | CI152: 2 | CK152: 2 | CL152: 8 | CM152: 29 | CN152: 35 | CO152: 20 | CP152: 2 | CR152: 32 | CS152: 47 | CT152: 8 | CU152: 10 | CV152: 5 | CW152: 4 | CX152: 30 | CY152: 9 | CZ152: 6 | DA152: 13 | DB152: 60 | DC152: 30 | DD152: 3 | DE152: 60 | DF152: 20 | DG152: 30 | DH152: 8 | DI152: 41 | DJ152: 12 | DK152: 5 | DL152: 4 | DM152: 30 | DN152: 23 | DO152: 3 | DP152: 9 | DQ152: 20 | DR152: 22 | DS152: 5 | DT152: 32 | DU152: 20 | DV152: 56 | DW152: 168 | DX152: 57 | DY152: 26 | DZ152: 5 | EA152: 3 | ED152: 100 | EE152: 3 | EF152: 7 | EG152: 4 | EH152: 90 | EI152: 12 | EJ152: 1 | EK152: 87 | EL152: 4 | EM152: 8 | EN152: 2 | EO152: 3 | EP152: 1 | EQ152: 1 | ES152: 2 | GC152: 1 | HG152: 1 | HM152: 110 | HN152: 70 | HO152: 20 | HP152: 100 | HQ152: 195 | HR152: 190 | HS152: 160 | HT152: 120 | HU152: 240 | HV152: 90 | HW152: 130 | HX152: 97 | HY152: 150 | HZ152: 90 | IA152: 40 | IB152: 31 | IC152: 20 | ID152: 15 | IE152: 24 | IF152: 12 | IG152: 16 | II152: 18 | IJ152: 10 | IK152: 25 | IL152: 15 | IM152: 1 | IN152: 10 | IO152: 5 | IP152: 10 | IQ152: 30 | IR152: 3 | IS152: 14 | IT152: 4 | IV152: 8 | IW152: 2 | IX152: 7 | IY152: 4 | IZ152: 13 | JA152: 22 | JB152: 16 | JC152: 17 | JD152: 7 | JE152: 4 | JF152: 7 | JH152: 28 | JI152: 16 | JJ152: 20 | JL152: 10 | JM152: 11 | JN152: 12 | JO152: 12 | JP152: 7 | JQ152: 7 | JR152: 4 | JU152: 14 | KB152: 34 | KC152: 7 | KD152: 20 | KE152: 16 | KF152: 12 | KG152: 10 | KH152: 3 | KI152: 26 | KJ152: 18 | KK152: 12 | KL152: 24 | KM152: 30 | KN152: 22 | KO152: 60 | KP152: 16 | KQ152: 18 | KR152: 12 | KS152: 30 | KT152: 10 | KU152: 30 | KV152: 30 | KW152: 18 | KX152: 19 | KY152: 33 | KZ152: 1 | LA152: 30 | LB152: 8 | LC152: 45 | LD152: 18 | LE152: 60 | LH152: 45 | LI152: 55 | LJ152: 110 | LK152: 27 | LL152: 21 | LM152: 12 | LN152: 5 | LO152: 55 | LP152: 22 | LQ152: 66 | LR152: 80 | LS152: 85 | LT152: 14 | LU152: 35 | LV152: 50 | LW152: 30
A153: Semipalmated Sandpiper | DE153: 45 | DO153: 3 | DP153: 6 | DQ153: 1 | DR153: 7 | DT153: 20 | EA153: 10 | EB153: 170 | EC153: 110 | ED153: 210 | EE153: 20 | EF153: 480 | EG153: 320 | EH153: 280 | EI153: 680 | EJ153: 440 | EK153: 260 | EL153: 215 | EM153: 6 | EO153: 11 | EY153: 15 | GR153: 6 | GT153: 4 | GY153: 2 | GZ153: 3 | HB153: 40 | HG153: 2 | HI153: 1 | HJ153: 10 | HK153: 2 | HL153: 1 | HP153: 6 | HS153: 28 | HT153: 27 | HU153: 15 | HV153: 31 | HW153: 24 | HY153: 1 | IB153: 3 | ID153: 2 | IE153: 32 | IF153: 10 | IG153: 1 | IH153: 2 | IQ153: 3
A154: Western Sandpiper | P154: 1 | BX154: 1 | CP154: 14 | GV154: 5 | JM154: 1 | JO154: 30 | LC154: 23 | LE154: 140 | LG154: 4
A155: Least Sandpiper | DL155: 1 | DP155: 1 | DQ155: 1 | DT155: 2 | EB155: 2 | EC155: 11 | EE155: 2 | EF155: 5 | EG155: 6 | EH155: 6 | EI155: 12 | EJ155: 2 | EL155: 7 | EN155: 23 | EO155: 3 | FF155: 1 | GO155: 1 | GZ155: 1 | HJ155: 3 | HK155: 1 | HS155: 1 | HV155: 7 | HW155: 1 | ID155: 3 | IF155: 2 | IH155: 1 | JM155: 1
A156: White-rumped Sandpiper | EB156: 1 | EH156: 1 | EI156: 3 | EJ156: 3 | HT156: 1 | IE156: 1
A157: Baird's Sandpiper
A158: Pectoral Sandpiper | CL158: 1 | EC158: 1 | HA158: 1 | HR158: 4 | HT158: 3 | IB158: 1 | IC158: 1 | IE158: 8 | II158: 3 | IL158: 1 | IS158: 1 | IU158: 1 | JJ158: 13
A159: Purple Sandpiper | LL159: 3 | LS159: 3 | LV159: 4
A160: Dunlin | I160: 1 | AE160: 3 | CK160: 1 | CL160: 1 | CR160: 1 | EF160: 2 | KJ160: 6 | LE160: 3 | LI160: 15 | LP160: 7 | LQ160: 9 | LR160: 26 | LS160: 26 | LT160: 16
A161: Stilt Sandpiper | EL161: 1 | HA161: 1 | HL161: 6 | HS161: 1 | HW161: 4
A162: Buff-breasted Sandpiper | IB162: 1
A163: Ruff
A164: Short-billed Dowitcher | S164: 1 | CY164: 8 | HB164: 1 | HR164: 11 | HV164: 1 | HW164: 45 | HY164: 8 | HZ164: 1 | ID164: 3 | IE164: 10 | IF164: 5 | IG164: 6 | II164: 4 | IK164: 7 | IU164: 7
A165: Long-billed Dowitcher | AE165: 1 | CW165: 3 | JG165: 1 | LB165: 30
A166: Wilson's Snipe | AD166: 1 | AS166: 1 | CS166: 1 | KE166: 1 | KV166: 1 | LR166: 4
A167: Wilson's Phalarope | HT167: 1
A168: Red-necked Phalarope | JO168: 15 | JY168: 15
A169: Red Phalarope
A170: South Polar Skua
A171: Pomarine Jaeger | F171: 1 | AR171: 1 | JS171: 1 | KA171: 1 | LF171: 1 | LU171: 2
A172: Parasitic Jaeger | D172: 1 | F172: 2 | J172: 3 | K172: 1 | L172: 1 | N172: 8 | Q172: 3 | R172: 2 | T172: 1 | U172: 1 | V172: 2 | X172: 1 | AA172: 1 | AI172: 4 | AJ172: 5 | AK172: 1 | AM172: 1 | AQ172: 1 | AR172: 2 | AT172: 1 | AU172: 1 | AV172: 1 | AW172: 1 | AX172: 1 | BT172: 1 | BX172: 1 | CH172: 1 | IY172: 2 | IZ172: 1 | JO172: 1 | KA172: 2 | KG172: 2 | KO172: 1 | KS172: 1 | KZ172: 1 | LE172: 1 | LU172: 1 | LW172: 2 | LX172: 1
A173: Long-tailed Jaeger | IY173: 1 | JO173: 1 | KP173: 1
A174: Laughing Gull | D174: 960 | E174: 420 | F174: 990 | G174: 40 | H174: 62 | I174: 850 | J174: 18 | K174: 1510 | L174: 39 | M174: 240 | N174: 830 | O174: 10 | P174: 210 | Q174: 33 | R174: 47 | S174: 5 | T174: 70 | U174: 6 | V174: 320 | W174: 8 | X174: 640 | Y174: 3 | Z174: 73 | AA174: 45 | AB174: 345 | AC174: 760 | AD174: 575 | AE174: 42 | AF174: 260 | AG174: 50 | AH174: 430 | AI174: 24 | AJ174: 290 | AK174: 380 | AL174: 10 | AM174: 1480 | AN174: 1020 | AO174: 14 | AP174: 2950 | AQ174: 830 | AR174: 80 | AS174: 12 | AT174: 1150 | AU174: 1350 | AV174: 970 | AW174: 100 | AX174: 660 | AY174: 20 | AZ174: 35 | BA174: 210 | BB174: 5 | BC174: 450 | BD174: 390 | BE174: 170 | BF174: 1130 | BG174: 110 | BH174: 490 | BI174: 1400 | BJ174: 140 | BK174: 60 | BL174: 535 | BM174: 460 | BN174: 260 | BO174: 85 | BP174: 290 | BQ174: 180 | BR174: 100 | BS174: 565 | BT174: 4150 | BU174: 20 | BV174: 50 | BW174: 620 | BX174: 90 | BY174: 115 | BZ174: 165 | CA174: 40 | CB174: 31 | CC174: 13 | CD174: 4 | CE174: 17 | CF174: 30 | CG174: 27 | CH174: 410 | CI174: 350 | CJ174: 1200 | CK174: 230 | CL174: 40 | CM174: 46 | CN174: 31 | CO174: 6 | CP174: 12 | CQ174: 30 | CR174: 27 | CS174: 9 | CT174: 4 | CU174: 8 | CV174: 3 | CW174: 160 | CX174: 130 | CY174: 58 | CZ174: 9 | DA174: 47 | DB174: 10 | DC174: 9 | DD174: 2 | DE174: 19 | DF174: 1 | DG174: 2 | DH174: 3 | DI174: 5 | DJ174: 2 | DK174: 2 | DM174: 4 | DN174: 43 | DO174: 2 | DP174: 4 | DQ174: 4 | DR174: 6 | DS174: 3 | DT174: 1 | DU174: 1 | DV174: 3 | DW174: 6 | DX174: 3 | DY174: 7 | DZ174: 1 | EA174: 9 | EB174: 9 | EC174: 2 | ED174: 1 | EE174: 2 | EF174: 3 | EG174: 16 | EH174: 11 | EI174: 3 | EJ174: 1 | EK174: 8 | EL174: 5 | EM174: 14 | EN174: 7 | EO174: 32 | EP174: 46 | EQ174: 25 | ER174: 18 | ES174: 42 | ET174: 39 | EU174: 29 | EV174: 12 | EW174: 11 | EX174: 15 | EY174: 47 | EZ174: 20 | FA174: 10 | FB174: 107 | FC174: 2 | FD174: 16 | FE174: 31 | FF174: 46 | FG174: 56 | FH174: 10 | FK174: 4 | FL174: 11 | FM174: 2 | FN174: 38 | FO174: 18 | FP174: 11 | FQ174: 17 | FR174: 13 | FS174: 4 | FT174: 11 | FU174: 14 | FX174: 1 | FY174: 3 | GA174: 2 | GB174: 80 | GC174: 5 | GD174: 1 | GF174: 1 | GH174: 19 | GI174: 3 | GL174: 1 | GM174: 2 | GO174: 30 | GP174: 6 | GR174: 2 | GS174: 1 | GU174: 5 | GW174: 3 | GY174: 51 | GZ174: 55 | HA174: 29 | HB174: 20 | HC174: 50 | HD174: 19 | HG174: 42 | HH174: 26 | HI174: 54 | HJ174: 47 | HK174: 214 | HL174: 154 | HM174: 45 | HN174: 7 | HO174: 10 | HP174: 52 | HQ174: 371 | HR174: 369 | HS174: 353 | HT174: 376 | HU174: 57 | HV174: 29 | HW174: 64 | HX174: 160 | HY174: 41 | HZ174: 48 | IA174: 21 | IB174: 29 | IC174: 40 | ID174: 635 | IE174: 395 | IF174: 1090 | IG174: 310 | IH174: 18 | II174: 80 | IJ174: 61 | IK174: 19 | IL174: 46 | IM174: 35 | IN174: 13 | IO174: 34 | IP174: 22 | IQ174: 46 | IR174: 37 | IS174: 52 | IT174: 136 | IU174: 22 | IV174: 9 | IW174: 11 | IX174: 30 | IY174: 80 | IZ174: 212 | JA174: 48 | JB174: 32 | JC174: 20 | JD174: 7 | JE174: 138 | JF174: 102 | JG174: 17 | JH174: 306 | JI174: 16 | JJ174: 282 | JL174: 25 | JM174: 45 | JN174: 77 | JO174: 638 | JP174: 25 | JQ174: 9 | JR174: 9 | JS174: 4 | JT174: 64 | JU174: 25 | JV174: 340 | JW174: 12 | JX174: 280 | JY174: 295 | JZ174: 14 | KA174: 274 | KB174: 30 | KC174: 114 | KD174: 1500 | KE174: 663 | KF174: 2400 | KG174: 180 | KH174: 930 | KI174: 67 | KJ174: 410 | KK174: 50 | KL174: 37 | KM174: 87 | KN174: 116 | KO174: 61 | KP174: 455 | KQ174: 240 | KR174: 64 | KS174: 550 | KT174: 35 | KU174: 95 | KV174: 90 | KW174: 50 | KX174: 81 | KY174: 110 | KZ174: 250 | LA174: 14 | LB174: 82 | LC174: 94 | LD174: 222 | LE174: 410 | LF174: 890 | LG174: 112 | LH174: 175 | LI174: 210 | LJ174: 340 | LK174: 176 | LL174: 160 | LM174: 457 | LN174: 430 | LO174: 556 | LP174: 330 | LQ174: 146 | LR174: 465 | LS174: 790 | LT174: 960 | LU174: 1120 | LV174: 480 | LW174: 2600 | LX174: 1330
A175: Franklin's Gull | W175: 1
A176: Black-headed Gull
A177: Little Gull
A178: Bonaparte's Gull | G178: 1 | N178: 1 | O178: 1 | P178: 1 | R178: 2 | X178: 1 | Y178: 16 | Z178: 4 | AA178: 1 | AB178: 6 | AC178: 8 | AE178: 2 | AF178: 7 | AG178: 1 | AH178: 4 | AI178: 1 | AK178: 8 | AL178: 1 | AM178: 2 | AN178: 2 | AO178: 3 | AR178: 1 | AU178: 11 | AV178: 1 | AW178: 1 | BC178: 1 | BD178: 1 | BG178: 1 | BJ178: 2 | BL178: 1 | BM178: 1 | BN178: 1 | BQ178: 1 | CE178: 5 | CI178: 1 | CK178: 1 | CY178: 1 | LU178: 2 | LX178: 2
A179: Ring-billed Gull | D179: 59 | E179: 48 | F179: 71 | G179: 62 | H179: 53 | I179: 69 | J179: 11 | K179: 60 | L179: 6 | M179: 39 | N179: 22 | O179: 10 | P179: 57 | Q179: 5 | R179: 16 | S179: 38 | T179: 20 | U179: 20 | V179: 76 | W179: 16 | X179: 8 | Y179: 17 | Z179: 58 | AA179: 16 | AB179: 20 | AC179: 14 | AD179: 19 | AE179: 29 | AF179: 37 | AG179: 11 | AH179: 14 | AI179: 20 | AJ179: 26 | AK179: 18 | AL179: 11 | AM179: 14 | AN179: 10 | AO179: 34 | AP179: 43 | AQ179: 23 | AR179: 31 | AS179: 9 | AT179: 14 | AU179: 13 | AV179: 12 | AW179: 12 | AX179: 26 | AY179: 15 | AZ179: 10 | BA179: 5 | BB179: 14 | BC179: 19 | BD179: 11 | BE179: 14 | BF179: 18 | BG179: 11 | BH179: 13 | BI179: 5 | BJ179: 11 | BK179: 20 | BL179: 18 | BM179: 21 | BN179: 1 | BO179: 16 | BP179: 12 | BQ179: 3 | BR179: 7 | BS179: 13 | BT179: 12 | BU179: 6 | BV179: 6 | BW179: 19 | BX179: 11 | BY179: 7 | BZ179: 9 | CA179: 4 | CB179: 8 | CC179: 9 | CD179: 1 | CE179: 4 | CF179: 7 | CG179: 4 | CH179: 6 | CI179: 6 | CJ179: 5 | CK179: 7 | CL179: 5 | CM179: 14 | CN179: 6 | CO179: 2 | CP179: 4 | CQ179: 1 | CR179: 1 | CS179: 2 | CT179: 2 | CU179: 1 | CV179: 4 | CW179: 5 | CX179: 2 | CY179: 4 | CZ179: 6 | DA179: 6 | DB179: 3 | DC179: 3 | DD179: 1 | DF179: 1 | DG179: 1 | DH179: 3 | DI179: 2 | DJ179: 1 | DN179: 1 | DR179: 1 | EE179: 1 | HX179: 1 | JT179: 2 | KK179: 1 | KN179: 1 | KP179: 1 | KQ179: 1 | KR179: 1 | KX179: 1 | KZ179: 1 | LB179: 2 | LC179: 2 | LD179: 3 | LE179: 9 | LF179: 19 | LG179: 2 | LH179: 5 | LI179: 11 | LJ179: 2 | LK179: 3 | LL179: 6 | LM179: 54 | LN179: 3 | LO179: 23 | LP179: 10 | LQ179: 5 | LR179: 21 | LS179: 26 | LT179: 30 | LU179: 20 | LV179: 31 | LW179: 52 | LX179: 105
A180: California Gull
A181: Herring Gull | D181: 9 | E181: 8 | F181: 74 | G181: 2 | H181: 2 | I181: 9 | J181: 1 | K181: 750 | L181: 2 | N181: 25 | O181: 240 | P181: 7 | Q181: 3 | R181: 1 | T181: 4 | V181: 126 | W181: 4 | X181: 154 | Y181: 10 | Z181: 25 | AA181: 8 | AB181: 17 | AC181: 5 | AD181: 600 | AE181: 1 | AF181: 4 | AG181: 5 | AH181: 5 | AI181: 1 | AK181: 4 | AM181: 9 | AN181: 10 | AP181: 350 | AQ181: 8 | AR181: 4 | AS181: 2 | AT181: 19 | AU181: 2 | AV181: 60 | AW181: 1 | AX181: 10 | AY181: 1 | AZ181: 5 | BA181: 1 | BB181: 2 | BC181: 7 | BD181: 6 | BE181: 13 | BF181: 3 | BG181: 16 | BH181: 1 | BI181: 3 | BJ181: 2 | BK181: 2 | BL181: 7 | BM181: 6 | BN181: 9 | BO181: 4 | BP181: 9 | BQ181: 4 | BR181: 5 | BS181: 5 | BT181: 93 | BV181: 3 | BW181: 7 | BY181: 3 | BZ181: 2 | CB181: 2 | CH181: 5 | CI181: 7 | CJ181: 760 | CK181: 65 | CL181: 3 | CM181: 4 | CN181: 1 | CP181: 1 | CQ181: 1 | CR181: 1 | CS181: 1 | CT181: 1 | CU181: 1 | CV181: 1 | CW181: 3 | CX181: 2 | CY181: 1 | CZ181: 1 | DA181: 4 | DB181: 1 | DC181: 1 | DD181: 1 | DI181: 1 | DN181: 1 | JV181: 1 | JY181: 1 | JZ181: 1 | KA181: 27 | KB181: 30 | KC181: 1 | KD181: 1 | KE181: 3 | KF181: 35 | KH181: 4 | KJ181: 2 | KK181: 2 | KL181: 6 | KM181: 1 | KN181: 1 | KO181: 1 | KP181: 57 | KR181: 19 | KS181: 68 | KT181: 5 | KU181: 2 | KV181: 2 | KX181: 1 | KY181: 1 | KZ181: 5 | LA181: 1 | LB181: 2 | LD181: 7 | LE181: 13 | LF181: 26 | LG181: 20 | LH181: 5 | LI181: 4 | LJ181: 11 | LK181: 15 | LL181: 12 | LM181: 18 | LN181: 9 | LO181: 11 | LP181: 8 | LR181: 10 | LS181: 7 | LT181: 7 | LU181: 8 | LV181: 10 | LW181: 32 | LX181: 52
A182: Iceland Gull
A183: Lesser Black-backed Gull | K183: 3 | S183: 1 | V183: 3 | X183: 16 | Y183: 1 | AB183: 1 | AF183: 1 | AK183: 3 | AP183: 8 | AQ183: 1 | AT183: 9 | AV183: 3 | BG183: 1 | BT183: 9 | BY183: 2 | BZ183: 1 | CJ183: 84 | CK183: 2 | CP183: 5 | DE183: 1 | IE183: 1 | IY183: 1 | JO183: 1 | JR183: 1 | JY183: 2 | JZ183: 2 | KA183: 3 | KF183: 1 | KN183: 1 | KP183: 2 | KR183: 1 | KS183: 1 | KZ183: 2 | LA183: 1 | LH183: 1 | LM183: 1 | LT183: 1 | LX183: 4
A184: Glaucous Gull | N184: 1 | CJ184: 1
A185: Great Black-backed Gull | F185: 1 | V185: 1 | X185: 3 | AA185: 1 | AP185: 2 | BT185: 2 | CJ185: 1 | CP185: 1 | KR185: 1 | KY185: 1 | LX185: 1
A186: Sabine's Gull | IY186: 1 | KA186: 1
A187: Black-legged Kittiwake | LF187: 1
A188: Gull-billed Tern | CY188: 1 | DR188: 1 | EA188: 1 | GY188: 3 | HK188: 2 | HL188: 2 | HM188: 2 | HN188: 3 | HP188: 2 | HR188: 3 | HU188: 2 | HZ188: 1 | KB188: 1
A189: Caspian Tern | O189: 1 | AU189: 1 | BR189: 2 | CW189: 1 | DJ189: 1 | DS189: 1 | FQ189: 1 | HM189: 1 | HT189: 1 | IG189: 1 | JB189: 1 | JE189: 1 | JF189: 1 | JO189: 1 | JS189: 3 | JV189: 1 | JW189: 2 | KP189: 3 | LD189: 1 | LT189: 1 | LU189: 4
A190: Royal Tern | D190: 36 | E190: 9 | F190: 19 | G190: 28 | H190: 18 | I190: 39 | J190: 36 | K190: 41 | L190: 36 | M190: 42 | N190: 21 | O190: 101 | P190: 17 | Q190: 135 | R190: 49 | S190: 12 | T190: 195 | U190: 33 | V190: 9 | W190: 53 | X190: 43 | Y190: 2 | Z190: 11 | AA190: 8 | AB190: 410 | AC190: 80 | AD190: 19 | AE190: 12 | AF190: 18 | AG190: 75 | AH190: 23 | AI190: 18 | AJ190: 32 | AK190: 47 | AL190: 6 | AM190: 15 | AN190: 14 | AP190: 23 | AQ190: 6 | AR190: 5 | AS190: 1 | AT190: 10 | AU190: 41 | AV190: 112 | AW190: 12 | AX190: 31 | AY190: 57 | AZ190: 20 | BA190: 19 | BB190: 7 | BC190: 13 | BD190: 15 | BE190: 59 | BF190: 4 | BG190: 24 | BH190: 15 | BI190: 1 | BJ190: 15 | BK190: 2 | BL190: 11 | BM190: 26 | BN190: 13 | BO190: 18 | BP190: 47 | BQ190: 8 | BR190: 56 | BS190: 33 | BT190: 18 | BU190: 10 | BV190: 6 | BW190: 12 | BX190: 19 | BY190: 6 | BZ190: 4 | CA190: 35 | CB190: 10 | CC190: 5 | CD190: 8 | CE190: 2 | CF190: 11 | CG190: 4 | CH190: 7 | CI190: 25 | CJ190: 6 | CK190: 25 | CL190: 6 | CM190: 11 | CN190: 11 | CO190: 9 | CP190: 3 | CQ190: 10 | CR190: 19 | CS190: 8 | CT190: 1 | CU190: 10 | CV190: 1 | CW190: 16 | CX190: 27 | CY190: 34 | CZ190: 15 | DA190: 10 | DB190: 10 | DC190: 4 | DD190: 4 | DE190: 9 | DF190: 1 | DG190: 2 | DH190: 8 | DI190: 8 | DJ190: 2 | DL190: 1 | DM190: 14 | DN190: 28 | DO190: 1 | DP190: 4 | DQ190: 2 | DR190: 28 | DS190: 6 | DT190: 6 | DV190: 2 | DW190: 1 | DX190: 2 | DY190: 1 | DZ190: 1 | EA190: 4 | EB190: 5 | EC190: 5 | ED190: 7 | EE190: 8 | EF190: 4 | EG190: 2 | EH190: 5 | EI190: 1 | EL190: 1 | EO190: 1 | EP190: 7 | EQ190: 5 | ES190: 2 | EU190: 5 | EV190: 5 | EW190: 2 | EX190: 2 | EY190: 11 | EZ190: 1 | FB190: 4 | FC190: 2 | FD190: 2 | FE190: 1 | FF190: 6 | FG190: 3 | FK190: 17 | FL190: 1 | FN190: 3 | FP190: 2 | FQ190: 2 | FR190: 1 | FS190: 1 | FT190: 8 | FU190: 7 | FV190: 3 | FW190: 6 | FY190: 24 | GA190: 32 | GB190: 42 | GC190: 25 | GD190: 9 | GE190: 4 | GF190: 2 | GG190: 11 | GH190: 28 | GI190: 10 | GL190: 2 | GM190: 13 | GN190: 8 | GO190: 1 | GP190: 4 | GQ190: 5 | GR190: 3 | GS190: 1 | GT190: 1 | GU190: 6 | GV190: 2 | GY190: 3 | GZ190: 14 | HA190: 14 | HB190: 8 | HC190: 17 | HD190: 12 | HG190: 13 | HH190: 8 | HI190: 10 | HJ190: 19 | HK190: 14 | HL190: 20 | HM190: 27 | HN190: 6 | HO190: 5 | HP190: 39 | HQ190: 38 | HR190: 7 | HS190: 14 | HT190: 9 | HU190: 10 | HV190: 18 | HW190: 8 | HX190: 3 | HY190: 5 | HZ190: 49 | IA190: 20 | IB190: 13 | IC190: 10 | ID190: 15 | IE190: 10 | IF190: 38 | IG190: 18 | IH190: 9 | II190: 12 | IJ190: 3 | IK190: 5 | IL190: 3 | IM190: 71 | IN190: 1 | IO190: 5 | IP190: 7 | IQ190: 7 | IR190: 8 | IS190: 12 | IT190: 18 | IU190: 10 | IV190: 15 | IW190: 8 | IX190: 4 | IY190: 88 | IZ190: 31 | JA190: 1 | JB190: 1 | JC190: 3 | JD190: 6 | JE190: 3 | JF190: 2 | JG190: 5 | JH190: 6 | JI190: 4 | JJ190: 5 | JN190: 2 | JO190: 59 | JP190: 6 | JQ190: 5 | JR190: 2 | JS190: 10 | JT190: 3 | JU190: 3 | JV190: 1 | JW190: 1 | JX190: 10 | JY190: 255 | JZ190: 2 | KA190: 22 | KB190: 14 | KC190: 3 | KD190: 3 | KE190: 9 | KF190: 1 | KG190: 4 | KI190: 2 | KJ190: 1 | KK190: 2 | KM190: 2 | KN190: 2 | KO190: 17 | KP190: 123 | KQ190: 10 | KR190: 2 | KS190: 4 | KT190: 1 | KU190: 1 | KV190: 1 | KW190: 3 | KX190: 3 | KY190: 5 | KZ190: 7 | LA190: 10 | LB190: 10 | LC190: 39 | LD190: 24 | LE190: 4 | LF190: 1 | LH190: 3 | LJ190: 4 | LK190: 3 | LL190: 8 | LM190: 6 | LN190: 4 | LO190: 19 | LP190: 3 | LQ190: 7 | LR190: 17 | LS190: 20 | LT190: 3 | LU190: 14 | LV190: 8 | LW190: 4 | LX190: 6
A191: Sandwich Tern | D191: 11 | E191: 8 | F191: 10 | G191: 9 | H191: 3 | I191: 7 | J191: 40 | K191: 19 | L191: 9 | M191: 5 | N191: 1 | O191: 12 | P191: 4 | Q191: 77 | R191: 88 | T191: 65 | U191: 5 | V191: 2 | W191: 14 | X191: 3 | Z191: 5 | AA191: 4 | AB191: 185 | AC191: 25 | AD191: 7 | AE191: 3 | AF191: 2 | AG191: 5 | AH191: 7 | AI191: 5 | AJ191: 7 | AK191: 1 | AM191: 3 | AN191: 7 | AP191: 1 | AQ191: 2 | AR191: 1 | AS191: 1 | AT191: 5 | AU191: 1 | AV191: 4 | AX191: 2 | AY191: 13 | AZ191: 1 | BA191: 2 | BB191: 1 | BC191: 3 | BD191: 2 | BE191: 10 | BF191: 1 | BG191: 4 | BJ191: 1 | BL191: 2 | BM191: 10 | BN191: 6 | BP191: 17 | BQ191: 4 | BR191: 12 | BS191: 6 | BT191: 6 | BU191: 27 | BV191: 1 | BW191: 3 | BX191: 1 | CA191: 1 | CB191: 2 | CD191: 2 | CF191: 2 | CG191: 1 | CI191: 7 | CK191: 4 | CW191: 6 | CX191: 5 | CY191: 3 | DA191: 1 | DB191: 1 | DE191: 3 | DH191: 1 | DN191: 2 | DR191: 1 | DW191: 1 | EA191: 1 | ED191: 1 | FB191: 1 | GN191: 1 | GZ191: 4 | HG191: 1 | HH191: 1 | HJ191: 1 | HL191: 2 | HY191: 1 | HZ191: 3 | IA191: 1 | IH191: 1 | IM191: 3 | IO191: 1 | IS191: 2 | IV191: 2 | IY191: 9 | IZ191: 3 | JE191: 2 | JG191: 1 | JO191: 4 | JS191: 2 | JW191: 2 | JX191: 2 | JY191: 5 | KA191: 1 | KB191: 1 | KC191: 1 | KD191: 1 | KE191: 1 | KP191: 8 | KV191: 1 | KX191: 1 | LB191: 2 | LG191: 1 | LI191: 2 | LL191: 1 | LN191: 1 | LP191: 6 | LQ191: 7 | LR191: 2 | LS191: 2 | LU191: 4 | LV191: 3 | LW191: 2 | LX191: 1
A192: Roseate Tern | CW192: 1 | HP192: 1
A193: Common Tern | BM193: 2 | BP193: 4 | CA193: 1 | CE193: 4 | CI193: 11 | CK193: 17 | CN193: 3 | CX193: 3 | DA193: 1 | DE193: 2 | DG193: 1 | DN193: 6 | DS193: 1 | DW193: 1 | FG193: 2 | HI193: 1 | HJ193: 1 | HK193: 8 | HL193: 6 | HV193: 3 | HW193: 4 | HY193: 2 | HZ193: 38 | IA193: 3 | IB193: 1 | ID193: 1 | IE193: 3 | IK193: 6 | IM193: 49 | IN193: 1 | IO193: 4 | IR193: 12 | IS193: 4 | IU193: 6 | IY193: 13 | IZ193: 60 | JE193: 3 | JO193: 28 | JS193: 1 | JX193: 7 | JY193: 5 | KC193: 2 | KP193: 2 | KU193: 1 | LH193: 3 | LM193: 5
A194: Arctic Tern | IY194: 1
A195: Forster's Tern | D195: 10 | E195: 13 | F195: 33 | G195: 6 | I195: 4 | J195: 17 | K195: 13 | L195: 84 | M195: 18 | N195: 14 | O195: 13 | P195: 11 | Q195: 35 | R195: 49 | S195: 33 | T195: 27 | U195: 27 | V195: 14 | W195: 26 | X195: 17 | Y195: 4 | Z195: 1 | AA195: 3 | AB195: 64 | AC195: 119 | AD195: 61 | AE195: 45 | AF195: 15 | AG195: 54 | AH195: 48 | AI195: 100 | AJ195: 22 | AK195: 221 | AM195: 1 | AN195: 3 | AO195: 10 | AP195: 1 | AQ195: 7 | AR195: 1 | AS195: 5 | AT195: 2 | AU195: 2 | AV195: 2 | AW195: 6 | AX195: 3 | AY195: 12 | AZ195: 2 | BA195: 6 | BB195: 52 | BC195: 315 | BD195: 40 | BE195: 22 | BF195: 3 | BG195: 14 | BH195: 40 | BI195: 1 | BJ195: 2 | BK195: 3 | BL195: 2 | BM195: 23 | BN195: 8 | BO195: 3 | BP195: 6 | BQ195: 3 | BR195: 2 | BS195: 10 | BT195: 26 | BU195: 7 | BY195: 1 | BZ195: 2 | CE195: 3 | CF195: 3 | CH195: 2 | CW195: 1 | DB195: 2 | EA195: 1 | FT195: 1 | HM195: 1 | IG195: 1 | JS195: 1 | KK195: 1 | KX195: 2 | LC195: 4 | LI195: 6 | LK195: 2 | LL195: 1 | LM195: 5 | LN195: 1 | LO195: 7 | LP195: 5 | LQ195: 20 | LR195: 18 | LS195: 16 | LT195: 5 | LU195: 14 | LV195: 14 | LW195: 1 | LX195: 28
A196: Least Tern | CK196: 1 | CN196: 1 | CP196: 2 | CQ196: 2 | CR196: 1 | CS196: 7 | CT196: 6 | CU196: 4 | CV196: 6 | CW196: 19 | CX196: 22 | CY196: 13 | CZ196: 4 | DA196: 14 | DB196: 30 | DC196: 30 | DD196: 15 | DE196: 17 | DF196: 15 | DG196: 25 | DH196: 30 | DI196: 30 | DJ196: 20 | DK196: 39 | DL196: 30 | DM196: 25 | DN196: 25 | DO196: 30 | DP196: 52 | DQ196: 50 | DR196: 50 | DS196: 50 | DT196: 50 | DU196: 50 | DV196: 50 | DW196: 50 | DX196: 50 | DY196: 50 | DZ196: 50 | EA196: 50 | EB196: 50 | EC196: 50 | ED196: 50 | EE196: 50 | EF196: 50 | EG196: 50 | EH196: 50 | EI196: 50 | EJ196: 50 | EK196: 50 | EL196: 50 | EM196: 50 | EN196: 50 | EO196: 60 | EP196: 60 | EQ196: 60 | ER196: 60 | ES196: 60 | ET196: 60 | EU196: 60 | EV196: 60 | EW196: 60 | EX196: 60 | EY196: 10 | EZ196: 6 | FA196: 6 | FB196: 6 | FC196: 2 | FD196: 2 | FE196: 4 | FF196: 1 | FG196: 2 | FL196: 3 | FO196: 3 | FQ196: 1 | FS196: 3 | GA196: 1 | GB196: 6 | GC196: 2 | GE196: 1 | GG196: 1 | GH196: 1 | GN196: 4 | GR196: 2 | GT196: 2 | GZ196: 4 | HA196: 2 | HB196: 3 | HG196: 2 | HH196: 2 | HI196: 4 | HJ196: 14 | HK196: 20 | HL196: 7 | HN196: 8 | HO196: 4 | HP196: 8 | HQ196: 13 | HR196: 7 | HS196: 3 | HT196: 4 | HU196: 4 | HV196: 2 | HZ196: 2 | IC196: 3 | ID196: 2 | IF196: 2 | IG196: 2 | II196: 2 | IJ196: 2 | IM196: 5 | IO196: 3 | IY196: 1 | IZ196: 1
A197: Bridled Tern | IM197: 1
A198: Sooty Tern | IM198: 2 | IY198: 1 | LN198: 1
A199: Black Tern | DR199: 1 | DZ199: 1 | HI199: 3 | HJ199: 5 | HL199: 4 | HN199: 1 | HV199: 1 | HX199: 9 | HZ199: 17 | IA199: 9 | IF199: 4 | IG199: 1 | II199: 6 | IJ199: 1 | IL199: 3 | IM199: 20 | IN199: 1 | IO199: 1 | IQ199: 4 | IR199: 95 | IS199: 334 | IT199: 4 | IU199: 169 | IV199: 1 | IW199: 10 | IY199: 30 | IZ199: 79 | JA199: 6 | JC199: 2 | JE199: 1235 | JF199: 11 | JH199: 59 | JI199: 6 | JJ199: 6 | JL199: 11 | JM199: 5 | JN199: 7 | JO199: 29 | JP199: 1 | JS199: 2 | JY199: 1
A200: Brown Noddy
A201: Black Skimmer | E201: 1 | F201: 15 | G201: 14 | H201: 7 | I201: 3 | J201: 1 | M201: 1 | N201: 12 | O201: 11 | P201: 4 | Q201: 11 | R201: 3 | S201: 3 | T201: 14 | U201: 19 | V201: 43 | W201: 2 | X201: 32 | Y201: 45 | Z201: 11 | AA201: 75 | AB201: 35 | AC201: 17 | AD201: 9 | AE201: 13 | AF201: 8 | AG201: 1 | AI201: 3 | AJ201: 8 | AK201: 58 | AL201: 1 | AM201: 7 | AN201: 6 | AO201: 13 | AP201: 8 | AQ201: 5 | AR201: 3 | AS201: 1 | AU201: 2 | AV201: 35 | AW201: 38 | AY201: 8 | AZ201: 2 | BA201: 1 | BB201: 1 | BC201: 1 | BD201: 1 | BE201: 5 | BF201: 11 | BG201: 1 | BH201: 14 | BI201: 19 | BJ201: 7 | BK201: 7 | BL201: 21 | BM201: 1 | BP201: 9 | BR201: 8 | BS201: 8 | BT201: 1 | BU201: 21 | BV201: 2 | BW201: 1 | BX201: 2 | CB201: 1 | CC201: 1 | CE201: 2 | CI201: 1 | CP201: 8 | CR201: 9 | DA201: 4 | DB201: 7 | DE201: 7 | DF201: 1 | DQ201: 2 | EG201: 10 | EV201: 1 | FD201: 3 | FM201: 1 | FN201: 1 | GL201: 6 | GO201: 1 | GV201: 2 | HC201: 1 | HG201: 2 | HK201: 2 | HT201: 3 | IE201: 9 | IL201: 1 | IM201: 3 | IW201: 1 | IZ201: 6 | JA201: 4 | JI201: 3 | JJ201: 4 | JS201: 1 | KQ201: 1 | LP201: 1 | LT201: 9
A202: Dovekie
... 385 more rows

Sheet 2024
A1: No. 2 TOM RENICK COUNTY PARK SPREADSHEET
G3: 2712 | H3: 2713 | I3: 2714 | J3: 2715 | K3: 2716 | L3: 2717 | M3: 2718 | N3: 2719 | O3: 2720 | P3: 2721 | Q3: 2722 | R3: 2723 | S3: 2724 | T3: 2725 | U3: 2726 | V3: 2727 | W3: 2728 | X3: 2729 | Y3: 2730 | Z3: 2731 | AA3: 2732 | AB3: 2733 | AC3: 2734 | AD3: 2735 | AE3: 2736 | AF3: 2737 | AG3: 2738 | AH3: 2739 | AI3: 2740 | AJ3: 2741 | AK3: 2742 | AL3: 2743 | AM3: 2744 | AN3: 2745 | AO3: 2746 | AP3: 2747 | AQ3: 2748 | AR3: 2749 | AS3: 2750 | AT3: 2751 | AU3: 2752 | AV3: 2753 | AW3: 2754 | AX3: 2755 | AY3: 2756 | AZ3: 2757 | BA3: 2758 | BB3: 2759 | BC3: 2760 | BD3: 2761 | BE3: 2762 | BF3: 2763 | BG3: 2764 | BH3: 2765 | BI3: 2766 | BJ3: 2767 | BK3: 2768 | BL3: 2769 | BM3: 2770 | BN3: 2771 | BO3: 2772 | BP3: 2773 | BQ3: 2774 | BR3: 2775 | BS3: 2776 | BT3: 2777 | BU3: 2778 | BV3: 2779 | BW3: 2780 | BX3: 2781 | BY3: 2782 | BZ3: 2783 | CA3: 2784 | CB3: 2785 | CC3: 2786 | CD3: 2787 | CE3: 2788 | CF3: 2789 | CG3: 2790 | CH3: 2791 | CI3: 2792 | CJ3: 2793 | CK3: 2794 | CL3: 2795 | CM3: 2796 | CN3: 2797 | CO3: 2798 | CP3: 2799 | CQ3: 2800 | CR3: 2801 | CS3: 2802 | CT3: 2803 | CU3: 2804 | CV3: 2805 | CW3: 2806 | CX3: 2807 | CY3: 2808 | CZ3: 2809 | DA3: 2810 | DB3: 2811 | DC3: 2812 | DD3: 2813 | DE3: 2814 | DF3: 2815 | DG3: 2816 | DH3: 2817 | DI3: 2818 | DJ3: 2819 | DK3: 2820 | DL3: 2821 | DM3: 2822 | DN3: 2823 | DO3: 2824 | DP3: 2825 | DQ3: 2826 | DR3: 2827 | DS3: 2828 | DT3: 2829 | DU3: 2830 | DV3: 2831 | DW3: 2832 | DX3: 2833 | DY3: 2834 | DZ3: 2835 | EA3: 2836 | EB3: 2837 | EC3: 2838 | ED3: 2839 | EE3: 2840 | EF3: 2841 | EG3: 2842 | EH3: 2843 | EI3: 2844 | EJ3: 2845 | EK3: 2846 | EL3: 2847 | EM3: 2848 | EN3: 2849 | EO3: 2850 | EP3: 2851 | EQ3: 2852 | ER3: 2853 | ES3: 2854 | ET3: 2855 | EU3: 2856 | EV3: 2857 | EW3: 2858 | EX3: 2859 | EY3: 2860 | EZ3: 2861 | FA3: 2862 | FB3: 2863 | FC3: 2864 | FD3: 2865 | FE3: 2866 | FF3: 2867 | FG3: 2868 | FH3: 2869 | FI3: 2870 | FJ3: 2871 | FK3: 2872 | FL3: 2873 | FM3: 2874 | FN3: 2875 | FO3: 2876 | FP3: 2877 | FQ3: 2878 | FR3: 2879 | FS3: 2880 | FT3: 2881 | FU3: 2882 | FV3: 2883 | FW3: 2884 | FX3: 2885 | FY3: 2886 | FZ3: 2887 | GA3: 2888 | GB3: 2889 | GC3: 2890 | GD3: 2891 | GE3: 2892 | GF3: 2893 | GG3: 2894 | GH3: 2895 | GI3: 2896 | GJ3: 2897 | GK3: 2898 | GL3: 2899 | GM3: 2900 | GN3: 2901 | GO3: 2902 | GP3: 2903 | GQ3: 2904 | GR3: 2905 | GS3: 2906 | GT3: 2907 | GU3: 2908 | GV3: 2909 | GW3: 2910 | GX3: 2911 | GY3: 2912 | GZ3: 2913 | HA3: 2914 | HB3: 2915 | HC3: 2916 | HD3: 2917 | HE3: 2918 | HF3: 2919 | HG3: 2920 | HH3: 2921 | HI3: 2922 | HJ3: 2923 | HK3: 2924 | HL3: 2925 | HM3: 2926 | HN3: 2927 | HO3: 2928 | HP3: 2929 | HQ3: 2930 | HR3: 2931 | HS3: 2932 | HT3: 2933 | HU3: 2934 | HV3: 2935 | HW3: 2936 | HX3: 2937 | HY3: 2938 | HZ3: 2939 | IA3: 2940 | IB3: 2941 | IC3: 2942 | ID3: 2943 | IE3: 2944 | IF3: 2945 | IG3: 2946 | IH3: 2947 | II3: 2948 | IJ3: 2949 | IK3: 2950 | IL3: 2951 | IM3: 2952 | IN3: 2953 | IO3: 2954 | IP3: 2955 | IQ3: 2956 | IR3: 2957 | IS3: 2958 | IT3: 2959 | IU3: 2960 | IV3: 2961 | IW3: 2962 | IX3: 2963 | IY3: 2964 | IZ3: 2965 | JA3: 2966 | JB3: 2967 | JC3: 2968 | JD3: 2969 | JE3: 2970 | JF3: 2971 | JG3: 2972 | JH3: 2973 | JI3: 2974 | JJ3: 2975 | JK3: 2976 | JL3: 2977 | JM3: 2978 | JN3: 2979 | JO3: 2980 | JP3: 2981 | JQ3: 2982 | JR3: 2983 | JS3: 2984 | JT3: 2985 | JU3: 2986 | JV3: 2987 | JW3: 2988 | JX3: 2989 | JY3: 2990 | JZ3: 2991 | KA3: 2992 | KB3: 2993 | KC3: 2994 | KD3: 2995 | KE3: 2996 | KF3: 2997 | KG3: 2998 | KH3: 2999 | KI3: 3000 | KJ3: 3001 | KK3: 3002 | KL3: 3003 | KM3: 3004 | KN3: 3005 | KO3: 3006 | KP3: 3007 | KQ3: 3008 | KR3: 3009 | KS3: 3010 | KT3: 3011 | KU3: 3012 | KV3: 3013 | KW3: 3014 | KX3: 3015 | KY3: 3016 | KZ3: 3017 | LA3: 3018 | LB3: 3019 | LC3: 3020 | LD3: 3021 | LE3: 3022 | LF3: 3023 | LG3: 3024 | LH3: 3025 | LI3: 3026 | LJ3: 3027 | LK3: 3028 | LL3: 3029 | LM3: 3030 | LN3: 3031 | LO3: 3032 | LP3: 3033 | LQ3: 3034 | LR3: 3035 | LS3: 3036 | LT3: 3037 | LU3: 3038 | LV3: 3039 | LW3: 3040 | LX3: 3041 | LY3: 3042 | LZ3: 3043 | MA3: 3044 | MB3: 3045 | MC3: 3046 | MD3: 3047 | ME3: 3048 | MF3: 3049 | MG3: 3050 | MH3: 3051 | MI3: 3052 | MJ3: 3053 | MK3: 3054 | ML3: 3055 | MM3: 3056 | MN3: 3057 | MO3: 3058 | MP3: 3059 | MQ3: 3060 | MR3: 3061 | MS3: 3062 | MT3: 3063 | MU3: 3064 | MV3: 3065 | MW3: 3066 | MX3: 3067 | MY3: 3068 | MZ3: 3069 | NA3: 3070 | NB3: 3071 | NC3: 3072 | ND3: 3073 | NE3: 3074 | NF3: 3075 | NG3: 3076 | NH3: 3077 | NI3: 3078 | NJ3: 3079 | NK3: 3080 | NL3: 3081 | NM3: 3082 | NN3: 3083 | NO3: 3084 | NP3: 3085 | NQ3: 3086 | NR3: 3087 | NS3: 3088 | NT3: 3089 | NU3: 3090 | NV3: 3091 | NW3: 3092 | NX3: 3093 | NY3: 3094 | NZ3: 3095 | OA3: 3096 | OB3: 3097 | OC3: 3098 | OD3: 3099 | OE3: 3100 | OF3: 3101 | OG3: 3102 | OH3: 3103 | OI3: 3104 | OJ3: 3105 | OK3: 3106 | OL3: 3107 | OM3: 3108 | ON3: 3109 | OO3: 3110 | OP3: 3111 | OQ3: 3112 | OR3: 3113 | OS3: 3114 | OT3: 3115 | OU3: 3116 | OV3: 3117 | OW3: 3118 | OX3: 3119 | OY3: 3120 | OZ3: 3121 | PA3: 3122 | PB3: 3123 | PC3: 3124 | PD3: 3125 | PE3: 3126 | PF3: 3127 | PG3: 3128 | PH3: 3129 | PI3: 3130 | PJ3: 3131 | PK3: 3132 | PL3: 3133 | PM3: 3134 | PN3: 3135 | PO3: 3136 | PP3: 3137 | PQ3: 3138 | PR3: 3139 | PS3: 3140 | PT3: 3141 | PU3: 3142 | PV3: 3143 | PW3: 3144 | PX3: 3145 | PY3: 3146 | PZ3: 3147 | QA3: 3148 | QB3: 3149 | QC3: 3150 | QD3: 3151 | QE3: 3152 | QF3: 3153 | QG3: 3154 | QH3: 3155 | QI3: 3156 | QJ3: 3157 | QK3: 3158 | QL3: 3159 | QM3: 3160 | QN3: 3161 | QO3: 3162 | QP3: 3163 | QQ3: 3164 | QR3: 3165 | QS3: 3166 | QT3: 3167 | QU3: 3168 | QV3: 3169 | QW3: 3170 | QX3: 3171 | QY3: 3172 | QZ3: 3173 | RA3: 3174 | RB3: 3175 | RC3: 3176 | RD3: 3177 | RE3: 3178 | RF3: 3179 | RG3: 3180 | RH3: 3181 | RI3: 3182 | RJ3: 3183 | RK3: 3184 | RL3: 3185 | RM3: 3186 | RN3: 3187 | RO3: 3188 | RP3: 3189 | RQ3: 3190 | RR3: 3191 | RS3: 3192 | RT3: 3193 | RU3: 3194 | RV3: 3195 | RW3: 3196 | RX3: 3197 | RY3: 3198 | RZ3: 3199 | SA3: 3200 | SB3: 3201 | SC3: 3202 | SD3: 3203 | SE3: 3204 | SF3: 3205 | SG3: 3206 | SH3: 3207 | SI3: 3208 | SJ3: 3209 | SK3: 3210 | SL3: 3211 | SM3: 3212 | SN3: 3213 | SO3: 3214 | SP3: 3215 | SQ3: 3216 | SR3: 3217 | SS3: 3218 | ST3: 3219 | SU3: 3220 | SV3: 3221 | SW3: 3222 | SX3: 3223 | SY3: 3224 | SZ3: 3225 | TA3: 3226 | TB3: 3227 | TC3: 3228 | TD3: 3229 | TE3: 3230 | TF3: 3231 | TG3: 3232 | TH3: 3233 | TI3: 3234 | TJ3: 3235 | TK3: 3236 | TL3: 3237 | TM3: 3238 | TN3: 3239 | TO3: 3240 | TP3: 3241 | TQ3: 3242 | TR3: 3243 | TS3: 3244 | TT3: 3245 | TU3: 3246 | TV3: 3247 | TW3: 3248 | TX3: 3249 | TY3: 3250 | TZ3: 3251 | UA3: 3252 | UB3: 3253 | UC3: 3254 | UD3: 3255 | UE3: 3256 | UF3: 3257 | UG3: 3258 | UH3: 3259 | UI3: 3260 | UJ3: 3261 | UK3: 3262 | UL3: 3263 | UM3: 3264 | UN3: 3265 | UO3: 3266 | UP3: 3267 | UQ3: 3268 | UR3: 3269 | US3: 3270 | UT3: 3271 | UU3: 3272 | UV3: 3273 | UW3: 3274 | UX3: 3275 | UY3: 3276 | UZ3: 3277 | VA3: 3278 | VB3: 3279 | VC3: 3280 | VD3: 3281 | VE3: 3282 | VF3: 3283 | VG3: 3284 | VH3: 3285 | VI3: 3286 | VJ3: 3287 | VK3: 3288 | VL3: 3289 | VM3: 3290 | VN3: 3291 | VO3: 3292 | VP3: 3293 | VQ3: 3294 | VR3: 3295 | VS3: 3296 | VT3: 3297 | VU3: 3298 | VV3: 3299 | VW3: 3300 | VX3: 3301 | VY3: 3302 | VZ3: 3303 | WA3: 3304 | WB3: 3305 | WC3: 3306 | WD3: 3307 | WE3: 3308 | WF3: 3309 | WG3: 3310 | WH3: 3311 | WI3: 3312 | WJ3: 3313 | WK3: 3314 | WL3: 3315 | WM3: 3316 | WN3: 3317 | WO3: 3318 | WP3: 3319 | WQ3: 3320 | WR3: 3321 | WS3: 3322 | WT3: 3323 | WU3: 3324 | WV3: 3325 | WW3: 3326 | WX3: 3327 | WY3: 3328 | WZ3: 3329 | XA3: 3330 | XB3: 3331 | XC3: 3332 | XD3: 3333 | XE3: 3334 | XF3: 3335 | XG3: 3336 | XH3: 3337 | XI3: 3338 | XJ3: 3339 | XK3: 3340 | XL3: 3341 | XM3: 3342 | XN3: 3343 | XO3: 3344 | XP3: 3345 | XQ3: 3346 | XR3: 3347 | XS3: 3348 | XT3: 3349 | XU3: 3350 | XV3: 3351 | XW3: 3352 | XX3: 3353 | XY3: 3354 | XZ3: 3355 | YA3: 3356 | YB3: 3357 | YC3: 3358 | YD3: 3359 | YE3: 3360 | YF3: 3361 | YG3: 3362 | YH3: 3363 | YI3: 3364 | YJ3: 3365 | YK3: 3366 | YL3: 3367 | YM3: 3368 | YN3: 3369 | YO3: 3370 | YP3: 3371 | YQ3: 3372 | YR3: 3373 | YS3: 3374 | YT3: 3375 | YU3: 3376 | YV3: 3377 | YW3: 3378 | YX3: 3379 | YY3: 3380 | YZ3: 3381 | ZA3: 3382 | ZB3: 3383 | ZC3: 3384 | ZD3: 3385 | ZE3: 3386 | ZF3: 3387 | ZG3: 3388 | ZH3: 3389 | ZI3: 3390 | ZJ3: 3391 | ZK3: 3392 | ZL3: 3393 | ZM3: 3394 | ZN3: 3395 | ZO3: 3396 | ZP3: 3397 | ZQ3: 3398 | ZR3: 3399 | ZS3: 3400 | ZT3: 3401 | ZU3: 3402 | ZV3: 3403 | ZW3: 3404 | ZX3: 3405 | ZY3: 3406 | ZZ3: 3407 | AAA3: 3408 | AAB3: 3409 | AAC3: 3410 | AAD3: 3411 | AAE3: 3412 | AAF3: 3413 | AAG3: 3414 | AAH3: 3415 | AAI3: 3416 | AAJ3: 3417 | AAK3: 3418 | AAL3: 3419 | AAM3: 3420 | AAN3: 3421 | AAO3: 3422 | AAP3: 3423 | AAQ3: 3424 | AAR3: 3425 | AAS3: 3426 | AAT3: 3427 | AAU3: 3428 | AAV3: 3429 | AAW3: 3430 | AAX3: 3431 | AAY3: 3432 | AAZ3: 3433 | ABA3: 3434 | ABB3: 3435 | ABC3: 3436 | ABD3: 3437 | ABE3: 3438 | ABF3: 3439 | ABG3: 3440 | ABH3: 3441 | ABI3: 3442 | ABJ3: 3443 | ABK3: 3444 | ABL3: 3445 | ABM3: 3446 | ABN3: 3447 | ABO3: 3448 | ABP3: 3449 | ABQ3: 3450 | ABR3: 3451 | ABS3: 3452 | ABT3: 3453 | ABU3: 3454 | ABV3: 3455 | ABW3: 3456 | ABX3: 3457 | ABY3: 3458 | ABZ3: 3459 | ACA3: 3460 | ACB3: 3461 | ACC3: 3462 | ACD3: 3463 | ACE3: 3464 | ACF3: 3465 | ACG3: 3466 | ACH3: 3467 | ACI3: 3468 | ACJ3: 3469 | ACK3: 3470 | ACL3: 3471 | ACM3: 3472 | ACN3: 3473 | ACO3: 3474 | ACP3: 3475 | ACQ3: 3476 | ACR3: 3477 | ACS3: 3478 | ACT3: 3479 | ACU3: 3480 | ACV3: 3481 | ACW3: 3482 | ACX3: 3483 | ACY3: 3484 | ACZ3: 3485 | ADA3: 3486 | ADB3: 3487 | ADC3: 3488 | ADD3: 3489 | ADE3: 3490 | ADF3: 3491 | ADG3: 3492 | ADH3: 3493 | ADI3: 3494 | ADJ3: 3495 | ADK3: 3496 | ADL3: 3497 | ADM3: 3498 | ADN3: 3499 | ADO3: 3500 | ADP3: 3501 | ADQ3: 3502 | ADR3: 3503 | ADS3: 3504 | ADT3: 3505 | ADU3: 3506 | ADV3: 3507 | ADW3: 3508 | ADX3: 3509 | ADY3: 3510 | ADZ3: 3511 | AEA3: 3512 | AEB3: 3513 | AEC3: 3514 | AED3: 3515 | AEE3: 3516 | AEF3: 3517 | AEG3: 3518 | AEH3: 3519 | AEI3: 3520 | AEJ3: 3521 | AEK3: 3522 | AEL3: 3523 | AEM3: 3524 | AEN3: 3525 | AEO3: 3526 | AEP3: 3527 | AEQ3: 3528 | AER3: 3529 | AES3: 3530 | AET3: 3531 | AEU3: 3532 | AEV3: 3533 | AEW3: 3534 | AEX3: 3535 | AEY3: 3536 | AEZ3: 3537 | AFA3: 3538 | AFB3: 3539 | AFC3: 3540 | AFD3: 3541 | AFE3: 3542 | AFF3: 3543 | AFG3: 3544 | AFH3: 3545 | AFI3: 3546 | AFJ3: 3547 | AFK3: 3548 | AFL3: 3549 | AFM3: 3550 | AFN3: 3551 | AFO3: 3552 | AFP3: 3553 | AFQ3: 3554 | AFR3: 3555 | AFS3: 3556 | AFT3: 3557 | AFU3: 3558 | AFV3: 3559 | AFW3: 3560 | AFX3: 3561 | AFY3: 3562 | AFZ3: 3563 | AGA3: 3564 | AGB3: 3565 | AGC3: 3566 | AGD3: 3567 | AGE3: 3568 | AGF3: 3569 | AGG3: 3570 | AGH3: 3571 | AGI3: 3572 | AGJ3: 3573 | AGK3: 3574 | AGL3: 3575 | AGM3: 3576 | AGN3: 3577 | AGO3: 3578 | AGP3: 3579 | AGQ3: 3580 | AGR3: 3581 | AGS3: 3582 | AGT3: 3583 | AGU3: 3584 | AGV3: 3585 | AGW3: 3586 | AGX3: 3587 | AGY3: 3588 | AGZ3: 3589 | AHA3: 3590 | AHB3: 3591 | AHC3: 3592 | AHD3: 3593 | AHE3: 3594 | AHF3: 3595 | AHG3: 3596 | AHH3: 3597 | AHI3: 3598 | AHJ3: 3599 | AHK3: 3600 | AHL3: 3601 | AHM3: 3602 | AHN3: 3603 | AHO3: 3604 | AHP3: 3605 | AHQ3: 3606 | AHR3: 3607 | AHS3: 3608 | AHT3: 3609 | AHU3: 3610 | AHV3: 3611 | AHW3: 3612 | AHX3: 3613 | AHY3: 3614 | AHZ3: 3615 | AIA3: 3616 | AIB3: 3617 | AIC3: 3618 | AID3: 3619 | AIE3: 3620 | AIF3: 3621 | AIG3: 3622 | AIH3: 3623 | AII3: 3624 | AIJ3: 3625 | AIK3: 3626 | AIL3: 3627 | AIM3: 3628 | AIN3: 3629 | AIO3: 3630 | AIP3: 3631 | AIQ3: 3632 | AIR3: 3633 | AIS3: 3634 | AIT3: 3635 | AIU3: 3636 | AIV3: 3637 | AIW3: 3638 | AIX3: 3639 | AIY3: 3640 | AIZ3: 3641 | AJA3: 3642 | AJB3: 3643 | AJC3: 3644 | AJD3: 3645 | AJE3: 3646 | AJF3: 3647 | AJG3: 3648 | AJH3: 3649 | AJI3: 3650 | AJJ3: 3651 | AJK3: 3652 | AJL3: 3653 | AJM3: 3654 | AJN3: 3655 | AJO3: 3656 | AJP3: 3657 | AJQ3: 3658 | AJR3: 3659 | AJS3: 3660 | AJT3: 3661 | AJU3: 3662 | AJV3: 3663 | AJW3: 3664 | AJX3: 3665 | AJY3: 3666 | AJZ3: 3667 | AKA3: 3668 | AKB3: 3669 | AKC3: 3670 | AKD3: 3671 | AKE3: 3672 | AKF3: 3673 | AKG3: 3674 | AKH3: 3675 | AKI3: 3676 | AKJ3: 3677 | AKK3: 3678 | AKL3: 3679 | AKM3: 3680 | AKN3: 3681 | AKO3: 3682 | AKP3: 3683 | AKQ3: 3684 | AKR3: 3685 | AKS3: 3686 | AKT3: 3687 | AKU3: 3688 | AKV3: 3689 | AKW3: 3690 | AKX3: 3691 | AKY3: 3692 | AKZ3: 3693 | ALA3: 3694 | ALB3: 3695 | ALC3: 3696 | ALD3: 3697 | ALE3: 3698 | ALF3: 3699 | ALG3: 3700 | ALH3: 3701 | ALI3: 3702 | ALJ3: 3703 | ALK3: 3704 | ALL3: 3705 | ALM3: 3706 | ALN3: 3707 | ALO3: 3708 | ALP3: 3709 | ALQ3: 3710 | ALR3: 3711 | ALS3: 3712 | ALT3: 3713 | ALU3: 3714 | ALV3: 3715 | ALW3: 3716 | ALX3: 3717 | ALY3: 3718 | ALZ3: 3719 | AMA3: 3720 | AMB3: 3721 | AMC3: 3722 | AMD3: 3723 | AME3: 3724 | AMF3: 3725 | AMG3: 3726 | AMH3: 3727 | AMI3: 3728 | AMJ3: 3729 | AMK3: 3730 | AML3: 3731 | AMM3: 3732 | AMN3: 3733 | AMO3: 3734 | AMP3: 3735 | AMQ3: 3736 | AMR3: 3737 | AMS3: 3738 | AMT3: 3739 | AMU3: 3740 | AMV3: 3741 | AMW3: 3742 | AMX3: 3743 | AMY3: 3744 | AMZ3: 3745 | ANA3: 3746 | ANB3: 3747 | ANC3: 3748 | AND3: 3749 | ANE3: 3750 | ANF3: 3751 | ANG3: 3752 | ANH3: 3753 | ANI3: 3754 | ANJ3: 3755 | ANK3: 3756 | ANL3: 3757 | ANM3: 3758 | ANN3: 3759 | ANO3: 3760 | ANP3: 3761 | ANQ3: 3762 | ANR3: 3763 | ANS3: 3764 | ANT3: 3765 | ANU3: 3766 | ANV3: 3767 | ANW3: 3768 | ANX3: 3769 | ANY3: 3770 | ANZ3: 3771 | AOA3: 3772 | AOB3: 3773 | AOC3: 3774 | AOD3: 3775 | AOE3: 3776 | AOF3: 3777 | AOG3: 3778 | AOH3: 3779 | AOI3: 3780 | AOJ3: 3781 | AOK3: 3782 | AOL3: 3783 | AOM3: 3784 | AON3: 3785 | AOO3: 3786 | AOP3: 3787 | AOQ3: 3788 | AOR3: 3789 | AOS3: 3790 | AOT3: 3791 | AOU3: 3792 | AOV3: 3793 | AOW3: 3794 | AOX3: 3795 | AOY3: 3796 | AOZ3: 3797 | APA3: 3798 | APB3: 3799 | APC3: 3800 | APD3: 3801 | APE3: 3802 | APF3: 3803 | APG3: 3804 | APH3: 3805 | API3: 3806 | APJ3: 3807 | APK3: 3808 | APL3: 3809 | APM3: 3810 | APN3: 3811 | APO3: 3812 | APP3: 3813 | APQ3: 3814 | APR3: 3815 | APS3: 3816 | APT3: 3817 | APU3: 3818 | APV3: 3819 | APW3: 3820 | APX3: 3821 | APY3: 3822 | APZ3: 3823 | AQA3: 3824 | AQB3: 3825 | AQC3: 3826 | AQD3: 3827 | AQE3: 3828 | AQF3: 3829 | AQG3: 3830 | AQH3: 3831 | AQI3: 3832 | AQJ3: 3833 | AQK3: 3834 | AQL3: 3835 | AQM3: 3836 | AQN3: 3837 | AQO3: 3838 | AQP3: 3839 | AQQ3: 3840 | AQR3: 3841 | AQS3: 3842 | AQT3: 3843 | AQU3: 3844 | AQV3: 3845 | AQW3: 3846 | AQX3: 3847 | AQY3: 3848 | AQZ3: 3849 | ARA3: 3850 | ARB3: 3851 | ARC3: 3852 | ARD3: 3853 | ARE3: 3854 | ARF3: 3855 | ARG3: 3856 | ARH3: 3857 | ARI3: 3858 | ARJ3: 3859 | ARK3: 3860 | ARL3: 3861 | ARM3: 3862 | ARN3: 3863 | ARO3: 3864 | ARP3: 3865 | ARQ3: 3866 | ARR3: 3867 | ARS3: 3868 | ART3: 3869 | ARU3: 3870 | ARV3: 3871 | ARW3: 3872 | ARX3: 3873 | ARY3: 3874 | ARZ3: 3875 | ASA3: 3876 | ASB3: 3877 | ASC3: 3878 | ASD3: 3879 | ASE3: 3880 | ASF3: 3881 | ASG3: 3882 | ASH3: 3883 | ASI3: 3884 | ASJ3: 3885 | ASK3: 3886 | ASL3: 3887 | ASM3: 3888 | ASN3: 3889 | ASO3: 3890 | ASP3: 3891 | ASQ3: 3892 | ASR3: 3893 | ASS3: 3894 | AST3: 3895 | ASU3: 3896 | ASV3: 3897 | ASW3: 3898 | ASX3: 3899 | ASY3: 3900 | ASZ3: 3901 | ATA3: 3902 | ATB3: 3903 | ATC3: 3904 | ATD3: 3905 | ATE3: 3906 | ATF3: 3907 | ATG3: 3908 | ATH3: 3909 | ATI3: 3910 | ATJ3: 3911 | ATK3: 3912 | ATL3: 3913 | ATM3: 3914 | ATN3: 3915 | ATO3: 3916 | ATP3: 3917 | ATQ3: 3918 | ATR3: 3919 | ATS3: 3920 | ATT3: 3921 | ATU3: 3922 | ATV3: 3923 | ATW3: 3924 | ATX3: 3925 | ATY3: 3926 | ATZ3: 3927 | AUA3: 3928 | AUB3: 3929 | AUC3: 3930 | AUD3: 3931 | AUE3: 3932 | AUF3: 3933 | AUG3: 3934 | AUH3: 3935 | AUI3: 3936 | AUJ3: 3937 | AUK3: 3938 | AUL3: 3939 | AUM3: 3940 | AUN3: 3941 | AUO3: 3942 | AUP3: 3943 | AUQ3: 3944 | AUR3: 3945 | AUS3: 3946 | AUT3: 3947 | AUU3: 3948 | AUV3: 3949 | AUW3: 3950 | AUX3: 3951 | AUY3: 3952 | AUZ3: 3953 | AVA3: 3954 | AVB3: 3955 | AVC3: 3956 | AVD3: 3957 | AVE3: 3958 | AVF3: 3959 | AVG3: 3960 | AVH3: 3961 | AVI3: 3962 | AVJ3: 3963 | AVK3: 3964 | AVL3: 3965 | AVM3: 3966 | AVN3: 3967 | AVO3: 3968 | AVP3: 3969 | AVQ3: 3970 | AVR3: 3971 | AVS3: 3972 | AVT3: 3973 | AVU3: 3974 | AVV3: 3975 | AVW3: 3976 | AVX3: 3977 | AVY3: 3978 | AVZ3: 3979 | AWA3: 3980 | AWB3: 3981 | AWC3: 3982 | AWD3: 3983 | AWE3: 3984 | AWF3: 3985 | AWG3: 3986 | AWH3: 3987 | AWI3: 3988 | AWJ3: 3989 | AWK3: 3990 | AWL3: 3991 | AWM3: 3992 | AWN3: 3993 | AWO3: 3994 | AWP3: 3995 | AWQ3: 3996 | AWR3: 3997 | AWS3: 3998 | AWT3: 3999 | AWU3: 4000 | AWV3: 4001 | AWW3: 4002 | AWX3: 4003 | AWY3: 4004 | AWZ3: 4005 | AXA3: 4006 | AXB3: 4007 | AXC3: 4008 | AXD3: 4009 | AXE3: 4010 | AXF3: 4011 | AXG3: 4012 | AXH3: 4013 | AXI3: 4014 | AXJ3: 4015 | AXK3: 4016 | AXL3: 4017 | AXM3: 4018 | AXN3: 4019 | AXO3: 4020 | AXP3: 4021 | AXQ3: 4022 | AXR3: 4023 | AXS3: 4024 | AXT3: 4025 | AXU3: 4026 | AXV3: 4027 | AXW3: 4028 | AXX3: 4029 | AXY3: 4030 | AXZ3: 4031 | AYA3: 4032 | AYB3: 4033 | AYC3: 4034 | AYD3: 4035 | AYE3: 4036 | AYF3: 4037 | AYG3: 4038 | AYH3: 4039 | AYI3: 4040 | AYJ3: 4041 | AYK3: 4042 | AYL3: 4043 | AYM3: 4044 | AYN3: 4045 | AYO3: 4046 | AYP3: 4047 | AYQ3: 4048 | AYR3: 4049 | AYS3: 4050 | AYT3: 4051 | AYU3: 4052 | AYV3: 4053 | AYW3: 4054 | AYX3: 4055 | AYY3: 4056 | AYZ3: 4057 | AZA3: 4058 | AZB3: 4059 | AZC3: 4060 | AZD3: 4061 | AZE3: 4062 | AZF3: 4063 | AZG3: 4064 | AZH3: 4065 | AZI3: 4066 | AZJ3: 4067 | AZK3: 4068 | AZL3: 4069 | AZM3: 4070 | AZN3: 4071 | AZO3: 4072 | AZP3: 4073 | AZQ3: 4074 | AZR3: 4075 | AZS3: 4076 | AZT3: 4077 | AZU3: 4078 | AZV3: 4079 | AZW3: 4080 | AZX3: 4081 | AZY3: 4082 | AZZ3: 4083 | BAA3: 4084 | BAB3: 4085 | BAC3: 4086 | BAD3: 4087 | BAE3: 4088 | BAF3: 4089 | BAG3: 4090 | BAH3: 4091 | BAI3: 4092 | BAJ3: 4093 | BAK3: 4094 | BAL3: 4095 | BAM3: 4096 | BAN3: 4097 | BAO3: 4098 | BAP3: 4099 | BAQ3: 4100 | BAR3: 4101 | BAS3: 4102 | BAT3: 4103 | BAU3: 4104 | BAV3: 4105 | BAW3: 4106 | BAX3: 4107 | BAY3: 4108 | BAZ3: 4109
A4: Species
G5: 1.1.24 | H5: 1.2.24 | I5: 1.3.24 | J5: 1.4.24 | K5: 1.5.24 | L5: 1.6.24 | M5: 1.7.24 | N5: 1.8.24 | O5: 1.9.24 | P5: 1.10.24 | Q5: 1.11.24 | R5: 1.12.24 | S5: 1.13.24 | T5: 1.14.24 | U5: 1.15.24 | V5: 1.16.24 | W5: 1.17.24 | X5: 1.18.24 | Y5: 1.19.24 | Z5: 1.20.24 | AA5: 1.21.24 | AB5: 1.22.24 | AC5: 1.23.24 | AD5: 1.24.24 | AE5: 1,25.24 | AF5: 1.26.24 | AG5: 1.27.24 | AH5: 1.28.24 | AI5: 1.29.24 | AJ5: 1.30.24 | AK5: 1.31.24 | AL5: 2.1.24 | AM5: 2.2.24 | AN5: 2.3.24 | AO5: 2.4.24 | AP5: 2.5.24 | AQ5: 2.6.24 | AR5: 2.7.24 | AS5: 2.8.24 | AT5: 2.9.24 | AU5: 2.10.24 | AV5: 2.11.24 | AW5: 2.12.24 | AX5: 2.13.24 | AY5: 2.14.24 | AZ5: 2.15.24 | BA5: 2.16.24 | BB5: 2.17.24 | BC5: 2.18.24 | BD5: 2.19.24 | BE5: 2.20.24 | BF5: 2.21.24 | BG5: 2.22.24 | BH5: 2.23.24 | BI5: 2.24.24 | BJ5: 2.25.24 | BK5: 2.26.24 | BL5: 2.27.24 | BM5: 2.28.24 | BN5: 2.29.24 | BO5: 3.1.24 | BP5: 3.2.24 | BQ5: 3.3.24 | BR5: 3.4.24 | BS5: 3.5.24 | BT5: 3.6.24 | BU5: 3.7.24 | BV5: 3.8.24 | BW5: 3.9.24 | BX5: 3.10.24 | BY5: 3.11.24 | BZ5: 3.12.14 | CA5: 3.13.24 | CB5: 3.14.24 | CC5: 3.15.24 | CD5: 3.16.24 | CE5: 3.17.24 | CF5: 3.18.24 | CG5: 3.19.24 | CH5: 3.20.24 | CI5: 3.21.24 | CJ5: 3.22.24 | CK5: 3.23.24 | CL5: 3.24.24 | CM5: 3.25.24 | CN5: 3.26.24 | CO5: 3.27.24 | CP5: 3.28.24 | CQ5: 3.29.24 | CR5: 3.30.24 | CS5: 3.31.24 | CT5: 4.1.24 | CU5: 4.2.24 | CV5: 4.3.24 | CW5: 4.4.24 | CX5: 4.5.24 | CY5: 4.6.24 | CZ5: 4.7.24 | DA5: 4.8.24 | DB5: 4.9.24 | DC5: 4.10.24 | DD5: 4.11.24 | DE5: 4.12.24 | DF5: 4.13.24 | DG5: 4.14.24 | DH5: 4.15.24 | DI5: 4.16.24 | DJ5: 4.17.24 | DK5: 4.18.24 | DL5: 4.19.24 | DM5: 4.20.24 | DN5: 4.21.24 | DO5: 4.22.24 | DP5: 4.23.24 | DQ5: 4.24.24 | DR5: 4.25.24 | DS5: 4.26.24 | DT5: 4.27.24 | DU5: 4.28.24 | DV5: 4.29.24 | DW5: 4.30.24 | DX5: 5.1.24 | DY5: 5.2.24 | DZ5: 5.3.24 | EA5: 5.4.24 | EB5: 5.5.24 | EC5: 5.6.24 | ED5: 5.7.24 | EE5: 5.8.24 | EF5: 5.9.24 | EG5: 5.10.24 | EH5: 5.11.24 | EI5: 5.12.24 | EJ5: 5.13.24 | EK5: 5.14.24 | EL5: 5.15.24 | EM5: 5.16.24 | EN5: 5.17.24 | EO5: 5.18.24 | EP5: 5.19.24 | EQ5: 5.20.24 | ER5: 5.21.24 | ES5: 5.22.24 | ET5: 5.23.24 | EU5: 5.24.24 | EV5: 5.25.24 | EW5: 5.26.24 | EX5: 5.27.24 | EY5: 5.28.24 | EZ5: 5.29.24 | FA5: 5.30.24 | FB5: 5.31.24 | FC5: 6.1.24 | FD5: 6.2.24 | FE5: 6.3.24 | FF5: 6.4.24 | FG5: 6.5.24 | FH5: 6.6.24 | FI5: 6.7.24 | FJ5: 6.8.24 | FK5: 6.9.24 | FL5: 6.10.24 | FM5: 6.11.24 | FN5: 6.12.24 | FO5: 6.13.24 | FP5: 6.14.24 | FQ5: 6.15.24 | FR5: 6.16.24 | FS5: 6.17.24 | FT5: 6.18.24 | FU5: 6.19.24 | FV5: 6.20.24 | FW5: 6.21.24 | FX5: 6.22.24 | FY5: 6.23.24 | FZ5: 6.24.24 | GA5: 6.25.24 | GB5: 6.26.24 | GC5: 6.27.24 | GD5: 6.28.24 | GE5: 6.29.24 | GF5: 6.30.24 | GG5: 7.1.24 | GH5: 7.2.24 | GI5: 7.3.24 | GJ5: 7.4.24 | GK5: 7.5.24 | GL5: 7.6.24 | GM5: 7.7.24 | GN5: 7.8.24 | GO5: 7.9.24 | GP5: 7.10.24 | GQ5: 7.11.24 | GR5: 7.12.24 | GS5: 7.13.24 | GT5: 7.14.24 | GU5: 7.15.24 | GV5: 7.16.24 | GW5: 7.17.24 | GX5: 7.18.24 | GY5: 7.19.24 | GZ5: 7.20.24 | HA5: 7.21.24 | HB5: 7.22.24 | HC5: 7.23.24 | HD5: 7.24.24 | HE5: 7.25.24 | HF5: 7.26.24 | HG5: 7.27.24 | HH5: 7.28.24 | HI5: 7.29.24 | HJ5: 7.30.24 | HK5: 7.31.24 | HL5: 8.1.24 | HM5: 8.2.24 | HN5: 8.3.24 | HO5: 8.4.24 | HP5: 8.5.24 | HQ5: 8.6.24 | HR5: 8.7.24 | HS5: 8.8.24 | HT5: 8.9.24 | HU5: 8.10.24 | HV5: 8.11.24 | HW5: 8.12.24 | HX5: 8.13.24 | HY5: 8.14.24 | HZ5: 8.15.24 | IA5: 8.16.24 | IB5: 8.17.24 | IC5: 8.18.24 | ID5: 8.19.24 | IE5: 8.20.24 | IF5: 8.21.24 | IG5: 8.22.24 | IH5: 8.23.24 | II5: 8.24.24 | IJ5: 8.25.24 | IK5: 8.26.24 | IL5: 8.27.24 | IM5: 8.28.24 | IN5: 8.29.24 | IO5: 8.30.24 | IP5: 8.31.24 | IQ5: 9.1.24 | IR5: 9.2.24 | IS5: 9.3.24 | IT5: 9.4.24 | IU5: 9.5.24 | IV5: 9.6.24 | IW5: 9.7.24 | IX5: 9.8.24 | IY5: 9.9.24 | IZ5: 9.10.24 | JA5: 9.11.24 | JB5: 9.12.24 | JC5: 9.13.24 | JD5: 9.14.24 | JE5: 9.15.24 | JF5: 9.16.24 | JG5: 9.17.24 | JH5: 9.18.24 | JI5: 9.19.24 | JJ5: 9.20.24 | JK5: 9.21.24 | JL5: 9.22.24 | JM5: 9.23.24 | JN5: 9.24.24 | JO5: 9.25.24 | JP5: 9.26.24 | JQ5: 9.27.24 | JR5: 9.28.24 | JS5: 9.29.24 | JT5: 9.30.24 | JU5: 10.1.24 | JV5: 10.2.24 | JW5: 10.3.24 | JX5: 10.4.24 | JY5: 10.5.24 | JZ5: 10.6.24 | KA5: 10.7.24 | KB5: 10.8.24 | KC5: 10.9.24 | KD5: 10.10.24 | KE5: 10.11.24 | KF5: 10.12.24 | KG5: 10.13.24 | KH5: 10.14.24 | KI5: 10.15.24 | KJ5: 10.16.24 | KK5: 10.17.24 | KL5: 10.18.24 | KM5: 10.19.24 | KN5: 10.20.24 | KO5: 10.21.24 | KP5: 10.22.24 | KQ5: 10.23.24 | KR5: 10.24.24 | KS5: 10.25.24 | KT5: 10.26.24 | KU5: 10.27.24 | KV5: 10.28.24 | KW5: 10.29.24 | KX5: 10.30.24 | KY5: 10.31.24 | KZ5: 11.1.24 | LA5: 11.2.24 | LB5: 11.3.24 | LC5: 11.4.24 | LD5: 11.5.24 | LE5: 11.6.24 | LF5: 11.7.24 | LG5: 11.8.24 | LH5: 11.9.24 | LI5: 11.10.24 | LJ5: 11.11.24 | LK5: 11.12.24 | LL5: 11.13.24 | LM5: 11.14.24 | LN5: 11.15.24 | LO5: 11.16.24 | LP5: 11.17.24 | LQ5: 11.18.24 | LR5: 11.19.24 | LS5: 11.20.24 | LT5: 11.21.24 | LU5: 11.22.24 | LV5: 11.23.24 | LW5: 11.24.24 | LX5: 11.25.24 | LY5: 11.26.24 | LZ5: 11.27.24 | MA5: 11.28.24 | MB5: 11.29.24 | MC5: 11.30.24 | MD5: 12.1.24 | ME5: 12.2.24 | MF5: 12.3.24 | MG5: 12.4.24 | MH5: 12.5.24 | MI5: 12.6.24 | MJ5: 12.7.24 | MK5: 12.8.24 | ML5: 12.9.24 | MM5: 12.10.24 | MN5: 12.11.24 | MO5: 12.12.24 | MP5: 12.13.24 | MQ5: 12.14.24 | MR5: 12.15.24 | MS5: 12.16.24 | MT5: 12.17.24 | MU5: 12.18,24 | MV5: 12.19.24 | MW5: 12.20.24 | MX5: 12.21.24 | MY5: 12.22.24 | MZ5: 12.23.24 | NA5: 12.24.24 | NB5: 12.25.24 | NC5: 12.26.24 | ND5: 12.27.24 | NE5: 12.28.24 | NF5: 12.29.24 | NG5: 12.30.24 | NH5: 12.31.24
E6: Hours | G6: 6 | H6: 6 | I6: 6 | J6: 6 | K6: 6 | L6: 6 | M6: 6 | N6: 6 | O6: 6 | P6: 6 | Q6: 6 | R6: 6 | S6: 5 | T6: 6 | U6: 6 | V6: 6 | W6: 5 | X6: 5 | Y6: 6 | Z6: 5 | AA6: 5 | AB6: 5 | AC6: 6 | AD6: 6 | AE6: 6 | AF6: 6 | AG6: 6 | AH6: 6 | AI6: 5 | AJ6: 5 | AK6: 5 | AL6: 6 | AM6: 6 | AN6: 6 | AO6: 6 | AP6: 6 | AQ6: 6 | AR6: 6 | AS6: 6 | AT6: 6 | AU6: 6 | AV6: 6 | AW6: 6 | AX6: 6 | AY6: 6 | AZ6: 6 | BA6: 6 | BB6: 6 | BC6: 6 | BD6: 6 | BE6: 6 | BF6: 6 | BG6: 6 | BH6: 6 | BI6: 6 | BJ6: 6 | BK6: 6 | BL6: 6 | BM6: 6 | BN6: 6 | BO6: 6 | BP6: 6 | BQ6: 6 | BR6: 6 | BS6: 6 | BT6: 6 | BU6: 6 | BV6: 6 | BW6: 6 | BX6: 6 | BY6: 6 | BZ6: 6 | CA6: 6 | CB6: 6 | CC6: 6 | CD6: 6 | CE6: 6 | CF6: 6 | CG6: 5 | CH6: 6 | CI6: 6 | CJ6: 5 | CK6: 6 | CL6: 6 | CM6: 6 | CN6: 6 | CO6: 6 | CP6: 6 | CQ6: 6 | CR6: 6 | CS6: 6 | CT6: 6 | CU6: 6 | CV6: 6 | CW6: 6 | CX6: 6 | CY6: 6 | CZ6: 6 | DA6: 6 | DB6: 6 | DC6: 6 | DD6: 6 | DE6: 6 | DF6: 6 | DG6: 6 | DH6: 6 | DI6: 6 | DJ6: 6 | DK6: 6 | DL6: 6 | DM6: 6 | DN6: 6 | DO6: 6 | DP6: 6 | DQ6: 6 | DR6: 6 | DS6: 6 | DT6: 6 | DU6: 6 | DV6: 6 | DW6: 6 | DX6: 6 | DY6: 6 | DZ6: 6 | EA6: 6 | EB6: 6 | EC6: 6 | ED6: 6 | EE6: 6 | EF6: 6 | EG6: 6 | EH6: 6 | EI6: 6 | EJ6: 6 | EK6: 6 | EL6: 5 | EM6: 6 | EN6: 6 | EO6: 6 | EP6: 6 | EQ6: 6 | ER6: 6 | ES6: 6 | ET6: 6 | EU6: 6 | EV6: 6 | EW6: 6 | EX6: 6 | EY6: 6 | EZ6: 6 | FA6: 6 | FB6: 6 | FC6: 6 | FD6: 6 | FE6: 6 | FF6: 6 | FG6: 6 | FH6: 5 | FI6: 6 | FJ6: 6 | FK6: 6 | FL6: 6 | FM6: 6 | FN6: 6 | FO6: 6 | FP6: 6 | FQ6: 6 | FR6: 6 | FS6: 6 | FT6: 6 | FU6: 6 | FV6: 6 | FW6: 5 | FX6: 6 | FY6: 6 | FZ6: 6 | GA6: 5 | GB6: 6 | GC6: 6 | GD6: 5 | GE6: 6 | GF6: 6 | GG6: 6 | GH6: 6 | GI6: 6 | GJ6: 6 | GK6: 6 | GL6: 6 | GM6: 6 | GN6: 5 | GO6: 6 | GP6: 6 | GQ6: 6 | GR6: 6 | GS6: 5 | GT6: 6 | GU6: 6 | GV6: 6 | GW6: 6 | GX6: 6 | GY6: 6 | GZ6: 6 | HA6: 6 | HB6: 6 | HC6: 6 | HD6: 6 | HE6: 6 | HF6: 6 | HG6: 6 | HH6: 6 | HI6: 6 | HJ6: 6 | HK6: 6 | HL6: 6 | HM6: 6 | HN6: 6 | HO6: 6 | HP6: 5 | HQ6: 5 | HR6: 6 | HS6: 6 | HT6: 6 | HU6: 6 | HV6: 6 | HW6: 6 | HX6: 6 | HY6: 6 | HZ6: 6 | IA6: 6 | IB6: 6 | IC6: 6 | ID6: 5 | IE6: 6 | IF6: 6 | IG6: 6 | IH6: 6 | II6: 6 | IJ6: 6 | IK6: 6 | IL6: 6 | IM6: 6 | IN6: 5 | IO6: 6 | IP6: 6 | IQ6: 6 | IR6: 6 | IS6: 5 | IT6: 6 | IU6: 6 | IV6: 6 | IW6: 6 | IX6: 6 | IY6: 6 | IZ6: 6 | JA6: 6 | JB6: 5 | JC6: 6 | JD6: 6 | JE6: 6 | JF6: 6 | JG6: 6 | JH6: 6 | JI6: 5 | JJ6: 6 | JK6: 7 | JL6: 7 | JM6: 6 | JN6: 6 | JO6: 10 | JP6: 6 | JQ6: 6 | JR6: 6 | JS6: 6 | JT6: 6 | JU6: 6 | JV6: 5 | JW6: 6 | JX6: 6 | JY6: 5 | JZ6: 6 | KA6: 5 | KB6: 6 | KC6: 5 | KD6: 6 | KE6: 10 | KF6: 9 | KG6: 8 | KH6: 7 | KI6: 6 | KJ6: 6 | KK6: 6 | KL6: 6 | KM6: 6 | KN6: 6 | KO6: 6 | KP6: 6 | KQ6: 6 | KR6: 6 | KS6: 6 | KT6: 6 | KU6: 6 | KV6: 6 | KW6: 6 | KX6: 6 | KY6: 6 | KZ6: 6 | LA6: 6 | LB6: 6 | LC6: 6 | LD6: 6 | LE6: 6 | LF6: 6 | LG6: 6 | LH6: 6 | LI6: 6 | LJ6: 6 | LK6: 6 | LL6: 6 | LM6: 6 | LN6: 6 | LO6: 6 | LP6: 6 | LQ6: 6 | LR6: 6 | LS6: 6 | LT6: 6 | LU6: 6 | LV6: 5 | LW6: 6 | LX6: 6 | LY6: 6 | LZ6: 6 | MA6: 6 | MB6: 6 | MC6: 6 | MD6: 6 | ME6: 6 | MF6: 6 | MG6: 6 | MH6: 6 | MI6: 6 | MJ6: 5 | MK6: 6 | ML6: 6 | MM6: 6 | MN6: 6 | MO6: 3 | MP6: 6 | MQ6: 6 | MR6: 6 | MS6: 6 | MT6: 6 | MU6: 6 | MV6: 6 | MW6: 6 | MX6: 8 | MY6: 6 | MZ6: 5 | NA6: 5 | NB6: 6 | NC6: 6 | ND6: 3 | NE6: 6 | NF6: 6 | NG6: 5 | NH6: 5
E7: Wind | G7: calm | H7: N 6 | I7: N2 | J7: NW 10 | K7: E 10 | L7: S 12 | M7: NW 10 | N7: NE 10 | O7: S 22 | P7: NW 5 | Q7: calm | R7: S 5 | S7: NW 4 | T7: N 120 | U7: calm | V7: S 5 | W7: NW 10 | X7: calm | Y7: W 3 | Z7: N 10 | AA7: NNE 16 | AB7: E 4 | AC7: SE 4 | AD7: SSE 3 | AE7: S 4 | AF7: SW 5 | AG7: calm | AH7: S 8 | AI7: NW 10 | AJ7: calm | AK7: NW 8 | AL7: N 8 | AM7: N 3 | AN7: NB 5 | AO7: S 4 | AP7: calm | AQ7: N 25 | AR7: N 10 | AS7: NNE 5 | AT7: NE 3 | AU7: calm | AV7: S 8 | AW7: S 12 | AX7: NW 10 | AY7: N 5 | AZ7: calm | BA7: calm | BB7: calm | BC7: N 14 | BD7: N 14 | BE7: N 3 | BF7: N 5 | BG7: calm | BH7: SW 17 | BI7: NW 4 | BJ7: N 3 | BK7: calm | BL7: S 3 | BM7: S 8 | BN7: N 10 | BO7: E 5 | BP7: S 3 | BQ7: S 5 | BR7: N 5 | BS7: E 3 | BT7: SW 10 | BU7: W 3 | BV7: E 3 | BW7: S 8 | BX7: NW 8 | BY7: N 10 | BZ7: calm | CA7: calm | CB7: calm | CC7: S 5 | CD7: W 4 | CE7: SW 4 | CF7: calm | CG7: N 15 | CH7: N 3 | CI7: calm | CJ7: SE 9 | CK7: S 5 - 12 | CL7: N 20 | CM7: E 8 | CN7: S 4 | CO7: SW 3 | CP7: calm | CQ7: N 8 | CR7: calm | CS7: calm | CT7: SW 4 | CU7: calm | CV7: S 8 - 15 | CW7: NW 6 | CX7: SW 4 | CY7: W 5 | CZ7: NE 4 | DA7: E 8 | DB7: SE 6 | DC7: SE 8 | DD7: SW 25 | DE7: W 8 | DF7: N 4 | DG7: NNE 3 | DH7: S 4 | DI7: calm | DJ7: S 6 | DK7: S 3 | DL7: calm | DM7: W 4 | DN7: SW 4 | DO7: N 6 | DP7: NE 8 | DQ7: calm | DR7: SE 3 | DS7: calm | DT7: SE 10 | DU7: SE 12 | DV7: SSE 8 | DW7: SSE 5 | DX7: calm | DY7: calm | DZ7: calm | EA7: S 5 | EB7: S 3 | EC7: SE 5 | ED7: SE 7 | EE7: SE 8 | EF7: S 6 | EG7: SW 7 | EH7: NW 6 | EI7: NE 5 | EJ7: SE 6 | EK7: SE 5 | EL7: SE 5 | EM7: SE 4 | EN7: calm | EO7: SW 6 | EP7: W 7 | EQ7: NW 6 | ER7: NE 8 | ES7: E 5 | ET7: SE 4 | EU7: calm | EV7: S 6 | EW7: SW 4 | EX7: calm | EY7: calm | EZ7: NW 3 | FA7: N 3 | FB7: NE 5 | FC7: E 10 | FD7: SE 8 | FE7: calm | FF7: calm | FG7: calm | FH7: S 6 | FI7: SW 4 | FJ7: W 5 | FK7: W 7 | FL7: SW 7 | FM7: SW 3 | FN7: calm | FO7: SW 4 | FP7: W 3 | FQ7: calm | FR7: calm | FS7: E 11 | FT7: E 16 | FU7: E 19 | FV7: E 21 | FW7: NE 8 | FX7: calm | FY7: S 3 | FZ7: S 3 | GA7: S 3 | GB7: S 3 | GC7: SW 4 | GD7: SW 3 | GE7: calm | GF7: calm | GG7: SW 4 | GH7: S 3 | GI7: S 3 | GJ7: S 3 | GK7: calm | GL7: calm | GM7: S 4 | GN7: S 3 | GO7: SW 3 | GP7: SW 5 | GQ7: NW 4 | GR7: NW 4 | GS7: SW 4 | GT7: SW 3 | GU7: calm | GV7: calm | GW7: SW 3 | GX7: calm | GY7: calm | GZ7: calm | HA7: calm | HB7: calm | HC7: calm | HD7: calm | HE7: S 3 | HF7: S 3 | HG7: calm | HH7: calm | HI7: E 5 | HJ7: W 3 | HK7: calm | HL7: SW 4 | HM7: calm | HN7: calm | HO7: S 5 | HP7: S 25 | HQ7: SW 20 | HR7: W 8 | HS7: SW 4 | HT7: SW 5 | HU7: S 5 | HV7: SW 5 | HW7: SW 7 | HX7: SW 4 | HY7: S 4 | HZ7: N 5 | IA7: NE 9 | IB7: E 4 | IC7: SE 4 | ID7: SW 6 | IE7: SW 7 | IF7: SW 6 | IG7: SW 3 | IH7: calm | II7: calm | IJ7: N 3 | IK7: calm | IL7: calm | IM7: calm | IN7: E 4 | IO7: SE 3 | IP7: E 12 | IQ7: SE 5 | IR7: S 4 | IS7: S 3 | IT7: NE 4 | IU7: E 4 | IV7: calm | IW7: calm | IX7: E 4 | IY7: E 3 | IZ7: NE 3 | JA7: E 10 | JB7: E 16 | JC7: NE 3 | JD7: N 3 | JE7: N 3 | JF7: N 8 | JG7: N 4 | JH7: S 3 | JI7: SW 4 | JJ7: W 3 | JK7: N 6 | JL7: NNE 5 | JM7: E 4 | JN7: E 6 | JO7: ESE 16 | JP7: SE 15 | JQ7: SW 12 | JR7: SW 5 | JS7: calm | JT7: calm | JU7: W 3 | JV7: N 3 | JW7: NE 5 | JX7: calm | JY7: calm | JZ7: NE 9 | KA7: calm | KB7: N 16 | KC7: E 16 | KD7: NE 47 | KE7: NE 18 | KF7: NNE 10 | KG7: N 5 | KH7: NW 4 | KI7: NW 5 | KJ7: N 20 | KK7: NNE 12 | KL7: NE 15 | KM7: E 16 | KN7: N 10 | KO7: N 10 | KP7: N 5 | KQ7: N 5 | KR7: N 3 | KS7: calm | KT7: N 3 | KU7: calm | KV7: N 6 | KW7: E 4 | KX7: E 12 | KY7: E 13 | KZ7: E 4 | LA7: E 3 | LB7: E 4 | LC7: E 10 | LD7: SE 4 | LE7: S 4 | LF7: SE 3 | LG7: S 4 | LH7: E 6 | LI7: E 15 | LJ7: calm | LK7: N 2 | LL7: E 22 | LM7: S 8 | LN7: N 18 | LO7: NNE 10 | LP7: NNE 4 | LQ7: calm | LR7: S 4 | LS7: calm | LT7: NW 8 | LU7: W 16 | LV7: NW 5 | LW7: NW 3 | LX7: calm | LY7: calm | LZ7: calm | MA7: SW 4 | MB7: NW 4 | MC7: N 5 | MD7: N 5 | ME7: N 7 | MF7: N 8 | MG7: N 8 | MH7: N 3 | MI7: N 5 | MJ7: NNE 12 | MK7: calm | ML7: calm | MM7: calm | MN7: S 10 | MO7: N 10 | MP7: NE 22 | MQ7: E 23 | MR7: E 14 | MS7: E 8 | MT7: calm | MU7: E 21 | MV7: calm | MW7: W 5 | MX7: N 9 | MY7: N 4 | MZ7: N 12 | NA7: N 8 | NB7: N 3 | NC7: N 3 | ND7: NNE 10 | NE7: calm | NF7: S 4 | NG7: calm | NH7: SW 8
E8: Weather | G8: 46 deg. | H8: 46 deg. | I8: 49 deg. | J8: 49 deg. | L8: rain | N8: cloudy | O8: cloudy | P8: 48 deg. | Q8: 46 deg | R8: rain @ 8.30 | S8: cloudy | T8: cloudy | V8: fog early | W8: 40 deg. | X8: cloudy | Z8: 42 deg. | AA8: 47 deg | AE8: poor vis. | AG8: river only | AH8: front | AI8: 47 deg. | AJ8: 47 deg. | AK8: 47 deg. | AL8: 48 deg. | AN8: 49 deg. | AO8: rain @ 10 | AY8: 49 deg. | AZ8: cloudy | BA8: cloudy | BB8: cloudy | BC8: rain | BD8: rain to 9 | BE8: 46 deg. | BF8: 48 deg. | BG8: 47 deg. | BK8: 49 deg. | BN8: cloudy | BO8: showers | BP8: cloudy | BQ8: t.storms | BR8: patchy fog | CF8: rain @ 9 | CH8: 48 deg. | CJ8: rain to 9 | CO8: cloudy | CP8: rain | CV8: cloudy | DB8: cloudy | DD8: cloudy | DM8: fog early | DO8: cloudy | DU8: cloudy | EG8: cloudy | EJ8: cloudy | EK8: cloudy | EL8: rainearly | FW8: showers | GE8: cloudy | GQ8: cloudy | HH8: cloudy | HP8: H.Debby | HR8: cloudy | IH8: cloudy | IY8: cloud | IZ8: shower | JB8: rain @ 8 | JE8: showers | JL8: showers | JO8: H.Helene | JP8: H.Helene | JZ8: showers | KA8: RAIN | KC8: rain @ 6 | KD8: H.Milton | KE8: H.Milton | KN8: showers | KV8: cloudy | LJ8: poor vis. | LU8: 48 deg. | LV8: 45 deg. | LW8: 48 deg. | MB8: cloudy | MC8: 45 deg. | MD8: 46 deg. | ME8: 47 deg. | MF8: 45 deg. | MG8: 42 deg. | MH8: 47 deg. | MI8: cloudy | MO8: 46 deg, | MQ8: cloudy | MS8: showers | MU8: rain early | MV8: fog early | MX8: C.B.C. | MY8: 47 deg | NA8: poor vis. | NC8: cloudy | ND8: rain | NE8: rain tp 9 | NF8: waem front | NG8: fog
MX9: 46 deg.
A11: Red-throated Loon | I11: 1 | AA11: 1 | AX11: 1 | AZ11: 1 | BB11: 1 | BC11: 1 | BO11: 1 | BT11: 1 | BV11: 1 | MF11: 1 | MI11: 1 | MJ11: 1 | MW11: 1 | MX11: 1
A12: Pacific Loon | AF12: 1 | BT12: 1
A13: Common Loon | G13: 1 | I13: 1 | L13: 1 | Q13: 1 | AA13: 1 | AG13: 2 | AK13: 3 | AN13: 2 | AO13: 2 | AP13: 1 | AU13: 1 | AV13: 1 | AX13: 1 | AY13: 1 | AZ13: 1 | BB13: 4 | BC13: 1 | BD13: 2 | BE13: 1 | BF13: 1 | BG13: 1 | BI13: 1 | BJ13: 1 | BK13: 1 | BL13: 1 | BN13: 1 | BR13: 1 | BS13: 1 | BT13: 1 | BV13: 4 | BY13: 1 | BZ13: 1 | CA13: 1 | CB13: 2 | CD13: 2 | CF13: 1 | CG13: 1 | CH13: 1 | CK13: 2 | CL13: 1 | CM13: 2 | CQ13: 1 | CS13: 1 | CU13: 1 | CW13: 1 | CX13: 1 | CZ13: 1 | DE13: 1 | DI13: 1 | DM13: 1 | DY13: 1 | EB13: 1 | EI13: 1 | LL13: 1 | LP13: 1 | LR13: 1 | LS13: 1 | LT13: 1 | LU13: 1 | LW13: 2 | LX13: 3 | LZ13: 1 | MA13: 2 | MD13: 6 | MF13: 1 | MG13: 2 | MH13: 4 | MJ13: 4 | ML13: 3 | MR13: 3 | MU13: 1 | MW13: 3 | MX13: 4 | NB13: 1 | NF13: 1
A14: Pied-billed Grebe | KI14: 1
A15: Horned Grebe | AO15: 1 | BJ15: 1 | CQ15: 1 | LZ15: 1 | MA15: 1 | MJ15: 2 | NG15: 1
A16: Red-necked Grebe | BO16: 1
A17: Eared Grebe | AX17: 1 | MI17: 1
A18: Yellow-nosed Albatross
A19: SOUTHERN GIANT PETREL | KE19: 1
A20: Northern Fulmar
A21: Black-capped Petrel
A22: Cory's Shearwater | FT22: 44 | FU22: 30 | FV22: 15 | FW22: 3 | FX22: 7 | GK22: 1 | JO22: 1 | JW22: 1 | KB22: 2 | KE22: 1
A23: Scopoli's Shearwater | FW23: 1 | FX23: 7 | JO23: 1
A24: Great Shearwater | L24: 1 | AT24: 1 | FS24: 1 | FT24: 7 | FU24: 2 | FV24: 23 | FW24: 1 | FX24: 2 | IP24: 1 | JO24: 10 | JP24: 4 | KB24: 2 | KL24: 1 | KM24: 1 | KW24: 1 | LL24: 1
A25: Sooty Shearwater | DD25: 1 | FT25: 1 | FV25: 1 | KO25: 1
A26: Manx Shearwater | KK26: 1 | MQ26: 2 | NF26: 1
A27: Audubon's Shearwater | FV27: 5 | IP27: 2 | JO27: 1 | JP27: 1 | KB27: 1 | KF27: 1
A28: Wilson's Storm-Petrel | FV28: 1 | KD28: 1
A29: Leach's Storm-Petrel | FV29: 9 | KC29: 1 | KD29: 1
A30: Band-rumped Storm-Petrel | FV30: 1
A31: Grant's Storm-Petrel
A32: Maderian Storm Petrel
A33: White-tailed Tropicbird
A34: Masked Booby | O34: 1 | S34: 1
A35: Brown Booby | DG35: 1 | FD35: 1 | FU35: 1 | KY35: 2 | LD35: 1
A36: Northern Gannet | G36: 9 | H36: 7 | I36: 1 | J36: 2 | K36: 3 | L36: 191 | M36: 53 | N36: 511 | O36: 194 | P36: 13 | Q36: 41 | R36: 233 | S36: 168 | T36: 78 | U36: 44 | V36: 110 | W36: 78 | X36: 42 | Y36: 14 | Z36: 1 | AA36: 40 | AB36: 28 | AC36: 5 | AD36: 13 | AF36: 8 | AH36: 2 | AI36: 1 | AJ36: 7 | AK36: 4 | AL36: 4 | AM36: 4 | AO36: 38 | AP36: 10 | AQ36: 20 | AS36: 1 | AT36: 23 | AU36: 5 | AV36: 25 | AW36: 23 | AX36: 2 | AY36: 1 | AZ36: 6 | BA36: 1 | BC36: 15 | BD36: 8 | BE36: 2 | BF36: 5 | BH36: 1 | BL36: 1 | BM36: 1 | BN36: 17 | BO36: 2 | BQ36: 28 | BR36: 4 | BS36: 3 | BT36: 5 | BU36: 1 | BW36: 2 | BY36: 3 | BZ36: 2 | CD36: 1 | CG36: 5 | CJ36: 1 | CL36: 2 | CN36: 1 | CQ36: 1 | CR36: 2 | CS36: 1 | CT36: 3 | CU36: 1 | CV36: 5 | CX36: 1 | CY36: 2 | CZ36: 1 | DB36: 1 | DD36: 1 | DF36: 1 | DG36: 5 | DJ36: 1 | DL36: 6 | DN36: 1 | DO36: 4 | DP36: 1 | DQ36: 1 | DR36: 2 | DT36: 7 | DU36: 1 | EB36: 4 | KM36: 1 | KQ36: 1 | KW36: 5 | KX36: 16 | KY36: 5 | KZ36: 1 | LA36: 3 | LB36: 6 | LC36: 5 | LD36: 7 | LE36: 25 | LF36: 7 | LG36: 3 | LH36: 1 | LI36: 42 | LJ36: 2 | LK36: 1` | LL36: 15 | LM36: 12 | LN36: 3 | LO36: 30 | LP36: 83 | LQ36: 18 | LR36: 6 | LS36: 2 | LU36: 11 | LV36: 2 | LW36: 6 | LX36: 7 | LY36: 1 | MA36: 12 | MB36: 2 | MC36: 5 | ME36: 1 | MF36: 7 | MG36: 4 | MH36: 2 | MI36: 5 | MJ36: 34 | MK36: 3 | ML36: 1 | MM36: 2 | MN36: 4 | MO36: 3 | MP36: 21 | MQ36: 1110 | MR36: 64 | MS36: 223 | MT36: 78 | MU36: 106 | MV36: 6 | MW36: 28 | MX36: 30 | MY36: 1 | MZ36: 31 | NA36: 1 | NB36: 1 | NC36: 16 | ND36: 3 | NE36: 22 | NF36: 62 | NG36: 1 | NH36: 34
A37: American White Pelican | H37: 16 | I37: 69 | K37: 9 | Q37: 4 | AA37: 38 | AJ37: 39 | AK37: 31 | AL37: 43 | AP37: 3 | AU37: 31 | AV37: 2 | AY37: 5 | BF37: 2 | BL37: 2 | BM37: 2 | BO37: 5 | BR37: 4 | GE37: 1 | MC37: 1 | MI37: 1 | ML37: 4 | MN37: 8 | MV37: 2 | MX37: 21 | NG37: 2
A38: Brown Pelican | G38: 33 | H38: 93 | I38: 135 | J38: 9 | K38: 7 | L38: 98 | M38: 27 | N38: 82 | O38: 247 | P38: 200 | Q38: 126 | R38: 240 | S38: 23 | T38: 92 | U38: 15 | V38: 13 | W38: 21 | X38: 45 | Y38: 53 | Z38: 6 | AA38: 100 | AB38: 59 | AC38: 39 | AD38: 10 | AE38: 3 | AF38: 21 | AG38: 5 | AH38: 20 | AI38: 33 | AJ38: 11 | AK38: 16 | AL38: 10 | AM38: 16 | AN38: 24 | AO38: 72 | AP38: 74 | AQ38: 167 | AR38: 5 | AS38: 56 | AT38: 55 | AU38: 9 | AV38: 19 | AW38: 9 | AX38: 17 | AY38: 7 | AZ38: 29 | BA38: 9 | BB38: 31 | BC38: 56 | BD38: 10 | BE38: 16 | BF38: 12 | BG38: 5 | BH38: 1 | BI38: 10 | BJ38: 6 | BK38: 7 | BL38: 14 | BM38: 18 | BN38: 78 | BO38: 39 | BP38: 198 | BQ38: 4 | BR38: 7 | BS38: 130 | BT38: 55 | BU38: 53 | BV38: 20 | BW38: 50 | BX38: 80 | BY38: 3 | BZ38: 37 | CA38: 83 | CB38: 36 | CC38: 86 | CD38: 176 | CE38: 335 | CF38: 266 | CG38: 45 | CH38: 97 | CI38: 89 | CJ38: 114 | CK38: 87 | CL38: 70 | CM38: 100 | CN38: 70 | CO38: 60 | CP38: 99 | CQ38: 143 | CR38: 53 | CS38: 157 | CT38: 123 | CU38: 52 | CV38: 55 | CW38: 97 | CX38: 111 | CY38: 215 | CZ38: 98 | DA38: 22 | DB38: 26 | DC38: 39 | DD38: 217 | DE38: 81 | DF38: 177 | DG38: 46 | DH38: 41 | DI38: 38 | DJ38: 9 | DK38: 324 | DL38: 111 | DM38: 29 | DN38: 45 | DO38: 122 | DP38: 22 | DQ38: 113 | DR38: 25 | DS38: 34 | DT38: 6 | DU38: 4 | DV38: 11 | DW38: 11 | DX38: 23 | DY38: 35 | DZ38: 9 | EA38: 25 | EB38: 54 | EC38: 40 | ED38: 26 | EE38: 14 | EF38: 21 | EG38: 64 | EH38: 70 | EI38: 126 | EJ38: 7 | EK38: 21 | EL38: 31 | EM38: 10 | EN38: 35 | EO38: 48 | EP38: 49 | EQ38: 23 | ER38: 15 | ES38: 16 | ET38: 12 | EU38: 31 | EV38: 37 | EW38: 17 | EX38: 36 | EY38: 27 | EZ38: 48 | FA38: 27 | FB38: 17 | FC38: 22 | FD38: 8 | FE38: 40 | FF38: 29 | FG38: 43 | FH38: 32 | FI38: 31 | FJ38: 49 | FK38: 47 | FL38: 31 | FM38: 52 | FN38: 64 | FO38: 35 | FP38: 24 | FQ38: 60 | FR38: 92 | FS38: 9 | FT38: 17 | FU38: 7 | FV38: 4 | FW38: 8 | FX38: 96 | FY38: 48 | FZ38: 12 | GA38: 34 | GB38: 31 | GC38: 55 | GD38: 23 | GE38: 14 | GF38: 23 | GG38: 33 | GH38: 15 | GI38: 22 | GJ38: 13 | GK38: 20 | GL38: 36 | GM38: 35 | GN38: 20 | GO38: 29 | GP38: 61 | GQ38: 5 | GR38: 36 | GS38: 16 | GT38: 35 | GU38: 19 | GV38: 9 | GW38: 5 | GX38: 19 | GY38: 15 | GZ38: 7 | HA38: 17 | HB38: 5 | HC38: 10 | HD38: 16 | HE38: 37 | HF38: 16 | HG38: 15 | HH38: 20 | HI38: 16 | HJ38: 25 | HK38: 26 | HL38: 38 | HM38: 26 | HN38: 12 | HO38: 49 | HP38: 32 | HQ38: 7 | HR38: 7 | HS38: 13 | HT38: 27 | HU38: 23 | HV38: 26 | HW38: 46 | HX38: 32 | HY38: 54 | HZ38: 33 | IA38: 40 | IB38: 21 | IC38: 13 | ID38: 30 | IE38: 37 | IF38: 13 | IG38: 38 | IH38: 18 | II38: 9 | IJ38: 39 | IK38: 27 | IL38: 3 | IM38: 14 | IN38: 13 | IO38: 7 | IP38: 4 | IQ38: 26 | IR38: 17 | IS38: 47 | IT38: 59 | IU38: 26 | IV38: 30 | IW38: 25 | IX38: 21 | IY38: 15 | IZ38: 20 | JA38: 15 | JB38: 1 | JC38: 8 | JD38: 11 | JE38: 7 | JF38: 14 | JG38: 5 | JH38: 12 | JI38: 2 | JJ38: 22 | JK38: 4 | JL38: 18 | JM38: 22 | JN38: 5 | JO38: 17 | JP38: 12 | JQ38: 7 | JR38: 1 | JS38: 11 | JT38: 3 | JU38: 39 | JV38: 5 | JW38: 24 | JX38: 15 | JZ38: 28 | KA38: 42 | KB38: 95 | KC38: 19 | KE38: 48 | KF38: 239 | KG38: 106 | KH38: 42 | KI38: 5 | KJ38: 1 | KK38: 11 | KL38: 49 | KM38: 20 | KN38: 23 | KO38: 52 | KP38: 37 | KQ38: 23 | KR38: 18 | KS38: 28 | KT38: 61 | KU38: 41 | KV38: 78 | KW38: 100 | KX38: 41 | KY38: 31 | KZ38: 38 | LA38: 44 | LB38: 30 | LC38: 27 | LD38: 16 | LE38: 54 | LF38: 29 | LG38: 27 | LH38: 16 | LI38: 23 | LJ38: 9 | LK38: 57 | LL38: 19 | LM38: 43 | LN38: 62 | LO38: 106 | LP38: 53 | LQ38: 59 | LR38: 5 | LS38: 5 | LT38: 2 | LU38: 60 | LV38: 65 | LW38: 78 | LX38: 100 | LY38: 30 | LZ38: 80 | MA38: 34 | MB38: 30 | MC38: 59 | MD38: 47 | ME38: 63 | MF38: 108 | MG38: 142 | MH38: 74 | MI38: 125 | MJ38: 37 | MK38: 20 | ML38: 19 | MM38: 47 | MN38: 64 | MO38: 69 | MP38: 130 | MQ38: 68 | MR38: 115 | MS38: 168 | MT38: 66 | MU38: 3 | MV38: 5 | MW38: 23 | MX38: 76 | MY38: 22 | MZ38: 2 | NA38: 68 | NB38: 23 | NC38: 295 | ND38: 63 | NE38: 168 | NF38: 9 | NG38: 6 | NH38: 18
A39: Neotropic Cormorant | GE39: 1
A40: Double-crested Cormorant | G40: 11 | H40: 11 | I40: 13 | J40: 8 | K40: 85 | L40: 40 | M40: 11 | N40: 13 | O40: 38 | P40: 12 | Q40: 13 | S40: 8 | T40: 4 | U40: 12 | V40: 18 | W40: 10 | X40: 18 | Y40: 5 | Z40: 2 | AA40: 2 | AB40: 12 | AC40: 18 | AD40: 12 | AE40: 12 | AF40: 16 | AG40: 12 | AH40: 12 | AI40: 15 | AJ40: 22 | AK40: 10 | AL40: 14 | AM40: 16 | AN40: 17 | AO40: 18 | AP40: 15 | AQ40: 1 | AR40: 23 | AS40: 25 | AT40: 28 | AU40: 21 | AV40: 18 | AW40: 9 | AX40: 15 | AY40: 12 | AZ40: 20 | BA40: 20 | BB40: 21 | BC40: 1 | BD40: 18 | BE40: 16 | BF40: 20 | BG40: 16 | BH40: 18 | BI40: 16 | BJ40: 13 | BK40: 15 | BL40: 12 | BM40: 15 | BO40: 14 | BP40: 9 | BQ40: 4 | BR40: 9 | BS40: 16 | BT40: 20 | BU40: 21 | BV40: 26 | BW40: 18 | BX40: 12 | BY40: 7 | BZ40: 19 | CA40: 12 | CB40: 9 | CC40: 10 | CD40: 38 | CE40: 25 | CF40: 111 | CG40: 114 | CH40: 6 | CI40: 12 | CJ40: 13 | CK40: 39 | CL40: 9 | CM40: 36 | CN40: 24 | CO40: 27 | CP40: 6 | CQ40: 12 | CR40: 9 | CS40: 130 | CT40: 27 | CU40: 33 | CV40: 60 | CW40: 580 | CX40: 31 | CY40: 22 | CZ40: 4 | DA40: 42 | DB40: 6 | DC40: 6 | DD40: 30 | DE40: 6 | DF40: 7 | DG40: 71 | DH40: 9 | DI40: 8 | DJ40: 9 | DL40: 44 | DM40: 3 | DN40: 21 | DO40: 2 | DP40: 47 | DQ40: 3 | DR40: 7 | DS40: 23 | DT40: 8 | DV40: 12 | DW40: 3 | DX40: 1 | DY40: 7 | DZ40: 12 | EA40: 2 | EB40: 1 | EC40: 1 | ED40: 1 | EE40: 2 | EF40: 3 | EG40: 5 | EH40: 2 | EI40: 4 | EJ40: 2 | EK40: 3 | EN40: 1 | EO40: 2 | EP40: 8 | ER40: 4 | ES40: 1 | ET40: 2 | EU40: 2 | EV40: 7 | EW40: 2 | EX40: 2 | EY40: 2 | EZ40: 1 | FA40: 1 | FC40: 3 | FD40: 2 | FE40: 1 | FF40: 1 | FG40: 1 | FH40: 2 | FI40: 1 | FJ40: 1 | FK40: 1 | FL40: 1 | FN40: 1 | FO40: 1 | FV40: 1 | FY40: 2 | FZ40: 1 | GC40: 2 | GE40: 2 | GF40: 1 | GG40: 1 | GH40: 2 | GJ40: 2 | GK40: 1 | GL40: 1 | GM40: 2 | GN40: 1 | GO40: 2 | GP40: 2 | GQ40: 3 | GR40: 1 | GS40: 1 | GT40: 1 | GU40: 1 | GV40: 2 | GW40: 1 | GY40: 1 | GZ40: 1 | HA40: 3 | HB40: 1 | HC40: 1 | HE40: 2 | HF40: 1 | HG40: 2 | HH40: 1 | HI40: 1 | HJ40: 1 | HL40: 1 | HM40: 1 | HR40: 1 | HS40: 2 | HT40: 1 | HV40: 1 | HX40: 1 | HZ40: 1 | IA40: 1 | IB40: 1 | IC40: 1 | ID40: 1 | IE40: 1 | IG40: 2 | IH40: 1 | II40: 3 | IJ40: 1 | IM40: 1 | IO40: 1 | IP40: 1 | IS40: 1 | IT40: 3 | IU40: 1 | IV40: 1 | IW40: 3 | IX40: 1 | JC40: 1 | JF40: 1 | JH40: 1 | JI40: 1 | JJ40: 1 | JK40: 1 | JL40: 1 | JQ40: 1 | JR40: 2 | JU40: 1 | JV40: 4 | JX40: 5 | JY40: 5 | KD40: 1 | KE40: 7 | KG40: 3 | KH40: 3 | KI40: 1 | KJ40: 1 | KK40: 1 | KL40: 5 | KM40: 36 | KN40: 8 | KO40: 8 | KR40: 1 | KS40: 2 | KU40: 58 | KV40: 81 | KW40: 65 | KX40: 7 | KY40: 1 | KZ40: 18 | LA40: 2 | LB40: 1 | LC40: 34 | LD40: 22 | LE40: 5 | LF40: 5 | LG40: 2 | LH40: 3 | LI40: 64 | LJ40: 1 | LK40: 8 | LL40: 29 | LM40: 32 | LN40: 1 | LO40: 8 | LP40: 7 | LQ40: 2 | LR40: 3 | LS40: 9 | LT40: 1 | LU40: 3 | LV40: 4 | LW40: 1 | LX40: 6 | LY40: 40 | LZ40: 27 | MA40: 180 | MB40: 23 | MC40: 6 | MD40: 11 | ME40: 3 | MF40: 13 | MG40: 3 | MH40: 53 | MI40: 18 | MJ40: 15 | MK40: 8 | ML40: 23 | MM40: 5 | MN40: 5 | MO40: 4 | MP40: 3 | MQ40: 173 | MR40: 70 | MS40: 7 | MT40: 8 | MU40: 4 | MV40: 5 | MW40: 9 | MX40: 26 | MY40: 3 | MZ40: 5 | NA40: 13 | NB40: 2 | NC40: 13 | NE40: 6 | NF40: 7 | NG40: 9 | NH40: 7
A41: Great Cormorant | Q41: 1 | MB41: 1
A42: Anhinga | G42: 1 | H42: 2 | I42: 1 | J42: 1 | M42: 1 | P42: 1 | Q42: 1 | S42: 1 | W42: 1 | AA42: 3 | AB42: 4 | AF42: 1 | AJ42: 1 | AK42: 1 | AL42: 1 | AM42: 2 | AN42: 1 | AQ42: 2 | AS42: 1 | AU42: 3 | AV42: 1 | AY42: 1 | AZ42: 1 | BF42: 1 | BH42: 1 | BI42: 1 | BJ42: 1 | BM42: 1 | BN42: 1 | BP42: 1 | BU42: 1 | BX42: 1 | BY42: 1 | BZ42: 1 | CA42: 1 | CD42: 1 | CK42: 1 | CM42: 12 | CN42: 2 | CQ42: 1 | CS42: 2 | CT42: 1 | CU42: 1 | CW42: 28 | CX42: 12 | CY42: 1 | CZ42: 1 | DC42: 5 | DE42: 1 | DF42: 2 | DH42: 3 | DL42: 3 | DO42: 1 | DR42: 5 | DU42: 1 | DX42: 1 | EE42: 2 | EI42: 1 | EL42: 13 | EM42: 2 | EO42: 1 | EP42: 3 | ES42: 2 | EU42: 2 | EY42: 1 | FA42: 2 | FB42: 1 | FC42: 1 | FI42: 3 | FL42: 1 | FM42: 1 | FQ42: 1 | FR42: 1 | FT42: 1 | FZ42: 3 | GC42: 2 | GF42: 1 | GH42: 2 | GL42: 1 | GN42: 1 | GP42: 1 | GQ42: 3 | GU42: 1 | GW42: 2 | GX42: 1 | GY42: 1 | GZ42: 2 | HC42: 1 | HE42: 1 | HF42: 1 | HG42: 1 | HH42: 1 | HI42: 1 | HK42: 1 | HQ42: 1 | HT42: 1 | HU42: 1 | IE42: 1 | IF42: 10 | IH42: 3 | II42: 1 | IK42: 1 | IP42: 2 | IS42: 1 | IV42: 1 | IW42: 1 | IX42: 1 | JA42: 2 | JF42: 1 | JG42: 1 | JH42: 4 | JJ42: 2 | JK42: 2 | JL42: 2 | JS42: 2 | JU42: 1 | KF42: 2 | KH42: 1 | KJ42: 1 | KL42: 1 | KU42: 1 | KZ42: 1 | LN42: 1 | LO42: 1 | LP42: 2 | LR42: 1 | LX42: 1 | LY42: 1 | ML42: 2 | MN42: 2 | MT42: 1 | MW42: 1 | MY42: 1 | MZ42: 1
A43: Magnificent Frigatebird | O43: 1 | BD43: 1 | EP43: 4 | JO43: 1 | JP43: 1 | JR43: 4 | JZ43: 1 | KX43: 1
A44: American Bittern | CE44: 1 | CS44: 1 | CU44: 1 | DH44: 1 | JC44: 1 | JS44: 2 | JU44: 2 | JV44: 1 | KG44: 2 | KH44: 1 | KT44: 1 | LA44: 1 | LH44: 1
A45: Least Bittern | CS45: 1 | DS45: 1 | DX45: 2 | HJ45: 1 | HM45: 1 | HZ45: 1 | IG45: 1 | IW45: 2 | JL45: 1
A46: Great Blue Heron | G46: 3 | H46: 1 | J46: 2 | K46: 2 | L46: 1 | M46: 1 | P46: 1 | Q46: 1 | R46: 1 | S46: 2 | U46: 3 | V46: 2 | W46: 1 | X46: 1 | Y46: 1 | AB46: 1 | AC46: 2 | AD46: 1 | AE46: 2 | AF46: 2 | AG46: 2 | AH46: 1 | AI46: 2 | AJ46: 1 | AK46: 1 | AL46: 1 | AM46: 3 | AN46: 1 | AR46: 2 | AS46: 2 | AV46: 3 | AW46: 1 | AX46: 1 | AZ46: 1 | BA46: 4 | BE46: 2 | BF46: 2 | BG46: 1 | BH46: 2 | BI46: 3 | BJ46: 5 | BK46: 2 | BL46: 1 | BM46: 1 | BO46: 3 | BP46: 2 | BS46: 1 | BT46: 1 | BU46: 6 | BV46: 3 | BW46: 2 | BX46: 1 | BY46: 1 | BZ46: 2 | CA46: 5 | CB46: 7 | CC46: 1 | CD46: 5 | CE46: 1 | CF46: 7 | CH46: 5 | CI46: 14 | CJ46: 1 | CK46: 10 | CL46: 1 | CM46: 11 | CO46: 5 | CP46: 5 | CQ46: 4 | CR46: 3 | CS46: 4 | CT46: 4 | CU46: 2 | CV46: 4 | CW46: 3 | CX46: 1 | CY46: 23 | DA46: 1 | DC46: 1 | DF46: 1 | DG46: 4 | DH46: 1 | DI46: 2 | DJ46: 1 | DL46: 1 | DM46: 1 | DN46: 2 | DO46: 1 | DP46: 1 | DQ46: 2 | DR46: 5 | DS46: 1 | DW46: 2 | DX46: 1 | DY46: 1 | DZ46: 2 | EA46: 1 | EB46: 2 | EC46: 1 | ED46: 1 | EF46: 1 | EG46: 1 | EI46: 2 | EJ46: 2 | EK46: 3 | EL46: 3 | EM46: 4 | EN46: 2 | EO46: 3 | EP46: 1 | EQ46: 3 | ER46: 2 | ET46: 1 | EU46: 4 | EV46: 2 | EW46: 3 | EX46: 3 | EY46: 4 | EZ46: 4 | FA46: 4 | FB46: 2 | FD46: 1 | FE46: 4 | FF46: 5 | FG46: 4 | FH46: 4 | FI46: 4 | FJ46: 2 | FK46: 3 | FL46: 5 | FM46: 4 | FN46: 3 | FO46: 6 | FP46: 1 | FQ46: 4 | FR46: 3 | FS46: 1 | FX46: 3 | FY46: 2 | FZ46: 1 | GA46: 1 | GB46: 3 | GC46: 1 | GD46: 4 | GE46: 2 | GF46: 4 | GG46: 3 | GH46: 1 | GI46: 1 | GJ46: 1 | GK46: 1 | GL46: 1 | GM46: 2 | GN46: 3 | GO46: 2 | GP46: 1 | GS46: 3 | GT46: 3 | GU46: 2 | GV46: 2 | GW46: 2 | GX46: 3 | GY46: 4 | GZ46: 5 | HA46: 2 | HB46: 2 | HC46: 4 | HD46: 2 | HE46: 2 | HF46: 5 | HG46: 2 | HH46: 5 | HI46: 4 | HJ46: 2 | HK46: 2 | HL46: 6 | HM46: 3 | HN46: 3 | HO46: 3 | HQ46: 1 | HR46: 5 | HS46: 4 | HT46: 3 | HU46: 2 | HV46: 4 | HW46: 4 | HX46: 6 | HY46: 5 | HZ46: 4 | IA46: 2 | IB46: 1 | IC46: 3 | ID46: 1 | IE46: 1 | IF46: 1 | IG46: 2 | IH46: 4 | II46: 8 | IJ46: 1 | IK46: 2 | IL46: 1 | IM46: 1 | IN46: 1 | IO46: 3 | IP46: 1 | IR46: 2 | IS46: 4 | IU46: 6 | IV46: 32 | IW46: 8 | IX46: 2 | IY46: 8 | IZ46: 3 | JA46: 1 | JC46: 2 | JD46: 3 | JE46: 1 | JF46: 1 | JG46: 2 | JH46: 3 | JI46: 6 | JJ46: 4 | JK46: 5 | JL46: 6 | JM46: 2 | JN46: 2 | JO46: 2 | JQ46: 2 | JR46: 2 | JS46: 1 | JT46: 6 | JU46: 6 | JV46: 1 | JW46: 3 | JX46: 26 | JY46: 1 | JZ46: 3 | KB46: 2 | KC46: 5 | KE46: 5 | KF46: 8 | KG46: 4 | KH46: 4 | KI46: 2 | KJ46: 3 | KK46: 5 | KL46: 2 | KM46: 4 | KO46: 2 | KP46: 2 | KQ46: 2 | KR46: 1 | KS46: 4 | KT46: 3 | KU46: 5 | KV46: 4 | KW46: 3 | KX46: 2 | KY46: 2 | KZ46: 3 | LA46: 4 | LB46: 5 | LC46: 1 | LD46: 1 | LE46: 1 | LF46: 4 | LG46: 7 | LH46: 5 | LI46: 3 | LJ46: 6 | LK46: 3 | LL46: 2 | LN46: 1 | LO46: 2 | LP46: 1 | LQ46: 3 | LR46: 4 | LS46: 3 | LT46: 1 | LU46: 1` | LV46: 1 | LW46: 4 | LX46: 4 | LY46: 5 | LZ46: 3 | MA46: 3 | MB46: 12 | MC46: 1 | MD46: 3 | ME46: 3 | MF46: 1 | MG46: 2 | MH46: 4 | MI46: 1 | MJ46: 2 | MK46: 4 | ML46: 5 | MM46: 2 | MN46: 2 | MO46: 1 | MP46: 1 | MQ46: 1 | MR46: 2 | MS46: 2 | MT46: 3 | MU46: 2 | MV46: 1 | MW46: 2 | MX46: 1 | MY46: 2 | MZ46: 4 | NB46: 3 | NC46: 3 | NE46: 1 | NF46: 3 | NH46: 2
A47: Great White Heron
A48: Great Egret | I48: 1 | J48: 1 | N48: 1 | Y48: 1 | Z48: 1 | AC48: 2 | AD48: 3 | AE48: 2 | AI48: 2 | AJ48: 1 | AK48: 3 | AL48: 3 | AM48: 18 | AN48: 6 | AO48: 1 | AP48: 2 | AW48: 1 | AX48: 1 | AY48: 1 | AZ48: 1 | BB48: 1 | BE48: 1 | BG48: 1 | BI48: 2 | BJ48: 2 | BK48: 1 | BL48: 5 | BM48: 2 | BN48: 8 | BO48: 1 | BQ48: 1 | BT48: 1 | BU48: 10 | BV48: 1 | BW48: 2 | BX48: 9 | BZ48: 2 | CA48: 3 | CB48: 4 | CC48: 2 | CD48: 11 | CE48: 5 | CH48: 17 | CI48: 2 | CK48: 3 | CM48: 2 | CO48: 2 | CP48: 12 | CQ48: 1 | CR48: 2 | CS48: 2 | CT48: 1 | CV48: 2 | CW48: 2 | CX48: 1 | CZ48: 3 | DA48: 2 | DB48: 1 | DC48: 2 | DE48: 2 | DG48: 1 | DH48: 2 | DI48: 1 | DK48: 3 | DL48: 4 | DM48: 1 | DN48: 1 | DO48: 2 | DP48: 1 | DQ48: 1 | DR48: 2 | DT48: 2 | DU48: 1 | DV48: 2 | DW48: 1 | DX48: 1 | DY48: 2 | DZ48: 3 | EA48: 1 | EB48: 2 | EC48: 1 | EF48: 1 | EG48: 2 | EI48: 3 | EJ48: 1 | EK48: 1 | EL48: 1 | EM48: 2 | EN48: 1 | EO48: 3 | EP48: 3 | EQ48: 2 | ET48: 2 | EU48: 2 | EV48: 2 | EW48: 3 | EX48: 3 | EY48: 1 | FA48: 2 | FC48: 1 | FE48: 1 | FF48: 5 | FG48: 1 | FH48: 1 | FI48: 2 | FJ48: 1 | FK48: 2 | FL48: 3 | FM48: 7 | FN48: 2 | FO48: 10 | FP48: 2 | FQ48: 7 | FR48: 1 | FX48: 4 | FY48: 10 | FZ48: 2 | GA48: 1 | GB48: 8 | GC48: 4 | GD48: 2 | GE48: 1 | GF48: 1 | GG48: 1 | GH48: 1 | GI48: 1 | GJ48: 1 | GK48: 4 | GL48: 3 | GM48: 6 | GO48: 3 | GW48: 2 | HA48: 2 | HB48: 3 | HC48: 6 | HD48: 8 | HE48: 1 | HF48: 1 | HG48: 1 | HH48: 9 | HJ48: 2 | HL48: 5 | HM48: 1 | HR48: 2 | HS48: 6 | HU48: 1 | HX48: 1 | HY48: 5 | HZ48: 1 | IA48: 1 | IB48: 1 | IC48: 2 | ID48: 4 | IE48: 2 | IF48: 4 | IG48: 1 | IH48: 3 | II48: 1 | IJ48: 3 | IK48: 2 | IL48: 2 | IM48: 2 | IQ48: 4 | IR48: 2 | IS48: 2 | IT48: 1 | IU48: 1 | IV48: 2 | IW48: 18 | IY48: 1 | IZ48: 2 | JF48: 1 | JG48: 3 | JH48: 1 | JJ48: 2 | JK48: 2 | JL48: 2 | JN48: 1 | JQ48: 2 | JR48: 11 | JS48: 3 | JT48: 3 | JU48: 1 | JV48: 1 | JW48: 7 | JX48: 1 | JY48: 11 | KA48: 1 | KB48: 1 | KE48: 1 | KG48: 6 | KH48: 1 | KJ48: 2 | KL48: 2 | KM48: 2 | KO48: 3 | KP48: 1 | KQ48: 1 | KS48: 1 | KU48: 12 | KW48: 3 | KZ48: 2 | LA48: 1 | LB48: 2 | LD48: 1 | LE48: 1 | LF48: 1 | LG48: 3 | LH48: 1 | LI48: 1 | LJ48: 1 | LK48: 2 | LM48: 1 | LO48: 2 | LP48: 16 | LQ48: 1 | LR48: 1 | LS48: 6 | LT48: 1 | LU48: 1 | LV48: 1 | LW48: 2 | MC48: 1 | ME48: 1 | MI48: 1 | MJ48: 1 | MK48: 2 | ML48: 23 | MM48: 1 | MN48: 2 | MO48: 1 | MP48: 1 | MX48: 1 | MY48: 1 | NB48: 3 | NH48: 1
A49: Snowy Egret | G49: 1 | H49: 2 | I49: 5 | J49: 2 | K49: 1 | L49: 1 | M49: 1 | O49: 3 | P49: 1 | S49: 1 | U49: 1 | V49: 1 | W49: 7 | X49: 3 | Y49: 2 | Z49: 1 | AC49: 3 | AD49: 3 | AE49: 2 | AF49: 1 | AI49: 2 | AJ49: 6 | AK49: 2 | AL49: 1 | AM49: 10 | AN49: 16 | AQ49: 3 | AR49: 2 | AS49: 2 | AT49: 2 | AV49: 1 | AW49: 3 | AX49: 1 | AY49: 3 | AZ49: 3 | BA49: 6 | BB49: 2 | BF49: 2 | BG49: 2 | BH49: 1 | BI49: 3 | BJ49: 4 | BK49: 3 | BL49: 8 | BM49: 7 | BN49: 1 | BO49: 1 | BP49: 3 | BQ49: 2 | BR49: 1 | BS49: 3 | BT49: 5 | BU49: 9 | BV49: 6 | BW49: 1 | BX49: 4 | BY49: 3 | BZ49: 7 | CA49: 8 | CB49: 11 | CC49: 4 | CD49: 2 | CE49: 2 | CF49: 27 | CG49: 1 | CH49: 13 | CI49: 3 | CJ49: 1 | CK49: 10 | CL49: 2 | CM49: 247 | CN49: 14 | CO49: 3 | CP49: 2 | CQ49: 14 | CR49: 8 | CS49: 8 | CT49: 3 | CU49: 4 | CV49: 21 | CW49: 23 | CX49: 1 | CY49: 4 | CZ49: 5 | DA49: 4 | DB49: 2 | DC49: 5 | DD49: 2 | DE49: 3 | DF49: 3 | DG49: 2 | DH49: 4 | DI49: 2 | DJ49: 6 | DK49: 5 | DL49: 4 | DM49: 4 | DN49: 2 | DO49: 5 | DP49: 10 | DQ49: 2 | DR49: 4 | DS49: 4 | DT49: 2 | DV49: 2 | DW49: 5 | DX49: 3 | DY49: 1 | DZ49: 3 | EA49: 2 | EB49: 3 | EC49: 1 | ED49: 1 | EE49: 7 | EF49: 2 | EG49: 10 | EH49: 2 | EI49: 2 | EJ49: 2 | EK49: 2 | EL49: 2 | EM49: 3 | EN49: 2 | EO49: 4 | EP49: 1 | EQ49: 3 | ER49: 2 | ES49: 2 | ET49: 2 | EU49: 1 | EV49: 5 | EW49: 5 | EX49: 4 | EY49: 8 | EZ49: 5 | FA49: 7 | FB49: 3 | FC49: 4 | FD49: 2 | FE49: 6 | FF49: 6 | FG49: 5 | FH49: 9 | FI49: 6 | FJ49: 9 | FK49: 10 | FL49: 14 | FM49: 7 | FN49: 4 | FO49: 8 | FP49: 8 | FQ49: 11 | FR49: 17 | FS49: 2 | FT49: 2 | FU49: 2 | FV49: 4 | FW49: 4 | FX49: 9 | FY49: 15 | FZ49: 5 | GA49: 8 | GB49: 5 | GC49: 9 | GD49: 8 | GE49: 5 | GF49: 10 | GG49: 3 | GH49: 3 | GI49: 13 | GJ49: 6 | GK49: 10 | GL49: 13 | GM49: 12 | GN49: 4 | GO49: 14 | GP49: 10 | GQ49: 6 | GR49: 9 | GS49: 8 | GT49: 6 | GU49: 2 | GV49: 5 | GW49: 6 | GX49: 5 | GY49: 10 | GZ49: 6 | HA49: 6 | HB49: 3 | HC49: 3 | HD49: 24 | HE49: 5 | HF49: 11 | HG49: 7 | HH49: 13 | HI49: 4 | HJ49: 10 | HK49: 8 | HL49: 8 | HM49: 2 | HN49: 3 | HO49: 9 | HP49: 2 | HQ49: 7 | HR49: 2 | HS49: 8 | HT49: 10 | HU49: 2 | HV49: 6 | HW49: 6 | HX49: 6 | HY49: 23 | HZ49: 4 | IA49: 10 | IB49: 11 | IC49: 7 | ID49: 14 | IE49: 8 | IF49: 6 | IG49: 2 | IH49: 1 | II49: 2 | IJ49: 2 | IK49: 10 | IL49: 3 | IM49: 9 | IN49: 1 | IO49: 2 | IP49: 1 | IQ49: 2 | IR49: 3 | IS49: 9 | IT49: 2 | IU49: 8 | IV49: 8 | IW49: 10 | IX49: 1 | IY49: 1 | IZ49: 5 | JC49: 1 | JD49: 10 | JG49: 6 | JH49: 13 | JI49: 10 | JJ49: 12 | JK49: 5 | JL49: 2 | JM49: 1 | JN49: 7 | JO49: 5 | JQ49: 1 | JR49: 26 | JS49: 18 | JT49: 5 | JU49: 4 | JW49: 16 | JX49: 4 | JY49: 3 | JZ49: 1 | KA49: 5 | KB49: 5 | KE49: 10 | KG49: 1 | KH49: 2 | KI49: 2 | KJ49: 2 | KK49: 3 | KL49: 2 | KM49: 1 | KO49: 3 | KP49: 1 | KQ49: 5 | KR49: 1 | KS49: 3 | KT49: 3 | KU49: 2 | KV49: 2 | KW49: 1 | KX49: 2 | KY49: 1 | KZ49: 1 | LB49: 2 | LC49: 1 | LD49: 4 | LE49: 3 | LG49: 4 | LH49: 1 | LI49: 3 | LJ49: 21 | LK49: 6 | LN49: 1 | LO49: 4 | LP49: 1 | LQ49: 2 | LS49: 5 | LW49: 1 | LX49: 1 | LZ49: 1 | MA49: 1 | MB49: 1 | MC49: 1 | MD49: 1 | MH49: 13 | MJ49: 1 | MK49: 8 | ML49: 30 | MM49: 7 | MN49: 21 | MR49: 1 | MT49: 1 | MU49: 1 | MV49: 1 | MW49: 1 | MX49: 1 | MY49: 2 | MZ49: 1 | NA49: 1 | NB49: 3 | NC49: 1 | NE49: 1 | NF49: 1
A50: Western Reef Heron
A51: Little Blue Heron | G51: 1 | H51: 1 | S51: 1 | U51: 1 | W51: 1 | AE51: 2 | AF51: 1 | AG51: 1 | AH51: 1 | AJ51: 3 | AK51: 1 | AM51: 1 | AN51: 1 | AP51: 1 | AQ51: 1 | AR51: 2 | AS51: 1 | AT51: 1 | AU51: 2 | AV51: 1 | AW51: 1 | AX51: 2 | AY51: 1 | AZ51: 2 | BA51: 2 | BB51: 2 | BE51: 2 | BF51: 1 | BG51: 1 | BH51: 1 | BI51: 2 | BJ51: 2 | BK51: 3 | BL51: 2 | BM51: 1 | BO51: 1 | BP51: 2 | BQ51: 1 | BR51: 2 | BT51: 5 | BU51: 3 | BV51: 2 | BW51: 2 | BX51: 8 | CA51: 2 | CB51: 2 | CC51: 5 | CD51: 2 | CE51: 3 | CF51: 1 | CG51: 2 | CH51: 17 | CI51: 1 | CJ51: 1 | CK51: 4 | CL51: 1 | CM51: 5 | CN51: 3 | CO51: 2 | CP51: 1 | CQ51: 3 | CR51: 4 | CT51: 1 | CU51: 1 | CV51: 5 | CW51: 2 | CX51: 1 | CY51: 5 | CZ51: 3 | DB51: 2 | DC51: 2 | DE51: 2 | DF51: 1 | DG51: 3 | DH51: 2 | DI51: 4 | DJ51: 3 | DK51: 2 | DL51: 2 | DM51: 1 | DN51: 1 | DO51: 4 | DP51: 1 | DQ51: 1 | DR51: 1 | DS51: 2 | DU51: 1 | DW51: 2 | DX51: 1 | DZ51: 1 | EA51: 1 | EB51: 1 | EC51: 2 | ED51: 2 | EE51: 1 | EF51: 1 | EG51: 1 | EH51: 1 | EI51: 2 | EJ51: 1 | EK51: 1 | EL51: 2 | EM51: 2 | EN51: 1 | EO51: 2 | EP51: 1 | EQ51: 2 | ER51: 2 | ET51: 1 | EU51: 1 | EV51: 2 | EW51: 1 | EX51: 2 | EY51: 1 | EZ51: 1 | FA51: 3 | FB51: 1 | FC51: 1 | FD51: 1 | FE51: 2 | FF51: 3 | FG51: 2 | FH51: 2 | FI51: 2 | FK51: 1 | FL51: 1 | FM51: 2 | FN51: 2 | FO51: 2 | FP51: 4 | FQ51: 1 | FR51: 2 | FS51: 2 | FX51: 3 | FY51: 3 | FZ51: 2 | GA51: 2 | GB51: 2 | GC51: 1 | GD51: 4 | GG51: 2 | GH51: 4 | GI51: 1 | GJ51: 2 | GK51: 2 | GL51: 2 | GM51: 3 | GN51: 2 | GO51: 1 | GP51: 3 | GQ51: 2 | GR51: 2 | GS51: 5 | GT51: 1 | GU51: 3 | GV51: 3 | GW51: 3 | GX51: 4 | GY51: 5 | GZ51: 4 | HA51: 6 | HB51: 3 | HC51: 2 | HD51: 1 | HE51: 2 | HF51: 5 | HG51: 3 | HH51: 4 | HI51: 1 | HJ51: 1 | HK51: 1 | HL51: 1 | HM51: 3 | HN51: 5 | HO51: 1 | HP51: 1 | HQ51: 1 | HR51: 5 | HS51: 3 | HT51: 3 | HU51: 2 | HV51: 3 | HW51: 3 | HX51: 6 | HY51: 6 | HZ51: 4 | IA51: 1 | IB51: 2 | IC51: 2 | ID51: 3 | IE51: 5 | IF51: 6 | IG51: 4 | IH51: 2 | II51: 3 | IK51: 2 | IL51: 3 | IM51: 3 | IN51: 3 | IO51: 2 | IP51: 1 | IQ51: 2 | IR51: 5 | IS51: 3 | IT51: 1 | IU51: 1 | IV51: 2 | IW51: 3 | IX51: 3 | IY51: 1 | IZ51: 2 | JD51: 2 | JE51: 1 | JH51: 3 | JI51: 1 | JJ51: 4 | JK51: 2 | JL51: 1 | JM51: 2 | JN51: 1 | JR51: 1 | JS51: 4 | JT51: 3 | JU51: 2 | JW51: 6 | JX51: 2 | JY51: 2 | JZ51: 1 | KB51: 1 | KE51: 1 | KG51: 3 | KI51: 2 | KJ51: 1 | KL51: 1 | KM51: 1 | KO51: 1 | KP51: 1 | KQ51: 2 | KS51: 3 | KT51: 1 | KU51: 2 | KV51: 1 | KW51: 1 | KZ51: 1 | LA51: 1 | LC51: 1 | LD51: 1 | LG51: 1 | LH51: 1 | LI51: 1 | LJ51: 3 | LP51: 2 | LQ51: 1 | LR51: 1 | LS51: 2 | LT51: 1 | LU51: 1 | LV51: 1 | LX51: 2 | LZ51: 1 | MD51: 1 | ME51: 1 | MI51: 2 | ML51: 2 | MM51: 2 | MN51: 2 | MS51: 1 | MT51: 1 | MU51: 1 | MV51: 1 | MW51: 2 | MY51: 1 | MZ51: 1 | NF51: 1 | NG51: 1 | NH51: 2
A52: Tricolored Heron | P52: 1 | AO52: 1 | BG52: 1 | BS52: 1 | BT52: 3 | BU52: 6 | BX52: 5 | BZ52: 8 | CA52: 1 | CC52: 1 | CD52: 1 | CE52: 2 | CF52: 18 | CG52: 1 | CH52: 4 | CJ52: 4 | CK52: 13 | CM52: 34 | CN52: 4 | CP52: 4 | CQ52: 5 | CS52: 3 | CT52: 1 | CV52: 8 | CW52: 5 | CY52: 5 | CZ52: 4 | DA52: 1 | DB52: 1 | DC52: 2 | DD52: 1 | DF52: 2 | DJ52: 6 | DK52: 1 | DM52: 2 | DN52: 4 | DO52: 8 | DP52: 1 | DR52: 1 | DS52: 6 | DU52: 1 | DW52: 2 | DY52: 3 | DZ52: 2 | EA52: 3 | EB52: 3 | EC52: 1 | ED52: 1 | EF52: 1 | EG52: 6 | EI52: 2 | EJ52: 1 | EL52: 1 | EP52: 2 | ER52: 1 | ET52: 1 | EU52: 1 | EV52: 1 | EW52: 1 | EZ52: 1 | FA52: 3 | FB52: 1 | FC52: 2 | FE52: 1 | FG52: 1 | FH52: 2 | FJ52: 1 | FL52: 2 | FM52: 2 | FN52: 1 | FO52: 2 | FP52: 16 | FQ52: 4 | FR52: 7 | FX52: 4 | FY52: 23 | FZ52: 22 | GA52: 4 | GB52: 8 | GC52: 5 | GD52: 3 | GF52: 5 | GH52: 5 | GI52: 1 | GJ52: 1 | GK52: 2 | GL52: 1 | GM52: 6 | GN52: 1 | GO52: 3 | GP52: 2 | GQ52: 1 | GR52: 7 | GS52: 2 | GT52: 3 | GU52: 4 | GV52: 1 | GW52: 2 | GX52: 2 | GY52: 5 | GZ52: 1 | HA52: 3 | HB52: 2 | HC52: 1 | HD52: 4 | HE52: 2 | HG52: 3 | HH52: 6 | HI52: 2 | HJ52: 1 | HK52: 1 | HL52: 4 | HT52: 1 | HV52: 1 | HY52: 3 | IB52: 1 | IC52: 1 | ID52: 3 | IE52: 1 | IF52: 3 | IJ52: 3 | IL52: 1 | IQ52: 2 | IT52: 2 | IV52: 2 | IW52: 2 | IX52: 2 | IZ52: 1 | JA52: 1 | JE52: 1 | JH52: 2 | JJ52: 1 | JQ52: 1 | JR52: 1 | JS52: 3 | JV52: 1 | JW52: 4 | KE52: 15 | KG52: 2 | KH52: 4 | KI52: 4 | KT52: 1 | KU52: 3 | LC52: 1 | LJ52: 2 | LO52: 1 | LP52: 6 | MD52: 1
A53: Reddish Egret | BQ53: 1 | BV53: 1 | CA53: 1 | CH53: 1 | DG53: 1 | DH53: 1 | DI53: 1 | DJ53: 1 | DK53: 1 | DL53: 3 | DO53: 1 | DP53: 1 | DR53: 1 | DV53: 1 | EA53: 1 | EF53: 1 | EG53: 1 | EH53: 1 | EK53: 1 | FX53: 1 | GT53: 1 | GU53: 1 | GX53: 1 | HA53: 1 | HW53: 1 | IC53: 1 | II53: 1 | JK53: 1 | JW53: 1 | LY53: 1 | MB53: 3 | MN53: 1
A54: Cattle Egret | N54: 1 | W54: 4 | AD54: 2 | AE54: 1 | AI54: 1 | AJ54: 7 | AL54: 3 | AM54: 8 | AO54: 1 | AW54: 1 | AY54: 2 | BA54: 2 | BF54: 1 | BH54: 1 | BJ54: 1 | BK54: 3 | BL54: 2 | BP54: 3 | BQ54: 1 | BS54: 1 | BT54: 10 | BU54: 2 | BV54: 8 | BW54: 3 | BX54: 21 | BZ54: 10 | CA54: 9 | CB54: 8 | CC54: 1 | CD54: 10 | CE54: 25 | CF54: 6 | CG54: 1 | CH54: 8 | CI54: 2 | CK54: 7 | CM54: 72 | CP54: 1 | CQ54: 1 | CR54: 1 | CS54: 2 | CU54: 2 | CV54: 11 | CW54: 6 | CX54: 4 | CY54: 54 | CZ54: 2 | DA54: 17 | DE54: 8 | DF54: 1 | DG54: 1 | DH54: 20 | DI54: 1 | DJ54: 1 | DK54: 1 | DL54: 3 | DN54: 1 | DP54: 6 | DQ54: 5 | DR54: 3 | DS54: 4 | DV54: 2 | DW54: 2 | DX54: 4 | DY54: 1 | DZ54: 2 | EA54: 3 | EB54: 1 | EE54: 9 | EF54: 2 | EG54: 3 | EH54: 1 | EI54: 3 | EJ54: 1 | EK54: 2 | EL54: 2 | EN54: 5 | EO54: 11 | EQ54: 2 | ES54: 2 | ET54: 1 | EU54: 2 | EV54: 2 | EW54: 2 | EX54: 1 | EZ54: 3 | FA54: 1 | FB54: 8 | FC54: 2 | FE54: 3 | FF54: 2 | FG54: 1 | FH54: 32 | FI54: 12 | FJ54: 12 | FK54: 3 | FL54: 12 | FM54: 17 | FN54: 1 | FO54: 51 | FP54: 8 | FQ54: 3 | FR54: 1 | FV54: 2 | FW54: 2 | FY54: 2 | FZ54: 1 | GA54: 2 | GB54: 2 | GC54: 11 | GD54: 4 | GE54: 2 | GF54: 1 | GG54: 3 | GH54: 6 | GI54: 12 | GJ54: 3 | GK54: 6 | GL54: 2 | GM54: 5 | GN54: 1 | GO54: 6 | GP54: 3 | GQ54: 30 | GR54: 5 | GS54: 3 | GT54: 8 | GU54: 3 | GV54: 7 | GW54: 2 | GX54: 32 | GY54: 2 | GZ54: 12 | HA54: 5 | HB54: 17 | HC54: 5 | HD54: 14 | HF54: 4 | HG54: 7 | HI54: 2 | HJ54: 3 | HK54: 4 | HL54: 3 | HM54: 1 | HN54: 4 | HP54: 1 | HQ54: 5 | HR54: 2 | HS54: 19 | HT54: 1 | HV54: 4 | HW54: 41 | HX54: 4 | HY54: 7 | HZ54: 9 | IA54: 9 | IB54: 3 | IC54: 1 | ID54: 11 | IE54: 39 | IF54: 16 | II54: 1 | IJ54: 1 | IK54: 3 | IL54: 6 | IM54: 1 | IO54: 3 | IR54: 1 | IS54: 102 | IT54: 11 | IU54: 8 | IV54: 2 | IW54: 2 | IX54: 225 | IZ54: 3 | JC54: 2 | JD54: 32 | JG54: 20 | JH54: 2 | JI54: 17 | JJ54: 215 | JK54: 10 | JL54: 2 | JM54: 10 | JN54: 2 | JQ54: 1 | JR54: 13 | JS54: 14 | JT54: 475 | JU54: 89 | JV54: 250 | JW54: 34 | JX54: 7 | JY54: 15 | KA54: 3 | KB54: 1 | KC54: 5 | KG54: 2 | KH54: 1 | KI54: 56 | KJ54: 20 | KK54: 1 | KP54: 3 | KR54: 1 | KS54: 2 | KT54: 1 | KV54: 1 | KY54: 1 | LC54: 1 | LD54: 4 | LG54: 4 | LJ54: 10 | LO54: 7 | LS54: 1 | LU54: 1 | MA54: 1 | MK54: 11 | ML54: 6 | MM54: 1 | MN54: 15 | MS54: 1 | MT54: 1 | MV54: 1 | MX54: 3 | MY54: 5 | NB54: 2 | NC54: 4 | NF54: 2
A55: Green Heron | S55: 1 | CV55: 1 | DE55: 1 | EA55: 1 | FR55: 1 | FZ55: 1 | GC55: 1 | GE55: 1 | GF55: 1 | GG55: 1 | GO55: 1 | GP55: 1 | GZ55: 1 | HA55: 2 | HC55: 1 | HD55: 1 | HF55: 1 | HI55: 1 | HJ55: 2 | HN55: 1 | HT55: 1 | HU55: 1 | HX55: 1 | HY55: 4 | IF55: 9 | IG55: 1 | IH55: 1 | II55: 1 | IS55: 1 | IT55: 1 | IU55: 1 | IV55: 1 | IZ55: 2 | JA55: 1 | JC55: 5 | JD55: 1 | JF55: 2 | JG55: 1 | JH55: 1 | JI55: 1 | JK55: 3 | JL55: 1 | JU55: 11 | JV55: 2 | JW55: 1 | KB55: 2 | KL55: 1 | KS55: 1
A56: Black-crowned Night-Heron | BA56: 1 | CC56: 1 | CF56: 1 | CI56: 2 | CU56: 1 | CV56: 1 | DB56: 1 | DZ56: 1 | EI56: 1 | EK56: 1 | FG56: 1 | FL56: 2 | GJ56: 2 | GO56: 1 | HH56: 1 | HM56: 2 | IR56: 1 | IU56: 1 | JU56: 1 | LB56: 1 | LQ56: 1
A57: Yellow-crowned Night-Heron | CD57: 1 | CH57: 1 | CI57: 1 | CK57: 1 | CN57: 1 | CS57: 1 | CT57: 1 | CU57: 3 | CV57: 1 | CW57: 2 | CZ57: 1 | DF57: 1 | DK57: 1 | DL57: 2 | DO57: 3 | DU57: 1 | DX57: 2 | DZ57: 3 | EA57: 1 | ED57: 2 | EF57: 4 | EI57: 2 | EJ57: 1 | EK57: 5 | EM57: 1 | EN57: 2 | EO57: 1 | EP57: 2 | EQ57: 3 | ES57: 1 | ET57: 1 | EX57: 1 | FA57: 1 | FC57: 1 | FD57: 1 | FF57: 3 | FG57: 4 | FH57: 1 | FL57: 1 | FP57: 1 | FR57: 1 | FS57: 2 | FW57: 1 | GA57: 1 | GE57: 2 | GF57: 1 | GI57: 3 | GK57: 1 | GM57: 1 | GO57: 2 | GP57: 2 | GR57: 2 | GT57: 2 | GU57: 1 | GV57: 3 | HA57: 1 | HB57: 1 | HC57: 1 | HD57: 2 | HE57: 1 | HF57: 1 | HG57: 1 | HI57: 1 | HL57: 1 | HM57: 1 | HN57: 1 | HS57: 1 | HT57: 1 | HW57: 3 | HX57: 4 | HY57: 4 | IE57: 1 | IF57: 1 | IG57: 1 | II57: 1 | IJ57: 3 | IQ57: 1 | IS57: 4 | IU57: 3 | IZ57: 1 | JD57: 2 | JG57: 1 | JH57: 1 | JJ57: 1 | JS57: 1 | JT57: 1 | JU57: 2 | JV57: 3 | KA57: 1 | KB57: 1 | KC57: 1 | KG57: 1 | KL57: 1
A58: White Ibis | G58: 1 | H58: 2 | I58: 5 | J58: 22 | K58: 48 | M58: 33 | N58: 32 | P58: 33 | Q58: 1 | R58: 10 | S58: 54 | T58: 7 | U58: 3 | V58: 31 | W58: 13 | X58: 32 | Y58: 32 | Z58: 6 | AA58: 1 | AB58: 20 | AC58: 5 | AD58: 14 | AE58: 25 | AF58: 6 | AG58: 19 | AH58: 12 | AI58: 2 | AJ58: 4 | AK58: 2 | AL58: 5 | AM58: 21 | AN58: 33 | AO58: 26 | AP58: 8 | AQ58: 5 | AR58: 6 | AS58: 18 | AT58: 7 | AU58: 24 | AV58: 25 | AW58: 14 | AX58: 7 | AY58: 6 | AZ58: 11 | BA58: 2 | BB58: 8 | BD58: 14 | BE58: 2 | BF58: 10 | BG58: 21 | BH58: 6 | BI58: 5 | BJ58: 2 | BM58: 8 | BO58: 5 | BP58: 2 | BQ58: 45 | BR58: 9 | BS58: 1 | BT58: 1 | BV58: 2 | BW58: 2 | BZ58: 21 | CA58: 10 | CB58: 9 | CC58: 17 | CD58: 16 | CE58: 66 | CF58: 94 | CG58: 23 | CH58: 9 | CI58: 39 | CK58: 52 | CL58: 8 | CM58: 27 | CN58: 2 | CO58: 13 | CQ58: 3 | CR58: 3 | CS58: 12 | CT58: 61 | CV58: 4 | CW58: 6 | CX58: 4 | CY58: 30 | CZ58: 7 | DA58: 1 | DB58: 2 | DD58: 2 | DE58: 7 | DF58: 1 | DG58: 77 | DH58: 11 | DI58: 5 | DJ58: 1 | DL58: 5 | DN58: 36 | DR58: 10 | DS58: 15 | DU58: 6 | DV58: 6 | DW58: 1 | DZ58: 4 | EC58: 2 | ED58: 4 | EF58: 1 | EG58: 3 | EJ58: 4 | EK58: 8 | EM58: 9 | EN58: 3 | EO58: 1 | EP58: 3 | ER58: 1 | ES58: 25 | ET58: 1 | EV58: 6 | EW58: 13 | EX58: 80 | FC58: 3 | FD58: 2 | FE58: 12 | FF58: 5 | FG58: 5 | FH58: 15 | FI58: 2 | FJ58: 2 | FK58: 14 | FL58: 36 | FM58: 12 | FN58: 3 | FO58: 5 | FP58: 7 | FQ58: 42 | FR58: 6 | FS58: 3 | FT58: 4 | FV58: 1 | FW58: 2 | FX58: 91 | FY58: 7 | FZ58: 10 | GA58: 6 | GB58: 37 | GC58: 6 | GD58: 2 | GF58: 35 | GG58: 46 | GH58: 7 | GI58: 11 | GJ58: 13 | GK58: 8 | GL58: 1 | GM58: 13 | GN58: 35 | GO58: 33 | GP58: 24 | GQ58: 27 | GR58: 2 | GS58: 19 | GT58: 3 | GU58: 2 | GV58: 5 | GW58: 2 | GX58: 2 | GY58: 7 | GZ58: 4 | HA58: 57 | HB58: 3 | HC58: 5 | HD58: 27 | HE58: 4 | HF58: 1 | HG58: 2 | HH58: 11 | HI58: 11 | HJ58: 7 | HK58: 1 | HM58: 23 | HN58: 6 | HO58: 13 | HQ58: 6 | HR58: 3 | HS58: 2 | HT58: 4 | HU58: 1 | HV58: 3 | HW58: 1 | HX58: 7 | IB58: 1 | IC58: 27 | IF58: 2 | IG58: 6 | IH58: 2 | II58: 14 | IJ58: 3 | IK58: 12 | IL58: 2 | IM58: 3 | IN58: 3 | IO58: 3 | IP58: 2 | IQ58: 24 | IR58: 2 | IS58: 1 | IT58: 1 | IU58: 4 | IV58: 4 | IW58: 49 | IX58: 4 | IY58: 8 | IZ58: 2 | JB58: 2 | JD58: 6 | JF58: 30 | JG58: 19 | JH58: 5 | JI58: 4 | JJ58: 4 | JK58: 90 | JL58: 13 | JM58: 8 | JN58: 31 | JO58: 24 | JQ58: 11 | JR58: 10 | JS58: 18 | JT58: 24 | JU58: 6 | JV58: 25 | JW58: 38 | JX58: 78 | JY58: 21 | JZ58: 3 | KA58: 1 | KB58: 33 | KD58: 6 | KE58: 1 | KF58: 5 | KG58: 13 | KH58: 24 | KI58: 18 | KJ58: 100 | KK58: 9 | KL58: 11 | KM58: 3 | KN58: 33 | KO58: 13 | KP58: 58 | KQ58: 33 | KR58: 10 | KS58: 49 | KT58: 55 | KU58: 21 | KV58: 54 | KW58: 24 | KX58: 4 | KY58: 2 | KZ58: 55 | LA58: 30 | LB58: 21 | LC58: 35 | LD58: 14 | LE58: 13 | LF58: 16 | LG58: 17 | LH58: 12 | LI58: 20 | LJ58: 15 | LK58: 25 | LM58: 17 | LN58: 40 | LO58: 34 | LP58: 35 | LQ58: 26 | LR58: 47 | LS58: 43 | LT58: 7 | LU58: 11 | LV58: 3 | LW58: 4 | LX58: 18 | LY58: 2 | LZ58: 4 | MA58: 5 | MB58: 32 | MC58: 1 | MD58: 3 | MF58: 12 | MH58: 18 | MI58: 2 | MJ58: 3 | MK58: 7 | ML58: 37 | MM58: 19 | MN58: 14 | MO58: 2 | MP58: 5 | MQ58: 1 | MR58: 1 | MS58: 23 | MT58: 7 | MU58: 7 | MV58: 33 | MW58: 63 | MX58: 17 | MY58: 16 | MZ58: 80 | NA58: 28 | NB58: 25 | NC58: 1 | NF58: 2 | NG58: 26 | NH58: 63
A59: Glossy Ibis | W59: 5 | AD59: 5 | BH59: 2 | BK59: 12 | BM59: 6 | BU59: 8 | BV59: 9 | BZ59: 4 | CI59: 13 | CK59: 4 | CL59: 10 | CM59: 6 | CN59: 12 | CT59: 14 | CV59: 4 | DA59: 3 | DD59: 6 | DJ59: 5 | DL59: 10 | DN59: 5 | DR59: 9 | EB59: 1 | FF59: 7 | FJ59: 2 | FM59: 15 | FO59: 2 | FQ59: 1 | FR59: 1 | FS59: 2 | FZ59: 3 | GD59: 1 | GF59: 2 | GI59: 34 | GJ59: 18 | GN59: 12 | GW59: 6 | GX59: 1 | HM59: 6 | HU59: 4 | HX59: 16 | HY59: 1 | IF59: 2 | IH59: 2 | IW59: 4 | JF59: 4 | JG59: 2 | JH59: 12 | JJ59: 1 | JK59: 7 | JV59: 4 | KF59: 8 | KL59: 30 | LN59: 1 | LP59: 12 | LQ59: 1 | MW59: 2
A60: White-faced Ibis | IF60: 1
A61: Roseate Spoonbill | H61: 2 | Q61: 1 | Y61: 4 | AN61: 6 | AR61: 3 | AV61: 1 | BE61: 2 | BI61: 5 | BJ61: 1 | BP61: 3 | BR61: 5 | EE61: 5 | EH61: 1 | EN61: 10 | EO61: 8 | EP61: 5 | EV61: 4 | EW61: 10 | FE61: 8 | FF61: 1 | FH61: 14 | FJ61: 4 | FM61: 25 | FN61: 8 | FO61: 25 | FP61: 92 | FQ61: 30 | FR61: 27 | FU61: 11 | FY61: 7 | FZ61: 6 | GE61: 1 | GF61: 1 | GJ61: 2 | GO61: 2 | GX61: 1 | HJ61: 1 | HQ61: 7 | ID61: 2 | IU61: 8 | JL61: 9 | JV61: 1 | JX61: 30 | KE61: 1 | KO61: 1 | LD61: 1 | LM61: 16 | LQ61: 12 | MV61: 3
A62: Wood Stork | G62: 4 | H62: 25 | I62: 4 | J62: 24 | K62: 12 | M62: 11 | O62: 1 | P62: 10 | Q62: 6 | S62: 5 | T62: 1 | V62: 6 | W62: 10 | X62: 1 | Z62: 4 | AA62: 33 | AB62: 3 | AC62: 20 | AD62: 17 | AE62: 16 | AH62: 31 | AI62: 18 | AJ62: 59 | AK62: 30 | AL62: 36 | AM62: 42 | AN62: 11 | AP62: 10 | AQ62: 9 | AR62: 3 | AU62: 12 | AV62: 2 | AW62: 4 | AX62: 1 | AY62: 6 | BA62: 3 | BD62: 4 | BE62: 2 | BF62: 1 | BG62: 1 | BH62: 3 | BI62: 8 | BJ62: 8 | BL62: 2 | BM62: 4 | BO62: 9 | BQ62: 5 | BT62: 1 | BU62: 5 | BV62: 6 | BW62: 1 | BX62: 1 | CA62: 1 | CB62: 4 | CE62: 1 | CH62: 2 | CI62: 1 | CK62: 3 | CM62: 1 | CO62: 2 | CS62: 1 | CW62: 1 | CX62: 2 | CY62: 5 | FT62: 1 | FZ62: 3 | GB62: 1 | GC62: 2 | GF62: 2 | GI62: 4 | GL62: 3 | GN62: 1 | GT62: 3 | GU62: 1 | GW62: 10 | GX62: 1 | GZ62: 1 | HA62: 2 | HC62: 8 | HE62: 2 | HK62: 1 | HS62: 1 | HT62: 4 | HV62: 1 | HW62: 1 | HZ62: 2 | IA62: 2 | ID62: 1 | IE62: 1 | IF62: 1 | II62: 1 | IK62: 1 | IP62: 1 | IR62: 1 | KK62: 2 | LT62: 1 | LV62: 3 | LZ62: 1 | MA62: 7 | MF62: 1 | MH62: 4 | MJ62: 2 | ML62: 3 | MM62: 1 | MN62: 22 | MP62: 7 | MQ62: 2 | MV62: 1 | MW62: 4 | MX62: 2 | MY62: 4 | NB62: 1 | NG62: 1
A63: Black Vulture | G63: 64 | H63: 26 | I63: 2 | J63: 36 | K63: 5 | M63: 27 | P63: 18 | Q63: 3 | S63: 6 | T63: 2 | V63: 8 | W63: 28 | Y63: 6 | Z63: 4 | AA63: 32 | AB63: 3 | AC63: 8 | AD63: 2 | AE63: 7 | AH63: 11 | AI63: 18 | AJ63: 25 | AK63: 36 | AL63: 4 | AM63: 6 | AN63: 3 | AO63: 4 | AQ63: 6 | AR63: 5 | AS63: 2 | AT63: 6 | AU63: 2 | AV63: 17 | AW63: 9 | AX63: 11 | AY63: 14 | BA63: 11 | BD63: 5 | BE63: 18 | BF63: 11 | BG63: 6 | BH63: 32 | BI63: 24 | BJ63: 10 | BK63: 10 | BL63: 10 | BM63: 20 | BN63: 8 | BO63: 4 | BP63: 1 | BR63: 9 | BS63: 9 | BT63: 10 | BU63: 16 | BV63: 15 | BW63: 14 | BX63: 11 | BY63: 12 | BZ63: 16 | CA63: 4 | CB63: 7 | CC63: 2 | CE63: 3 | CG63: 12 | CH63: 12 | CI63: 12 | CK63: 21 | CL63: 3 | CM63: 17 | CN63: 7 | CO63: 4 | CQ63: 9 | CR63: 15 | CS63: 5 | CT63: 12 | CU63: 10 | CV63: 4 | CW63: 8 | CX63: 15 | CY63: 3 | CZ63: 10 | DA63: 16 | DB63: 9 | DC63: 14 | DD63: 6 | DE63: 17 | DF63: 7 | DG63: 10 | DH63: 9 | DI63: 19 | DJ63: 4 | DK63: 1 | DL63: 6 | DM63: 4 | DN63: 2 | DO63: 4 | DP63: 10 | DQ63: 9 | DR63: 11 | DS63: 5 | DT63: 22 | DU63: 9 | DV63: 10 | DW63: 2 | DX63: 18 | DY63: 2 | DZ63: 11 | EA63: 3 | EB63: 5 | EC63: 10 | ED63: 3 | EE63: 5 | EF63: 14 | EG63: 5 | EH63: 3 | EI63: 5 | EJ63: 19 | EK63: 5 | EL63: 4 | EM63: 20 | EN63: 5 | EO63: 9 | EP63: 10 | EQ63: 15 | ER63: 5 | ES63: 8 | ET63: 4 | EU63: 8 | EV63: 13 | EW63: 6 | EX63: 9 | EY63: 8 | EZ63: 5 | FA63: 13 | FB63: 9 | FC63: 7 | FD63: 2 | FE63: 13 | FF63: 9 | FG63: 7 | FH63: 1 | FI63: 7 | FJ63: 2 | FL63: 3 | FM63: 2 | FN63: 9 | FO63: 6 | FP63: 6 | FQ63: 15 | FR63: 8 | FS63: 9 | FT63: 1 | FU63: 4 | FV63: 6 | FZ63: 9 | GA63: 9 | GB63: 3 | GC63: 6 | GD63: 3 | GE63: 2 | GF63: 5 | GG63: 2 | GH63: 4 | GI63: 3 | GK63: 8 | GL63: 2 | GM63: 3 | GN63: 6 | GO63: 12 | GP63: 5 | GQ63: 8 | GR63: 24 | GS63: 3 | GT63: 6 | GU63: 3 | GV63: 6 | GW63: 4 | GX63: 2 | GY63: 4 | GZ63: 9 | HB63: 3 | HC63: 6 | HD63: 4 | HE63: 2 | HF63: 5 | HG63: 22 | HH63: 2 | HI63: 11 | HJ63: 1 | HL63: 6 | HM63: 1 | HN63: 5 | HO63: 1 | HQ63: 53 | HT63: 3 | HU63: 1 | HV63: 9 | HW63: 2 | HX63: 6 | HZ63: 2 | IA63: 4 | IC63: 2 | ID63: 4 | IE63: 5 | IF63: 11 | IH63: 4 | II63: 3 | IK63: 22 | IL63: 1 | IM63: 1 | IN63: 1 | IO63: 1 | IP63: 4 | IS63: 18 | IT63: 2 | IU63: 5 | IV63: 3 | IW63: 3 | IX63: 2 | IZ63: 1 | JA63: 7 | JD63: 4 | JE63: 1 | JG63: 1 | JH63: 2 | JJ63: 13 | JK63: 4 | JL63: 3 | JM63: 4 | JN63: 3 | JO63: 1 | JQ63: 16 | JR63: 3 | JS63: 19 | JT63: 27 | JU63: 3 | JV63: 8 | JW63: 10 | JX63: 28 | JY63: 10 | KE63: 2 | KF63: 2 | KG63: 7 | KH63: 15 | KI63: 9 | KJ63: 10 | KK63: 31 | KL63: 11 | KM63: 8 | KN63: 2 | KO63: 2 | KQ63: 2 | KR63: 20 | KS63: 3 | KU63: 2 | KV63: 1 | KW63: 2 | LB63: 2 | LC63: 1 | LF63: 1 | LH63: 6 | LL63: 10 | LM63: 12 | LN63: 11 | LO63: 15 | LP63: 14 | LQ63: 8 | LR63: 2 | LT63: 7 | LU63: 10 | LV63: 4 | LW63: 12 | LX63: 9 | LY63: 7 | LZ63: 3 | MA63: 12 | MB63: 10 | MC63: 5 | MD63: 11 | ME63: 2 | MH63: 4 | MI63: 9 | MJ63: 9 | ML63: 15 | MM63: 3 | MN63: 9 | MP63: 1 | MU63: 2 | MW63: 7 | MX63: 11 | MY63: 5 | MZ63: 4 | NB63: 2 | NG63: 3
A64: Turkey Vulture | G64: 134 | H64: 103 | I64: 27 | J64: 43 | K64: 26 | M64: 49 | N64: 1 | O64: 3 | P64: 69 | Q64: 39 | S64: 95 | T64: 27 | U64: 2 | V64: 56 | W64: 72 | Y64: 36 | Z64: 79 | AA64: 62 | AB64: 31 | AC64: 33 | AD64: 56 | AE64: 39 | AF64: 5 | AG64: 10 | AH64: 127 | AI64: 114 | AJ64: 88 | AK64: 172 | AL64: 134 | AM64: 74 | AN64: 47 | AO64: 10 | AP64: 11 | AQ64: 43 | AR64: 55 | AS64: 80 | AT64: 66 | AU64: 18 | AV64: 200 | AW64: 90 | AX64: 55 | AY64: 106 | BA64: 67 | BD64: 75 | BE64: 59 | BF64: 76 | BG64: 75 | BH64: 260 | BI64: 85 | BJ64: 125 | BK64: 25 | BL64: 70 | BM64: 143 | BN64: 65 | BO64: 27 | BP64: 93 | BQ64: 117 | BR64: 253 | BS64: 123 | BT64: 181 | BU64: 153 | BV64: 54 | BW64: 114 | BX64: 72 | BY64: 144 | BZ64: 86 | CA64: 101 | CB64: 142 | CC64: 52 | CD64: 52 | CE64: 75 | CG64: 73 | CH64: 54 | CI64: 70 | CJ64: 23 | CK64: 157 | CL64: 28 | CM64: 41 | CN64: 55 | CO64: 25 | CP64: 1 | CQ64: 86 | CR64: 91 | CS64: 37 | CT64: 59 | CU64: 29 | CV64: 92 | CW64: 60 | CX64: 71 | CY64: 46 | CZ64: 49 | DA64: 18 | DB64: 20 | DC64: 32 | DD64: 9 | DE64: 49 | DF64: 41 | DG64: 33 | DH64: 54 | DI64: 49 | DJ64: 19 | DK64: 8 | DL64: 28 | DM64: 19 | DN64: 10 | DO64: 34 | DP64: 13 | DQ64: 10 | DR64: 13 | DS64: 7 | DT64: 11 | DU64: 8 | DV64: 12 | DW64: 8 | DX64: 14 | DY64: 11 | DZ64: 12 | EA64: 8 | EB64: 14 | EC64: 5 | ED64: 6 | EE64: 15 | EF64: 14 | EG64: 12 | EH64: 12 | EI64: 6 | EJ64: 8 | EK64: 13 | EL64: 18 | EM64: 23 | EN64: 15 | EO64: 17 | EP64: 16 | EQ64: 22 | ER64: 10 | ES64: 24 | ET64: 19 | EU64: 11 | EV64: 13 | EW64: 12 | EX64: 20 | EY64: 14 | EZ64: 18 | FA64: 19 | FB64: 24 | FC64: 9 | FD64: 20 | FE64: 6 | FF64: 9 | FG64: 17 | FH64: 3 | FI64: 22 | FJ64: 10 | FK64: 6 | FL64: 21 | FM64: 20 | FN64: 7 | FO64: 24 | FP64: 25 | FQ64: 26 | FR64: 21 | FS64: 19 | FT64: 4 | FU64: 6 | FV64: 9 | FW64: 15 | FY64: 1 | FZ64: 8 | GA64: 33 | GB64: 14 | GC64: 23 | GD64: 12 | GE64: 9 | GF64: 12 | GG64: 13 | GH64: 12 | GI64: 22 | GJ64: 6 | GK64: 4 | GL64: 8 | GM64: 11 | GN64: 11 | GO64: 14 | GP64: 13 | GQ64: 5 | GR64: 37 | GS64: 20 | GT64: 26 | GU64: 7 | GV64: 23 | GW64: 25 | GX64: 17 | GY64: 23 | GZ64: 13 | HA64: 3 | HB64: 28 | HC64: 11 | HD64: 19 | HE64: 6 | HF64: 15 | HG64: 68 | HH64: 17 | HI64: 14 | HJ64: 48 | HK64: 3 | HL64: 25 | HM64: 23 | HN64: 7 | HO64: 14 | HQ64: 36 | HS64: 11 | HT64: 14 | HU64: 7 | HV64: 30 | HW64: 11 | HX64: 5 | HY64: 11 | HZ64: 31 | IA64: 30 | IC64: 14 | ID64: 16 | IE64: 45 | IF64: 34 | IG64: 12 | IH64: 43 | II64: 78 | IJ64: 84 | IK64: 81 | IL64: 67 | IM64: 42 | IN64: 24 | IO64: 4 | IP64: 19 | IQ64: 4 | IR64: 18 | IS64: 57 | IT64: 27 | IU64: 56 | IV64: 9 | IW64: 34 | IX64: 37 | IZ64: 15 | JA64: 69 | JC64: 10 | JD64: 57 | JE64: 13 | JF64: 16 | JG64: 34 | JH64: 38 | JI64: 26 | JJ64: 36 | JK64: 19 | JL64: 12 | JM64: 53 | JN64: 24 | JO64: 7 | JP64: 6 | JQ64: 110 | JR64: 55 | JS64: 149 | JT64: 66 | JU64: 55 | JV64: 68 | JW64: 33 | JX64: 134 | JY64: 18 | KB64: 8 | KE64: 10 | KF64: 18 | KG64: 26 | KH64: 83 | KI64: 55 | KJ64: 60 | KK64: 38 | KL64: 27 | KM64: 14 | KN64: 72 | KO64: 21 | KP64: 67 | KQ64: 14 | KR64: 92 | KS64: 86 | KT64: 49 | KU64: 84 | KV64: 15 | KW64: 34 | KX64: 26 | KY64: 11 | KZ64: 5 | LA64: 72 | LB64: 13 | LC64: 24 | LD64: 25 | LE64: 2 | LF64: 16 | LG64: 19 | LH64: 30 | LI64: 20 | LJ64: 79 | LK64: 5 | LL64: 123 | LM64: 26 | LN64: 124 | LO64: 68 | LP64: 77 | LQ64: 68 | LR64: 232 | LS64: 283 | LT64: 119 | LU64: 233 | LV64: 282 | LW64: 165 | LX64: 190 | LY64: 101 | LZ64: 76 | MA64: 125 | MB64: 84 | MC64: 21 | MD64: 122 | ME64: 45 | MF64: 51 | MG64: 135 | MH64: 134 | MI64: 155 | MJ64: 220 | MK64: 101 | ML64: 240 | MM64: 71 | MN64: 101 | MO64: 13 | MP64: 29 | MQ64: 54 | MR64: 14 | MS64: 30 | MT64: 34 | MU64: 67 | MV64: 4 | MW64: 161 | MX64: 98 | MY64: 44 | MZ64: 43 | NA64: 1 | NB64: 133 | NC64: 29 | NF64: 15 | NG64: 149 | NH64: 54
A65: American Flamingo
A66: Black-bellied Whistling-Duck | EW66: 6 | FL66: 4 | FQ66: 7 | GU66: 15
A67: Fulvous Whistling-Duck
A68: Greater White-fronted Goose
A69: Snow Goose | KL69: 1 | LT69: 2
A70: Canada Goose
A71: Brant
A72: Egyptian Goose
A73: Tundra Swan
A74: Mute Swan | CM74: 1
A75: Muscovy Duck | DS75: 1 | EB75: 2 | ED75: 1 | EO75: 1
A76: Wood Duck | EF76: 1 | MB76: 3
A77: Gadwall | LK77: 17 | LX77: 4 | MF77: 3
A78: Eurasian Wigeon
A79: American Wigeon | Z79: 1 | DC79: 10 | KR79: 1 | LL79: 4
A80: American Black Duck
A81: Mallard | BZ81: 2 | LM81: 4
A82: Mottled Duck | U82: 1 | CV82: 2 | FK82: 2 | FZ82: 3 | MX82: 1
A83: Blue-winged Teal | AN83: 1 | BY83: 1 | CA83: 3 | CE83: 2 | CS83: 3 | CV83: 2 | CY83: 8 | CZ83: 4 | DF83: 6 | DG83: 4 | DO83: 5 | DQ83: 4 | DS83: 1 | EH83: 1 | FI83: 2 | ID83: 1 | IN83: 27 | IO83: 15 | IR83: 13 | IS83: 8 | JA83: 1 | JL83: 705 | JM83: 425 | JN83: 30 | JO83: 680 | JP83: 9 | JR83: 7 | JS83: 23 | JT83: 60 | JU83: 10 | JW83: 50 | KH83: 15 | KO83: 6 | KT83: 12 | KU83: 20 | KW83: 5 | LK83: 7 | MG83: 6
A84: Northern Shoveler | DC84: 1 | IO84: 8 | JL84: 9 | KH84: 3 | LZ84: 6
A85: Northern Pintail | CI85: 1 | JM85: 4 | KL85: 7 | LL85: 3
A86: Green-winged Teal | K86: 1 | AS86: 2 | AT86: 2 | CL86: 1 | CU86: 10 | CY86: 4 | DF86: 1 | DO86: 2 | JJ86: 1 | JL86: 1 | JM86: 15 | JO86: 4 | JR86: 6 | JS86: 4 | JU86: 4 | KB86: 5 | KL86: 18 | KP86: 15 | KR86: 16 | KU86: 19 | KV86: 5 | LH86: 12 | LK86: 15 | LO86: 6 | LU86: 15 | LV86: 1 | LW86: 4 | LX86: 3 | LY86: 1 | LZ86: 1 | MA86: 1 | MB86: 1 | MC86: 1 | MJ86: 25 | MX86: 1
A87: Canvasback | S87: 1 | LZ87: 7 | MC87: 5 | MD87: 3
A88: Redhead | G88: 2 | AA88: 5 | BE88: 1 | LL88: 25 | LU88: 15 | MA88: 20 | MG88: 1 | ML88: 1 | MM88: 2 | MN88: 2 | MR88: 3 | MS88: 3 | MV88: 3 | ND88: 20 | NE88: 3
A89: Ring-necked Duck | W89: 2 | AE89: 2 | AQ89: 2 | BC89: 3 | BE89: 1 | BR89: 1 | BU89: 2 | BZ89: 1 | LC89: 55 | LI89: 70 | LK89: 60 | LL89: 130 | LM89: 157 | LR89: 20 | LX89: 1 | MI89: 4
A90: Greater Scaup | G90: 475 | H90: 105 | J90: 56 | L90: 1 | M90: 2 | N90: 29 | O90: 8 | Q90: 6 | S90: 1 | T90: 15 | U90: 50 | W90: 1 | X90: 930 | Y90: 12 | Z90: 20 | AA90: 4- | AB90: 35 | AG90: 2 | AH90: 14 | AI90: 3 | AJ90: 3 | AM90: 1 | AN90: 6 | AO90: 14 | AP90: 4 | AQ90: 23 | AR90: 545 | AS90: 1080 | AV90: 3 | AX90: 5 | BE90: 3 | BG90: 8 | BH90: 15 | BJ90: 23 | BP90: 6 | BR90: 5 | BS90: 14 | BT90: 15 | BU90: 6 | BV90: 2 | BX90: 11 | BY90: 5 | CA90: 1 | CF90: 10 | LH90: 18 | LR90: 20 | LU90: 10 | LV90: 30 | LW90: 30 | LX90: 95 | LY90: 1 | LZ90: 65 | MA90: 370 | MD90: 35 | MF90: 51 | MH90: 16 | MI90: 690 | MJ90: 200 | MK90: 50 | ML90: 15 | MM90: 15 | MP90: 25 | MQ90: 210 | MR90: 95 | MT90: 25 | MW90: 95 | MX90: 42 | MY90: 10 | MZ90: 120 | NB90: 7 | ND90: 35 | NE90: 30 | NF90: 60 | NH90: 34
A91: Lesser Scaup | G91: 2400 | H91: 2450 | I91: 2600 | J91: 1700 | K91: 590 | M91: 1700 | N91: 1140 | O91: 620 | P91: 80 | Q91: 570 | S91: 870 | T91: 13 | U91: 950 | V91: 820 | W91: 740 | X91: 1200 | Y91: 7 | Z91: 1200 | AA91: 6 | AB91: 315 | AC91: 160 | AD91: 250 | AE91: 90 | AF91: 660 | AG91: 510 | AH91: 890 | AI91: 210 | AJ91: 120 | AK91: 90 | AL91: 120 | AM91: 215 | AN91: 320 | AO91: 700 | AP91: 700 | AQ91: 127 | AR91: 170 | AS91: 1400 | AT91: 620 | AU91: 720 | AV91: 650 | AW91: 340 | AX91: 1020 | AY91: 880 | AZ91: 1820 | BA91: 1120 | BB91: 1250 | BC91: 19 | BD91: 1295 | BE91: 950 | BF91: 170 | BG91: 1740 | BH91: 1130 | BI91: 1940 | BJ91: 960 | BK91: 2630 | BL91: 2480 | BM91: 2040 | BN91: 25 | BO91: 1410 | BP91: 3480 | BR91: 2330 | BS91: 1240 | BT91: 620 | BU91: 570 | BV91: 1300 | BW91: 1055 | BX91: 1230 | BY91: 940 | BZ91: 1940 | CA91: 850 | CB91: 140 | CC91: 190 | CD91: 40 | CE91: 23 | CF91: 62 | CG91: 9 | CH91: 28 | CI91: 28 | CK91: 28 | CL91: 80 | CM91: 125 | CN91: 66 | CO91: 110 | CP91: 280 | CQ91: 140 | CR91: 205 | CS91: 132 | CT91: 72 | CU91: 59 | CV91: 20 | CW91: 34 | CX91: 46 | CY91: 28 | CZ91: 31 | DA91: 19 | DB91: 20 | DC91: 14 | DE91: 14 | DF91: 14 | DG91: 8 | DH91: 4 | DI91: 11 | DJ91: 2 | DK91: 2 | DL91: 2 | DM91: 2 | DR91: 1 | DS91: 2 | DW91: 2 | DY91: 2 | EX91: 1 | FA91: 1 | FG91: 1 | GA91: 1 | GI91: 1 | GN91: 1 | KF91: 10 | KH91: 15 | KL91: 30 | KO91: 10 | KR91: 40 | KV91: 15 | KX91: 10 | LB91: 20 | LC91: 15 | LD91: 15 | LG91: 40 | LH91: 70 | LI91: 65 | LL91: 130 | LM91: 31 | LP91: 23 | LQ91: 4 | LR91: 35 | LS91: 1 | LT91: 22 | LU91: 190 | LV91: 10 | LW91: 50 | LX91: 72 | LY91: 48 | LZ91: 85 | MA91: 590 | MB91: 107 | MC91: 25 | MD91: 13 | ME91: 2 | MF91: 2 | MG91: 3 | MH91: 2 | MI91: 226 | MJ91: 76 | MK91: 44 | ML91: 190 | MM91: 180 | MN91: 270 | MP91: 280 | MQ91: 70 | MR91: 76 | MS91: 270 | MT91: 116 | MU91: 350 | MV91: 220 | MW91: 20 | MX91: 27 | MY91: 12 | MZ91: 124 | NB91: 1100 | NC91: 130 | ND91: 40 | NE91: 720 | NF91: 1200 | NH91: 1200
A92: Common Eider | MJ92: 7
A93: Harlequin Duck | LR93: 1
A94: Surf Scoter | G94: 9 | H94: 4 | I94: 4 | J94: 1 | K94: 4 | M94: 1 | N94: 2 | O94: 3 | P94: 3 | Q94: 7 | R94: 3 | T94: 3 | U94: 6 | X94: 13 | Y94: 1 | Z94: 2 | AF94: 1 | AG94: 1 | AH94: 1 | AP94: 4 | AR94: 14 | AS94: 4 | AT94: 1 | AU94: 2 | AX94: 5 | AY94: 2 | BE94: 2 | BF94: 1 | BG94: 2 | BH94: 4 | BR94: 5 | BS94: 6 | BT94: 2 | CB94: 2 | CO94: 1 | DM94: 2 | KN94: 4 | KY94: 16 | LI94: 2 | LJ94: 3 | LK94: 30 | LL94: 67 | LM94: 20 | LN94: 19 | LP94: 13 | LS94: 1 | LU94: 12 | LW94: 3 | LX94: 4 | LZ94: 6 | MB94: 7 | MF94: 1 | MG94: 1 | MH94: 2 | MI94: 1 | MJ94: 22 | MK94: 11 | ML94: 2 | MM94: 1 | MN94: 1 | MP94: 2 | MQ94: 7 | MR94: 11 | MT94: 5 | MV94: 3 | MW94: 3 | NB94: 2 | NF94: 2
A95: White-winged Scoter | L95: 3 | U95: 2 | AH95: 4 | AR95: 1 | AX95: 2 | BS95: 2 | LY95: 3 | MH95: 2 | MQ95: 6 | NB95: 4 | NE95: 1
A96: Black Scoter | G96: 7 | H96: 21 | I96: 155 | J96: 815 | K96: 4 | L96: 3 | M96: 250 | N96: 8 | O96: 30 | P96: 6 | Q96: 73 | R96: 20 | S96: 5 | T96: 14 | U96: 92 | V96: 1 | W96: 3 | X96: 21 | Y96: 1 | Z96: 5 | AA96: 17 | AD96: 2 | AF96: 5 | AH96: 2 | AI96: 3 | AK96: 1 | AN96: 1 | AO96: 5 | AP96: 11 | AQ96: 1 | AR96: 105 | AS96: 87 | AT96: 3 | AU96: 8 | AV96: 5 | AW96: 10 | AX96: 2 | AY96: 1 | AZ96: 6 | BB96: 2 | BC96: 50 | BD96: 128 | BE96: 5 | BF96: 9 | BG96: 5 | BI96: 17 | BJ96: 32 | BK96: 13 | BL96: 3 | BM96: 3 | BN96: 1 | BO96: 6 | BP96: 4 | BQ96: 5 | BR96: 50 | BS96: 137 | BT96: 14 | BU96: 3 | BV96: 9 | BW96: 6 | BX96: 54 | BY96: 7 | BZ96: 5 | CA96: 4 | CB96: 2 | CC96: 2 | CD96: 3 | CE96: 3 | CG96: 4 | CI96: 3 | CJ96: 1 | CR96: 1 | CT96: 1 | CU96: 3 | CV96: 1 | DB96: 1 | DF96: 2 | DI96: 1 | DN96: 2 | DO96: 1 | DQ96: 1 | DR96: 1 | DS96: 1 | EJ96: 2 | ES96: 1 | ET96: 1 | EU96: 1 | EV96: 1 | EW96: 1 | EZ96: 1 | FA96: 1 | KW96: 4 | KZ96: 9 | LA96: 2 | LC96: 2 | LD96: 60 | LJ96: 31 | LK96: 3 | LL96: 53 | LM96: 16 | LN96: 230 | LP96: 2 | LQ96: 2 | LR96: 3 | LU96: 5 | LV96: 7 | LW96: 13 | LX96: 1 | LY96: 1 | LZ96: 12 | MA96: 1 | MB96: 7 | MC96: 5 | MD96: 3 | ME96: 4 | MF96: 16 | MG96: 2 | MH96: 73 | MI96: 3 | MJ96: 129 | MK96: 5 | ML96: 35 | MM96: 20 | MP96: 13 | MQ96: 16 | MR96: 90 | MS96: 43 | MT96: 1 | MU96: 1 | MW96: 11 | MX96: 55 | MY96: 1 | MZ96: 2 | NB96: 16 | NC96: 19 | ND96: 1 | NE96: 52 | NF96: 7 | NG96: 1 | NH96: 6
A97: Long-tailed Duck | L97: 3
A98: Bufflehead | J98: 1 | AR98: 1 | KH98: 3 | LI98: 3 | LQ98: 3 | LU98: 4 | LV98: 1 | LX98: 1 | MA98: 1 | MI98: 1 | MJ98: 5 | ML98: 1 | MZ98: 1
A99: Common Goldeneye | AN99: 1
A100: Hooded Merganser | H100: 1 | AU100: 1 | LZ100: 4 | MX100: 1
A101: Common Merganser
A102: Red-breasted Merganser | G102: 2 | O102: 1 | R102: 2 | T102: 3 | Y102: 1 | AM102: 1 | AO102: 1 | AQ102: 3 | AS102: 2 | AU102: 7 | BB102: 1 | BC102: 1 | BD102: 5 | BE102: 1 | BF102: 1 | BH102: 1 | BI102: 2 | BJ102: 2 | BK102: 1 | BN102: 1 | BP102: 1 | BR102: 1 | BS102: 1 | BU102: 2 | BV102: 1 | BW102: 1 | BZ102: 1 | CA102: 3 | CD102: 1 | CH102: 4 | CI102: 2 | CK102: 2 | CL102: 6 | CM102: 1 | CO102: 8 | CR102: 3 | CS102: 1 | CY102: 1 | DF102: 1 | DH102: 2 | DK102: 2 | DO102: 6 | EA102: 2 | EU102: 1 | LI102: 4 | LJ102: 3 | LL102: 6 | LM102: 8 | LP102: 3 | LT102: 4 | LY102: 1 | MA102: 22 | MB102: 1 | MF102: 38 | MH102: 7 | MJ102: 2 | MK102: 1 | MP102: 6 | MQ102: 3 | MR102: 19 | MV102: 6
A103: Ruddy Duck | P103: 2 | BA103: 1 | BF103: 2 | BP103: 2 | LS103: 9 | LV103: 11 | LW103: 13 | LX103: 9 | LY103: 9 | LZ103: 8 | MA103: 34 | MB103: 44 | MD103: 96 | ME103: 83 | MF103: 20 | MG103: 76 | MH103: 47 | MI103: 89 | MJ103: 70 | MK103: 44 | ML103: 13 | MM103: 21 | MN103: 32 | MR103: 14 | MS103: 24 | MT103: 13 | MV103: 7 | MW103: 1
A104: Osprey | G104: 2 | H104: 1 | I104: 1 | J104: 1 | K104: 1 | L104: 1 | M104: 2 | N104: 1 | O104: 1 | Q104: 1 | R104: 1 | S104: 2 | U104: 2 | V104: 1 | W104: 1 | X104: 2 | Y104: 2 | Z104: 2 | AA104: 2 | AB104: 1 | AD104: 1 | AE104: 2 | AF104: 1 | AG104: 2 | AH104: 1 | AI104: 3 | AJ104: 2 | AK104: 2 | AL104: 2 | AM104: 3 | AN104: 1 | AO104: 2 | AP104: 1 | AQ104: 1 | AR104: 1 | AS104: 1 | AT104: 1 | AU104: 1 | AV104: 2 | AW104: 2 | AX104: 1 | AY104: 2 | AZ104: 2 | BA104: 1 | BB104: 2 | BD104: 1 | BE104: 3 | BF104: 4 | BG104: 2 | BH104: 6 | BI104: 7 | BJ104: 2 | BK104: 3 | BL104: 3 | BM104: 2 | BN104: 2 | BO104: 3 | BP104: 2 | BQ104: 3 | BR104: 2 | BS104: 3 | BT104: 3 | BU104: 4 | BV104: 2 | BW104: 3 | BX104: 4 | BY104: 2 | BZ104: 4 | CA104: 4 | CB104: 5 | CC104: 2 | CD104: 3 | CE104: 4 | CF104: 8 | CG104: 2 | CH104: 2 | CI104: 3 | CJ104: 3 | CK104: 4 | CL104: 3 | CM104: 3 | CN104: 4 | CO104: 5 | CP104: 3 | CQ104: 4 | CR104: 5 | CS104: 5 | CT104: 3 | CU104: 2 | CV104: 10 | CW104: 5 | CX104: 3 | CY104: 3 | CZ104: 4 | DA104: 4 | DB104: 2 | DC104: 3 | DD104: 1 | DE104: 4 | DF104: 3 | DG104: 4 | DH104: 4 | DI104: 4 | DJ104: 4 | DK104: 3 | DL104: 3 | DM104: 3 | DN104: 3 | DO104: 3 | DP104: 2 | DQ104: 3 | DR104: 3 | DS104: 3 | DT104: 2 | DU104: 4 | DV104: 4 | DW104: 3 | DX104: 2 | DY104: 2 | DZ104: 3 | EA104: 2 | EB104: 2 | EC104: 3 | ED104: 3 | EE104: 3 | EF104: 3 | EG104: 2 | EH104: 3 | EI104: 2 | EJ104: 3 | EK104: 2 | EL104: 2 | EM104: 3 | EN104: 3 | EO104: 4 | EP104: 3 | EQ104: 4 | ER104: 2 | ES104: 3 | ET104: 4 | EU104: 3 | EV104: 3 | EW104: 4 | EX104: 4 | EY104: 3 | EZ104: 3 | FA104: 4 | FB104: 4 | FC104: 4 | FD104: 3 | FE104: 4 | FF104: 6 | FG104: 4 | FI104: 4 | FJ104: 3 | FK104: 4 | FL104: 4 | FM104: 4 | FN104: 3 | FO104: 3 | FP104: 3 | FQ104: 3 | FR104: 3 | FS104: 4 | FT104: 3 | FU104: 2 | FV104: 1 | FX104: 1 | FY104: 2 | FZ104: 4 | GA104: 2 | GB104: 4 | GC104: 4 | GD104: 3 | GE104: 1 | GF104: 4 | GG104: 4 | GH104: 4 | GI104: 3 | GJ104: 4 | GK104: 4 | GL104: 4 | GM104: 4 | GN104: 2 | GO104: 2 | GP104: 3 | GQ104: 4 | GR104: 7 | GS104: 4 | GT104: 3 | GU104: 6 | GV104: 3 | GW104: 6 | GX104: 7 | GY104: 3 | GZ104: 2 | HA104: 4 | HB104: 4 | HC104: 5 | HD104: 4 | HE104: 3 | HF104: 3 | HG104: 4 | HH104: 3 | HI104: 3 | HJ104: 4 | HK104: 3 | HL104: 3 | HM104: 3 | HN104: 4 | HO104: 3 | HQ104: 2 | HR104: 2 | HS104: 3 | HT104: 3 | HU104: 4 | HV104: 3 | HW104: 2 | HX104: 3 | HY104: 3 | HZ104: 3 | IA104: 3 | IB104: 3 | IC104: 3 | ID104: 2 | IE104: 2 | IF104: 3 | IG104: 3 | IH104: 4 | II104: 3 | IJ104: 3 | IK104: 3 | IL104: 3 | IM104: 3 | IN104: 3 | IO104: 2 | IP104: 3 | IQ104: 4 | IR104: 3 | IS104: 3 | IT104: 4 | IU104: 3 | IV104: 3 | IW104: 2 | IX104: 4 | IY104: 1 | IZ104: 9 | JA104: 5 | JB104: 1 | JC104: 2 | JD104: 4 | JE104: 4 | JF104: 5 | JG104: 4 | JH104: 2 | JI104: 5 | JJ104: 4 | JK104: 5 | JL104: 5 | JM104: 5 | JN104: 2 | JO104: 3 | JP104: 1 | JQ104: 4 | JR104: 2 | JS104: 4 | JT104: 8 | JU104: 5 | JV104: 3 | JW104: 3 | JX104: 6 | JY104: 5 | JZ104: 3 | KA104: 1 | KB104: 7 | KC104: 1 | KE104: 3 | KF104: 2 | KG104: 1 | KH104: 4 | KK104: 4 | KL104: 1 | KM104: 5 | KN104: 4 | KO104: 2 | KP104: 1 | KQ104: 1 | KR104: 1 | KS104: 3 | KT104: 3 | KU104: 5 | KV104: 3 | KW104: 3 | KY104: 1 | KZ104: 3 | LA104: 3 | LB104: 3 | LC104: 3 | LD104: 4 | LF104: 3 | LG104: 2 | LH104: 2 | LI104: 3 | LJ104: 2 | LK104: 2 | LL104: 2 | LN104: 1 | LO104: 1 | LP104: 2 | LR104: 1 | LS104: 1 | LU104: 2 | LV104: 2 | LW104: 2 | LX104: 1 | LY104: 3 | LZ104: 4 | MA104: 2 | MB104: 2 | MC104: 1 | MD104: 1 | ME104: 2 | MF104: 2 | MG104: 2 | MH104: 2 | MJ104: 4 | MK104: 1 | ML104: 2 | MM104: 3 | MN104: 3 | MP104: 2 | MQ104: 2 | MS104: 2 | MT104: 2 | MW104: 1 | MX104: 4 | MY104: 2 | MZ104: 1 | NB104: 2 | NC104: 1 | NE104: 2 | NF104: 2
A105: Swallow-tailed Kite | BH105: 1 | BO105: 2 | BU105: 1 | BW105: 1 | CE105: 1 | CI105: 1 | CK105: 1 | CM105: 1 | CN105: 1 | CQ105: 1 | CR105: 1 | CS105: 7 | CT105: 3 | CU105: 2 | CV105: 3 | CW105: 8 | CX105: 3 | CY105: 2 | CZ105: 8 | DA105: 5 | DB105: 1 | DC105: 2 | DD105: 2 | DE105: 2 | DF105: 2 | DG105: 6 | DH105: 3 | DI105: 4 | DJ105: 3 | DK105: 3 | DL105: 2 | DN105: 3 | DO105: 1 | DP105: 2 | DQ105: 1 | DR105: 3 | DT105: 2 | DU105: 2 | DV105: 2 | DW105: 2 | DX105: 1 | DY105: 1 | DZ105: 1 | EA105: 1 | EB105: 1 | EE105: 1 | EF105: 2 | EH105: 1 | EI105: 1 | EJ105: 1 | EL105: 2 | EN105: 3 | EP105: 2 | EQ105: 1 | ER105: 1 | ES105: 3 | EU105: 1 | EV105: 4 | EW105: 3 | EY105: 1 | EZ105: 2 | FA105: 2 | FB105: 3 | FC105: 5 | FE105: 1 | FF105: 3 | FG105: 1 | FI105: 1 | FJ105: 4 | FK105: 3 | FL105: 4 | FN105: 1 | FO105: 5 | FP105: 4 | FQ105: 3 | FR105: 4 | FS105: 1 | FT105: 1 | FU105: 1 | FV105: 2 | FW105: 1 | FY105: 3 | FZ105: 4 | GA105: 3 | GB105: 1 | GC105: 1 | GD105: 2 | GE105: 1 | GF105: 3 | GG105: 4 | GH105: 1 | GI105: 1 | GJ105: 2 | GK105: 1 | GL105: 2 | GM105: 2 | GO105: 1 | GP105: 2 | GQ105: 2 | GR105: 3 | GS105: 1 | GU105: 2 | GV105: 1 | GW105: 1 | GX105: 1 | HA105: 2 | HI105: 1 | HM105: 2 | HN105: 1 | HS105: 1 | IE105: 1
A106: Snail Kite | AS106: 1 | HD106: 1
A107: Mississippi Kite | DU107: 1 | EV107: 1 | FC107: 1 | FD107: 1 | FG107: 1 | FK107: 3 | FL107: 2 | FP107: 1 | FQ107: 1 | GC107: 6 | GD107: 5 | GG107: 2 | GK107: 1 | GO107: 5 | GP107: 2 | GR107: 3 | GT107: 1 | GX107: 1 | HB107: 1 | HD107: 2 | HG107: 4 | HS107: 2 | IA107: 1
A108: Bald Eagle | G108: 4 | H108: 3 | I108: 1 | J108: 1 | K108: 1 | M108: 2 | O108: 1 | P108: 3 | Q108: 3 | S108: 1 | T108: 3 | V108: 3 | W108: 2 | X108: 4 | Y108: 2 | Z108: 2 | AA108: 2 | AB108: 1 | AC108: 1 | AD108: 1 | AE108: 2 | AF108: 1 | AG108: 1 | AH108: 2 | AI108: 3 | AJ108: 2 | AK108: 4 | AL108: 2 | AM108: 1 | AN108: 2 | AO108: 2 | AP108: 1 | AQ108: 2 | AR108: 1 | AS108: 1 | AT108: 1 | AU108: 1 | AV108: 4 | AW108: 2 | AX108: 1 | AY108: 3 | AZ108: 1 | BA108: 2 | BB108: 1 | BD108: 1 | BE108: 2 | BF108: 2 | BG108: 1 | BH108: 3 | BI108: 4 | BJ108: 1 | BK108: 3 | BL108: 3 | BM108: 2 | BN108: 1 | BO108: 3 | BP108: 2 | BQ108: 2 | BR108: 3 | BS108: 3 | BT108: 1 | BU108: 2 | BV108: 1 | BW108: 2 | BX108: 3 | BY108: 1 | BZ108: 1 | CA108: 2 | CB108: 1 | CC108: 1 | CD108: 3 | CE108: 3 | CF108: 1 | CG108: 4 | CH108: 2 | CI108: 6 | CJ108: 5 | CK108: 5 | CL108: 1 | CM108: 3 | CN108: 4 | CO108: 4 | CP108: 1 | CQ108: 2 | CR108: 3 | CS108: 2 | CT108: 4 | CU108: 3 | CV108: 3 | CW108: 3 | CX108: 2 | CY108: 2 | CZ108: 4 | DA108: 4 | DB108: 4 | DC108: 3 | DD108: 4 | DE108: 3 | DF108: 3 | DG108: 3 | DH108: 3 | DI108: 3 | DJ108: 4 | DK108: 2 | DL108: 2 | DM108: 2 | DN108: 3 | DO108: 4 | DP108: 2 | DQ108: 3 | DR108: 2 | DS108: 1 | DT108: 3 | DU108: 3 | DV108: 2 | DW108: 1 | DX108: 1 | EE108: 1 | EF108: 1 | EG108: 1 | EH108: 1 | EI108: 1 | EJ108: 1 | EL108: 1 | EV108: 1 | FZ108: 1 | HD108: 1 | IL108: 1 | IM108: 2 | IP108: 1 | IS108: 2 | IX108: 1 | IY108: 2 | IZ108: 2 | JA108: 2 | JB108: 1 | JC108: 1 | JE108: 1 | JF108: 2 | JH108: 1 | JK108: 2 | JL108: 2 | JM108: 2 | JN108: 1 | JO108: 2 | JP108: 2 | JQ108: 2 | JR108: 2 | JS108: 1 | JT108: 1 | JU108: 2 | JV108: 2 | JW108: 2 | JY108: 2 | KB108: 1 | KD108: 1 | KE108: 3 | KF108: 2 | KG108: 2 | KH108: 3 | KI108: 5 | KJ108: 2 | KL108: 2 | KM108: 2 | KO108: 1 | KP108: 1 | KQ108: 2 | KR108: 1 | KS108: 2 | KT108: 2 | KV108: 1 | KW108: 2 | KX108: 2 | KY108: 1 | KZ108: 2 | LA108: 3 | LC108: 2 | LD108: 2 | LE108: 3 | LF108: 1 | LG108: 2 | LH108: 2 | LI108: 2 | LJ108: 2 | LK108: 1 | LL108: 2 | LN108: 7 | LO108: 2 | LP108: 2 | LQ108: 2 | LR108: 1 | LS108: 2 | LT108: 8 | LU108: 1 | LV108: 1 | LW108: 2 | LX108: 3 | LZ108: 2 | MA108: 4 | MB108: 3 | MC108: 1 | MD108: 1 | ME108: 1 | MF108: 2 | MH108: 3 | MK108: 1 | ML108: 1 | MM108: 2 | MN108: 1 | MP108: 1 | MQ108: 2 | MR108: 1 | MW108: 2 | MX108: 6 | MY108: 1 | MZ108: 2 | NE108: 1 | NF108: 1
A109: Northern Harrier | G109: 1 | AO109: 1 | AV109: 1 | BF109: 2 | BO109: 1 | BQ109: 1 | CF109: 1 | CV109: 5 | CW109: 1 | CZ109: 1 | DM109: 1 | DN109: 1 | JE109: 1 | JF109: 1 | JS109: 1 | KF109: 1 | KH109: 1 | LP109: 1 | LS109: 2 | LU109: 1 | LW109: 1 | MD109: 1 | MG109: 1 | MX109: 1
A110: Sharp-shinned Hawk | T110: 2 | AI110: 1 | AK110: 1 | AM110: 1 | BA110: 1 | BG110: 1 | BX110: 1 | CD110: 1 | CE110: 1 | CK110: 1 | CL110: 1 | CM110: 1 | CV110: 1 | CX110: 2 | CZ110: 1 | DB110: 1 | DE110: 1 | DF110: 1 | DK110: 1 | JH110: 1 | JQ110: 1 | JS110: 1 | KF110: 1 | KG110: 1 | KH110: 5 | KK110: 2 | KN110: 1 | KR110: 1 | KS110: 1 | KX110: 1 | LF110: 1 | LM110: 1 | LN110: 3 | LS110: 1 | LT110: 1 | MJ110: 1
A111: Cooper's Hawk | M111: 1 | AA111: 1 | AQ111: 1 | AY111: 1 | BD111: 1 | BH111: 1 | BL111: 1 | BR111: 1 | CP111: 1 | CX111: 1 | DB111: 1 | DC111: 1 | DE111: 1 | DF111: 1 | DG111: 1 | DT111: 1 | DW111: 1 | DX111: 1 | EH111: 1 | EK111: 1 | EU111: 1 | FH111: 1 | FJ111: 1 | FP111: 1 | GA111: 1 | GD111: 1 | GK111: 1 | GN111: 1 | GS111: 1 | HT111: 1 | IF111: 1 | IS111: 1 | IZ111: 1 | JL111: 1 | JS111: 1 | KG111: 1 | KQ111: 1 | LB111: 1 | LR111: 1 | LS111: 1 | LT111: 1 | ML111: 1 | MW111: 1
A112: Red-shouldered Hawk | I112: 1 | K112: 1 | M112: 1 | Q112: 1 | S112: 1 | T112: 1 | V112: 1 | X112: 1 | AB112: 1 | AD112: 1 | AE112: 1 | AG112: 1 | AJ112: 1 | AK112: 1 | AM112: 1 | AQ112: 2 | AR112: 1 | AS112: 1 | AT112: 1 | AU112: 1 | AV112: 2 | AW112: 1 | AX112: 1 | AY112: 1 | AZ112: 1 | BB112: 1 | BE112: 1 | BF112: 2 | BG112: 1 | BH112: 1 | BI112: 1 | BJ112: 1 | BK112: 1 | BL112: 1 | BN112: 1 | BO112: 1 | BP112: 1 | BQ112: 1 | BR112: 1 | BT112: 2 | BU112: 1 | BW112: 1 | BX112: 1 | BY112: 1 | BZ112: 5 | CB112: 1 | CC112: 1 | CD112: 1 | CE112: 1 | CG112: 1 | CH112: 1 | CI112: 1 | CJ112: 1 | CK112: 3 | CL112: 1 | CM112: 1 | CN112: 2 | CQ112: 2 | CR112: 2 | CS112: 1 | CT112: 1 | CW112: 2 | CX112: 1 | CZ112: 2 | DA112: 1 | DB112: 2 | DE112: 1 | DG112: 2 | DH112: 2 | DI112: 2 | DK112: 2 | DM112: 1 | DO112: 1 | DP112: 1 | DQ112: 1 | DR112: 1 | DW112: 1 | DX112: 1 | EB112: 1 | EC112: 1 | EF112: 1 | EI112: 1 | EJ112: 1 | EM112: 1 | EQ112: 1 | ES112: 1 | EX112: 1 | EY112: 1 | FA112: 1 | FB112: 1 | FC112: 1 | FF112: 1 | FG112: 1 | FJ112: 1 | FK112: 1 | FL112: 1 | FO112: 1 | GC112: 1 | GG112: 1 | GM112: 1 | GP112: 1 | GZ112: 1 | HL112: 1 | HN112: 1 | HQ112: 1 | IF112: 1 | IJ112: 1 | IL112: 2 | IN112: 1 | IO112: 1 | IR112: 1 | IU112: 1 | IV112: 1 | IY112: 1 | JA112: 1 | JC112: 1 | JD112: 1 | JE112: 1 | JF112: 8 | JG112: 3 | JH112: 2 | JI112: 2 | JK112: 2 | JL112: 2 | JN112: 3 | JP112: 1 | JQ112: 1 | JS112: 1 | JU112: 1 | JV112: 2 | JY112: 1 | KG112: 1 | KH112: 4 | KI112: 1 | KJ112: 1 | KK112: 2 | KM112: 2 | KN112: 1 | KP112: 1 | KQ112: 1 | KT112: 1 | KU112: 1 | LH112: 1 | LO112: 2 | LP112: 2 | LS112: 1 | LT112: 2 | LY112: 2 | MC112: 1 | ME112: 1 | MH112: 2 | ML112: 1 | MM112: 1 | MN112: 1 | MT112: 1 | MV112: 1 | MW112: 1
A113: Broad-winged Hawk | JK113: 6 | JL113: 1 | JS113: 1 | JX113: 1 | KF113: 3
A114: Short-tailed Hawk | CG114: 1 | CV114: 1 | CY114: 1 | DO114: 1 | FK114: 1 | HT114: 1 | JK114: 1 | JL114: 2
A115: Swainson's Hawk | KJ115: 1 | KN115: 2 | LT115: 1
A116: Red-tailed Hawk | Q116: 1 | W116: 1 | AA116: 2 | AI116: 1 | AK116: 1 | AL116: 1 | AM116: 1 | AP116: 1 | AQ116: 1 | AR116: 1 | AS116: 1 | AT116: 2 | AV116: 1 | AW116: 1 | AX116: 1 | AY116: 1 | BA116: 1 | BF116: 2 | BJ116: 1 | BL116: 1 | BO116: 1 | BS116: 1 | BT116: 1 | BU116: 1 | BZ116: 2 | CA116: 1 | CB116: 1 | CK116: 1 | CN116: 1 | CQ116: 1 | CW116: 1 | CY116: 1 | DC116: 1 | DE116: 1 | DF116: 1 | DM116: 1 | DR116: 1 | DY116: 1 | EI116: 1 | EO116: 1 | ES116: 1 | EU116: 1 | FC116: 1 | FL116: 1 | FR116: 1 | FV116: 1 | GK116: 1 | HU116: 1 | IL116: 1 | IM116: 1 | JD116: 1 | JF116: 2 | JH116: 1 | JK116: 1 | JL116: 1 | JP116: 2 | JQ116: 1 | JU116: 1 | KB116: 1 | KG116: 1 | KH116: 2 | KK116: 1 | KN116: 1 | KU116: 1 | LA116: 1 | LT116: 2 | LZ116: 1 | MH116: 1 | MR116: 2 | MU116: 1 | MW116: 1 | MX116: 1 | MY116: 1 | NC116: 1
A117: Golden Eagle | P117: 1 | AK117: 1 | BH117: 1 | LM117: 1
A118: Crested Caracara
A119: American Kestrel | J119: 1 | K119: 1 | R119: 1 | S119: 1 | T119: 1 | Y119: 1 | Z119: 1 | AA119: 1 | AB119: 1 | AI119: 1 | AJ119: 1 | AK119: 1 | AL119: 1 | AM119: 1 | AN119: 1 | AO119: 1 | AR119: 1 | AU119: 1 | AV119: 1 | BA119: 1 | BD119: 1 | BI119: 1 | BJ119: 1 | BK119: 1 | BN119: 1 | BP119: 1 | BR119: 1 | BS119: 2 | BT119: 1 | BU119: 1 | BV119: 2 | BZ119: 1 | CA119: 2 | CB119: 1 | CC119: 1 | CK119: 1 | CL119: 1 | CM119: 1 | CN119: 1 | CO119: 1 | CQ119: 1 | CR119: 2 | CT119: 1 | CU119: 1 | CV119: 3 | CX119: 1 | CY119: 1 | IX119: 1 | JO119: 1 | JQ119: 1 | KB119: 1 | KD119: 1 | KE119: 1 | KG119: 1 | KH119: 1 | KM119: 2 | KN119: 1 | KO119: 1 | KR119: 1 | KT119: 1 | KU119: 1 | KV119: 1 | KW119: 1 | KY119: 1 | KZ119: 1 | LA119: 1 | LC119: 1 | LD119: 1 | LF119: 2 | LG119: 2 | LM119: 1 | LQ119: 1 | LR119: 1 | LS119: 1 | LT119: 1 | LU119: 2 | LV119: 1 | MC119: 1 | MD119: 1 | MF119: 1 | MG119: 1 | MI119: 1 | MK119: 1 | ML119: 1 | MP119: 1 | MT119: 1 | MU119: 2 | MX119: 2 | MZ119: 1 | NE119: 1 | NG119: 1
A120: Merlin | J120: 1 | K120: 1 | AL120: 1 | AS120: 1 | AT120: 1 | AZ120: 1 | BI120: 1 | BT120: 1 | BZ120: 1 | CB120: 2 | CD120: 2 | CG120: 2 | CH120: 1 | CI120: 1 | CK120: 1 | CL120: 2 | CM120: 2 | CN120: 1 | CQ120: 2 | CS120: 1 | CT120: 1 | CU120: 1 | CV120: 2 | CW120: 5 | CX120: 5 | CY120: 1 | CZ120: 2 | DB120: 1 | DD120: 1 | DE120: 6 | DF120: 5 | DG120: 1 | DH120: 1 | DI120: 1 | DJ120: 1 | DK120: 1 | DL120: 1 | DN120: 2 | DO120: 2 | DP120: 9 | DQ120: 4 | DT120: 1 | DV120: 1 | EF120: 1 | EG120: 1 | EH120: 1 | EJ120: 1 | JG120: 1 | JI120: 1 | JJ120: 1 | JK120: 2 | JL120: 2 | JP120: 1 | JR120: 2 | JS120: 3 | JU120: 1 | JV120: 2 | JX120: 3 | JY120: 2 | KB120: 3 | KF120: 4 | KG120: 2 | KH120: 2 | KK120: 1 | KM120: 1 | KR120: 1 | KT120: 1 | KU120: 1 | KW120: 2 | LI120: 1 | LQ120: 1 | MC120: 1 | MM120: 1 | MX120: 1
A121: Peregrine Falcon | N121: 1 | AB121: 1 | CR121: 1 | CZ121: 1 | JO121: 1 | JQ121: 1 | JR121: 1 | JU121: 1 | JV121: 1 | JW121: 2 | JX121: 1 | JZ121: 3 | KA121: 1 | KB121: 9 | KC121: 2 | KD121: 3 | KE121: 4 | KF121: 3 | KG121: 2 | KM121: 3 | KN121: 1 | KS121: 1 | KW121: 1
A122: Wild Turkey | W122: 2
A123: Clapper Rail | GV123: 1
A124: Sora | AM124: 1
A125: Common Gallinule | GS125: 1
A126: American Coot | AP126: 1 | AZ126: 1 | MZ126: 1
A127: Limpkin | Q127: 1
A128: Sandhill Crane | AI128: 1 | CT128: 1 | CW128: 1 | DF128: 1 | EH128: 1 | EM128: 1 | EW128: 1 | FA128: 1 | FI128: 1 | FZ128: 1 | GB128: 1 | GU128: 1 | HY128: 1 | IG128: 1 | JO128: 1 | KI128: 1 | LB128: 1 | LZ128: 1 | NH128: 1
A129: Black-bellied Plover | G129: 12 | H129: 8 | I129: 4 | J129: 1 | K129: 1 | L129: 1 | M129: 1 | N129: 1 | P129: 2 | Q129: 8 | R129: 1 | S129: 4 | U129: 4 | W129: 1 | X129: 6 | Y129: 1 | AB129: 5 | AC129: 7 | AD129: 6 | AE129: 6 | AF129: 10 | AG129: 8 | AH129: 6 | AI129: 6 | AJ129: 11 | AK129: 10 | AL129: 16 | AM129: 2 | AO129: 17 | AP129: 1 | AT129: 9 | AU129: 5 | AV129: 10 | AW129: 7 | AX129: 8 | AY129: 12 | AZ129: 17 | BA129: 7 | BB129: 5 | BE129: 1 | BF129: 5 | BG129: 10 | BH129: 9 | BI129: 8 | BJ129: 9 | BK129: 12 | BL129: 10 | BM129: 12 | BO129: 10 | BP129: 3 | BR129: 1 | BS129: 7 | BU129: 6 | BV129: 11 | BW129: 15 | BX129: 9 | BY129: 12 | BZ129: 17 | CA129: 7 | CB129: 11 | CC129: 7 | CD129: 19 | CE129: 1 | CF129: 4 | CG129: 10 | CH129: 1 | CI129: 3 | CJ129: 2 | CK129: 8 | CL129: 3 | CM129: 5 | CN129: 1 | CO129: 2 | CP129: 3 | CQ129: 1 | CR129: 1 | CS129: 4 | CT129: 2 | CU129: 2 | CV129: 1 | CW129: 8 | CX129: 4 | CY129: 4 | CZ129: 2 | DA129: 8 | DB129: 5 | DC129: 17 | DD129: 4 | DE129: 2 | DF129: 7 | DG129: 10 | DH129: 1 | DI129: 1 | DJ129: 2 | DK129: 2 | DL129: 1 | DM129: 1 | DN129: 11 | DO129: 10 | DP129: 24 | DQ129: 3 | DR129: 1 | DS129: 13 | DT129: 21 | DU129: 1 | DV129: 1 | DW129: 1 | DX129: 2 | DY129: 2 | DZ129: 3 | EA129: 2 | EB129: 3 | EC129: 4 | ED129: 9 | EE129: 12 | EF129: 11 | EG129: 19 | EH129: 12 | EI129: 13 | EJ129: 5 | EK129: 2 | EL129: 3 | EM129: 4 | EN129: 4 | EO129: 6 | EP129: 1 | EQ129: 23 | ER129: 4 | ET129: 1 | EV129: 9 | EW129: 2 | EX129: 2 | FJ129: 2 | GI129: 1 | GJ129: 3 | GK129: 7 | GL129: 13 | GS129: 1 | GT129: 1 | GW129: 1 | GX129: 1 | GY129: 1 | GZ129: 1 | HA129: 1 | HC129: 4 | HF129: 1 | HL129: 1 | HR129: 1 | HU129: 2 | HV129: 2 | HW129: 1 | HX129: 2 | HY129: 3 | HZ129: 2 | IA129: 1 | IB129: 1 | IC129: 1 | ID129: 3 | IE129: 8 | IF129: 2 | IG129: 2 | IH129: 1 | II129: 2 | IJ129: 2 | IK129: 1 | IM129: 1 | IO129: 1 | IP129: 2 | IQ129: 2 | IR129: 1 | IS129: 11 | IT129: 1 | IU129: 1 | IV129: 4 | IW129: 5 | IY129: 1 | IZ129: 1 | JA129: 2 | JB129: 1 | JC129: 2 | JE129: 6 | JL129: 18 | JM129: 2 | JN129: 4 | JO129: 4 | JR129: 1 | JS129: 9 | JT129: 1 | JW129: 1 | JZ129: 10 | KA129: 1 | KB129: 1 | KD129: 20 | KF129: 2 | KG129: 12 | KH129: 4 | KN129: 9 | KP129: 1 | KR129: 2 | KS129: 1 | KT129: 1 | KU129: 2 | KV129: 1 | KW129: 1 | KY129: 1 | LB129: 10 | LC129: 1 | LD129: 1 | LE129: 9 | LF129: 1 | LG129: 2 | LH129: 2 | LI129: 5 | LJ129: 2 | LK129: 2 | LL129: 1 | LM129: 1 | LN129: 1 | LO129: 1 | LQ129: 1 | LR129: 1 | LS129: 3 | LT129: 1 | LU129: 3 | LV129: 1 | LW129: 3 | LX129: 1 | LY129: 1 | LZ129: 1 | MA129: 7 | MB129: 7 | MC129: 1 | MD129: 2 | ME129: 12 | MF129: 14 | MG129: 12 | MH129: 10 | MI129: 1 | MJ129: 15 | ML129: 9 | MM129: 3 | MN129: 3 | MO129: 3 | MU129: 12 | MV129: 10 | MW129: 13 | MY129: 8 | MZ129: 1 | NA129: 1 | NF129: 4 | NG129: 2 | NH129: 4
A130: American Golden-Plover | DN130: 1 | DO130: 1 | EE130: 1 | EF130: 1 | KC130: 1 | KH130: 2
A131: Wilson's Plover | DL131: 2 | EJ131: 1 | HC131: 1 | HW131: 1 | IB131: 1 | IM131: 1
A132: Semipalmated Plover | AX132: 1 | BY132: 1 | CG132: 1 | CK132: 3 | CX132: 1 | DG132: 2 | DN132: 3 | DO132: 34 | DP132: 6 | DT132: 10 | DV132: 3 | DW132: 2 | DX132: 5 | DY132: 5 | DZ132: 4 | EA132: 2 | EB132: 2 | EC132: 4 | ED132: 12 | EE132: 2 | EG132: 35 | EH132: 15 | EI132: 4 | EK132: 1 | EL132: 24 | EM132: 5 | EN132: 2 | EO132: 1 | EP132: 9 | EQ132: 15 | ER132: 14 | GF132: 1 | GI132: 2 | GP132: 8 | GR132: 2 | GV132: 7 | GW132: 5 | GX132: 5 | GZ132: 5 | HB132: 1 | HC132: 1 | HE132: 1 | HI132: 1 | HJ132: 1 | HK132: 4 | HL132: 3 | HM132: 2 | HN132: 3 | HO132: 4 | HQ132: 2 | HR132: 4 | HS132: 1 | HT132: 1 | HU132: 3 | HV132: 2 | HW132: 4 | HX132: 7 | HY132: 1 | HZ132: 1 | IC132: 2 | ID132: 2 | IE132: 5 | IF132: 2 | IG132: 1 | II132: 1 | IR132: 7 | IS132: 10 | JD132: 1 | MG132: 1
A133: Common Ringed Plover
A134: Piping Plover | DO134: 1 | ED134: 1 | IB134: 2
A135: Killdeer | G135: 1 | T135: 2 | AF135: 1 | AG135: 1 | BD135: 12 | BQ135: 1 | BV135: 1 | BW135: 1 | CW135: 1 | ED135: 1 | EL135: 1 | ER135: 1 | FR135: 1 | GF135: 2 | HC135: 1 | IO135: 1 | IS135: 1 | IW135: 1 | JC135: 1 | KS135: 3 | LF135: 1 | ML135: 1
A136: American Oystercatcher | U136: 1 | CM136: 1 | EG136: 3 | FP136: 1 | JM136: 1 | MH136: 1
A137: Black-necked Stilt | BZ137: 1 | CU137: 8 | CY137: 2 | DJ137: 2 | DM137: 6 | EG137: 1 | EX137: 7 | FD137: 7 | FF137: 1 | HB137: 3 | HC137: 5 | HR137: 8 | HT137: 7 | HW137: 2 | IC137: 9 | IS137: 8 | IT137: 2
A138: American Avocet | DG138: 5 | DH138: 8 | IG138: 1 | IT138: 1
A139: Greater Yellowlegs | CC139: 1 | CX139: 1 | GX139: 1 | HT139: 2 | IE139: 1 | JR139: 1 | KU139: 1 | LB139: 1
A140: Lesser Yellowlegs | CX140: 60 | CY140: 7 | HA140: 1 | HD140: 1 | HE140: 1 | HG140: 2 | HP140: 4 | HQ140: 14 | HR140: 30 | ID140: 1 | IE140: 7 | IK140: 23 | JH140: 1 | JL140: 80 | JR140: 5
A141: Solitary Sandpiper | DU141: 1 | EF141: 1 | ER141: 1 | HC141: 2 | HD141: 1 | HT141: 1 | HY141: 1 | IC141: 1
A142: Willet | G142: 7 | H142: 2 | I142: 3 | J142: 3 | K142: 2 | L142: 4 | M142: 6 | N142: 3 | O142: 6 | P142: 3 | Q142: 3 | R142: 4 | S142: 2 | T142: 2 | U142: 3 | V142: 1 | W142: 3 | X142: 6 | Y142: 3 | Z142: 2 | AA142: 2 | AB142: 3 | AC142: 2 | AD142: 2 | AE142: 2 | AF142: 2 | AH142: 6 | AI142: 2 | AJ142: 3 | AK142: 3 | AL142: 2 | AM142: 5 | AN142: 3 | AO142: 2 | AP142: 3 | AQ142: 9 | AR142: 2 | AS142: 3 | AT142: 3 | AU142: 1 | AV142: 7 | AW142: 4 | AX142: 3 | AY142: 3 | AZ142: 2 | BA142: 3 | BB142: 7 | BC142: 3 | BD142: 2 | BE142: 6 | BF142: 6 | BG142: 7 | BH142: 4 | BI142: 3 | BJ142: 3 | BK142: 4 | BL142: 2 | BM142: 3 | BN142: 2 | BO142: 1 | BP142: 3 | BQ142: 2 | BR142: 4 | BS142: 3 | BT142: 3 | BU142: 3 | BV142: 2 | BW142: 3 | BX142: 11 | BY142: 4 | BZ142: 3 | CA142: 2 | CB142: 2 | CC142: 5 | CD142: 8 | CE142: 7 | CF142: 4 | CG142: 10 | CH142: 4 | CI142: 5 | CJ142: 5 | CK142: 7 | CL142: 70 | CM142: 2 | CN142: 5 | CO142: 3 | CP142: 2 | CQ142: 3 | CR142: 7 | CS142: 9 | CT142: 3 | CU142: 4 | CV142: 6 | CW142: 14 | CX142: 8 | CY142: 19 | CZ142: 6 | DA142: 14 | DB142: 9 | DC142: 3 | DD142: 8 | DE142: 3 | DF142: 6 | DG142: 9 | DH142: 2 | DI142: 4 | DJ142: 3 | DK142: 6 | DL142: 4 | DM142: 2 | DN142: 1 | DO142: 8 | DP142: 24 | DQ142: 1 | DR142: 1 | DS142: 3 | DT142: 1 | DU142: 2 | DV142: 1 | DW142: 2 | DX142: 1 | DY142: 2 | DZ142: 1 | EA142: 1 | EB142: 3 | EC142: 4 | ED142: 1 | EF142: 1 | EG142: 2 | EH142: 1 | EZ142: 1 | GB142: 1 | GC142: 6 | GF142: 8 | GI142: 4 | GK142: 16 | GL142: 17 | GM142: 12 | GO142: 6 | GP142: 16 | GQ142: 6 | GR142: 18 | GS142: 9 | GT142: 63 | GU142: 19 | GV142: 18 | GW142: 5 | GX142: 1 | GZ142: 5 | HA142: 6 | HB142: 12 | HC142: 3 | HE142: 1 | HI142: 1 | HJ142: 2 | HK142: 3 | HL142: 5 | HM142: 9 | HN142: 16 | HO142: 8 | HQ142: 2 | HR142: 2 | HS142: 2 | HT142: 10 | HU142: 2 | HV142: 9 | HW142: 1 | HX142: 3 | HY142: 2 | HZ142: 1 | IA142: 12 | IB142: 5 | IC142: 20 | ID142: 8 | IE142: 19 | IF142: 2 | IG142: 11 | IH142: 4 | II142: 2 | IJ142: 3 | IK142: 7 | IL142: 2 | IM142: 3 | IN142: 2 | IO142: 4 | IP142: 5 | IQ142: 12 | IR142: 10 | IS142: 8 | IT142: 4 | IU142: 2 | IV142: 9 | IW142: 8 | IX142: 2 | IY142: 2 | IZ142: 5 | JA142: 7 | JB142: 3 | JC142: 7 | JD142: 3 | JE142: 6 | JJ142: 1 | JK142: 1 | JL142: 12 | JM142: 2 | JN142: 3 | JO142: 32 | JP142: 6 | JQ142: 1 | JR142: 1 | JS142: 29 | JT142: 1 | JU142: 2 | JV142: 2 | JX142: 2 | JY142: 3 | JZ142: 80 | KA142: 1 | KB142: 4 | KE142: 1 | KF142: 85 | KG142: 15 | KH142: 26 | KI142: 8 | KP142: 2 | KR142: 28 | KS142: 5 | KT142: 8 | KU142: 34 | KV142: 1 | KW142: 27 | KX142: 45 | KY142: 40 | KZ142: 45 | LA142: 12 | LB142: 45 | LC142: 2 | LD142: 1 | LE142: 52 | LF142: 4 | LG142: 2 | LH142: 24 | LI142: 3 | LJ142: 2 | LK142: 17 | LL142: 1 | LM142: 44 | LN142: 45 | LO142: 27 | LP142: 91 | LQ142: 5 | LR142: 1 | LS142: 3 | LT142: 4 | LU142: 29 | LV142: 14 | LW142: 24 | LX142: 6 | LY142: 1 | LZ142: 25 | MA142: 6 | MB142: 7 | MC142: 28 | MD142: 9 | ME142: 4 | MF142: 9 | MG142: 1 | MH142: 3 | MI142: 3 | MJ142: 2 | MK142: 2 | ML142: 6 | MM142: 3 | MR142: 40 | MU142: 2 | MV142: 4 | MW142: 35 | MX142: 2 | MY142: 3 | NA142: 9 | NB142: 8 | NC142: 1 | ND142: 5 | NE142: 1 | NF142: 3 | NG142: 2 | NH142: 14
A143: Spotted Sandpiper | U143: 1 | CX143: 1 | DB143: 1 | DN143: 3 | DO143: 5 | DQ143: 10 | DR143: 1 | DS143: 2 | DV143: 1 | DW143: 1 | DX143: 1 | DY143: 1 | DZ143: 1 | EA143: 1 | EE143: 1 | EF143: 5 | EH143: 1 | EI143: 1 | EJ143: 1 | EK143: 4 | EL143: 1 | EM143: 4 | EN143: 1 | ER143: 1 | ES143: 2 | ET143: 1 | EU143: 2 | GU143: 1 | GX143: 3 | GY143: 2 | GZ143: 2 | HA143: 2 | HB143: 2 | HC143: 1 | HE143: 1 | HH143: 4 | HI143: 2 | HJ143: 1 | HK143: 2 | HL143: 1 | HN143: 1 | HO143: 2 | HP143: 1 | HS143: 1 | HT143: 2 | HU143: 1 | HV143: 3 | HW143: 3 | HX143: 2 | HZ143: 1 | IB143: 2 | IF143: 1 | IG143: 2 | II143: 1 | IK143: 1 | IN143: 1 | IR143: 1 | IS143: 1 | IT143: 3 | IV143: 2 | IW143: 1 | JD143: 1 | JH143: 2 | JK143: 1 | JM143: 1 | JS143: 1 | JT143: 2 | JU143: 1 | JV143: 1 | KH143: 1 | KM143: 2 | KS143: 1 | LA143: 1 | LC143: 1 | LV143: 1 | MA143: 1 | ME143: 1 | MG143: 1 | ML143: 1 | MM143: 1 | MT143: 1 | MW143: 1
A144: Upland Sandpiper | HW144: 1
A145: Whimbrel | CX145: 1 | DB145: 1 | DF145: 3 | DG145: 8 | DJ145: 1 | DO145: 2 | EI145: 1 | ER145: 6 | FB145: 1 | FE145: 1 | HM145: 1 | IS145: 2
A146: Long-billed Curlew
A147: Hudsonian Godwit | KO147: 1
A148: Marbled Godwit | DJ148: 1 | IY148: 1 | JD148: 1 | JU148: 4 | LA148: 1 | LP148: 1 | LV148: 1
A149: Ruddy Turnstone | G149: 3 | H149: 5 | I149: 21 | J149: 21 | K149: 21 | L149: 3 | M149: 26 | N149: 4 | O149: 11 | P149: 4 | Q149: 8 | S149: 17 | U149: 18 | V149: 15 | W149: 3 | X149: 8 | Y149: 4 | AA149: 20 | AB149: 8 | AC149: 4 | AD149: 24 | AE149: 8 | AF149: 21 | AG149: 4 | AH149: 5 | AI149: 21 | AJ149: 32 | AK149: 12 | AL149: 10 | AM149: 6 | AN149: 9 | AO149: 27 | AP149: 10 | AQ149: 7 | AR149: 13 | AS149: 22 | AT149: 18 | AU149: 28 | AV149: 15 | AW149: 4 | AX149: 12 | AY149: 16 | AZ149: 28 | BA149: 28 | BB149: 21 | BC149: 24 | BD149: 49 | BE149: 30 | BF149: 34 | BG149: 18 | BH149: 4 | BI149: 15 | BJ149: 34 | BK149: 40 | BL149: 55 | BM149: 45 | BN149: 8 | BO149: 20 | BP149: 29 | BQ149: 18 | BR149: 10 | BS149: 8 | BT149: 6 | BU149: 26 | BV149: 16 | BW149: 24 | BX149: 26 | BY149: 13 | BZ149: 15 | CA149: 18 | CB149: 26 | CC149: 34 | CD149: 37 | CE149: 27 | CF149: 18 | CG149: 27 | CH149: 12 | CI149: 7 | CJ149: 14 | CK149: 32 | CL149: 35 | CM149: 41 | CN149: 38 | CO149: 14 | CP149: 41 | CQ149: 14 | CR149: 14 | CS149: 16 | CT149: 34 | CU149: 5 | CV149: 2 | CW149: 16 | CX149: 8 | CY149: 3 | CZ149: 8 | DA149: 11 | DB149: 9 | DC149: 20 | DD149: 24 | DE149: 14 | DF149: 13 | DG149: 13 | DH149: 7 | DI149: 11 | DJ149: 4 | DK149: 13 | DL149: 3 | DM149: 3 | DN149: 13 | DO149: 5 | DP149: 35 | DQ149: 9 | DR149: 8 | DS149: 27 | DT149: 50 | DU149: 12 | DV149: 12 | DW149: 10 | DX149: 8 | DY149: 7 | DZ149: 7 | EA149: 3 | EB149: 5 | EC149: 8 | ED149: 8 | EE149: 7 | EF149: 5 | EG149: 30 | EH149: 14 | EI149: 21 | EJ149: 5 | EK149: 6 | EL149: 8 | EM149: 8 | EN149: 12 | EO149: 5 | EP149: 6 | EQ149: 15 | ER149: 3 | ES149: 8 | ET149: 2 | EV149: 7 | EX149: 2 | FJ149: 2 | GC149: 4 | GN149: 2 | GV149: 1 | GX149: 2 | GZ149: 1 | HA149: 1 | HE149: 2 | HH149: 5 | HJ149: 1 | HL149: 2 | HN149: 4 | HO149: 3 | HP149: 9 | HQ149: 1 | HR149: 1 | HS149: 1 | HT149: 1 | HU149: 2 | HV149: 15 | HW149: 3 | HX149: 2 | HZ149: 2 | IA149: 7 | IB149: 5 | IC149: 4 | ID149: 7 | IE149: 19 | IF149: 14 | IG149: 16 | IH149: 8 | II149: 9 | IJ149: 2 | IK149: 3 | IL149: 1 | IM149: 4 | IN149: 9 | IO149: 2 | IP149: 12 | IQ149: 9 | IR149: 6 | IS149: 7 | IT149: 19 | IU149: 7 | IV149: 10 | IW149: 20 | IX149: 10 | IY149: 2 | IZ149: 1 | JA149: 1 | JB149: 2 | JC149: 4 | JD149: 2 | JE149: 8 | JF149: 10 | JG149: 5 | JH149: 5 | JI149: 2 | JJ149: 3 | JK149: 6 | JL149: 8 | JM149: 5 | JN149: 6 | JO149: 12 | JP149: 22 | JQ149: 5 | JR149: 14 | JS149: 34 | JT149: 9 | JU149: 9 | JV149: 9 | JX149: 9 | JY149: 10 | JZ149: 23 | KA149: 2 | KB149: 2 | KD149: 1 | KF149: 17 | KG149: 22 | KH149: 6 | KI149: 2 | KL149: 2 | KM149: 10 | KN149: 2 | KO149: 4 | KP149: 8 | KQ149: 5 | KR149: 10 | KS149: 9 | KT149: 1 | KU149: 7 | KV149: 4 | KY149: 1 | LB149: 24 | LC149: 6 | LD149: 5 | LE149: 1 | LF149: 3 | LG149: 2 | LH149: 3 | LI149: 26 | LJ149: 8 | LK149: 9 | LL149: 4 | LM149: 11 | LN149: 5 | LO149: 6 | LP149: 45 | LQ149: 6 | LR149: 8 | LS149: 10 | LT149: 10 | LU149: 5 | LV149: 2 | LW149: 12 | LX149: 2 | LY149: 5 | LZ149: 7 | MA149: 8 | MB149: 38 | MD149: 5 | ME149: 25 | MF149: 23 | MG149: 31 | MH149: 61 | MI149: 8 | MJ149: 37 | MK149: 22 | ML149: 27 | MM149: 2 | MN149: 13 | MO149: 11 | MR149: 9 | MT149: 4 | MU149: 21 | MV149: 65 | MW149: 33 | MX149: 5 | MY149: 14 | MZ149: 6 | NA149: 14 | NB149: 16 | NC149: 14 | ND149: 23 | NE149: 40 | NF149: 26 | NG149: 8 | NH149: 39
A150: Red Knot | G150: 60 | H150: 120 | I150: 44 | J150: 16 | K150: 5 | L150: 10 | M150: 55 | N150: 22 | P150: 65 | Q150: 215 | S150: 70 | T150: 3 | U150: 160 | V150: 60 | W150: 70 | AB150: 10 | AC150: 55 | AD150: 55 | AE150: 12 | AF150: 27 | AG150: 25 | AH150: 40 | AI150: 90 | AJ150: 80 | AK150: 90 | AL150: 50 | AO150: 4 | AP150: 40 | AT150: 3 | AV150: 16 | AW150: 25 | AX150: 45 | AY150: 45 | AZ150: 35 | BD150: 26 | BG150: 10 | BH150: 20 | BI150: 25 | BJ150: 30 | BK150: 40 | BL150: 40 | BM150: 40 | BO150: 8 | BP150: 10 | BQ150: 17 | BR150: 20 | BS150: 28 | BU150: 35 | BV150: 38 | BW150: 30 | BX150: 30 | BY150: 35 | BZ150: 35 | CA150: 28 | CB150: 30 | CC150: 38 | CD150: 61 | CG150: 8 | CK150: 30 | CL150: 30 | CS150: 25 | CW150: 31 | CX150: 14 | CY150: 10 | DA150: 13 | DB150: 6 | DF150: 2 | DG150: 1 | ER150: 1 | HQ150: 2 | JR150: 30 | KJ150: 5 | KZ150: 3 | LI150: 6 | LM150: 5 | MF150: 8 | MH150: 15 | MI150: 6 | ML150: 5 | MM150: 6 | MN150: 80 | MO150: 80 | MR150: 28 | MU150: 50 | MV150: 120 | MW150: 150 | MX150: 50 | MY150: 120 | NA150: 19 | ND150: 3 | NE150: 3 | NF150: 20 | NH150: 33
A151: Sanderling | G151: 1 | H151: 10 | I151: 6 | J151: 8 | K151: 25 | L151: 6 | M151: 9 | N151: 7 | O151: 6 | P151: 14 | Q151: 8 | W151: 2 | X151: 2 | Y151: 4 | AA151: 5 | AB151: 8 | AF151: 25 | AH151: 13 | AI151: 6 | AJ151: 8 | AL151: 4 | AM151: 4 | AN151: 2 | AO151: 22 | AP151: 2 | AQ151: 3 | AR151: 3 | AS151: 9 | AT151: 9 | AU151: 10 | AV151: 32 | AW151: 1 | AX151: 3 | AY151: 6 | BB151: 1 | BC151: 4 | BD151: 4 | BF151: 1 | BG151: 1 | BH151: 1 | BI151: 3 | BJ151: 2 | BK151: 3 | BL151: 2 | BM151: 2 | BN151: 2 | BP151: 3 | BQ151: 3 | BR151: 7 | BS151: 3 | BT151: 2 | BU151: 12 | BV151: 3 | BW151: 3 | BX151: 1 | BY151: 2 | BZ151: 2 | CA151: 1 | CB151: 2 | CC151: 6 | CD151: 12 | CE151: 9 | CF151: 6 | CG151: 11 | CH151: 10 | CI151: 4 | CJ151: 10 | CK151: 10 | CL151: 20 | CM151: 2 | CN151: 5 | CO151: 5 | CP151: 2 | CQ151: 12 | CR151: 12 | CS151: 21 | CT151: 21 | CU151: 5 | CV151: 3 | CW151: 43 | CX151: 12 | CY151: 2 | CZ151: 8 | DA151: 37 | DB151: 17 | DC151: 11 | DD151: 23 | DE151: 6 | DF151: 22 | DG151: 7 | DH151: 5 | DI151: 14 | DJ151: 4 | DK151: 14 | DL151: 4 | DO151: 8 | DP151: 100 | DQ151: 13 | DR151: 18 | DS151: 3 | DT151: 10 | DU151: 8 | DV151: 8 | DW151: 5 | DX151: 6 | DY151: 3 | DZ151: 8 | EA151: 3 | EB151: 14 | EC151: 10 | ED151: 6 | EE151: 1 | EF151: 2 | EG151: 11 | EH151: 16 | EI151: 16 | EJ151: 4 | EK151: 40 | EL151: 8 | EM151: 12 | EN151: 6 | EO151: 6 | EP151: 8 | EQ151: 10 | ER151: 18 | ES151: 16 | EU151: 1 | EW151: 25 | EY151: 14 | FS151: 1 | GL151: 2 | GZ151: 1 | HB151: 3 | HL151: 3 | HP151: 1 | HT151: 1 | HV151: 17 | HW151: 2 | HX151: 1 | HY151: 1 | HZ151: 1 | IA151: 7 | IB151: 7 | IC151: 6 | ID151: 11 | IE151: 8 | IF151: 12 | IG151: 10 | IH151: 8 | II151: 7 | IJ151: 4 | IK151: 3 | IL151: 5 | IM151: 6 | IN151: 4 | IO151: 5 | IP151: 10 | IQ151: 24 | IR151: 12 | IS151: 4 | IT151: 6 | IU151: 5 | IV151: 12 | IW151: 7 | IX151: 7 | IY151: 2 | IZ151: 3 | JA151: 3 | JB151: 3 | JC151: 5 | JD151: 3 | JE151: 25 | JF151: 8 | JG151: 5 | JH151: 6 | JI151: 3 | JJ151: 2 | JK151: 5 | JL151: 28 | JM151: 6 | JN151: 6 | JO151: 15 | JP151: 14 | JQ151: 8 | JR151: 18 | JS151: 30 | JT151: 7 | JU151: 1 | JV151: 5 | JW151: 3 | JX151: 24 | JY151: 7 | JZ151: 55 | KA151: 10 | KB151: 2 | KE151: 3 | KF151: 3 | KG151: 29 | KH151: 12 | KI151: 2 | KL151: 8 | KM151: 17 | KN151: 5 | KO151: 2 | KP151: 2 | KQ151: 2 | KR151: 9 | KS151: 12 | KT151: 2 | KU151: 15 | KV151: 10 | KW151: 1 | KX151: 2 | KY151: 31 | KZ151: 2 | LA151: 7 | LB151: 21 | LC151: 29 | LD151: 33 | LE151: 4 | LF151: 2 | LG151: 2 | LH151: 2 | LI151: 23 | LJ151: 7 | LK151: 3 | LL151: 2 | LM151: 26 | LN151: 48 | LP151: 33 | LQ151: 3 | LR151: 11 | LS151: 2 | LT151: 32 | LU151: 20 | LV151: 35 | LW151: 31 | LX151: 15 | LY151: 11 | LZ151: 15 | MA151: 4 | MB151: 6 | MC151: 10 | MD151: 15 | ME151: 37 | MF151: 10 | MG151: 22 | MH151: 40 | MI151: 14 | MJ151: 12 | MK151: 26 | ML151: 22 | MM151: 14 | MN151: 10 | MO151: 31 | MR151: 48 | MT151: 59 | MW151: 65 | MX151: 35 | MY151: 12 | MZ151: 23 | NA151: 16 | NB151: 24 | NC151: 34 | ND151: 30 | NE151: 38 | NF151: 35 | NG151: 2 | NH151: 3
A152: Semipalmated Sandpiper | DO152: 23 | DR152: 1 | DT152: 7 | DY152: 7 | DZ152: 6 | EA152: 4 | ED152: 20 | EE152: 25 | EG152: 35 | EH152: 140 | EI152: 35 | EL152: 115 | EN152: 1 | EO152: 40 | EP152: 25 | EQ152: 175 | ER152: 2675 | ES152: 15 | ET152: 20 | EU152: 12 | EV152: 17 | EZ152: 3 | FA152: 7 | FB152: 43 | FC152: 2 | GW152: 5 | GX152: 10 | GZ152: 3 | HA152: 22 | HC152: 14 | HE152: 4 | HF152: 12 | HG152: 5 | HI152: 3 | HJ152: 2 | HL152: 22 | HM152: 1 | HN152: 17 | HP152: 12 | HQ152: 25 | HS152: 2 | HT152: 1 | HU152: 21 | HV152: 27 | HW152: 24 | HX152: 1 | IB152: 12 | IC152: 6 | ID152: 3 | IE152: 15 | IF152: 20 | IH152: 7 | II152: 1 | IR152: 9 | IS152: 12 | IT152: 12
A153: Western Sandpiper | AK153: 3 | CB153: 1 | IE153: 4 | IN153: 3 | IS153: 8 | IT153: 46 | IV153: 2 | LV153: 2
A154: Least Sandpiper | DG154: 3 | DO154: 3 | DP154: 2 | DX154: 2 | DZ154: 1 | EB154: 1 | EE154: 1 | EG154: 2 | EI154: 2 | EL154: 1 | EM154: 4 | EQ154: 15 | ER154: 1 | EV154: 1 | GV154: 4 | GX154: 40 | GY154: 18 | GZ154: 30 | HA154: 35 | HC154: 3 | HE154: 46 | HJ154: 2 | HL154: 4 | HN154: 6 | HO154: 1 | HP154: 2 | HQ154: 6 | HT154: 3 | HU154: 14 | HV154: 6 | HW154: 8 | IB154: 6 | IE154: 3 | IM154: 1 | IR154: 6 | IT154: 9
A155: White-rumped Sandpiper | DX155: 5 | EQ155: 4 | ER155: 1 | EV155: 1 | FB155: 1 | IE155: 1
A156: Baird's Sandpiper | HW156: 1
A157: Pectoral Sandpiper | ED157: 1 | GP157: 1 | HC157: 1 | HE157: 1 | HL157: 1 | HP157: 1 | HT157: 2 | IC157: 6 | IF157: 7 | IJ157: 1 | IN157: 1
A158: Purple Sandpiper | CG158: 1 | CL158: 2 | KD158: 1
A159: Dunlin | U159: 3 | AC159: 3 | AD159: 3 | AY159: 2 | BL159: 8 | EF159: 1 | JS159: 8 | MB159: 3 | MG159: 1 | ML159: 4
A160: Stilt Sandpiper | GX160: 1 | HC160: 1 | HP160: 6 | HQ160: 1 | HW160: 5 | IW160: 1
A161: Buff-breasted Sandpiper | GX161: 1
A162: Ruff
A163: Short-billed Dowitcher | Q163: 1 | DO163: 25 | EQ163: 4 | GT163: 4 | GV163: 1 | GX163: 1 | GY163: 1 | GZ163: 1 | HA163: 1 | HB163: 1 | HF163: 3 | HL163: 4 | HR163: 1 | HY163: 6 | IC163: 10 | ID163: 13 | IF163: 15
A164: Long-billed Dowitcher | DB164: 1 | KR164: 12
A165: Wilson's Snipe | K165: 1 | Q165: 1 | BT165: 1 | JV165: 1 | KM165: 1 | LH165: 1 | LR165: 1
A166: Wilson's Phalarope | HG166: 1
A167: Red-necked Phalarope | JO167: 4 | KB167: 5 | LC167: 8
A168: Red Phalarope | JO168: 12
A169: South Polar Skua
A170: Pomarine Jaeger | H170: 1 | O170: 1 | R170: 1 | AT170: 1 | KF170: 1 | KL170: 24 | KM170: 19 | KO170: 4 | LC170: 1 | LL170: 7 | LP170: 2 | MH170: 1 | MP170: 3 | MQ170: 8 | MU170: 1 | MZ170: 1 | NB170: 1 | NH170: 3
A171: Parasitic Jaeger | G171: 3 | H171: 5 | I171: 2 | L171: 8 | M171: 3 | N171: 2 | O171: 8 | P171: 2 | Q171: 6 | R171: 15 | S171: 3 | T171: 3 | U171: 4 | V171: 5 | W171: 4 | X171: 5 | AA171: 1 | AB171: 3 | AC171: 2 | AF171: 3 | AH171: 1 | AI171: 1 | AL171: 1 | AO171: 1 | AQ171: 4 | AR171: 1 | AT171: 1 | AU171: 1 | AV171: 3 | BC171: 3 | BN171: 1 | BQ171: 2 | BS171: 1 | CE171: 1 | IT171: 1 | JP171: 2 | JT171: 1 | KB171: 1 | KE171: 3 | KL171: 2 | KM171: 14 | KO171: 1 | KP171: 1 | KX171: 1 | LA171: 1 | LC171: 1 | LD171: 1 | LI171: 1 | LL171: 1 | LU171: 1 | ME171: 1 | ML171: 1 | MP171: 2 | MR171: 1 | MT171: 1 | MX171: 1 | NB171: 2 | NH171: 3
A172: Long-tailed Jaeger | JO172: 7 | KB172: 1
A173: Laughing Gull | G173: 605 | H173: 3900 | I173: 600 | J173: 1030 | K173: 820 | L173: 1010 | M173: 3400 | N173: 240 | O173: 580 | P173: 790 | Q173: 710 | R173: 6780 | S173: 30 | T173: 45 | U173: 205 | V173: 370 | W173: 145 | X173: 295 | Y173: 245 | Z173: 100 | AA173: 245 | AB173: 1000 | AC173: 134 | AD173: 680 | AE173: 610 | AF173: 770 | AG173: 220 | AH173: 320 | AI173: 31 | AJ173: 150 | AK173: 100 | AL173: 20 | AM173: 55 | AN173: 60 | AO173: 710 | AP173: 290 | AQ173: 2 | AR173: 5 | AS173: 14 | AT173: 140 | AU173: 220 | AV173: 1250 | AW173: 1740 | AX173: 1220 | AY173: 230 | AZ173: 34 | BA173: 160 | BB173: 560 | BC173: 45 | BD173: 14 | BE173: 90 | BF173: 43 | BG173: 90 | BH173: 350 | BI173: 170 | BJ173: 210 | BK173: 160 | BL173: 180 | BM173: 190 | BN173: 295 | BO173: 100 | BP173: 109 | BQ173: 410 | BR173: 45 | BS173: 115 | BT173: 85 | BU173: 1310 | BV173: 490 | BW173: 290 | BX173: 120 | BY173: 65 | BZ173: 40 | CA173: 94 | CB173: 610 | CC173: 60 | CD173: 250 | CE173: 28 | CF173: 405 | CG173: 25 | CH173: 17 | CI173: 73 | CJ173: 76 | CK173: 110 | CL173: 435 | CM173: 185 | CN173: 20 | CO173: 24 | CP173: 31 | CQ173: 136 | CR173: 92 | CS173: 37 | CT173: 49 | CU173: 11 | CV173: 44 | CW173: 44 | CX173: 49 | CY173: 133 | CZ173: 363 | DA173: 40 | DB173: 4 | DC173: 13 | DD173: 14 | DE173: 23 | DF173: 65 | DG173: 21 | DH173: 15 | DI173: 21 | DJ173: 9 | DK173: 21 | DL173: 22 | DM173: 4 | DN173: 17 | DO173: 61 | DP173: 124 | DQ173: 7 | DR173: 11 | DS173: 24 | DT173: 22 | DU173: 13 | DV173: 9 | DW173: 11 | DX173: 2 | DY173: 13 | DZ173: 3 | EA173: 56 | EB173: 28 | EC173: 28 | ED173: 8 | EE173: 19 | EF173: 13 | EG173: 44 | EH173: 19 | EI173: 66 | EJ173: 64 | EK173: 13 | EL173: 27 | EM173: 9 | EN173: 18 | EO173: 26 | EP173: 40 | EQ173: 45 | ER173: 26 | ES173: 18 | ET173: 11 | EU173: 13 | EV173: 21 | EW173: 38 | EX173: 45 | EY173: 12 | EZ173: 29 | FA173: 11 | FB173: 11 | FC173: 15 | FD173: 7 | FE173: 11 | FF173: 23 | FG173: 16 | FH173: 7 | FI173: 18 | FJ173: 1 | FK173: 3 | FL173: 13 | FM173: 8 | FN173: 6 | FO173: 12 | FP173: 19 | FQ173: 13 | FR173: 6 | FS173: 14 | FT173: 10 | FU173: 1 | FV173: 3 | FW173: 6 | FX173: 10 | FY173: 8 | FZ173: 6 | GA173: 5 | GB173: 4 | GC173: 1 | GE173: 2 | GF173: 8 | GG173: 6 | GH173: 7 | GI173: 9 | GJ173: 7 | GK173: 3 | GL173: 3 | GM173: 6 | GN173: 8 | GO173: 23 | GP173: 17 | GQ173: 5 | GR173: 5 | GS173: 6 | GT173: 12 | GU173: 43 | GV173: 16 | GW173: 13 | GX173: 34 | GY173: 34 | GZ173: 4 | HA173: 20 | HB173: 28 | HC173: 57 | HD173: 39 | HE173: 97 | HF173: 41 | HG173: 15 | HH173: 31 | HI173: 40 | HJ173: 39 | HK173: 41 | HL173: 307 | HM173: 63 | HN173: 310 | HO173: 393 | HP173: 8 | HQ173: 185 | HR173: 73 | HS173: 75 | HT173: 89 | HU173: 282 | HV173: 214 | HW173: 178 | HX173: 88 | HY173: 54 | HZ173: 36 | IA173: 30 | IB173: 22 | IC173: 103 | ID173: 193 | IE173: 168 | IF173: 54 | IG173: 105 | IH173: 40 | II173: 85 | IJ173: 48 | IK173: 57 | IL173: 24 | IM173: 22 | IN173: 44 | IO173: 56 | IP173: 103 | IQ173: 59 | IR173: 79 | IS173: 36 | IT173: 113 | IU173: 21 | IV173: 68 | IW173: 62 | IX173: 31 | IY173: 31 | IZ173: 8 | JA173: 41 | JB173: 1 | JC173: 21 | JD173: 21 | JE173: 3 | JF173: 7 | JG173: 16 | JH173: 43 | JI173: 61 | JJ173: 5 | JK173: 6 | JL173: 34 | JM173: 46 | JN173: 18 | JO173: 77 | JP173: 20 | JQ173: 8 | JR173: 84 | JS173: 108 | JT173: 64 | JU173: 25 | JV173: 5 | JW173: 10 | JX173: 9 | JY173: 12 | JZ173: 29 | KA173: 50 | KB173: 275 | KC173: 11 | KD173: 20 | KE173: 143 | KF173: 188 | KG173: 118 | KH173: 140 | KI173: 86 | KJ173: 15 | KK173: 18 | KL173: 151 | KM173: 57 | KN173: 23 | KO173: 149 | KP173: 22 | KQ173: 9 | KR173: 39 | KS173: 36 | KT173: 30 | KU173: 39 | KV173: 290 | KW173: 169 | KX173: 367 | KY173: 70 | KZ173: 71 | LA173: 53 | LB173: 211 | LC173: 517 | LD173: 425 | LE173: 86 | LF173: 92 | LG173: 160 | LH173: 110 | LI173: 600 | LJ173: 46 | LK173: 87 | LL173: 1210 | LM173: 365 | LN173: 48 | LO173: 16 | LP173: 57 | LQ173: 11 | LR173: 20 | LS173: 32 | LT173: 180 | LU173: 392 | LV173: 362 | LW173: 130 | LX173: 300 | LY173: 135 | LZ173: 72 | MA173: 200 | MB173: 47 | MC173: 160 | MD173: 453 | ME173: 1700 | MF173: 44 | MG173: 220 | MH173: 303 | MI173: 70 | MJ173: 150 | MK173: 1300 | ML173: 940 | MM173: 68 | MN173: 1030 | MO173: 140 | MP173: 670 | MQ173: 640 | MR173: 2950 | MS173: 2540 | MT173: 760 | MU173: 160 | MV173: 30 | MW173: 40 | MX173: 675 | MY173: 1580 | MZ173: 2380 | NA173: 90 | NB173: 570 | NC173: 190 | ND173: 5 | NE173: 524 | NF173: 1060 | NG173: 20 | NH173: 310
A174: Franklin's Gull | L174: 1 | HQ174: 1 | KA174: 1 | NC174: 1
A175: Black-headed Gull | AQ175: 1
A176: Little Gull
A177: Bonaparte's Gull | H177: 1 | I177: 4 | J177: 3 | K177: 1 | L177: 3 | N177: 8 | O177: 5 | P177: 1 | Q177: 3 | V177: 1 | W177: 2 | AA177: 4 | AB177: 1 | AD177: 1 | AE177: 3 | AF177: 1 | AG177: 1 | AH177: 1 | AI177: 1 | AL177: 3 | AM177: 1 | AN177: 1 | AO177: 3 | AP177: 2 | AQ177: 18 | AR177: 2 | AS177: 11 | AT177: 1 | AU177: 1 | AV177: 1 | AW177: 4 | AX177: 1 | AY177: 5 | BB177: 1 | BD177: 5 | BE177: 1 | BG177: 1 | BH177: 1 | BK177: 1 | BS177: 2 | BT177: 2 | BU177: 2 | BW177: 1 | BX177: 1 | CM177: 1 | CO177: 3 | CQ177: 14 | CR177: 3 | CV177: 1 | MD177: 1 | MI177: 3 | MP177: 1
A178: Ring-billed Gull | G178: 95 | H178: 63 | I178: 16 | J178: 27 | K178: 7 | L178: 13 | M178: 22 | N178: 190 | O178: 19 | P178: 80 | Q178: 41 | R178: 102 | S178: 24 | T178: 20 | U178: 58 | V178: 120 | W178: 13 | X178: 13 | Y178: 8 | Z178: 21 | AA178: 35 | AB178: 23 | AC178: 45 | AD178: 20 | AE178: 60 | AF178: 50 | AG178: 15 | AH178: 40 | AI178: 60 | AJ178: 30 | AK178: 35 | AL178: 23 | AM178: 52 | AN178: 40 | AO178: 40 | AP178: 65 | AQ178: 30 | AR178: 13 | AS178: 43 | AT178: 24 | AU178: 29 | AV178: 16 | AW178: 23 | AX178: 25 | AY178: 40 | AZ178: 10 | BA178: 21 | BB178: 34 | BC178: 6 | BD178: 25 | BE178: 26 | BF178: 16 | BG178: 34 | BH178: 15 | BI178: 47 | BJ178: 38 | BK178: 17 | BL178: 10 | BM178: 7 | BN178: 6 | BO178: 4 | BP178: 14 | BQ178: 8 | BR178: 7 | BS178: 6 | BT178: 5 | BU178: 12 | BV178: 14 | BW178: 9 | BX178: 12 | BY178: 20 | BZ178: 3 | CA178: 8 | CB178: 9 | CC178: 9 | CD178: 9 | CE178: 23 | CF178: 15 | CG178: 6 | CH178: 5 | CI178: 7 | CJ178: 4 | CK178: 4 | CL178: 13 | CM178: 4 | CN178: 5 | CO178: 5 | CQ178: 4 | CR178: 5 | CS178: 6 | CT178: 9 | CU178: 10 | CV178: 6 | CW178: 7 | CX178: 8 | CY178: 3 | CZ178: 2 | DA178: 3 | DB178: 3 | DC178: 3 | DD178: 5 | DE178: 2 | DF178: 2 | DG178: 3 | DH178: 3 | DI178: 1 | DJ178: 2 | DK178: 3 | DL178: 1 | DM178: 1 | DN178: 1 | DO178: 1 | DP178: 2 | DQ178: 2 | DV178: 1 | DW178: 2 | DX178: 1 | FO178: 1 | FY178: 1 | JR178: 1 | JV178: 1 | KE178: 2 | KF178: 1 | KI178: 1 | KO178: 2 | KQ178: 1 | KV178: 1 | KW178: 2 | KX178: 9 | KZ178: 1 | LA178: 1 | LC178: 3 | LD178: 1 | LF178: 2 | LG178: 3 | LH178: 4 | LJ178: 3 | LK178: 3 | LL178: 2 | LM178: 1 | LN178: 4 | LO178: 3 | LP178: 5 | LQ178: 8 | LR178: 2 | LS178: 2 | LT178: 3 | LU178: 9 | LV178: 2 | LW178: 15 | LX178: 7 | LY178: 7 | LZ178: 4 | MA178: 6 | MB178: 8 | MC178: 4 | MD178: 10 | ME178: 1 | MF178: 7 | MG178: 18 | MH178: 17 | MI178: 10 | MJ178: 2 | MK178: 4 | ML178: 28 | MM178: 7 | MN178: 9 | MO178: 6 | MP178: 7 | MQ178: 15 | MR178: 22 | MS178: 5 | MT178: 11 | MU178: 4 | MV178: 12 | MW178: 11 | MX178: 55 | MY178: 7 | MZ178: 13 | NA178: 45 | NB178: 10 | NC178: 28 | ND178: 24 | NE178: 79 | NF178: 49 | NG178: 28 | NH178: 18
A179: California Gull
A180: Herring Gull | G180: 5 | H180: 27 | I180: 7 | J180: 9 | K180: 4 | L180: 105 | M180: 34 | N180: 14 | O180: 74 | P180: 1 | Q180: 50 | R180: 358 | S180: 15 | T180: 6 | U180: 52 | V180: 41 | W180: 9 | X180: 29 | Y180: 5 | Z180: 5 | AA180: 39 | AB180: 10 | AC180: 10 | AD180: 7 | AE180: 19 | AF180: 66 | AG180: 31 | AH180: 13 | AI180: 14 | AJ180: 2 | AK180: 1 | AL180: 1 | AN180: 6 | AO180: 18 | AP180: 2 | AQ180: 78 | AR180: 2 | AS180: 1 | AT180: 1 | AU180: 1 | AV180: 9 | AW180: 197 | AZ180: 2 | BA180: 1 | BB180: 1 | BC180: 7 | BD180: 3 | BF180: 1 | BH180: 1 | BI180: 2 | BJ180: 1 | BL180: 1 | BN180: 2 | BO180: 6 | BP180: 1 | BQ180: 53 | BU180: 1 | BV180: 1 | BX180: 1 | BY180: 1 | CA180: 2 | CD180: 3 | CF180: 2 | CG180: 5 | CK180: 1 | CL180: 6 | CM180: 10 | CO180: 2 | CW180: 2 | CX180: 1 | DA180: 1 | DB180: 2 | DO180: 1 | KA180: 1 | KB180: 9 | KC180: 2 | KD180: 5 | KE180: 18 | KF180: 6 | KG180: 1 | KL180: 1 | KM180: 11 | KO180: 5 | KP180: 3 | KR180: 2 | KV180: 15 | KW180: 2 | KX180: 3 | KZ180: 1 | LB180: 6 | LC180: 4 | LD180: 2 | LF180: 2 | LG180: 1 | LH180: 1 | LI180: 4 | LL180: 2 | LM180: 1 | LT180: 1 | LU180: 9 | LV180: 1 | LW180: 4 | LX180: 7 | LY180: 2 | LZ180: 4 | MA180: 14 | MB180: 66 | MC180: 2 | MD180: 5 | ME180: 13 | MF180: 2 | MG180: 2 | MH180: 8 | MI180: 4 | MJ180: 2 | MK180: 11 | ML180: 5 | MM180: 10 | MN180: 4 | MO180: 9 | MP180: 540 | MQ180: 7 | MR180: 34 | MS180: 56 | MT180: 12 | MU180: 7 | MX180: 7 | MY180: 8 | MZ180: 8 | NA180: 173 | NB180: 20 | NC180: 134 | ND180: 6 | NE180: 7 | NF180: 107 | NG180: 4 | NH180: 16
A181: Iceland Gull | L181: 1 | LL181: 1 | MR181: 1
A182: Lesser Black-backed Gull | G182: 1 | L182: 17 | O182: 5 | R182: 1 | AB182: 3 | AF182: 1 | AP182: 1 | AV182: 1 | AW182: 5 | BO182: 1 | BS182: 2 | BT182: 1 | DO182: 2 | IV182: 2 | JO182: 3 | JP182: 1 | KB182: 2 | KE182: 2 | KM182: 2 | KV182: 1 | LB182: 2 | LC182: 1 | LI182: 1 | LL182: 2 | LW182: 1 | MG182: 1 | MK182: 1 | MP182: 3 | MQ182: 1 | MR182: 3 | MS182: 1 | NA182: 4 | NC182: 2 | NE182: 1 | NF182: 6
A183: Glaucous Gull | L183: 1 | BO183: 1 | MP183: 1
A184: Great Black-backed Gull | L184: 3 | O184: 2 | U184: 1 | Y184: 1 | AB184: 1 | AF184: 1 | AN184: 1 | AV184: 1 | AW184: 2 | KX184: 1 | LC184: 1 | MP184: 1 | MQ184: 1 | MR184: 3 | NA184: 1 | NC184: 2 | NE184: 1
A185: Sabine's Gull | MQ185: 1
A186: Black-legged Kittiwake | L186: 1 | AA186: 1 | KE186: 1 | LC186: 1 | LI186: 1 | MP186: 1
A187: Gull-billed Tern | BD187: 1 | CL187: 2 | CY187: 1 | DO187: 1 | DP187: 5 | DW187: 1 | EH187: 1 | ES187: 1 | FX187: 1 | HU187: 1 | IY187: 1
A188: Caspian Tern | P188: 1 | X188: 1 | AC188: 1 | AQ188: 1 | AS188: 1 | BS188: 1 | CG188: 2 | CY188: 3 | DN188: 2 | DP188: 1 | DT188: 2 | EJ188: 1 | EY188: 1 | FA188: 1 | FM188: 1 | GN188: 1 | HL188: 1 | IF188: 1 | II188: 1 | IK188: 1 | IN188: 1 | IS188: 1 | IT188: 4 | IU188: 1 | IV188: 1 | IX188: 1 | IY188: 2 | JF188: 1 | JI188: 1 | JJ188: 2 | JM188: 1 | JV188: 1 | JX188: 1 | KD188: 3 | KF188: 2 | LB188: 2 | LC188: 2 | LF188: 1 | LJ188: 1 | MT188: 1
A189: Royal Tern | G189: 52 | H189: 4 | I189: 2 | J189: 10 | K189: 6 | L189: 18 | M189: 16 | N189: 100 | O189: 17 | P189: 10 | Q189: 44 | R189: 16 | S189: 9 | T189: 6 | U189: 6 | V189: 29 | W189: 23 | X189: 12 | Y189: 6 | Z189: 9 | AA189: 61 | AB189: 8 | AC189: 1 | AD189: 18 | AE189: 2 | AF189: 20 | AH189: 39 | AI189: 8 | AJ189: 49 | AK189: 23 | AL189: 8 | AM189: 11 | AN189: 18 | AO189: 4 | AP189: 27 | AQ189: 12 | AR189: 19 | AS189: 18 | AT189: 16 | AU189: 9 | AV189: 1 | AW189: 4 | AX189: 6 | AY189: 12 | AZ189: 20 | BA189: 10 | BB189: 5 | BC189: 40 | BD189: 30 | BE189: 12 | BF189: 9 | BG189: 13 | BH189: 4 | BI189: 10 | BJ189: 15 | BK189: 4 | BL189: 5 | BM189: 8 | BN189: 76 | BO189: 4 | BP189: 10 | BQ189: 20 | BR189: 6 | BS189: 11 | BT189: 13 | BU189: 4 | BV189: 11 | BW189: 11 | BX189: 23 | BY189: 47 | BZ189: 9 | CA189: 16 | CB189: 4 | CC189: 5 | CD189: 15 | CE189: 6 | CF189: 4 | CG189: 17 | CH189: 3 | CI189: 9 | CJ189: 22 | CK189: 6 | CL189: 159 | CM189: 13 | CN189: 18 | CO189: 6 | CP189: 11 | CQ189: 31 | CR189: 56 | CS189: 13 | CT189: 17 | CU189: 4 | CV189: 14 | CW189: 21 | CX189: 6 | CY189: 24 | CZ189: 8 | DA189: 18 | DB189: 12 | DC189: 9 | DD189: 11 | DE189: 10 | DF189: 24 | DG189: 9 | DH189: 12 | DI189: 4 | DJ189: 10 | DK189: 4 | DL189: 16 | DM189: 39 | DN189: 42 | DO189: 21 | DP189: 30 | DQ189: 5 | DR189: 18 | DS189: 3 | DT189: 20 | DU189: 7 | DV189: 9 | DW189: 16 | DX189: 3 | DY189: 13 | DZ189: 2 | EA189: 47 | EB189: 10 | EC189: 14 | ED189: 8 | EE189: 35 | EF189: 30 | EG189: 23 | EH189: 62 | EI189: 28 | EJ189: 36 | EK189: 18 | EL189: 13 | EM189: 29 | EN189: 22 | EO189: 23 | EP189: 32 | EQ189: 33 | ER189: 36 | ES189: 16 | ET189: 7 | EU189: 10 | EV189: 17 | EW189: 22 | EX189: 24 | EY189: 11 | EZ189: 22 | FA189: 20 | FB189: 39 | FC189: 39 | FD189: 52 | FE189: 20 | FF189: 35 | FG189: 17 | FH189: 9 | FI189: 10 | FJ189: 14 | FK189: 12 | FL189: 9 | FN189: 2 | FO189: 8 | FP189: 13 | FQ189: 6 | FR189: 10 | FS189: 28 | FT189: 21 | FU189: 25 | FV189: 4 | FW189: 33 | FX189: 1 | FY189: 7 | FZ189: 10 | GA189: 3 | GB189: 4 | GC189: 4 | GD189: 6 | GE189: 4 | GF189: 3 | GG189: 4 | GH189: 2 | GI189: 12 | GJ189: 12 | GK189: 13 | GL189: 21 | GM189: 9 | GN189: 7 | GO189: 8 | GP189: 8 | GQ189: 1 | GR189: 13 | GS189: 11 | GT189: 8 | GU189: 3 | GV189: 4 | GW189: 3 | GX189: 9 | GY189: 13 | GZ189: 6 | HA189: 17 | HB189: 14 | HC189: 14 | HD189: 10 | HE189: 12 | HF189: 8 | HG189: 2 | HH189: 4 | HI189: 8 | HJ189: 5 | HK189: 7 | HL189: 15 | HM189: 1 | HN189: 29 | HO189: 7 | HP189: 21 | HQ189: 30 | HR189: 40 | HS189: 14 | HT189: 29 | HU189: 12 | HV189: 23 | HW189: 28 | HX189: 34 | HY189: 31 | HZ189: 40 | IA189: 19 | IB189: 13 | IC189: 18 | ID189: 23 | IE189: 23 | IF189: 12 | IG189: 34 | IH189: 14 | II189: 7 | IJ189: 12 | IK189: 9 | IL189: 6 | IM189: 8 | IN189: 21 | IO189: 17 | IP189: 33 | IQ189: 16 | IR189: 14 | IS189: 22 | IT189: 26 | IU189: 15 | IV189: 43 | IW189: 10 | IX189: 22 | IY189: 13 | IZ189: 9 | JA189: 6 | JB189: 4 | JC189: 9 | JD189: 14 | JE189: 6 | JF189: 9 | JG189: 27 | JH189: 17 | JI189: 18 | JJ189: 6 | JK189: 12 | JL189: 19 | JM189: 5 | JN189: 4 | JO189: 70 | JP189: 12 | JQ189: 2 | JR189: 8 | JS189: 10 | JT189: 18 | JU189: 8 | JV189: 20 | JW189: 5 | JX189: 2 | JY189: 5 | JZ189: 17 | KA189: 12 | KB189: 9 | KC189: 3 | KD189: 4 | KE189: 91 | KF189: 49 | KG189: 8 | KH189: 3 | KI189: 7 | KJ189: 3 | KK189: 6 | KL189: 55 | KM189: 18 | KN189: 1 | KO189: 18 | KP189: 6 | KQ189: 3 | KR189: 6 | KS189: 2 | KT189: 2 | KU189: 3 | KV189: 1 | KW189: 10 | KX189: 9 | KY189: 17 | KZ189: 18 | LA189: 29 | LB189: 48 | LC189: 69 | LD189: 21 | LE189: 38 | LF189: 19 | LG189: 33 | LH189: 38 | LI189: 35 | LJ189: 9 | LK189: 2 | LL189: 71 | LM189: 24 | LN189: 25 | LO189: 17 | LP189: 10 | LQ189: 3 | LR189: 4 | LS189: 2 | LT189: 2 | LU189: 49 | LV189: 13 | LW189: 27 | LX189: 14 | LY189: 14 | LZ189: 22 | MA189: 26 | MB189: 18 | MC189: 99 | MD189: 9 | ME189: 16 | MF189: 21 | MG189: 1 | MH189: 11 | MI189: 5 | MJ189: 43 | MK189: 4 | ML189: 2 | MN189: 7 | MO189: 7 | MP189: 18 | MQ189: 6 | MR189: 25 | MS189: 14 | MT189: 18 | MU189: 27 | MV189: 26 | MW189: 26 | MX189: 36 | MY189: 14 | MZ189: 15 | NA189: 8 | NB189: 49 | NC189: 4 | ND189: 4 | NE189: 6 | NF189: 14 | NG189: 5 | NH189: 11
A190: Sandwich Tern | G190: 16 | H190: 9 | I190: 2 | J190: 17 | K190: 36 | L190: 22 | M190: 4 | N190: 15 | O190: 3 | P190: 30 | Q190: 30 | R190: 15 | S190: 29 | T190: 207 | U190: 152 | V190: 11 | W190: 230 | X190: 214 | Y190: 20 | Z190: 17 | AA190: 11 | AB190: 5 | AC190: 2 | AD190: 10 | AF190: 7 | AH190: 20 | AI190: 43 | AJ190: 107 | AK190: 47 | AL190: 54 | AM190: 66 | AN190: 16 | AO190: 4 | AP190: 39 | AQ190: 43 | AR190: 37 | AS190: 33 | AT190: 69 | AU190: 12 | AV190: 8 | AW190: 2 | AX190: 20 | AY190: 65 | AZ190: 45 | BA190: 22 | BB190: 2 | BC190: 33 | BD190: 13 | BE190: 9 | BF190: 23 | BG190: 37 | BH190: 3 | BI190: 9 | BJ190: 10 | BK190: 1 | BL190: 3 | BM190: 3 | BN190: 16 | BO190: 5 | BP190: 3 | BQ190: 12 | BR190: 8 | BS190: 20 | BT190: 15 | BU190: 5 | BV190: 8 | BW190: 5 | BX190: 22 | BY190: 70 | BZ190: 19 | CA190: 5 | CB190: 7 | CC190: 9 | CD190: 5 | CE190: 5 | CF190: 4 | CG190: 9 | CH190: 1 | CI190: 1 | CJ190: 14 | CK190: 1 | CL190: 83 | CM190: 4 | CP190: 1 | CQ190: 5 | CR190: 23 | CS190: 1 | CT190: 4 | CV190: 4 | CW190: 2 | CX190: 2 | CY190: 10 | CZ190: 4 | DA190: 1 | DC190: 1 | DD190: 2 | DF190: 2 | DI190: 1 | DJ190: 1 | DK190: 1 | DL190: 1 | DN190: 1 | DO190: 3 | DP190: 1 | DS190: 1 | DT190: 2 | DY190: 1 | EA190: 4 | EB190: 1 | EC190: 2 | EH190: 5 | EI190: 1 | EJ190: 2 | EK190: 1 | EM190: 1 | EO190: 1 | EP190: 1 | EQ190: 1 | ER190: 1 | ES190: 1 | EV190: 1 | EY190: 3 | EZ190: 1 | FB190: 2 | FC190: 3 | FD190: 1 | FE190: 1 | FI190: 1 | FL190: 1 | FO190: 1 | FP190: 2 | FQ190: 3 | FS190: 1 | FV190: 1 | FZ190: 1 | GI190: 1 | GK190: 1 | GN190: 1 | GR190: 1 | GS190: 1 | GT190: 1 | GX190: 3 | HA190: 1 | HD190: 2 | HE190: 1 | HG190: 2 | HI190: 1 | HJ190: 1 | HK190: 2 | HL190: 4 | HR190: 3 | HT190: 2 | HW190: 1 | HX190: 6 | HY190: 1 | HZ190: 2 | IA190: 4 | IC190: 1 | ID190: 3 | IE190: 3 | IH190: 2 | IM190: 1 | IN190: 1 | IO190: 2 | IP190: 4 | IQ190: 2 | IR190: 2 | IS190: 1 | IT190: 6 | IV190: 1 | IW190: 2 | IX190: 2 | JA190: 1 | JC190: 1 | JG190: 1 | JH190: 1 | JJ190: 2 | JK190: 2 | JL190: 2 | JM190: 2 | JO190: 61 | JP190: 1 | JR190: 1 | JT190: 2 | JU190: 1 | JW190: 1 | JX190: 1 | JY190: 1 | JZ190: 2 | KA190: 1 | KB190: 3 | KC190: 1 | KE190: 3 | KF190: 2 | KG190: 2 | KH190: 2 | KI190: 1 | KL190: 2 | KM190: 3 | KO190: 2 | KR190: 3 | KU190: 1 | KW190: 2 | KX190: 1 | KY190: 4 | KZ190: 2 | LA190: 2 | LB190: 1 | LC190: 1 | LD190: 3 | LE190: 7 | LF190: 1 | LG190: 3 | LH190: 5 | LI190: 6 | LK190: 1 | LL190: 1 | LM190: 2 | LN190: 5 | LO190: 2 | LP190: 1 | LR190: 1 | LU190: 5 | LV190: 10 | LW190: 8 | LX190: 3 | LY190: 4 | LZ190: 4 | MA190: 9 | MC190: 14 | MD190: 5 | ME190: 5 | MF190: 4 | MG190: 3 | MI190: 1 | MJ190: 7 | MN190: 9 | MO190: 3 | MP190: 2 | MR190: 4 | MS190: 3 | MT190: 2 | MU190: 3 | MV190: 1 | MW190: 4 | MX190: 14 | MY190: 2 | MZ190: 6 | NA190: 1 | NB190: 15 | NC190: 4 | NE190: 2 | NF190: 1 | NH190: 2
A191: Roseate Tern | DF191: 2 | EK191: 2 | HD191: 1 | HQ191: 1 | JO191: 8
A192: Common Tern | AR192: 1 | BY192: 5 | CL192: 3 | CZ192: 4 | DO192: 1 | DT192: 1 | DV192: 1 | EH192: 1 | EI192: 2 | ER192: 2 | FF192: 1 | GW192: 1 | GX192: 1 | GY192: 3 | HA192: 2 | HD192: 1 | HE192: 2 | HF192: 1 | HG192: 1 | HH192: 1 | HI192: 2 | HL192: 4 | HN192: 2 | HR192: 1 | HS192: 2 | HT192: 1 | HU192: 2 | HV192: 1 | HW192: 1 | HX192: 3 | HY192: 1 | HZ192: 3 | IA192: 38 | IC192: 2 | ID192: 3 | II192: 1 | IK192: 2 | IM192: 4 | IO192: 4 | IP192: 27 | IQ192: 3 | IR192: 17 | IS192: 48 | IT192: 10 | IU192: 1 | IV192: 3 | IW192: 2 | JA192: 5 | JC192: 10 | JD192: 12 | JE192: 3 | JO192: 27 | JP192: 3 | JR192: 4 | JS192: 1 | JT192: 18 | JW192: 1 | KE192: 1 | KF192: 8 | KX192: 4 | KY192: 2 | LC192: 1 | LG192: 1 | LI192: 2 | LM192: 5
A193: Arctic Tern | DT193: 1 | JO193: 4
A194: Forster's Tern | G194: 21 | H194: 46 | I194: 52 | J194: 60 | K194: 36 | L194: 143 | M194: 25 | N194: 115 | O194: 57 | P194: 17 | Q194: 44 | R194: 36 | S194: 17 | T194: 9 | U194: 13 | V194: 5 | W194: 12 | X194: 24 | Y194: 5 | Z194: 4 | AA194: 3 | AB194: 5 | AC194: 30 | AD194: 24 | AE194: 9 | AF194: 21 | AG194: 3 | AH194: 44 | AI194: 12 | AJ194: 22 | AK194: 13 | AL194: 32 | AM194: 31 | AN194: 10 | AO194: 19 | AP194: 19 | AQ194: 45 | AR194: 18 | AS194: 23 | AT194: 65 | AU194: 35 | AV194: 35 | AW194: 1 | AX194: 24 | AY194: 102 | AZ194: 60 | BA194: 11 | BB194: 5 | BC194: 50 | BD194: 7 | BE194: 38 | BF194: 16 | BG194: 37 | BH194: 3 | BI194: 14 | BJ194: 19 | BK194: 88 | BL194: 80 | BM194: 59 | BN194: 18 | BO194: 11 | BP194: 7 | BQ194: 9 | BR194: 7 | BS194: 17 | BT194: 21 | BU194: 17 | BV194: 23 | BW194: 12 | BX194: 6 | BY194: 49 | BZ194: 55 | CA194: 8 | CB194: 7 | CC194: 14 | CD194: 5 | CE194: 4 | CG194: 3 | CJ194: 3 | CK194: 6 | CL194: 2 | CM194: 2 | CN194: 2 | CQ194: 10 | CR194: 3 | CS194: 1 | CV194: 2 | CW194: 1 | CZ194: 2 | DF194: 2 | DK194: 1 | EO194: 2 | GP194: 1 | HL194: 1 | IM194: 1 | IS194: 5 | IW194: 2 | IY194: 1 | JC194: 1 | JI194: 1 | JO194: 5 | KB194: 1 | KF194: 1 | KQ194: 1 | KW194: 1 | KY194: 1 | KZ194: 1 | LA194: 3 | LE194: 1 | LG194: 1 | LI194: 6 | LJ194: 1 | LL194: 2 | LU194: 1 | LV194: 2 | LW194: 2 | LZ194: 2 | MA194: 1 | MB194: 2 | ME194: 5 | MF194: 1 | MG194: 6 | MI194: 1 | MJ194: 6 | MK194: 2 | MM194: 5 | MN194: 2 | MO194: 7 | MQ194: 7 | MR194: 3 | MS194: 1 | MT194: 9 | MU194: 21 | MV194: 1 | MW194: 11 | MX194: 24 | MY194: 2 | MZ194: 1 | NB194: 2 | NC194: 1 | ND194: 8 | NE194: 2 | NF194: 3 | NG194: 1 | NH194: 14
A195: Least Tern | CX195: 2 | CY195: 3 | CZ195: 10 | DA195: 4 | DB195: 1 | DC195: 6 | DD195: 3 | DE195: 16 | DF195: 6 | DG195: 15 | DI195: 1 | DK195: 1 | DL195: 1 | DM195: 3 | DN195: 3 | DO195: 12 | DP195: 13 | DQ195: 8 | DR195: 5 | DS195: 6 | DT195: 3 | DU195: 1 | DV195: 4 | DW195: 5 | DX195: 2 | DY195: 2 | DZ195: 5 | EA195: 3 | EB195: 2 | ED195: 4 | EE195: 3 | EF195: 8 | EG195: 18 | EH195: 12 | EI195: 13 | EJ195: 11 | EK195: 7 | EL195: 10 | EM195: 5 | EN195: 7 | EO195: 4 | EP195: 14 | EQ195: 4 | ER195: 22 | ES195: 9 | ET195: 9 | EU195: 17 | EV195: 15 | EW195: 24 | EX195: 24 | EY195: 10 | EZ195: 17 | FA195: 18 | FB195: 15 | FC195: 9 | FD195: 20 | FE195: 14 | FF195: 13 | FG195: 19 | FH195: 19 | FI195: 15 | FJ195: 26 | FK195: 26 | FL195: 17 | FM195: 25 | FN195: 20 | FO195: 8 | FP195: 15 | FQ195: 15 | FR195: 28 | FS195: 26 | FT195: 10 | FU195: 5 | FV195: 6 | FW195: 7 | FX195: 6 | FY195: 16 | FZ195: 16 | GA195: 16 | GB195: 20 | GC195: 16 | GD195: 16 | GE195: 12 | GF195: 17 | GG195: 18 | GH195: 14 | GI195: 19 | GJ195: 20 | GK195: 19 | GL195: 18 | GM195: 42 | GN195: 46 | GO195: 31 | GP195: 27 | GQ195: 24 | GR195: 47 | GS195: 23 | GT195: 34 | GU195: 52 | GV195: 37 | GW195: 64 | GX195: 77 | GY195: 84 | GZ195: 162 | HA195: 170 | HB195: 57 | HC195: 39 | HD195: 23 | HE195: 28 | HF195: 29 | HG195: 14 | HH195: 16 | HI195: 39 | HJ195: 21 | HK195: 35 | HL195: 40 | HM195: 23 | HN195: 39 | HO195: 16 | HP195: 4 | HQ195: 23 | HR195: 24 | HS195: 3 | HT195: 24 | HU195: 14 | HV195: 14 | HW195: 19 | HX195: 21 | HY195: 29 | HZ195: 16 | IA195: 49 | IB195: 15 | IC195: 25 | ID195: 1 | IE195: 14 | IF195: 8 | IH195: 3 | II195: 6 | IK195: 2 | IL195: 3 | IM195: 4 | IP195: 1 | IR195: 2 | IS195: 7 | IT195: 3 | IW195: 3 | JA195: 1 | JC195: 4 | JO195: 8
A196: Bridled Tern | KD196: 33 | KE196: 1
A197: Sooty Tern | FU197: 1 | HQ197: 1 | KD197: 148 | KE197: 12 | KF197: 1
A198: Black Tern | DT198: 1 | GS198: 1 | GX198: 3 | GY198: 1 | HA198: 5 | HB198: 1 | HC198: 1 | HF198: 5 | HG198: 2 | HI198: 5 | HJ198: 1 | HL198: 6 | HM198: 5 | HN198: 6 | HQ198: 11 | HR198: 8 | HS198: 23 | HT198: 5 | HU198: 6 | HV198: 12 | HW198: 9 | HY198: 15 | HZ198: 28 | IA198: 59 | IB198: 3 | ID198: 8 | IE198: 3 | IF198: 4 | IG198: 2 | II198: 2 | IJ198: 2 | IK198: 2 | IM198: 5 | IN198: 20 | IO198: 19 | IP198: 23 | IQ198: 9 | IR198: 18 | IS198: 47 | IT198: 18 | IV198: 14 | IW198: 14 | IX198: 1 | JA198: 1 | JD198: 1 | JH198: 1 | JZ198: 1
A199: Brown Noddy | GX199: 1 | KE199: 1
A200: Black Skimmer | G200: 28 | I200: 20 | J200: 4 | K200: 10 | L200: 6 | M200: 74 | N200: 21 | O200: 34 | P200: 11 | Q200: 48 | R200: 7 | S200: 9 | T200: 6 | U200: 1 | W200: 1 | X200: 9 | Y200: 1 | Z200: 5 | AA200: 2 | AB200: 1 | AC200: 10 | AD200: 5 | AE200: 5 | AF200: 21 | AH200: 2 | AI200: 1 | AK200: 17 | AL200: 2 | AM200: 16 | AN200: 7 | AO200: 4 | AP200: 29 | AQ200: 415 | AR200: 88 | AS200: 43 | AT200: 6 | AV200: 10 | AW200: 24 | AX200: 65 | AY200: 3 | AZ200: 98 | BA200: 12 | BB200: 5 | BC200: 13 | BD200: 3 | BE200: 2 | BF200: 57 | BG200: 32 | BH200: 14 | BI200: 6 | BJ200: 6 | BK200: 117 | BL200: 3 | BN200: 3 | BO200: 24 | BP200: 13 | BS200: 41 | BU200: 3 | BV200: 2 | BX200: 10 | CB200: 3 | CE200: 3 | CF200: 2 | CG200: 1 | DC200: 1 | DF200: 4 | DL200: 1 | DO200: 6 | EF200: 2 | EG200: 2 | EH200: 3 | EI200: 1 | EQ200: 1 | EU200: 2 | EV200: 7 | EY200: 6 | FB200: 1 | HB200: 2 | HG200: 1 | HJ200: 1 | HN200: 4 | HS200: 1 | HZ200: 3 | IC200: 4 | IL200: 4 | IM200: 1 | IN200: 1 | IS200: 1 | IT200: 2 | IV200: 4 | JC200: 2 | JJ200: 7 | JL200: 1 | JR200: 4 | JU200: 2 | JX200: 2 | KI200: 2 | KN200: 1 | KR200: 2 | LP200: 22 | LZ200: 2 | MA200: 1 | MH200: 4 | MI200: 3 | MJ200: 1 | MK200: 4 | ML200: 11 | MN200: 1 | MV200: 1 | MX200: 7 | MY200: 1 | MZ200: 1 | NA200: 1 | NB200: 4 | NC200: 6 | ND200: 3 | NE200: 16 | NF200: 1
A201: Dovekie
A202: Thick-billed Murre | AL202: 1 | ND202: 1
... 377 more rows

Sheet high counts
A1: Highest daily counts all species | E1: Tom Renick Park
A3: Species | E3: Number | G3: Date
A5: Red-throated Loon | E5: 5 | G5: 12.13.17
A6: Pacific Loon | E6: 1 | G6: 1.29.21
A7: Common Loon | E7: 31 | G7: 11.16.22
A8: Pied-billed Grebe | E8: 2 | G8: 9.25.19
A9: Horned Grebe | E9: 18 | G9: 11.17.23
A10: Red-necked Grebe | E10: 1 | G10: 2.26.21
A11: Eared Grebe | E11: 4 | G11: 12.4.20
A12: Western Grebe | E12: 1 | G12: 1.26.25
A13: Yellow-nosed Albatross | E13: 1 | G13: 5.31.21
A14: Northern Fulmar | E14: 4 | G14: 10.5.17
A15: Black-capped Petrel | E15: 1 | G15: 10.4.23
A16: Cory's Shearwater | E16: 147 | G16: 6.26.22
A17: Scopoli's Shearwater | E17: 7 | G17: 6.22.24
A18: Great Shearwater | E18: 44 | G18: 9.13.25
A19: Sooty Shearwater | E19: 16 | G19: 10.2.17
A20: Manx Shearwater | E20: 3 | G20: 12.2.22
A21: Audubon's Shearwater | E21: 6 | G21: 4.10.23
A22: Wilson's Storm-Petrel | E22: 28 | G22: 5.21.21
A23: Leach's Storm-Petrel | E23: 307 | G23: 5.21.21
A24: Grant's Storm-Petrel | E24: 1 | G24: 6.26.22
A25: Maderian Storm-Petrel | E25: 6 | G25: 5.20.22
A26: White-tailed Tropicbird | E26: 1 | G26: 4.18.19
A27: Masked Booby | E27: 1 | G27: 12.24.17
A28: Brown Booby | E28: 4 | G28: 11.2.17
A29: Northern Gannet | E29: 4,897 | G29: 12.14.18
A30: American White Pelican | E30: 120 | G30: 1.24.18
A31: Brown Pelican | E31: 2,536 | G31: 3.26.18
A32: Neotropic Cormorant | E32: 1 | G32: 4.27.23
A33: Double-crested Cormorant | E33: 2,650 | G33: 4.3.19
A34: Great Cormorant | E34: 1 | G34: 12.3.17
A35: Anhinga | E35: 417 | G35: 9.1.20
A36: Magnificent Frigatebird | E36: 5 | G36: 9.11.19
A37: American Bittern | E37: 2 | G37: 9.29.24
A38: Least Bittern | E38: 2 | G38: 8.11.23
A39: Great Blue Heron | E39: 206 | G39: 9.18.20
A40: Great White Heron | E40: 1 | G40: 12.5.22
A41: Great Egret | E41: 204 | G41: 3.23.19
A42: Snowy Egret | E42: 247 | G42: 3.25.24
A43: Western Reef Heron | E43: 1 | G43: 11.5.20
A44: Little Blue Heron | E44: 120 | G44: 9.1.21
A45: Tricolored Heron | E45: 107 | G45: 10.17.17
A46: Reddish Egret | E46: 3 | G46: 4.19.24
A47: Cattle Egret | E47: 475 | G47: 9.30.24
A48: Green Heron | E48: 11 | G48: 10.1.24
A49: Black-crowned Night-Heron | E49: 5 | G49: 4.18.21
A50: Yellow-crowned Night Heron | E50: 14 | G50: 8.31.23
A51: White Ibis | E51: 540 | G51: 10.8.23
A52: Glossy Ibis | E52: 69 | G52: 3.15.23
A53: White-faced Ibis | E53: 1 | G53: 8.21.24
A54: Roseate Spoonbill | E54: 92 | G54: 6.14.24
A55: Wood Stork | E55: 119 | G55: 1.1.21
A56: Black Vulture | E56: 425 | G56: 10.16.20
A57: Turkey Vulture | E57: 1,906 | G57: 11.13.20
A58: American Flamingo | E58: 1 | G58: 10.22.23
A59: Black-bellied Whistling-Duck | E59: 15 | G59: 7.15.24
A60: Fulvous Whistling-Duck | E60: 2 | G60: 8.23.19
A61: Greater White-fronted Goose | E61: 4 | G61: 10.28.18
A62: Snow Goose | E62: 60 | G62: 3.8.23
A63: Canada Goose | E63: 4 | G63: 3,31.21
A64: Brant | E64: 1 | G64: 11.6.16
A65: Egyptian Goose | E65: 4 | G65: 4.25.17
A66: Tundra Swan | E66: 1 | G66: 1.13.18
A67: Mute Swan | E67: 1 | G67: 3.25.24
A68: Muscovy Duck | E68: 5 | G68: 11.8.25
A69: Wood Duck | E69: 3 | G69: 11.4.23
A70: Gadwall | E70: 30 | G70: 11.8.22
A71: Eurasian Wigeon | E71: 1 | G71: 11.15.23
A72: American Wigeon | E72: 42 | G72: 11.11.18
A73: American Black Duck | E73: 1 | G73: 11.2.21
A74: Mallard | E74: 4 | G74: 11.14.24
A75: Mottled Duck | E75: 3 | G75: 12.2.20
A76: Blue-winged Teal | E76: 2,015 | G76: 9.29.20
A77: Northern Shoveler | E77: 35 | G77: 11.21.22
A78: Northern Pintail | E78: 225 | G78: 11.12.16
A79: Green-winged Teal | E79: 850 | G79: 11.11.17
A80: Canvasback | E80: 65 | G80: 12.8.20
A81: Redhead | E81: 735 | G81: 12.23.17
A82: Ring-necked Duck | E82: 345 | G82: 11.8.22
A83: Greater Scaup | E83: 15,800 | G83: 12.23.21
A84: Lesser Scaup | E84: 10,770 | G84: 11.22.16
A85: Common Eider | E85: 7 | G85: 12.7.24
A86: Harlequin Duck | E86: 1 | G86: 11.6.18
A87: Surf Scoter | E87: 67 | G87: 11.13.24
A88: White-winged Scoter | E88: 23 | G88: 12.14.23
A89: Black Scoter | E89: 8,490 | G89: 12.4.18
A90: Long-tailed Duck | E90: 3 | G90: 1.6.24
A91: Bufflehead | E91: 24 | G91: 12.3.20
A92: Common Goldeneye | E92: 4 | G92: 11.19.23
A93: Hooded Merganser | E93: 36 | G93: 11.29.19
A94: Common Merganser | E94: 1 | G94: 11.20.17
A95: Red-breasted Merganser | E95: 449 | G95: 11.20.17
A96: Ruddy Duck | E96: 96 | G96: 12.1.24
A97: Osprey | E97: 58 | G97: 3.12.22
A98: Swallow-tailed Kite | E98: 45 | G98: 3.13.23
A99: Snail Kite | E99: 1 | G99: 8.1.21
A100: Mississippi Kite | E100: 6 | G100: 6.27.24
A101: Bald Eagle | E101: 9 | G101: 11.3.20
A102: Northern Harrier | E102: 9 | G102: 11.14.22
A103: Sharp-shinned Hawk | E103: 38 | G103: 10.12.23
A104: Cooper's Hawk | E104: 4 | G104: 7.21.18
A105: Red-shouldered Hawk | E105: 8 | G105: 9.16.24
A106: Broad-winged Hawk | E106: 6 | G106: 9.21.24
A107: Short-tailed Hawk | E107: 2 | G107: 7.29.17
A108: Swainson's Hawk | E108: 2 | G108: 10.24.24S
A109: Red-tailed Hawk | E109: 5 | G109: 10.23.20
A110: Golden Eagle | E110: 1 | G110: 10.30.17
A111: Crested Caracara | E111: 1 | G111: 8.19.20
A112: American Kestrel | E112: 28 | G112: 10.12.23
A113: Merlin | E113: 15 | G113: 9.19.22
A114: Peregrine Falcon | E114: 221 | G114: 10.4.17
A115: Wild Turkey | E115: 2 | G115: 1.17.24
A116: Clapper Rail | E116: 1 | G116: 8.26.23
A117: Sora | E117: 1 | G117: 2.2.24
A118: Common Gallinule | E118: 1 | G118: 7.13.24
A119: American Coot | E119: 2 | G119: 11.9.18
A120: Limpkin | E120: 1 | G120: 1.11.24
A121: Sandhill Crane | E121: 4 | G121: 12.23.18
A122: Black-bellied Plover | E122: 75 | G122: 10.25.23
A123: American Golden-Plover | E123: 3 | G123: 8.12.18
A124: Wilson's Plover | E124: 2 | G124: 8.26.19
A125: Semipalmated Plover | E125: 119 | G125: 5.4.23
A126: Common Ringed Plover | E126: 1 | G126: 5.4.23
A127: Piping Plover | E127: 2 | G127: 8.7.22
A128: Killdeer | E128: 12 | G128: 2.19.24
A129: American Oystercatcher | E129: 8 | G129: 10.3.20
A130: Black-necked Stilt | E130: 110 | G130: 8.24.22
A131: American Avocet | E131: 14 | G131: 8.19.18
A132: Greater Yellowlegs | E132: 30 | G132: 8.3.18
A133: Lesser Yellowlegs | E133: 75 | G133: 5.4.23
A134: Solitary Sandpiper | E134: 2 | G134: 7.23.24
A135: Willet | E135: 495 | G135: 10.19.21
A136: Spotted Sandpiper | E136: 10 | G136: 4.24.24
A137: Upland Sandpiper | E137: 8 | G137: 4.10.25
A138: Whimbrel | E138: 17 | G138: 4.29.18
A139: Long-billed Curlew | E139: 1 | G139: 4.15.16
A140: Hudsonian Godwit | E140: 1 | G140: 10.9.19
A141: Marbled Godwit | E141: 10 | G141: 9.16.18
A142: Ruddy Turnstone | E142: 85 | G142: 11.14.25
A143: Red Knot | E143: 620 | G143: 1.21.25
A144: Sanderling | E144: 460 | G144: 8.3.18
A145: Semipalmated Sandpiper | E145: 2675 | G145: 5.21.24
A146: Western Sandpiper | E146: 205 | G146: 9.29.20
A147: Least Sandpiper | E147: 345 | G147: 7.30.18
A148: White-rumped Sandpiper | E148: 8 | G148: 5.27.23
A149: Baird's Sandpiper | E149: 1 | G149: 8.12.24
A150: Pectoral Sandpiper | E150: 71 | G150: 9.1.16
A151: Purple Sandpiper | E151: 4 | G151: 11.27.25
A152: Dunlin | E152: 360 | G152: 10.27.19
A153: Stilt Sandpiper | E153: 10 | G153: 9.6.20
A154: Buff-breasted Sandpiper | E154: 1 | G154: 9.25.21
A155: Ruff | E155: 1 | G155: 9.25.20
A156: Short-billed Dowitcher | E156: 88 | G156: 8.15.19
A157: Long-billed Dowitcher | E157: 60 | G157: 10.4.23
A158: Wilson's Snipe | E158: 4 | G158: 11.23.25
A159: Wilson's Phalarope | E159: 1 | G159: 8.26.17
A160: Red-necked Phalarope | E160: 105 | G160: 10.6.19
A161: Red Phalarope | E161: 30 | G161: 10.6.19
A162: South Polar Skua | E162: 1 | G162: 12.21.17
A163: Pomarine Jaeger | E163: 431 | G163: 11.18.20
A164: Parasitic Jaeger | E164: 85 | G164: 10.3.17
A165: Long-tailed Jaeger | E165: 7 | G165: 9.25.24
A166: Laughing Gull | E166: 47,300 | G166: 12.16.18
A167: Franklin's Gull | E167: 2 | G167: 12.21.19
A168: Little Gull | E168: 1 | G168: 12.13.22
A169: Black-headed Gull | E169: 1 | G169: 12.15.17
A170: Bonaparte's Gull | E170: 100 | G170: 12.30.20
A171: Ring-billed Gull | E171: 870 | G171: 1.4.16
A172: California Gull | E172: 1 | G172: 3.29.23
A173: Herring Gull | E173: 4,140 | G173: 12.26.17
A174: Iceland Gull | E174: 2 | G174: 11.9.22
A175: Lesser Black-backed Gull | E175: 84 | G175: 3.26.25
A176: Glaucous Gull | E176: 3 | G176: 1.21.17
A177: Great Black-backed Gull | E177: 31 | G177: 11.23.18
A178: Sabine's Gull | E178: 2 | G178: 10.3.17
A179: Black-legged Kittiwake | E179: 5 | G179: 12.13.22
A180: Gull-billed Tern | E180: 6 | G180: 8.27.17
A181: Caspian Tern | E181: 164 | G181: 10.26.19
A182: Royal Tern | E182: 2,284 | G182: 3.3.17
A183: Sandwich Tern | E183: 523 | G183: 1.27.23
A184: Roseate Tern | E184: 8 | G184: 9.25.24
A185: Common Tern | E185: 2,420 | G185: 10.14.20
A186: Arctic Tern | E186: 15 | G186: 5.20.21
A187: Forster's Tern | E187: 1,485 | G187: 1.17.18
A188: Least Tern | E188: 170 | G188: 7.21.24
A189: Bridled Tern | E189: 33 | G189: 10.10.24
A190: Sooty Tern | E190: 148 | G190: 10.10.24
A191: Black Tern | E191: 2,600 | G191: 8.27.22
A192: Brown Noddy | E192: 7 | G192: 10.4.17
A193: Black Skimmer | E193: 1150 | G193: 12.24.22
A194: Dovekie | E194: 1 | G194: 12.12.19
A195: Thick-billed Murre | E195: 1 | G195: 1.14.19
A196: Razorbill | E196: 2 | G196: 12.2.22
A197: Black Guillemot | E197: 1 | G197: 1.23.16
A198: Rock Pigeon | E198: 120 | G198: 11.16.20
A199: Eurasian Collared-Dove | E199: 23 | G199: 9.3.19
A200: White-winged Dove | E200: 5 | G200: 11.5.18
A201: Mourning Dove | E201: 84 | G201: 9.3.19
A202: Common Ground-Dove | E202: 11 | G202: 9.18.22
... 150 more rows

Sheet bird list
A1: Additions to list
A3: No. species 12.31.15 | D3: 72 | F3: New species in 2016 | K3: Date
A5: Additions 2016 | D5: 73 | F5: House Finch | K5: 1.1.16
D6: 74 | F6: Franklin's Gull | K6: 1.2.16
D7: 75 | F7: Bufflehead | K7: 1.2.16
D8: 76 | F8: Wood Stork | K8: 1.4.16
D9: 77 | F9: Black Vulture | K9: 1.4.16
D10: 78 | F10: Peregrine Falcon | K10: 1.8.16
D11: 79 | F11: Red-throated Loon | K11: 1.8.16
D12: 80 | F12: Cedar Waxwing | K12: 1.10.16
D13: 81 | F13: Bald Eagle | K13: 1.10.16
D14: 82 | F14: Ring-necked Duck | K14: 1.15.16
D15: 83 | F15: Blue-winged Teal | K15: 1.16.16
D16: 84 | F16: Eastern Phoebe | K16: 1.16.16
D17: 85 | F17: Brown-headed Cowbird | K17: 1.16.16
D18: 86 | F18: Anhinga | K18: 1.16.16
D19: 87 | F19: Pileated Woodpecker | K19: 1.18.16
D20: 88 | F20: American White Pelican | K20: 1.18.16
D21: 89 | F21: Blue Jay | K21: 1.21.16
D22: 90 | F22: Cooper's Hawk | K22: 1.21.16
D23: 91 | F23: Black Guillemot | K23: 1.23.16
D24: 92 | F24: Red-winged Blackbird | K24: 1.24.16
D25: 93 | F25: Yellow-rumped Warbler | K25: 1.24.16
D26: 94 | F26: Sharp-shinned Hawk | K26: 1.24.16
D27: 95 | F27: Common Goldeneye | K27: 1.24.16
D28: 96 | F28: White Ibis | K28: 1.29.16
D29: 97 | F29: Carolina Wren | K29: 1.30.16
D30: 98 | F30: Sandhill Crane | K30: 1.30.16
D31: 99 | F31: American Robin | K31: 1.30.16
D32: 100 | F32: Little Blue Heron | K32: 1.30.16
D33: 101 | F33: White-winged Dove | K33: 1.30.16
D34: 102 | F34: Northern Harrier | K34: 2.9.16
D35: 103 | F35: Merlin | K35: 2.9.16
D36: 104 | F36: Western Sandpiper | K36: 2.10.16
D37: 105 | F37: Red-shouldered Hawk | K37: 2.13.16
D38: 106 | F38: Common Ground-Dove | K38: 2.20.16
D39: 107 | F39: American Goldfinch | K39: 2.20.16
D40: 108 | F40: Whimbrel | K40: 2.21.16
D41: 109 | F41: Great Blue Heron | K41: 2.21.16
D42: 110 | F42: Thayer's Gull | H42: (now Iceland Gull) | K42: 2.26.16
D43: 111 | F43: Lesser Yellowlegs | K43: 2.26.16
D44: 112 | F44: Snow Goose | K44: 2.27.16
D45: 113 | F45: Loggerhead Shrike | K45: 2.28.16
D46: 114 | F46: Purple Martin | K46: 3.2.16
D47: 115 | F47: Black-legged Kittiwake | K47: 3.6.16
D48: 116 | F48: Downy Woodpecker | K48: 3.6.16
D49: 117 | F49: Barn Swallow | K49: 3.6.16
D50: 118 | F50: Brown Thrasher | K50: 3.9.16
D51: 119 | F51: Hooded Merganser | K51: 3.19.16
D52: 120 | F52: Swallow-tailed Kite | K52: 3.20.16
D53: 121 | F53: Northern Rough-winged Swallow | K53: 3.23.16
D54: 122 | F54: Belted Kingfisher | K54: 3.25.16
D55: 123 | F55: Nanday Parakeet | K55: 3.26.16
D56: 124 | F56: Glossy Ibis | K56: 3.26.16
D57: 125 | F57: Savannah Sparrow | K57: 3.27.16
D58: 126 | F58: Common Yellowthroat | K58: 3.28.16
D59: 127 | F59: Gray Catbird | K59: 3.29.16
D60: 128 | F60: Eastern Towhee | K60: 3.29.16
D61: 129 | F61: Chimney Swift | K61: 4.1.16
D62: 130 | F62: Prairie Warbler | K62: 4.1.16
D63: 131 | F63: Blue-gray Gnatcatcher | K63: 4.2.16
D64: 132 | F64: Bank Swallow | K64: 4.8.16
D65: 133 | F65: Spotted Sandpiper | K65: 4.8.16
D66: 134 | F66: Northern Pintail | K66: 4.9.16
D67: 135 | F67: Eastern Kingbird | K67: 4.10.16
D68: 136 | F68: Marbled Godwit | K68: 4.10.16
D69: 137 | F69: Baltimore Oriole | K69: 4.10.16
D70: 138 | F70: Northern Waterthrush | K70: 4.15.16
D71: 139 | F71: Brown Booby | K71: 4.15.16
D72: 140 | F72: Long-billed Curlew | K72: 4.15.16
D73: 141 | F73: Red-necked Phalarope | K73: 4.15.16
D74: 142 | F74: Green Heron | K74: 4.23.16
D75: 143 | F75: American Redstart | K75: 4.23.16
D76: 144 | F76: Bobolink | K76: 4.23.16
D77: 145 | F77: Common Nighthawk | K77: 4.24.16
D78: 146 | F78: Solitary Sandpiper | K78: 4.24.16
D79: 147 | F79: Short-billed Dowitcher | K79: 4.24.16
D80: 148 | F80: American Oystercatcher | K80: 4.27.16
D81: 149 | F81: Piping Plover | K81: 4.30.16
D82: 150 | F82: Reddish Egret | K82: 5.4.16
D83: 151 | F83: Blackpoll Warbler | K83: 5.4.16
D84: 152 | F84: Cliff Swallow | K84: 5.6.16
D85: 153 | F85: Tufted Titmouse | K85: 5.8.16
D86: 154 | F86: Black-crowned Night-Heron | K86: 6.3.16
D87: 155 | F87: Great Crested Flycatcher | K87: 6.3.16
D88: 156 | F88: Black-necked Stilt | K88: 6.7.16
D89: 157 | F89: Black-bellied Whistling-Duck | K89: 6.8.16
D90: 158 | F90: Short-tailed Hawk | K90: 6.15.16
D91: 159 | F91: Cory's Shearwater | K91: 6.19.16
D92: 160 | F92: Arctic Tern | K92: 6.19.16
D93: 161 | F93: Great Shearwater | K93: 6.19.16
D94: 162 | F94: Mississippi Kite | K94: 6.29.16
D95: 163 | F95: Black Tern | K95: 7.6.16
D96: 164 | F96: Gray Kingbird | K96: 7.8.16
D97: 165 | F97: Northern Parula | K97: 7.8.16
D98: 166 | F98: Red-eyed Vioreo | G98: Vireo | K98: 7.9.16
D99: 167 | F99: Blue Grosbeak | K99: 7.29.16
D100: 168 | F100: Stilt Sandpiper | K100: 7.31.16
D101: 169 | F101: Louisiana Waterthrush | K101: 8.5.16
D102: 170 | F102: American Avocet | K102: 8.5.16
D103: 171 | F103: Yellow Warbler | K103: 8.10.16
D104: 172 | F104: Ruby-throated Hummingbird | K104: 8.20.16
D105: 173 | F105: Hooded Warbler | K105: 9.3.16
D106: 174 | F106: Mallard | K106: 9.3.16
D107: 175 | F107: Yellow-throated Warbler | K107: 9.4.16
D108: 176 | F108: Wilson's Snipe | K108: 10.12.16
D109: 177 | F109: Sedge Wren | K109: 10.22.16
D110: 178 | F110: Pied-billed Grebe | K110: 10.23.16
D111: 179 | F111: American Crow | K111: 10.25.16
D112: 180 | F112: Gadwall | K112: 11.5.16
D113: 181 | F113: Brant | K113: 11.6.16
D114: 182 | F114: Wood Duck | K114: 11.8.16
D115: 183 | F115: Yellow-bellied Sapsucker | K115: 11.19.16
D116: 184 | F116: White-crowned Sparrow | K116: 11.26.16
D117: 185 | F117: Canvasback | K117: 11.27.16
D118: 186 | F118: Wilson's Plover | K118: 11.30.16
D119: 187 | F119: Chipping Sparrow | K119: 12.13.16
D120: 188 | F120: Iceland Gull | K120: 12.18.16
D121: 189 | F121: Eared Grebe | K121: 2.14.17
D122: 190 | F122: Purple Sandpiper | K122: 2.20.17
D123: 191 | F123: Chuck-will's-widow | K123: 3.31.17
D124: 192 | F124: Long-billed Dowitcher | K124: 4.7.17
D125: 193 | F125: Egyptian Goose | K125: 4.9.17
D126: 194 | F126: Orchard Oriole | K126: 4.9.17
D127: 195 | F127: Audubon's Shearwater | K127: 4.15.17
D128: 196 | F128: Band-rumped Storm-Petrel | K128: 4.16.17
D129: 197 | F129: Wilson's Storm-Petrel | K129: 4.16.17
D130: 198 | F130: American Golden-Plover | K130: 4.21.17
D131: 199 | F131: Yellow-billed Cuckoo | K131: 4.25.17
D132: 200 | F132: Indigo Bunting | K132: 4.28.17
D133: 201 | F133: Black-throated Blue Warbler | K133: 5.5.17
D134: 202 | F134: Tennessee Warbler | K134: 5.5.17
D135: 203 | F135: Summer Tanager | K135: 5.5.17
D136: 204 | F136: Cape May Warbler | K136: 5.6.17
D137: 161A | F137: Scopoli's Shearwater | K137: 6.10.17
D138: 205 | F138: Common Myna | K138: 6.16.17
D139: 206 | F139: Shiny Cowbird | K139: 7.19.17
D140: 207 | F140: Wilson's Phalarope | K140: 8.26.17
D141: 208 | F141: Black-and-white Warbler | K141: 8.29.17
D142: 209 | F142: Broad-winged Hawk | K142: 9.7.17
D143: 210 | F143: Sooty Tern | K143: 9.9.17
D144: 211 | F144: Brown Noddy | K144: 9.10.17
D145: 212 | F145: Bridled Tern | K145: 9.10.17
D146: 213 | F146: Red Phalarope | K146: 9.10.17
D147: 214 | F147: Sabine's Gull | K147: 9.10.17
D148: 215 | F148: Long-tailed Jaeger | K148: 9.10.17
D149: 216 | F149: Manx Shearwater | K149: 9.24.17
D150: 217 | F150: Mottled Duck | K150: 9.29.17
D151: 218 | F151: Pine Warbler | K151: 9.30.17
D152: 219 | F152: Leach's Storm-Petrel | K152: 10.1.17
D153: 220 | F153: Northern Fulmar | K153: 10.4.17
D154: 221 | F154: American Bittern | K154: 10.6.17
D155: 222 | F155: Gray-cheeked Thrush | K155: 10.16.17
D156: 223 | F156: Ruby-crowned Kinglet | K156: 10.25.17
D157: 224 | F157: Painted Bunting | K157: 10.26.17
D158: 225 | F158: Golden Eagle | K158: 10.30.17
D159: 226 | F159: Ruddy Duck | K159: 11.9.17
D160: 227 | F160: American Coot | K160: 11.11.17
D161: 228 | F161: Swainson's Hawk | K161: 11.14.17
D162: 229 | F162: Snow Bunting | K162: 11.14.17
D163: 230 | F163: Northern Flicker | K163: 11.16.17
D164: 231 | F164: Common Merganser | K164: 11.20.17
D165: 232 | F165: Common Eider | K165: 11.21.17
D166: 233 | F166: Great Cormorant | K166: 12.3.17
D167: 234 | F167: Eastern Whip-poor-will | K167: 12.15.17
D168: 235 | F168: Black-headed Gull | K168: 12.15.17
D169: 236 | F169: South Polar Skua | K169: 12.21.17
D170: 237 | F170: Masked Booby | K170: 12.24.17
D171: 236 | E171: (removal of Thayer's Gull)
D172: 237 | F172: American Pipit | K172: 1.12.18
D173: 238 | F173: Tundra Swan | K173: 1.13.18
D174: 239 | F174: Eastern Bluebird | K174: 2.9.18
D175: 240 | F175: Eastern Screech-Owl | K175: 4.8.18
D176: 241 | F176: Cockatiel
D177: 242 | F177: Red-headed Woodpecker | K177: 4.15.18
D178: 243 | F178: Rose-breasted Grosbeak | K178: 4.19.18
D179: 244 | F179: Muscovy Duck | K179: 6.12.18
D180: 245 | F180: Florida Scrub-Jay | K180: 6.14.18
D181: 246 | F181: Magnolia Warbler | K181: 10.12.18
D182: 247 | F182: Greater White-fronted Goose | K182: 10.28.18
D183: 248 | F183: Harlequin Duck | K183: 11.6.18
D184: 249 | F184: Canada Goose | K184: 11.9.18
D185: 250 | F185: Marsh Wren | K185: 12.6.18
D186: 251 | F186: Great Horned Owl | K186: 12.19.18
D187: 252 | F187: Thick-billed Murre | K187: 1.14.19
D188: 253 | F188: Song Sparrow | K188: 2.13.19
D189: 254 | F189: White-tailed Tropicbird | K189: 4.18.19
D190: 255 | F190: Ovenbird | K190: 4.26.19
D191: 256 | F191: Connecticut Warbler | K191: 5.6.19
D192: 257 | F192: Fulvous Whistling-Duck | K192: 8.23.19
D193: 258 | F193: Hudsonian Godwit | K193: 10.9.19
D194: 259 | F194: Brewer's Blackbird | K194: 10.12.19
D195: 260 | F195: Black-throated Green Warbler | K195: 10.24.19
D196: 261 | F196: Cave Swallow | K196: 11.18.19
D197: 262 | F197: Dovekie | K197: 12.12.19
D198: 263 | F198: Barred Owl | K198: 12.27.19
D199: 264 | F199: Swamp Sparrow | K199: 4.10.20
D200: 265 | F200: Prothonotary Warbler | K200: 4.12.20
D201: 266 | F201: Nashville Warbler | K201: 5.6.20
D202: 267 | F202: Least Bittern | K202: 6.15.20
... 77 more rows

Sheet 5 or less
A1: SPECIES WITH FIVE RECORDS OR LESS
A3: Red-necked Grebe | E3: 1 on 2.26.21 | G3: 1 on 12.5.21 | I3: 1 on 3.1.24
A5: Eared Grebe | E5: 1 on 2.14.17 | G5: 4 on 12.4.20 | I5: 1 on 11.18.23 | K5: 1 on 2.13.24
A7: Western Grebe | E7: 1 on 1.26.25
A9: Yellow-nosed Albatross | E9: 1 on 5.31.21
A11: Southern Giant Petrel | E11: 1 on 10.11.24
A13: Northern Fulmar | E13: 1 on 10.3.17 | G13: 2 on 10.4.17 | I13: 4 on 10.5.17 | K13: 1 on 11.11.17
A15: Black-capped Petrel | E15: 1 on 10.4.23
A17: Grant's Storm-Petrel | E17: 1 on 6.26.22
A19: Madeiran Storm-Petrel | E19: 6 on 5.20.21
A21: White-tailed Tropicbird | E21: 1 on 4.18.19 | G21: 1 on 6.29.22
A23: Neotropic Cormorant | E23: 1 on 4.27.23 | G23: 1 on 6.29.24
A25: Western Reef Heron | E25: 1 on 11.5.20
A27: White-faced Ibis | E27: 1 on 8.21.24
A29: American Flamingo | E29: 1 on 10.22.23
A31: Fulvous Whistling-Duck | E31: 2 on 8.23.19 | G31: 1 on 7.9.21
A33: Greater White-fronted Goose | E33: 4 on 10.28.18 | G33: 2 on 11.2.21
A35: Brant | E35: 1 on 11.6.16 | G35: 1 on 10.28.18 | I35: 1 on 11.1.23 | K35: 1 on 11.14.23 | M35: 1 on 11.1.25
A37: Egyptian Goose | E37: 2 on 4.9.17 | G37: 4 on 4.25.17 | I37: 2 on 5.29.22
A39: Tundra Swan | E39: 1 on 1.13.18
A41: Mute Swan | E41: 1 on 3.25.24
A43: Eurasian Wigeon | E43: 1 on 11.15.23
A45: American Black Duck | E45: 1 on 11.2.21 | G45: 1 on 11.12.22 | I45: 1 on 11.3.23 | K45: 1 on 4.13.25
A47: Harlequin Duck | E47: 1 on 11.6.18 | G47: 1 on 11.14.23 | I47: 1 on 11.19.24 | K47: 1 on 11.13.25
A49: Common Merganser | E49: 1 on 11.20.17 | G49: 1 on 12.14.19 | I49: 1 on 12.12.20 | K49: 1 on 12.22.22
A51: Snail Kite | E51: 1 on 8.1.21 | G51: 1 on 9.13.23 | I51: 1 on 2.8.24
A53: Crested Caracara | E53: 1 on 8.19.20 | G53: 1 on 6.30.23
A55: Wild Turkey | E55: 2 on 1.17.24
A57: Clapper Rail | E57: 1 on 8.26.23 | G57: 1 on 7.16.24 | I57: 1 on 5.9.25
A59: Sora | E59: 1 on 2.2.24 | G59: 1 on 4.18.25
A61: Common Gallinule | E61: 1 on 7.13.24 | G61: 1 on 10.13.25
A63: Limpkin | E63: 1 on 1.11.24
A65: Common Ringed Plover | E65: 1 on 5.4.23
A67: Upland Sandpiper | E67: 1 on 7.22.22 | G67: 1 on 8.12.24 | I67: 8 on 4.10.25
A69: Long-billed Curlew | E69: 1 on 4.15.16 | G69: 1 on 11.6.21 | I69: 1 on 5.6.23
A71: Hudsonian Godwit | E71: 1 on 10.9.19 | G71: 1 on 1.20.20 | I71: 1 on 10.21.24
A73: Baird's Sandpiper | E73: 1 on 8.12.24
A75: Buff-breasted Sandpiper | E75: 1 on 8.25.21 | G75: 1 on 7.18.24 | I75: 1 on 8.21.25
A77: Ruff | E77: 1 on 9.25.20
A79: South Polar Skua | E79: 1 on 12.21.17
A81: Little Gull | E81: 1 on 12.13.22
A83: California Gull | E83: 1 on 3.29.23 | G83: 1 on 12.26.23
A85: Dovekie | E85: 1 on 12.12.19
A87: Black Guillemot | E87: 1 on 1.23.16
A89: Budgerigar | E89: 1 on 7.31.21
A91: Cockatiel | E91: 1 on 4.8.18 | G91: 1 on 11.2.24 | I91: 1 on 7.31.25
A93: Black-billed Cuckoo | E93: 1 on 9.14.24
A95: Black-chinned Hummingbird | E95: 1 on 11.10.20 | G95: 1 on 12.10.22 | I95: 1 on 10.20.25
A97: Rufous Hummingbird | E97: 1 on 12.29.24
A99: Hairy Woodpecker | E99: 1 on 6.16.21 | G99: 1 on 11.19.25
A101: Olive-sided Flycatcher | E101: 1 on 9.8.22
A103: Acadian Flycatcher | E103: 1 on 9.9.22
A105: Vermillion Flycatcher | E105: 1 on 2.2.22
A107: Ash-throated Flycatcher | E107: 1 on 11.7.23 | G107: 1 on 11.14.25
A109: Western Kingbird | E109: 1 on 2.3.23 | G109: 1 on 1.8.24 | I109: 1 on 10.12.24 | K109: 1 on 10.20.25
A111: Scissor-tailed Flycatcher | E111: 1 on 5.17.24
A113: Philadelphia Vireo | E113: 1 on 9.22.24 | G113: 1 on 10.12.25
A115: Sedge Wren | E115: 1 on 10.22.16 | G115: 1 on 4.5.24 | I115: 1 on 11.10.25
A117: Marsh Wren | E117: 1 on 12.6.18 | G117: 1 on 10.26.21 | I117: 1 on 10.8.24 | K117: 1 on 10.15.25 | M117: 1 on 11.13.25
A119: Golden-crowned Kinglet | E119: 1 on 12.9.23
A121: Common Myna | E121: 1 on 6.16.17
A123: Blue-winged Warbler | E123: 1 on 10,10.24 | G123: 1 on 4.3.25
A125: Nashville Warbler | E125: 1 on 5.6.20 | G125: 1 on 10.29.21 | I125: 1 on 11.8.24
A127: Chestnut-sided Waebler | E127: 1 on 10.2.24 | G127: 1 on 5.21.25 | I127: 1 on 10.5.25
A129: Black-throated Green Warbler | E129: 1 on 10.24.19 | G129: 1 on 5.18.25
A131: Worm-eating Warbler | E131: 1 on 4.30.21 | G131: 1 on 9.22.24
A133: Bay-breasted Warbler | E133: 1 on 10.19.23 | G133: 1 on 10.22.23 | I133: 1 on 10.23.24 | K133: 1 on 10.24.25
A135: Cerulean Warbler | E135: 1 on 9.20.22 | G135: 1on 9.28.25
A137: Ovenbird | E137: 1 on 4.26.19 | G137: 1 on 5.9.20 | I137: 1 on 3,21.21 | K137: 1 on 10.13.24 | M137: 1 on 10.1.25
A139: Kentucky Warbler | E139: 1 on 10.17.21
A141: Connecticut Warbler | E141: 1 on 5.6.19
A143: Hooded Warbler | E143: 1 on 9.3.16 | G143: 1 on 10.12.18
A145: Wilson's Warbler | E145: 1 on 10.7.20 | G145: 1 on 10.29.23
A147: Canada Warbler | E147: 1 on 9.22.21
A149: Scarlet Tanager | E149: 1 on 10.9.20 | G149: 2 on 9.17.22 | I149: 1 on 5.6.23 | K149: 1 on 10.1.25
A151: Western Tanager | E151: 1 on 3.8.23 | G151: 1 on 9.14.25
A153: Clay-colored Sparrow | E153: 1 on 11.25.20 | G153: 1 on 11.26.20 | I153: 1 on 10.15.21 | K153: 1 on 4.13.22 | M153: 1 on 2.20.24
A155: Field Sparrow | E155: 1 on 11.23.24
A157: Vesper Sparrow | E157: 1 on 12.17.20 | G157: 1 on 10.17.25
A159: Lark Sparrow | E159: 1 on 12.19.24
A161: Grasshopper Sparrow | E161: 1 on 12.1.22
A163: Song Sparrow | E163: 1 on 2.13.19
A165: Swamp Sparrow | E165: 1 on 4.10.20 | G165: 1 on 4.21.21 | I165: 1 on 11.2.21 | K165: 1 on 10.18.23 | M165: 1 on 4.12.25
A167: White-crowned Sparrow | E167: 1 on 11.26.16 | G167: 1 on 10.5.21 | I167: 2 on 11.6.24 | K167: 1 on 4.5.25
A169: Snow Bunting | E169: 1 on 11.14.17
A171: Eastern Meadowlark | E171: 1 on 10.19.21 | G171: 2 on 11.3.22 | I171: 1 on 7.2.23 | K171: 1 on 10.31.23
A173: Yellow-headed Blackbird | E173: 1 on 1.11.21 | G173: 1 on 11.11.23
A175: Purple Finch | E175: 2 on 12,12.20 | G175: 1 on 12.29.20 | I175: 2 on 1.25.21
A177: Pine Siskin | E177: 1 on 11.29.20 | G177: 1 on 10.21.23
A179: Bronzed Cowbird | E179: 1 on 12.9.20 | G179: 1 on 11.7.22 | I179: 2 on 11.19.23
A181: Orange Bishop | E181: 1 on 5.12.23

Sheet CBC
A1: THE CHRISTMAS BIRD COUNTS
A4: Count number: | D4: 1 | E4: 2 | F4: 3 | G4: 4 | H4: 5 | I4: 6 | J4: 7 | K4: 8 | L4: 9 | M4: 10 | N4: 11 | O4: 12 | P4: 13 | Q4: 14 | R4: 15
A5: Species | D5: 12.26.11 | E5: 12.22.12 | F5: 12.28.13 | G5: 12.27.14 | H5: 12.24.15 | I5: 12.26.15 | J5: 12.23.16 | K5: 12.23.17 | L5: 12.22.18 | M5: 12.27.19 | N5: 12.26.20 | O5: 12.26.21 | P5: 12.23.22 | Q5: 12.23.23 | R5: 12.21.24
C6: Hours | D6: 10 | E6: 10 | F6: 10 | G6: 10 | H6: 7 | I6: 9 | J6: 10 | K6: 8 | L6: 7 | M6: 9 | N6: 8 | O6: 7 | P6: 8 | Q6: 9 | R6: 8
C7: Wind | H7: SE 10 | I7: SE 5 | J7: NNE 3 | K7: SW 7 | L7: N 4 | M7: NE 4 | N7: NW 4 | O7: W 3 | P7: NW 10 | Q7: NE 4 | R7: N 9
C8: Weather | N8: 37 deg | R8: 46 deg
A11: Red-throated Loon | J11: 1 | R11: 1
A12: Common Loon | D12: 6 | E12: 3 | G12: 2 | H12: 1 | I12: 3 | J12: 1 | K12: 1 | L12: 3 | M12: 2 | N12: 5 | O12: 2 | P12: 3 | Q12: 2 | R12: 4
A13: Horned Grebe | D13: 1 | E13: 2 | J13: 1
A14: Great Shearwater | M14: 1 | P14: 1
A15: Sooty Shearwater | E15: 1
A16: Northern Gannet | D16: 615 | E16: 217 | F16: 476 | G16: 1,017 | H16: 541 | I16: 2,590 | J16: 483 | K16: 1,560 | L16: 525 | M16: 105 | N16: 98 | O16: 168 | P16: 374 | Q16: 78 | R16: 30
A17: American White Pelican | N17: 8 | P17: 22 | Q17: 44 | R17: 21
A18: Brown Pelican | D18: 520 | E18: 485 | F18: 263 | G18: 570 | H18: 273 | I18: 219 | J18: 322 | K18: 141 | L18: 469 | M18: 161 | N18: 122 | O18: 52 | P18: 212 | Q18: 140 | R18: 76
A19: Double-crested Cormorant | D19: 42 | E19: 30 | F19: 59 | G19: 16 | H19: 16 | I19: 12 | J19: 73 | K19: 20 | L19: 8 | M19: 22 | N19: 2 | O19: 1 | P19: 17 | Q19: 162 | R19: 26
A20: Anhinga | M20: 1 | O20: 1 | P20: 2 | Q20: 1
A21: Magnificent Frigatebird | F21: 1 | K21: 1
A22: Great Blue Heron | K22: 1 | M22: 1 | N22: 1 | O22: 2 | P22: 2 | Q22: 2 | R22: 1
A23: Great Egret | I23: 1 | J23: 1 | K23: 1 | L23: 1 | P23: 1 | Q23: 1 | R23: 1
A24: Snowy Egret | E24: 1 | G24: 3 | H24: 1 | J24: 4 | K24: 4 | L24: 1 | M24: 2 | P24: 2 | Q24: 2 | R24: 1
A25: Little Blue Heron | P25: 1
A26: Cattle Egret | F26: 1 | L26: 3 | M26: 1 | R26: 3
A27: Black-crowned Night-Heron | M27: 1 | O27: 1
A28: White Ibis | J28: 2 | K28: 22 | L28: 30 | M28: 1 | O28: 23 | P28: 7 | Q28: 9 | R28: 17
A29: Roseate Spoonbill | G29: 1 | M29: 1
A30: Wood Stork | J30: 2 | K30: 5 | L30: 2 | N30: 4 | O30: 3 | P30: 1 | Q30: 3 | R30: 2
A31: Black Vulture | M31: 36 | N31: 30 | O31: 72 | P31: 106 | Q31: 25 | R31: 11
A32: Turkey Vulture | E32: 1 | F32: 1 | G32: 1 | I32: 3 | J32: 5 | K32: 159 | M32: 19 | N32: 22 | O32: 166 | P32: 154 | Q32: 59 | R32: 98
A33: Muscovy Duck | M33: 1
A34: American Wigeon | D34: 2 | E34: 1 | I34: 18 | J34: 15 | K34: 38 | N34: 2
A35: Northern Shoveler | E35: 19
A36: Green-winged Teal | E36: 1 | K36: 20 | R36: 1
A37: Redhead | I37: 2 | J37: 2 | K37: 735 | P37: 26
A38: Ring-necked Duck | O38: 4
A39: Greater Scaup | E39: 8 | H39: 17 | I39: 18 | J39: 55 | K39: 1,550 | P39: 73 | Q39: 22 | R39: 42
A40: Lesser Scaup | D40: 81 | F40: 36 | G40: 8 | H40: 100 | I40: 353 | J40: 61 | K40: 290 | L40: 2 | P40: 20 | Q40: 1700 | R40: 27
A41: Common Eider | P41: 1
A42: Surf Scoter | D42: 1 | F42: 1 | H42: 2 | L42: 4 | N42: 3 | O42: 1 | Q42: 18
A43: White-winged Scoter | F43: 2 | N43: 1 | P43: 1
A44: Black Scoter | D44: 1 | E44: 42 | F44: 1,363 | G44: 216 | H44: 294 | I44: 1,520 | J44: 154 | K44: 790 | L44: 128 | M44: 65 | N44: 34 | P44: 49 | Q44: 238 | R44: 55
A45: Long-tailed Duck | F45: 1
A46: Bufflehead | K46: 1 | P46: 2 | Q46: 1
A47: Red-breasted Merganser | D47: 35 | E47: 3 | F47: 37 | G47: 10 | H47: 4 | I47: 15 | J47: 39 | K47: 18 | L47: 2 | M47: 6 | N47: 31 | P47: 36 | Q47: 3
A48: Osprey | F48: 1 | G48: 2 | H48: 1 | I48: 2 | J48: 1 | K48: 2 | L48: 1 | M48: 1 | N48: 3 | O48: 3 | P48: 4 | Q48: 4 | R48: 4
A49: Bald Eagle | J49: 1 | K49: 2 | L49: 4 | M49: 2 | N49: 1 | O49: 5 | P49: 2 | Q49: 2 | R49: 6
A50: Northern Harrier | P50: 1 | R50: 1
A51: Sharp-shinned Hawk | O51: 1
A52: Cooper's Hawk | K52: 1 | N52: 1
A53: Red-shouldered Hawk | K53: 1 | M53: 1 | O53: 2 | P53: 1 | Q53: 1
A54: Broad-winged Hawk | O54: 1
A55: Red-tailed Hawk | K55: 1 | N55: 1 | O55: 2 | P55: 1 | Q55: 1 | R55: 1
A56: American Kestrel | I56: 1 | J56: 1 | K56: 1 | L56: 1 | M56: 1 | P56: 1 | R56: 2
A57: Merlin | R57: 1
A58: Black-bellied Plover | D58: 4 | E58: 3 | F58: 3 | G58: 1 | H58: 4 | I58: 1 | J58: 9 | K58: 4 | L58: 6 | M58: 4 | N58: 3 | P58: 1 | Q58: 19
A59: Killdeer | E59: 1
A60: American Oystercatcher | N60: 1
A61: Willet | D61: 11 | E61: 9 | F61: 11 | G61: 8 | H61: 4 | I61: 8 | J61: 7 | K61: 13 | L61: 10 | M61: 9 | N61: 69 | O61: 5 | P61: 7 | Q61: 12 | R61: 2
A62: Ruddy Turnstone | D62: 19 | E62: 3 | F62: 8 | G62: 37 | H62: 7 | I62: 9 | J62: 23 | K62: 11 | L62: 16 | M62: 4 | N62: 14 | O62: 20 | P62: 24 | Q62: 17 | R62: 5
A63: Red Knot | E63: 5 | F63: 12 | G63: 58 | H63: 38 | I63: 73 | J63: 93 | K63: 28 | L63: 6 | M63: 13 | N63: 9 | O63: 10 | P63: 63 | Q63: 21 | R63: 50
A64: Sanderling | D64: 36 | E64: 38 | F64: 9 | G64: 9 | H64: 10 | I64: 13 | J64: 33 | K64: 27 | L64: 6 | M64: 41 | N64: 21 | O64: 17 | P64: 17 | Q64: 49 | R64: 35
A65: Western Sandpiper | L65: 1
A66: Pomarine Jaeger | D66: 4 | E66: 7 | F66: 1 | H66: 5 | I66: 4 | J66: 4 | K66: 3 | L66: 10 | N66: 2 | P66: 1 | Q66: 1
A67: Parasitic Jaeger | D67: 7 | E67: 34 | F67: 26 | G67: 2 | H67: 16 | I67: 2 | K67: 1 | L67: 16 | M67: 2 | N67: 3 | P67: 19 | Q67: 37 | R67: 1
A68: Laughing Gull | D68: 900 | E68: 344 | F68: 895 | G68: 400 | H68: 670 | I68: 1,100 | J68: 755 | K68: 690 | L68: 2,000 | M68: 450 | N68: 230 | O68: 540 | P68: 76 | Q68: 1510 | R68: 675
A69: Bonaparte's Gull | D69: 4 | E69: 49 | F69: 4 | H69: 46 | I69: 1 | J69: 3 | L69: 1 | P69: 6 | Q69: 11
A70: Ring-billed Gull | D70: 135 | E70: 40 | F70: 780 | G70: 147 | H70: 350 | I70: 295 | J70: 48 | K70: 24 | L70: 55 | M70: 41 | N70: 27 | O70: 17 | P70: 57 | Q70: 59 | R70: 55
A71: Herring Gull | D71: 185 | E71: 8 | F71: 210 | G71: 855 | H71: 26 | I71: 12 | J71: 33 | K71: 1,060 | L71: 475 | M71: 16 | N71: 7 | O71: 34 | P71: 6 | Q71: 18 | R71: 7
A72: Lesser Black-backed Gull | D72: 3 | E72: 2 | F72: 1 | J72: 1 | L72: 4 | M72: 1 | N72: 1 | O72: 1 | P72: 2 | Q72: 2
A73: Glaucous Gull | D73: 1 | G73: 2
A74: Great Black-backed Gull | D74: 8 | E74: 4 | F74: 7 | G74: 11 | H74: 2 | I74: 2 | J74: 2 | K74: 3 | L74: 1 | M74: 2 | N74: 1 | O74: 1 | P74: 1
A75: Caspian Tern | D75: 1 | E75: 5 | F75: 1 | G75: 1 | K75: 2 | M75: 1 | O75: 2 | P75: 1
A76: Royal Tern | D76: 241 | E76: 412 | F76: 140 | G76: 120 | H76: 53 | I76: 12 | J76: 85 | K76: 68 | L76: 65 | M76: 169 | N76: 179 | O76: 64 | P76: 34 | Q76: 95 | R76: 36
A77: Sandwich Tern | D77: 8 | E77: 356 | F77: 6 | G77: 3 | H77: 3 | I77: 19 | J77: 9 | K77: 48 | L77: 63 | M77: 20 | N77: 22 | O77: 20 | P77: 66 | Q77: 68 | R77: 14
A78: Common Tern | Q78: 1
A79: Forster's Tern | D79: 38 | F79: 32 | G79: 12 | H79: 53 | I79: 12 | J79: 25 | K79: 5 | L79: 2 | M79: 54 | N79: 16 | O79: 2 | P79: 6 | Q79: 93 | R79: 24
A80: Black Skimmer | D80: 7 | E80: 7 | F80: 56 | G80: 3 | H80: 15 | I80: 100 | J80: 33 | K80: 1 | L80: 38 | M80: 4 | N80: 4 | P80: 2 | Q80: 357 | R80: 7
A81: Razorbill | E81: 1
A82: Rock Pigeon | D82: 11 | E82: 9 | F82: 2 | I82: 4 | J82: 1 | K82: 39 | L82: 23 | M82: 6 | N82: 9 | O82: 4 | P82: 17 | Q82: 55 | R82: 20
A83: Eurasian Collared-Dove | D83: 2 | F83: 2 | G83: 6 | I83: 3 | J83: 2 | K83: 6 | L83: 4 | M83: 3 | O83: 1 | Q83: 1
A84: White-winged Dove | L84: 1
A85: Mourning Dove | D85: 4 | E85: 1 | F85: 7 | G85: 5 | I85: 8 | J85: 12 | K85: 7 | L85: 2 | M85: 42 | N85: 11 | O85: 44 | P85: 22 | Q85: 32 | R85: 8
A86: Common Ground-Dove | M86: 1 | P86: 2
A87: Eastern Screech-Owl | Q87: 1
A88: Barred Owl | M88: 1
A89: Red-bellied Woodpecker | I89: 1 | J89: 2 | L89: 1 | M89: 2 | N89: 1 | O89: 4 | P89: 1 | Q89: 2 | R89: 2
A90: Yellow-bellied Sapsucker | Q90: 1
A91: Downy Woodpecker | O91: 2 | Q91: 1
A92: Northern Flicker | M92: 1
A93: Pileated Woodpecker | O93: 1 | R93: 1
A94: Eastern Phoebe | M94: 1 | N94: 1 | O94: 2 | Q94: 2
A95: Loggerhead Shrike | K95: 1 | L95: 2 | Q95: 2 | R95: 1
A96: Blue-headed Vireo | O96: 1
A97: Blue Jay | J97: 1 | K97: 1 | M97: 2 | N97: 1 | O97: 3 | P97: 1 | Q97: 3
A98: American Crow | M98: 1 | N98: 7 | O98: 1 | P98: 1 | Q98: 1 | R98: 2
A99: Fish Crow | I99: 2 | J99: 29 | K99: 4 | L99: 4 | M99: 33 | N99: 1 | O99: 26 | P99: 4 | Q99: 5 | R99: 1
A100: Tree Swallow | H100: 8 | K100: 1
A101: Caroline Wren | M101: 1 | Q101: 1
A102: House Wren | F102: 1 | M102: 1 | O102: 3
A103: Blue-gray Gnatcatcher | O103: 2 | Q103: 1
A104: Ruby-crowned Kinglet | Q104: 3
A105: American Robin | J105: 108 | K105: 200 | L105: 1 | M105: 80 | N105: 80 | R105: 1
A106: Gray Catbird | O106: 2 | P106: 1 | Q106: 1
A107: Northern Mockingbird | I107: 2 | J107: 1 | K107: 4 | L107: 1 | M107: 3 | N107: 4 | O107: 7 | P107: 2 | Q107: 2 | R107: 4
A108: European Starling | D108: 220 | F108: 350 | G108: 111 | H108: 1 | I108: 26 | J108: 200 | K108: 10 | L108: 80 | M108: 40 | N108: 850 | O108: 340 | P108: 320 | Q108: 80 | R108: 260
A109: Cape May Warbler | Q109: 1
A110: Yellow-rumped Warbler | K110: 2 | M110: 3 | N110: 5 | O110: 6 | P110: 4 | Q110: 8 | R110: 1
A111: Yellow-throated Warbler | Q111: 1
A112: Prairie Warbler | Q112: 1
A113: Palm Warbler | D113: 1 | E113: 1 | F113: 1 | G113: 2 | J113: 2 | K113: 1 | L113: 4 | M113: 2 | N113: 10 | O113: 4 | P113: 6 | Q113: 5 | R113: 2
A114: Northern Cardinal | I114: 1 | K114: 1 | M114: 1 | N114: 2 | O114: 4 | P114: 1 | Q114: 3
A115: Red-winged Blackbird | M115: 42
A116: Common Grackle | I116: 25 | J116: 3 | K116: 11 | L116: 2 | M116: 8 | O116: 4 | P116: 9 | Q116: 9 | R116: 4
A117: Boat-tailed Grackle | D117: 2 | E117: 1 | F117: 2 | G117: 6 | I117: 3 | J117: 2 | K117: 1 | M117: 6 | O117: 68 | P117: 41 | Q117: 1 | R117: 4
A118: Brown-headed Cowbird | J118: 120 | K118: 220 | L118: 12 | M118: 160 | N118: 63 | O118: 110 | P118: 680 | Q118: 65 | R118: 22
A119: House Finch | O119: 2 | P119: 3 | Q119: 2
A120: American Goldfinch | J120: 4 | R120: 1
A121: House Sparrow | I121: 5 | J121: 4 | K121: 2 | M121: 4 | N121: 9 | O121: 9 | P121: 14 | Q121: 13 | R121: 10
A124: Number of birds | D124: 3,156 | E124: 2,216 | F124: 4,809 | G124: 3,645 | H124: 2,561 | I124: 6,501 | J124: 2,878 | K124: 7,870 | L124: 4,079 | M124: 1,708 | N124: 2,023 | O124: 1892 | P124: 2637 | Q124: 5190 | R124: 1690
A125: Species | D125: 34 | E125: 38 | F125: 38 | G125: 32 | H125: 29 | I125: 42 | J125: 51 | K125: 61 | L125: 49 | M125: 61 | N125: 50 | O125: 55 | P125: 65 | Q125: 70 | R125: 56
P129: 12
